Workbook

Sheet Feuil1 (hidden)
C1: FC1 40 | D1: FC1 44 | E1: FC1 48 | F1: FC1 53 | G1: FC1 58 | H1: FC1 63 | I1: FC1 69 | J1: FC1 +69 | K1: FC2 44 | L1: FC2 48 | M1: FC2 53 | N1: FC2 58 | O1: FC2 63 | P1: FC2 69 | Q1: FC2 +69 | R1: FJ48 | S1: FJ53 | T1: FJ58 | U1: FJ63 | V1: FJ69 | W1: FJ75 | X1: FJ+75 | Y1: FS48 | Z1: FS53 | AA1: FS58 | AB1: FS63 | AC1: FS69 | AD1: FS75 | AE1: FS+75 | AF1: C1 45 | AG1: C1 50 | AH1: C1 56 | AI1: C1 62 | AJ1: C1 69 | AK1: C1 77 | AL1: C1 85 | AM1: C1 94 | AN1: C1 +94 | AO1: C2 50 | AP1: C2 56 | AQ1: C2 62 | AR1: C2 69 | AS1: C2 77 | AT1: C2 85 | AU1: C2 94 | AV1: C2 +94 | AW1: J56 | AX1: J62 | AY1: J69 | AZ1: J77 | BA1: J85 | BB1: J94 | BC1: J105 | BD1: J+105 | BE1: S56 | BF1: S62 | BG1: S69 | BH1: S77 | BI1: S85 | BJ1: S94 | BK1: S105 | BL1: S+105
B2: DEBUTANT | C2: 20 | D2: 25 | E2: 25 | F2: 35 | G2: 40 | H2: 45 | I2: 50 | J2: 60 | K2: 30 | L2: 35 | M2: 45 | N2: 50 | O2: 55 | P2: 60 | Q2: 70 | R2: 45 | S2: 55 | T2: 60 | U2: 65 | V2: 70 | W2: 80 | X2: 90 | Y2: 55 | Z2: 65 | AA2: 70 | AB2: 75 | AC2: 80 | AD2: 95 | AE2: 100 | AF2: 35 | AG2: 40 | AH2: 50 | AI2: 75 | AJ2: 85 | AK2: 90 | AL2: 100 | AM2: 110 | AN2: 120 | AO2: 45 | AP2: 65 | AQ2: 85 | AR2: 95 | AS2: 110 | AT2: 120 | AU2: 125 | AV2: 135 | AW2: 80 | AX2: 90 | AY2: 110 | AZ2: 130 | BA2: 145 | BB2: 150 | BC2: 155 | BD2: 165 | BE2: 95 | BF2: 120 | BG2: 130 | BH2: 150 | BI2: 165 | BJ2: 170 | BK2: 175 | BL2: 185
B3: DEPARTEMENTAL | C3: 25 | D3: 35 | E3: 35 | F3: 45 | G3: 50 | H3: 55 | I3: 60 | J3: 70 | K3: 40 | L3: 45 | M3: 55 | N3: 60 | O3: 65 | P3: 70 | Q3: 80 | R3: 55 | S3: 65 | T3: 70 | U3: 75 | V3: 80 | W3: 95 | X3: 100 | Y3: 65 | Z3: 75 | AA3: 80 | AB3: 85 | AC3: 90 | AD3: 105 | AE3: 110 | AF3: 50 | AG3: 55 | AH3: 70 | AI3: 95 | AJ3: 105 | AK3: 110 | AL3: 120 | AM3: 130 | AN3: 140 | AO3: 65 | AP3: 85 | AQ3: 105 | AR3: 115 | AS3: 130 | AT3: 140 | AU3: 145 | AV3: 155 | AW3: 100 | AX3: 120 | AY3: 130 | AZ3: 150 | BA3: 165 | BB3: 170 | BC3: 175 | BD3: 185 | BE3: 115 | BF3: 135 | BG3: 150 | BH3: 170 | BI3: 185 | BJ3: 190 | BK3: 195 | BL3: 205
B4: REGIONAL | C4: 35 | D4: 40 | E4: 45 | F4: 55 | G4: 60 | H4: 65 | I4: 70 | J4: 80 | K4: 50 | L4: 55 | M4: 65 | N4: 70 | O4: 75 | P4: 80 | Q4: 95 | R4: 65 | S4: 75 | T4: 80 | U4: 85 | V4: 90 | W4: 105 | X4: 110 | Y4: 75 | Z4: 85 | AA4: 90 | AB4: 95 | AC4: 105 | AD4: 115 | AE4: 125 | AF4: 60 | AG4: 65 | AH4: 85 | AI4: 105 | AJ4: 115 | AK4: 130 | AL4: 140 | AM4: 145 | AN4: 155 | AO4: 80 | AP4: 100 | AQ4: 120 | AR4: 130 | AS4: 150 | AT4: 160 | AU4: 165 | AV4: 175 | AW4: 115 | AX4: 135 | AY4: 150 | AZ4: 170 | BA4: 185 | BB4: 190 | BC4: 195 | BD4: 205 | BE4: 130 | BF4: 150 | BG4: 170 | BH4: 190 | BI4: 205 | BJ4: 215 | BK4: 220 | BL4: 225
B5: INTERREGIONAL | C5: 45 | D5: 50 | E5: 55 | F5: 65 | G5: 70 | H5: 75 | I5: 80 | J5: 95 | K5: 60 | L5: 65 | M5: 75 | N5: 80 | O5: 85 | P5: 90 | Q5: 105 | R5: 75 | S5: 85 | T5: 90 | U5: 95 | V5: 105 | W5: 115 | X5: 125 | Y5: 85 | Z5: 95 | AA5: 100 | AB5: 110 | AC5: 120 | AD5: 130 | AE5: 140 | AF5: 75 | AG5: 80 | AH5: 100 | AI5: 120 | AJ5: 130 | AK5: 150 | AL5: 160 | AM5: 165 | AN5: 175 | AO5: 95 | AP5: 115 | AQ5: 135 | AR5: 150 | AS5: 170 | AT5: 180 | AU5: 185 | AV5: 195 | AW5: 130 | AX5: 150 | AY5: 170 | AZ5: 190 | BA5: 205 | BB5: 215 | BC5: 220 | BD5: 225 | BE5: 145 | BF5: 170 | BG5: 190 | BH5: 210 | BI5: 225 | BJ5: 235 | BK5: 245 | BL5: 250
B6: FEDERAL | C6: 50 | D6: 60 | E6: 65 | F6: 75 | G6: 80 | H6: 85 | I6: 90 | J6: 105 | K6: 70 | L6: 75 | M6: 85 | N6: 90 | O6: 95 | P6: 105 | Q6: 115 | R6: 85 | S6: 95 | T6: 100 | U6: 110 | V6: 120 | W6: 130 | X6: 140 | Y6: 95 | Z6: 105 | AA6: 115 | AB6: 125 | AC6: 135 | AD6: 145 | AE6: 150 | AF6: 90 | AG6: 95 | AH6: 115 | AI6: 135 | AJ6: 150 | AK6: 170 | AL6: 180 | AM6: 185 | AN6: 195 | AO6: 110 | AP6: 130 | AQ6: 150 | AR6: 170 | AS6: 185 | AT6: 200 | AU6: 210 | AV6: 220 | AW6: 145 | AX6: 170 | AY6: 190 | AZ6: 210 | BA6: 225 | BB6: 235 | BC6: 245 | BD6: 250 | BE6: 170 | BF6: 190 | BG6: 220 | BH6: 240 | BI6: 250 | BJ6: 260 | BK6: 270 | BL6: 280
B7: NATIONAL | C7: 60 | D7: 70 | E7: 75 | F7: 85 | G7: 90 | H7: 95 | I7: 105 | J7: 115 | K7: 80 | L7: 85 | M7: 95 | N7: 100 | O7: 110 | P7: 120 | Q7: 130 | R7: 95 | S7: 105 | T7: 115 | U7: 125 | V7: 135 | W7: 145 | X7: 150 | Y7: 110 | Z7: 120 | AA7: 130 | AB7: 140 | AC7: 150 | AD7: 160 | AE7: 170 | AF7: 105 | AG7: 110 | AH7: 130 | AI7: 150 | AJ7: 170 | AK7: 185 | AL7: 200 | AM7: 210 | AN7: 220 | AO7: 120 | AP7: 145 | AQ7: 170 | AR7: 190 | AS7: 200 | AT7: 220 | AU7: 225 | AV7: 235 | AW7: 170 | AX7: 190 | AY7: 220 | AZ7: 240 | BA7: 250 | BB7: 260 | BC7: 270 | BD7: 280 | BE7: 190 | BF7: 210 | BG7: 240 | BH7: 265 | BI7: 280 | BJ7: 290 | BK7: 300 | BL7: 310
B8: INTERNATIONAL B | C8: 70 | D8: 80 | E8: 85 | F8: 95 | G8: 100 | H8: 110 | I8: 120 | J8: 130 | K8: 90 | L8: 95 | M8: 105 | N8: 115 | O8: 125 | P8: 135 | Q8: 145 | R8: 110 | S8: 120 | T8: 130 | U8: 140 | V8: 150 | W8: 160 | X8: 170 | Y8: 125 | Z8: 140 | AA8: 150 | AB8: 160 | AC8: 170 | AD8: 180 | AE8: 190 | AF8: 115 | AG8: 120 | AH8: 145 | AI8: 170 | AJ8: 190 | AK8: 200 | AL8: 220 | AM8: 225 | AN8: 235 | AO8: 135 | AP8: 170 | AQ8: 190 | AR8: 210 | AS8: 220 | AT8: 240 | AU8: 250 | AV8: 260 | AW8: 190 | AX8: 210 | AY8: 240 | AZ8: 260 | BA8: 280 | BB8: 290 | BC8: 300 | BD8: 310 | BE8: 210 | BF8: 230 | BG8: 260 | BH8: 285 | BI8: 300 | BJ8: 310 | BK8: 325 | BL8: 330
B9: INTERNATIONAL A | C9: 80 | D9: 90 | E9: 95 | F9: 105 | G9: 115 | H9: 125 | I9: 135 | J9: 145 | K9: 100 | L9: 110 | M9: 120 | N9: 130 | O9: 140 | P9: 150 | Q9: 160 | R9: 125 | S9: 135 | T9: 150 | U9: 160 | V9: 170 | W9: 180 | X9: 190 | Y9: 140 | Z9: 160 | AA9: 170 | AB9: 180 | AC9: 190 | AD9: 195 | AE9: 210 | AF9: 130 | AG9: 135 | AH9: 170 | AI9: 190 | AJ9: 210 | AK9: 220 | AL9: 240 | AM9: 250 | AN9: 260 | AO9: 150 | AP9: 190 | AQ9: 210 | AR9: 230 | AS9: 250 | AT9: 260 | AU9: 280 | AV9: 280 | AW9: 210 | AX9: 230 | AY9: 250 | AZ9: 285 | BA9: 300 | BB9: 310 | BC9: 325 | BD9: 330 | BE9: 225 | BF9: 255 | BG9: 275 | BH9: 305 | BI9: 325 | BJ9: 330 | BK9: 345 | BL9: 355
B10: OLYMPIQUE | C10: 1000 | D10: 1000 | E10: 1000 | F10: 1000 | G10: 1000 | H10: 1000 | I10: 1000 | J10: 1000 | K10: 1000 | L10: 1000 | M10: 1000 | N10: 1000 | O10: 1000 | P10: 1000 | Q10: 1000 | R10: 1000 | S10: 1000 | T10: 1000 | U10: 1000 | V10: 1000 | W10: 1000 | X10: 1000 | Y10: 155 | Z10: 175 | AA10: 190 | AB10: 200 | AC10: 205 | AD10: 210 | AE10: 225 | AF10: 1000 | AG10: 1000 | AH10: 1000 | AI10: 1000 | AJ10: 1000 | AK10: 1000 | AL10: 10000 | AM10: 1000 | AN10: 1000 | AO10: 1000 | AP10: 1000 | AQ10: 1000 | AR10: 1000 | AS10: 1000 | AT10: 10000 | AU10: 1000 | AV10: 1000 | AW10: 1000 | AX10: 1000 | AY10: 1000 | AZ10: 10000 | BA10: 1000 | BB10: 1000 | BC10: 1000 | BD10: 10000 | BE10: 240 | BF10: 270 | BG10: 290 | BH10: 320 | BI10: 345 | BJ10: 355 | BK10: 365 | BL10: 375
B11: MINIME | C11: CADET | D11: CADET | E11: JUNIOR | F11: SENIOR | H11: MINIME | I11: CADETTE | J11: CADETTE | K11: JUNIOR | L11: SENIOR
A12: 20.01 | B12: NON | C12: C1 45 | D12: C2 50 | E12: J56 | F12: S56 | G12: 20.01 | H12: NON | I12: FC1 40 | J12: FC2 44 | K12: FJ48 | L12: FS48
A13: 34.01 | B13: NON | C13: C1 45 | D13: C2 50 | E13: J56 | F13: S56 | G13: 30.01 | H13: NON | I13: FC1 40 | J13: FC2 44 | K13: FJ48 | L13: FS48
A14: 38.01 | B14: NON | C14: C1 45 | D14: C2 50 | E14: J56 | F14: S56 | G14: 35.01 | H14: NON | I14: FC1 40 | J14: FC2 44 | K14: FJ48 | L14: FS48
A15: 40.01 | B15: NON | C15: C1 45 | D15: C2 50 | E15: J56 | F15: S56 | G15: 36.01 | H15: NON | I15: FC1 40 | J15: FC2 44 | K15: FJ48 | L15: FS48
A16: 45.01 | B16: NON | C16: C1 50 | D16: C2 50 | E16: J56 | F16: S56 | G16: 40.01 | H16: NON | I16: FC1 44 | J16: FC2 44 | K16: FJ48 | L16: FS48
A17: 50.01 | B17: NON | C17: C1 56 | D17: C2 56 | E17: J56 | F17: S56 | G17: 44.01 | H17: NON | I17: FC1 48 | J17: FC2 48 | K17: FJ48 | L17: FS48
A18: 52.05 | B18: NON | C18: C1 56 | D18: C2 56 | E18: J56 | F18: S56 | G18: 48.01 | H18: NON | I18: FC1 53 | J18: FC2 53 | K18: FJ53 | L18: FS53
A19: 56.01 | B19: NON | C19: C1 62 | D19: C2 62 | E19: J62 | F19: S62 | G19: 53.01 | H19: NON | I19: FC1 58 | J19: FC2 58 | K19: FJ58 | L19: FS58
A20: 62.01 | B20: NON | C20: C1 69 | D20: C2 69 | E20: J69 | F20: S69 | G20: 58.01 | H20: NON | I20: FC1 63 | J20: FC2 63 | K20: FJ63 | L20: FS63
A21: 69.01 | B21: NON | C21: C1 77 | D21: C2 77 | E21: J77 | F21: S77 | G21: 63.01 | H21: NON | I21: FC1 69 | J21: FC2 69 | K21: FJ69 | L21: FS69
A22: 77.01 | B22: NON | C22: C1 85 | D22: C2 85 | E22: J85 | F22: S85 | G22: 69.01 | H22: NON | I22: FC1 +69 | J22: FC2 +69 | K22: FJ75 | L22: FS75
A23: 85.01 | B23: NON | C23: C1 94 | D23: C2 94 | E23: J94 | F23: S94 | G23: 75.01 | H23: NON | I23: FC1 +69 | J23: FC2 +69 | K23: FJ+75 | L23: FS+75
A24: 94.01 | B24: NON | C24: C1 +94 | D24: C2 +94 | E24: J105 | F24: S105 | G24: 110 | H24: NON | I24: FC1 +69 | J24: FC2 +69 | K24: FJ+75 | L24: FS+75
A25: 105.01 | B25: NON | C25: C1 +94 | D25: C2 +94 | E25: J+105 | F25: S+105 | G25: 140 | H25: NON | I25: FC1 +69 | J25: FC2 +69 | K25: FJ+75 | L25: FS+75
A26: 110 | B26: NON | C26: C1 +94 | D26: C2 +94 | E26: J+105 | F26: S+105
A27: 120 | B27: NON | C27: C1 +94 | D27: C2 +94 | E27: J+105 | F27: S+105
A28: 130 | B28: NON | C28: C1 +94 | D28: C2 +94 | E28: J+105 | F28: S+105
A29: 140 | B29: NON | C29: C1 +94 | D29: C2 +94 | E29: J+105 | F29: S+105

Sheet CADETS 1
F1: LISTING NATIONAL | H1: MASCULINS | Q1: DATE : | S1: 2015-06-30
G2: 2014-2015 | L2: 3° TRIMESTRE
A4: SEXE | B4: ZONE | C4: REG. | D4: CL. | E4: LICENCE | F4: NOMS | G4: Prénoms | H4: AN | I4: POIDS | J4: CLUB | K4: NAT | L4: 1 | M4: 2 | N4: 3 | O4: ARR | P4: 1 | Q4: 2 | R4: 3 | S4: EP-J | T4: Total | U4: KP-2PC | V4: SERIE | X4: Catég | Y4: IWF | AB4: DEB | AC4: DEP + | AD4: REG + | AE4: IRG + | AF4: FED + | AG4: NAT + | AH4: INTB + | AI4: INTA + | AJ4: OLY +
AB5: =T5-HLOOKUP(X5,[1]Feuil1!$C$1:$BL$10,2,FALSE) ->  | AC5: =T5-HLOOKUP(X5,[1]Feuil1!$C$1:$BL$10,3,FALSE) ->  | AD5: =T5-HLOOKUP(X5,[1]Feuil1!$C$1:$BL$10,4,FALSE) ->  | AE5: =T5-HLOOKUP(X5,[1]Feuil1!$C$1:$BL$10,5,FALSE) ->  | AF5: =T5-HLOOKUP(X5,[1]Feuil1!$C$1:$BL$10,6,FALSE) ->  | AG5: =T5-HLOOKUP(X5,[1]Feuil1!$C$1:$BL$10,7,FALSE) ->  | AH5: =T5-HLOOKUP(X5,[1]Feuil1!$C$1:$BL$10,8,FALSE) ->  | AI5: =T5-HLOOKUP(X5,[1]Feuil1!$C$1:$BL$10,9,FALSE) ->  | AJ5: =T5-HLOOKUP(X5,[1]Feuil1!$C$1:$BL$10,10,FALSE) ->  | AQ5: =IF(AJ5>=0,$AJ$4,IF(AI5>=0,$AI$4,IF(AH5>=0,$AH$4,IF(AG5>=0,$AG$4,IF(AF5>=0,$AF$4,IF(AE5>=0,$AE$4,IF(AD5>=0,$AD$4,IF(AC5>=0,$AC$4,$AB$4)))))))) -> 
A6: H | B6: DOM | C6: REU | D6: 1 | E6: 239770 | F6: ESSOB | G6: Etienne | H6: 2001 | I6: 43.07 | J6: SCHM St Paul | K6: F | L6: 42 | M6: 44 | N6: 46 | O6: =IF(H6="","",IF(MAXA(L6:N6)<=0,0,MAXA(L6:N6))) -> 46 | P6: 50 | Q6: 53 | R6: 55 | S6: =IF(H6="","",IF(MAXA(P6:R6)<=0,0,MAXA(P6:R6))) -> 55 | T6: =IF(H6="","",IF(OR(O6=0,S6=0),0,O6+S6)) -> 101 | U6: =T6-I6*2 -> 14.86 | V6: =IF(H6="","",AQ6) -> FED + | W6: =IF(AJ6>=0,AJ6,IF(AI6>=0,AI6,IF(AH6>=0,AH6,IF(AG6>=0,AG6,IF(AF6>=0,AF6,IF(AE6>=0,AE6,IF(AD6>=0,AD6,IF(AC6>=0,AC6,AB6)))))))) -> 11 | X6: =IF(I6="","",IF(A6="H",IF(OR(H6="SEN",H6<1995),VLOOKUP(I6,Feuil1!$A$11:$G$29,6),IF(AND(H6>1994,H6<1998),VLOOKUP(I6,Feuil1!$A$11:$G$29,5),IF(AND(H6>1997,H6<2000),VLOOKUP(I6,Feuil1!$A$11:$G$29,4),IF(AND(H6>1999,H6<2002),VLOOKUP(I6,Feuil1!$A$11:$G$29,3),VLOOKUP(I6,Feuil1!$A$11:$G$29,2))))),IF(OR(H6="SEN",H6<1995),VLOOKUP(I6,Feuil1!$G$11:$L$25,6),IF(AND(H6>1994,H6<1998),VLOOKUP(I6,Feuil1!$G$11:$L$25,5),IF(AND(H6>1997,H6<2000),VLOOKUP(I6,Feuil1!$G$11:$L$25,4),IF(AND(H6>1999,H6<2002),VLOOKUP(I6,Feuil1!$G$11:$L$25,3),VLOOKUP(I6,Feuil1!$G$11:$L$25,2))))))) -> C1 45 | Y6: =IF(I6="","",IF(A6="H",10^(0.794358141*LOG(I6/174.393)^2)*T6,IF(A6="F",10^(0.89726074*LOG(I6/148.026)^2)*T6,""))) -> 198.3094851 | AB6: =T6-HLOOKUP(X6,Feuil1!$C$1:$BL$10,2,FALSE) -> 66 | AC6: =T6-HLOOKUP(X6,Feuil1!$C$1:$BL$10,3,FALSE) -> 51 | AD6: =T6-HLOOKUP(X6,Feuil1!$C$1:$BL$10,4,FALSE) -> 41 | AE6: =T6-HLOOKUP(X6,Feuil1!$C$1:$BL$10,5,FALSE) -> 26 | AF6: =T6-HLOOKUP(X6,Feuil1!$C$1:$BL$10,6,FALSE) -> 11 | AG6: =T6-HLOOKUP(X6,Feuil1!$C$1:$BL$10,7,FALSE) -> -4 | AH6: =T6-HLOOKUP(X6,Feuil1!$C$1:$BL$10,8,FALSE) -> -14 | AI6: =T6-HLOOKUP(X6,Feuil1!$C$1:$BL$10,9,FALSE) -> -29 | AJ6: =T6-HLOOKUP(X6,Feuil1!$C$1:$BL$10,10,FALSE) -> -899 | AQ6: =IF(AJ6>=0,$AJ$4,IF(AI6>=0,$AI$4,IF(AH6>=0,$AH$4,IF(AG6>=0,$AG$4,IF(AF6>=0,$AF$4,IF(AE6>=0,$AE$4,IF(AD6>=0,$AD$4,IF(AC6>=0,$AC$4,$AB$4)))))))) -> FED +
A7: H | B7: NE | C7: CHA | D7: 2 | E7: 357535 | F7: CATTEAU | G7: Jimmy | H7: 2000 | I7: 44.2 | J7: Reims HM | K7: F | L7: 42 | M7: 45 | N7: -48 | O7: 45 | P7: 53 | Q7: 56 | R7: -59 | S7: 56 | T7: 101 | U7: 12.6 | V7: FED + | W7: 11 | X7: =IF(I7="","",IF(A7="H",IF(OR(H7="SEN",H7<1995),VLOOKUP(I7,Feuil1!$A$11:$G$29,6),IF(AND(H7>1994,H7<1998),VLOOKUP(I7,Feuil1!$A$11:$G$29,5),IF(AND(H7>1997,H7<2000),VLOOKUP(I7,Feuil1!$A$11:$G$29,4),IF(AND(H7>1999,H7<2002),VLOOKUP(I7,Feuil1!$A$11:$G$29,3),VLOOKUP(I7,Feuil1!$A$11:$G$29,2))))),IF(OR(H7="SEN",H7<1995),VLOOKUP(I7,Feuil1!$G$11:$L$25,6),IF(AND(H7>1994,H7<1998),VLOOKUP(I7,Feuil1!$G$11:$L$25,5),IF(AND(H7>1997,H7<2000),VLOOKUP(I7,Feuil1!$G$11:$L$25,4),IF(AND(H7>1999,H7<2002),VLOOKUP(I7,Feuil1!$G$11:$L$25,3),VLOOKUP(I7,Feuil1!$G$11:$L$25,2))))))) -> C1 45 | Y7: 193.4600123 | AB7: =T7-HLOOKUP(X7,Feuil1!$C$1:$BL$10,2,FALSE) -> 66 | AC7: =T7-HLOOKUP(X7,Feuil1!$C$1:$BL$10,3,FALSE) -> 51 | AD7: =T7-HLOOKUP(X7,Feuil1!$C$1:$BL$10,4,FALSE) -> 41 | AE7: =T7-HLOOKUP(X7,Feuil1!$C$1:$BL$10,5,FALSE) -> 26 | AF7: =T7-HLOOKUP(X7,Feuil1!$C$1:$BL$10,6,FALSE) -> 11 | AG7: =T7-HLOOKUP(X7,Feuil1!$C$1:$BL$10,7,FALSE) -> -4 | AH7: =T7-HLOOKUP(X7,Feuil1!$C$1:$BL$10,8,FALSE) -> -14 | AI7: =T7-HLOOKUP(X7,Feuil1!$C$1:$BL$10,9,FALSE) -> -29 | AJ7: =T7-HLOOKUP(X7,Feuil1!$C$1:$BL$10,10,FALSE) -> -899 | AQ7: FED +
A8: H | B8: NE | C8: LOR | D8: 3 | E8: 281801 | F8: GUINDOS | G8: Lucas | H8: 2001 | I8: 44.04 | J8: E.S.LANEUVEVILLOISE | K8: F | L8: 40 | M8: -43 | N8: 43 | O8: 43 | P8: 51 | Q8: 54 | R8: 56 | S8: 56 | T8: 99 | U8: 10.92 | V8: FED + | W8: 9 | X8: =IF(I8="","",IF(A8="H",IF(OR(H8="SEN",H8<1995),VLOOKUP(I8,Feuil1!$A$11:$G$29,6),IF(AND(H8>1994,H8<1998),VLOOKUP(I8,Feuil1!$A$11:$G$29,5),IF(AND(H8>1997,H8<2000),VLOOKUP(I8,Feuil1!$A$11:$G$29,4),IF(AND(H8>1999,H8<2002),VLOOKUP(I8,Feuil1!$A$11:$G$29,3),VLOOKUP(I8,Feuil1!$A$11:$G$29,2))))),IF(OR(H8="SEN",H8<1995),VLOOKUP(I8,Feuil1!$G$11:$L$25,6),IF(AND(H8>1994,H8<1998),VLOOKUP(I8,Feuil1!$G$11:$L$25,5),IF(AND(H8>1997,H8<2000),VLOOKUP(I8,Feuil1!$G$11:$L$25,4),IF(AND(H8>1999,H8<2002),VLOOKUP(I8,Feuil1!$G$11:$L$25,3),VLOOKUP(I8,Feuil1!$G$11:$L$25,2))))))) -> C1 45 | Y8: 190.2823729 | AB8: =T8-HLOOKUP(X8,Feuil1!$C$1:$BL$10,2,FALSE) -> 64 | AC8: =T8-HLOOKUP(X8,Feuil1!$C$1:$BL$10,3,FALSE) -> 49 | AD8: =T8-HLOOKUP(X8,Feuil1!$C$1:$BL$10,4,FALSE) -> 39 | AE8: =T8-HLOOKUP(X8,Feuil1!$C$1:$BL$10,5,FALSE) -> 24 | AF8: =T8-HLOOKUP(X8,Feuil1!$C$1:$BL$10,6,FALSE) -> 9 | AG8: =T8-HLOOKUP(X8,Feuil1!$C$1:$BL$10,7,FALSE) -> -6 | AH8: =T8-HLOOKUP(X8,Feuil1!$C$1:$BL$10,8,FALSE) -> -16 | AI8: =T8-HLOOKUP(X8,Feuil1!$C$1:$BL$10,9,FALSE) -> -31 | AJ8: =T8-HLOOKUP(X8,Feuil1!$C$1:$BL$10,10,FALSE) -> -901 | AQ8: FED +
A9: H | B9: NE | C9: BOU | D9: 4 | E9: 329944 | F9: AMADOU | G9: Alexis | H9: 2001 | I9: 37.6 | J9: HC Avallon | K9: F | L9: 35 | M9: 37 | N9: 39 | O9: 39 | P9: 53 | Q9: -57 | R9: 58 | S9: 58 | T9: 97 | U9: 21.8 | V9: FED + | W9: 7 | X9: =IF(I9="","",IF(A9="H",IF(OR(H9="SEN",H9<1995),VLOOKUP(I9,Feuil1!$A$11:$G$29,6),IF(AND(H9>1994,H9<1998),VLOOKUP(I9,Feuil1!$A$11:$G$29,5),IF(AND(H9>1997,H9<2000),VLOOKUP(I9,Feuil1!$A$11:$G$29,4),IF(AND(H9>1999,H9<2002),VLOOKUP(I9,Feuil1!$A$11:$G$29,3),VLOOKUP(I9,Feuil1!$A$11:$G$29,2))))),IF(OR(H9="SEN",H9<1995),VLOOKUP(I9,Feuil1!$G$11:$L$25,6),IF(AND(H9>1994,H9<1998),VLOOKUP(I9,Feuil1!$G$11:$L$25,5),IF(AND(H9>1997,H9<2000),VLOOKUP(I9,Feuil1!$G$11:$L$25,4),IF(AND(H9>1999,H9<2002),VLOOKUP(I9,Feuil1!$G$11:$L$25,3),VLOOKUP(I9,Feuil1!$G$11:$L$25,2))))))) -> C1 45 | Y9: 218.5119381 | AB9: =T9-HLOOKUP(X9,Feuil1!$C$1:$BL$10,2,FALSE) -> 62 | AC9: =T9-HLOOKUP(X9,Feuil1!$C$1:$BL$10,3,FALSE) -> 47 | AD9: =T9-HLOOKUP(X9,Feuil1!$C$1:$BL$10,4,FALSE) -> 37 | AE9: =T9-HLOOKUP(X9,Feuil1!$C$1:$BL$10,5,FALSE) -> 22 | AF9: =T9-HLOOKUP(X9,Feuil1!$C$1:$BL$10,6,FALSE) -> 7 | AG9: =T9-HLOOKUP(X9,Feuil1!$C$1:$BL$10,7,FALSE) -> -8 | AH9: =T9-HLOOKUP(X9,Feuil1!$C$1:$BL$10,8,FALSE) -> -18 | AI9: =T9-HLOOKUP(X9,Feuil1!$C$1:$BL$10,9,FALSE) -> -33 | AJ9: =T9-HLOOKUP(X9,Feuil1!$C$1:$BL$10,10,FALSE) -> -903 | AQ9: FED +
A10: H | B10: SO | C10: POI | D10: 5 | E10: 360355 | F10: MAURY | G10: Yoann | H10: 2001 | I10: 44.3 | J10: ST JEAN D'ANGÉLY | K10: F | L10: 32 | M10: 36 | N10: 38 | O10: 38 | P10: 42 | Q10: 46 | R10: 48 | S10: 48 | T10: 86 | U10: -2.6 | V10: IRG + | W10: 11 | X10: =IF(I10="","",IF(A10="H",IF(OR(H10="SEN",H10<1995),VLOOKUP(I10,Feuil1!$A$11:$G$29,6),IF(AND(H10>1994,H10<1998),VLOOKUP(I10,Feuil1!$A$11:$G$29,5),IF(AND(H10>1997,H10<2000),VLOOKUP(I10,Feuil1!$A$11:$G$29,4),IF(AND(H10>1999,H10<2002),VLOOKUP(I10,Feuil1!$A$11:$G$29,3),VLOOKUP(I10,Feuil1!$A$11:$G$29,2))))),IF(OR(H10="SEN",H10<1995),VLOOKUP(I10,Feuil1!$G$11:$L$25,6),IF(AND(H10>1994,H10<1998),VLOOKUP(I10,Feuil1!$G$11:$L$25,5),IF(AND(H10>1997,H10<2000),VLOOKUP(I10,Feuil1!$G$11:$L$25,4),IF(AND(H10>1999,H10<2002),VLOOKUP(I10,Feuil1!$G$11:$L$25,3),VLOOKUP(I10,Feuil1!$G$11:$L$25,2))))))) -> C1 45 | Y10: 164.3764399 | AB10: =T10-HLOOKUP(X10,Feuil1!$C$1:$BL$10,2,FALSE) -> 51 | AC10: =T10-HLOOKUP(X10,Feuil1!$C$1:$BL$10,3,FALSE) -> 36 | AD10: =T10-HLOOKUP(X10,Feuil1!$C$1:$BL$10,4,FALSE) -> 26 | AE10: =T10-HLOOKUP(X10,Feuil1!$C$1:$BL$10,5,FALSE) -> 11 | AF10: =T10-HLOOKUP(X10,Feuil1!$C$1:$BL$10,6,FALSE) -> -4 | AG10: =T10-HLOOKUP(X10,Feuil1!$C$1:$BL$10,7,FALSE) -> -19 | AH10: =T10-HLOOKUP(X10,Feuil1!$C$1:$BL$10,8,FALSE) -> -29 | AI10: =T10-HLOOKUP(X10,Feuil1!$C$1:$BL$10,9,FALSE) -> -44 | AJ10: =T10-HLOOKUP(X10,Feuil1!$C$1:$BL$10,10,FALSE) -> -914 | AQ10: IRG +
A11: H | B11: DOM | C11: GUA | D11: 6 | E11: 380461 | F11: GRANDMAN | G11: Lionel | H11: 2001 | I11: 45 | J11: AHCS/Pointois | K11: F | L11: 32 | M11: 37 | N11: 38 | O11: 38 | P11: 40 | Q11: 42 | R11: 44 | S11: 44 | T11: 82 | U11: -8 | V11: IRG + | W11: 7 | X11: =IF(I11="","",IF(A11="H",IF(OR(H11="SEN",H11<1995),VLOOKUP(I11,Feuil1!$A$11:$G$29,6),IF(AND(H11>1994,H11<1998),VLOOKUP(I11,Feuil1!$A$11:$G$29,5),IF(AND(H11>1997,H11<2000),VLOOKUP(I11,Feuil1!$A$11:$G$29,4),IF(AND(H11>1999,H11<2002),VLOOKUP(I11,Feuil1!$A$11:$G$29,3),VLOOKUP(I11,Feuil1!$A$11:$G$29,2))))),IF(OR(H11="SEN",H11<1995),VLOOKUP(I11,Feuil1!$G$11:$L$25,6),IF(AND(H11>1994,H11<1998),VLOOKUP(I11,Feuil1!$G$11:$L$25,5),IF(AND(H11>1997,H11<2000),VLOOKUP(I11,Feuil1!$G$11:$L$25,4),IF(AND(H11>1999,H11<2002),VLOOKUP(I11,Feuil1!$G$11:$L$25,3),VLOOKUP(I11,Feuil1!$G$11:$L$25,2))))))) -> C1 45 | Y11: 154.4380072 | AB11: =T11-HLOOKUP(X11,Feuil1!$C$1:$BL$10,2,FALSE) -> 47 | AC11: =T11-HLOOKUP(X11,Feuil1!$C$1:$BL$10,3,FALSE) -> 32 | AD11: =T11-HLOOKUP(X11,Feuil1!$C$1:$BL$10,4,FALSE) -> 22 | AE11: =T11-HLOOKUP(X11,Feuil1!$C$1:$BL$10,5,FALSE) -> 7 | AF11: =T11-HLOOKUP(X11,Feuil1!$C$1:$BL$10,6,FALSE) -> -8 | AG11: =T11-HLOOKUP(X11,Feuil1!$C$1:$BL$10,7,FALSE) -> -23 | AH11: =T11-HLOOKUP(X11,Feuil1!$C$1:$BL$10,8,FALSE) -> -33 | AI11: =T11-HLOOKUP(X11,Feuil1!$C$1:$BL$10,9,FALSE) -> -48 | AJ11: =T11-HLOOKUP(X11,Feuil1!$C$1:$BL$10,10,FALSE) -> -918 | AQ11: IRG +
A12: H | B12: NORD | C12: PIC | D12: 7 | E12: 356996 | F12: DESSON | G12: Rémy | H12: 2000 | I12: 45 | J12: Saleux CHM | K12: F | L12: 30 | M12: -33 | N12: 33 | O12: 33 | P12: 40 | Q12: -45 | R12: 45 | S12: 45 | T12: 78 | U12: -12 | V12: IRG + | W12: 3 | X12: =IF(I12="","",IF(A12="H",IF(OR(H12="SEN",H12<1995),VLOOKUP(I12,Feuil1!$A$11:$G$29,6),IF(AND(H12>1994,H12<1998),VLOOKUP(I12,Feuil1!$A$11:$G$29,5),IF(AND(H12>1997,H12<2000),VLOOKUP(I12,Feuil1!$A$11:$G$29,4),IF(AND(H12>1999,H12<2002),VLOOKUP(I12,Feuil1!$A$11:$G$29,3),VLOOKUP(I12,Feuil1!$A$11:$G$29,2))))),IF(OR(H12="SEN",H12<1995),VLOOKUP(I12,Feuil1!$G$11:$L$25,6),IF(AND(H12>1994,H12<1998),VLOOKUP(I12,Feuil1!$G$11:$L$25,5),IF(AND(H12>1997,H12<2000),VLOOKUP(I12,Feuil1!$G$11:$L$25,4),IF(AND(H12>1999,H12<2002),VLOOKUP(I12,Feuil1!$G$11:$L$25,3),VLOOKUP(I12,Feuil1!$G$11:$L$25,2))))))) -> C1 45 | Y12: 146.9044459 | AB12: =T12-HLOOKUP(X12,Feuil1!$C$1:$BL$10,2,FALSE) -> 43 | AC12: =T12-HLOOKUP(X12,Feuil1!$C$1:$BL$10,3,FALSE) -> 28 | AD12: =T12-HLOOKUP(X12,Feuil1!$C$1:$BL$10,4,FALSE) -> 18 | AE12: =T12-HLOOKUP(X12,Feuil1!$C$1:$BL$10,5,FALSE) -> 3 | AF12: =T12-HLOOKUP(X12,Feuil1!$C$1:$BL$10,6,FALSE) -> -12 | AG12: =T12-HLOOKUP(X12,Feuil1!$C$1:$BL$10,7,FALSE) -> -27 | AH12: =T12-HLOOKUP(X12,Feuil1!$C$1:$BL$10,8,FALSE) -> -37 | AI12: =T12-HLOOKUP(X12,Feuil1!$C$1:$BL$10,9,FALSE) -> -52 | AJ12: =T12-HLOOKUP(X12,Feuil1!$C$1:$BL$10,10,FALSE) -> -922 | AQ12: IRG +
A13: H | B13: NE | C13: ALS | D13: 8 | E13: 327576 | F13: MARTZ | G13: LEO | H13: 2000 | I13: 43 | J13: CHM Andlau | K13: F | L13: -32 | M13: 32 | N13: -34 | O13: 32 | P13: 35 | Q13: 39 | R13: 41 | S13: 41 | T13: 73 | U13: -13 | V13: REG + | W13: 13 | X13: =IF(I13="","",IF(A13="H",IF(OR(H13="SEN",H13<1995),VLOOKUP(I13,Feuil1!$A$11:$G$29,6),IF(AND(H13>1994,H13<1998),VLOOKUP(I13,Feuil1!$A$11:$G$29,5),IF(AND(H13>1997,H13<2000),VLOOKUP(I13,Feuil1!$A$11:$G$29,4),IF(AND(H13>1999,H13<2002),VLOOKUP(I13,Feuil1!$A$11:$G$29,3),VLOOKUP(I13,Feuil1!$A$11:$G$29,2))))),IF(OR(H13="SEN",H13<1995),VLOOKUP(I13,Feuil1!$G$11:$L$25,6),IF(AND(H13>1994,H13<1998),VLOOKUP(I13,Feuil1!$G$11:$L$25,5),IF(AND(H13>1997,H13<2000),VLOOKUP(I13,Feuil1!$G$11:$L$25,4),IF(AND(H13>1999,H13<2002),VLOOKUP(I13,Feuil1!$G$11:$L$25,3),VLOOKUP(I13,Feuil1!$G$11:$L$25,2))))))) -> C1 45 | Y13: 143.5578681 | AB13: =T13-HLOOKUP(X13,Feuil1!$C$1:$BL$10,2,FALSE) -> 38 | AC13: =T13-HLOOKUP(X13,Feuil1!$C$1:$BL$10,3,FALSE) -> 23 | AD13: =T13-HLOOKUP(X13,Feuil1!$C$1:$BL$10,4,FALSE) -> 13 | AE13: =T13-HLOOKUP(X13,Feuil1!$C$1:$BL$10,5,FALSE) -> -2 | AF13: =T13-HLOOKUP(X13,Feuil1!$C$1:$BL$10,6,FALSE) -> -17 | AG13: =T13-HLOOKUP(X13,Feuil1!$C$1:$BL$10,7,FALSE) -> -32 | AH13: =T13-HLOOKUP(X13,Feuil1!$C$1:$BL$10,8,FALSE) -> -42 | AI13: =T13-HLOOKUP(X13,Feuil1!$C$1:$BL$10,9,FALSE) -> -57 | AJ13: =T13-HLOOKUP(X13,Feuil1!$C$1:$BL$10,10,FALSE) -> -927 | AQ13: REG +
A14: H | B14: DOM | C14: GUA | D14: 9 | E14: 379132 | F14: MOLINIER | G14: Hugo | H14: 2001 | I14: 44.5 | J14: AHCS/Pointois | K14: F | L14: 28 | M14: 32 | N14: 34 | O14: 34 | P14: 33 | Q14: 35 | R14: 38 | S14: 38 | T14: 72 | U14: -17 | V14: REG + | W14: 12 | X14: =IF(I14="","",IF(A14="H",IF(OR(H14="SEN",H14<1995),VLOOKUP(I14,Feuil1!$A$11:$G$29,6),IF(AND(H14>1994,H14<1998),VLOOKUP(I14,Feuil1!$A$11:$G$29,5),IF(AND(H14>1997,H14<2000),VLOOKUP(I14,Feuil1!$A$11:$G$29,4),IF(AND(H14>1999,H14<2002),VLOOKUP(I14,Feuil1!$A$11:$G$29,3),VLOOKUP(I14,Feuil1!$A$11:$G$29,2))))),IF(OR(H14="SEN",H14<1995),VLOOKUP(I14,Feuil1!$G$11:$L$25,6),IF(AND(H14>1994,H14<1998),VLOOKUP(I14,Feuil1!$G$11:$L$25,5),IF(AND(H14>1997,H14<2000),VLOOKUP(I14,Feuil1!$G$11:$L$25,4),IF(AND(H14>1999,H14<2002),VLOOKUP(I14,Feuil1!$G$11:$L$25,3),VLOOKUP(I14,Feuil1!$G$11:$L$25,2))))))) -> C1 45 | Y14: 137.0335842 | AB14: =T14-HLOOKUP(X14,Feuil1!$C$1:$BL$10,2,FALSE) -> 37 | AC14: =T14-HLOOKUP(X14,Feuil1!$C$1:$BL$10,3,FALSE) -> 22 | AD14: =T14-HLOOKUP(X14,Feuil1!$C$1:$BL$10,4,FALSE) -> 12 | AE14: =T14-HLOOKUP(X14,Feuil1!$C$1:$BL$10,5,FALSE) -> -3 | AF14: =T14-HLOOKUP(X14,Feuil1!$C$1:$BL$10,6,FALSE) -> -18 | AG14: =T14-HLOOKUP(X14,Feuil1!$C$1:$BL$10,7,FALSE) -> -33 | AH14: =T14-HLOOKUP(X14,Feuil1!$C$1:$BL$10,8,FALSE) -> -43 | AI14: =T14-HLOOKUP(X14,Feuil1!$C$1:$BL$10,9,FALSE) -> -58 | AJ14: =T14-HLOOKUP(X14,Feuil1!$C$1:$BL$10,10,FALSE) -> -928 | AQ14: REG +
A15: H | B15: DOM | C15: GUA | D15: 10 | E15: 377221 | F15: MARTIN | G15: Mathieu | H15: 2000 | I15: 41.2 | J15: ASCPG/Rémire Montjoly | K15: F | L15: 30 | M15: 33 | N15: -35 | O15: 33 | P15: 33 | Q15: 36 | R15: 38 | S15: 38 | T15: 71 | U15: -11.4 | V15: REG + | W15: 11 | X15: =IF(I15="","",IF(A15="H",IF(OR(H15="SEN",H15<1995),VLOOKUP(I15,Feuil1!$A$11:$G$29,6),IF(AND(H15>1994,H15<1998),VLOOKUP(I15,Feuil1!$A$11:$G$29,5),IF(AND(H15>1997,H15<2000),VLOOKUP(I15,Feuil1!$A$11:$G$29,4),IF(AND(H15>1999,H15<2002),VLOOKUP(I15,Feuil1!$A$11:$G$29,3),VLOOKUP(I15,Feuil1!$A$11:$G$29,2))))),IF(OR(H15="SEN",H15<1995),VLOOKUP(I15,Feuil1!$G$11:$L$25,6),IF(AND(H15>1994,H15<1998),VLOOKUP(I15,Feuil1!$G$11:$L$25,5),IF(AND(H15>1997,H15<2000),VLOOKUP(I15,Feuil1!$G$11:$L$25,4),IF(AND(H15>1999,H15<2002),VLOOKUP(I15,Feuil1!$G$11:$L$25,3),VLOOKUP(I15,Feuil1!$G$11:$L$25,2))))))) -> C1 45 | Y15: 145.6052175 | AB15: =T15-HLOOKUP(X15,Feuil1!$C$1:$BL$10,2,FALSE) -> 36 | AC15: =T15-HLOOKUP(X15,Feuil1!$C$1:$BL$10,3,FALSE) -> 21 | AD15: =T15-HLOOKUP(X15,Feuil1!$C$1:$BL$10,4,FALSE) -> 11 | AE15: =T15-HLOOKUP(X15,Feuil1!$C$1:$BL$10,5,FALSE) -> -4 | AF15: =T15-HLOOKUP(X15,Feuil1!$C$1:$BL$10,6,FALSE) -> -19 | AG15: =T15-HLOOKUP(X15,Feuil1!$C$1:$BL$10,7,FALSE) -> -34 | AH15: =T15-HLOOKUP(X15,Feuil1!$C$1:$BL$10,8,FALSE) -> -44 | AI15: =T15-HLOOKUP(X15,Feuil1!$C$1:$BL$10,9,FALSE) -> -59 | AJ15: =T15-HLOOKUP(X15,Feuil1!$C$1:$BL$10,10,FALSE) -> -929 | AQ15: REG +
A16: H | B16: SEST | C16: CAZ | D16: 11 | E16: 334473 | F16: TOXE HUREL | G16: Baptiste | H16: 2001 | I16: 40 | J16: ES VILLENEUVE LOUBET | K16: F | L16: 26 | M16: 28 | N16: 30 | O16: 30 | P16: 36 | Q16: 38 | R16: 40 | S16: 40 | T16: 70 | U16: -10 | V16: REG + | W16: 10 | X16: =IF(I16="","",IF(A16="H",IF(OR(H16="SEN",H16<1995),VLOOKUP(I16,Feuil1!$A$11:$G$29,6),IF(AND(H16>1994,H16<1998),VLOOKUP(I16,Feuil1!$A$11:$G$29,5),IF(AND(H16>1997,H16<2000),VLOOKUP(I16,Feuil1!$A$11:$G$29,4),IF(AND(H16>1999,H16<2002),VLOOKUP(I16,Feuil1!$A$11:$G$29,3),VLOOKUP(I16,Feuil1!$A$11:$G$29,2))))),IF(OR(H16="SEN",H16<1995),VLOOKUP(I16,Feuil1!$G$11:$L$25,6),IF(AND(H16>1994,H16<1998),VLOOKUP(I16,Feuil1!$G$11:$L$25,5),IF(AND(H16>1997,H16<2000),VLOOKUP(I16,Feuil1!$G$11:$L$25,4),IF(AND(H16>1999,H16<2002),VLOOKUP(I16,Feuil1!$G$11:$L$25,3),VLOOKUP(I16,Feuil1!$G$11:$L$25,2))))))) -> C1 45 | Y16: 147.8861516 | AB16: =T16-HLOOKUP(X16,Feuil1!$C$1:$BL$10,2,FALSE) -> 35 | AC16: =T16-HLOOKUP(X16,Feuil1!$C$1:$BL$10,3,FALSE) -> 20 | AD16: =T16-HLOOKUP(X16,Feuil1!$C$1:$BL$10,4,FALSE) -> 10 | AE16: =T16-HLOOKUP(X16,Feuil1!$C$1:$BL$10,5,FALSE) -> -5 | AF16: =T16-HLOOKUP(X16,Feuil1!$C$1:$BL$10,6,FALSE) -> -20 | AG16: =T16-HLOOKUP(X16,Feuil1!$C$1:$BL$10,7,FALSE) -> -35 | AH16: =T16-HLOOKUP(X16,Feuil1!$C$1:$BL$10,8,FALSE) -> -45 | AI16: =T16-HLOOKUP(X16,Feuil1!$C$1:$BL$10,9,FALSE) -> -60 | AJ16: =T16-HLOOKUP(X16,Feuil1!$C$1:$BL$10,10,FALSE) -> -930 | AQ16: REG +
A17: H | B17: SEST | C17: RAL | D17: 12 | E17: 377231 | F17: POISSON | G17: Quentin | H17: 2000 | I17: 41.3 | J17: Entente VIRIAT | K17: F | L17: 25 | M17: 27 | N17: 30 | O17: 30 | P17: 32 | Q17: 36 | R17: 40 | S17: 40 | T17: 70 | U17: -12.6 | V17: REG + | W17: 10 | X17: =IF(I17="","",IF(A17="H",IF(OR(H17="SEN",H17<1995),VLOOKUP(I17,Feuil1!$A$11:$G$29,6),IF(AND(H17>1994,H17<1998),VLOOKUP(I17,Feuil1!$A$11:$G$29,5),IF(AND(H17>1997,H17<2000),VLOOKUP(I17,Feuil1!$A$11:$G$29,4),IF(AND(H17>1999,H17<2002),VLOOKUP(I17,Feuil1!$A$11:$G$29,3),VLOOKUP(I17,Feuil1!$A$11:$G$29,2))))),IF(OR(H17="SEN",H17<1995),VLOOKUP(I17,Feuil1!$G$11:$L$25,6),IF(AND(H17>1994,H17<1998),VLOOKUP(I17,Feuil1!$G$11:$L$25,5),IF(AND(H17>1997,H17<2000),VLOOKUP(I17,Feuil1!$G$11:$L$25,4),IF(AND(H17>1999,H17<2002),VLOOKUP(I17,Feuil1!$G$11:$L$25,3),VLOOKUP(I17,Feuil1!$G$11:$L$25,2))))))) -> C1 45 | Y17: 143.208689 | AB17: =T17-HLOOKUP(X17,Feuil1!$C$1:$BL$10,2,FALSE) -> 35 | AC17: =T17-HLOOKUP(X17,Feuil1!$C$1:$BL$10,3,FALSE) -> 20 | AD17: =T17-HLOOKUP(X17,Feuil1!$C$1:$BL$10,4,FALSE) -> 10 | AE17: =T17-HLOOKUP(X17,Feuil1!$C$1:$BL$10,5,FALSE) -> -5 | AF17: =T17-HLOOKUP(X17,Feuil1!$C$1:$BL$10,6,FALSE) -> -20 | AG17: =T17-HLOOKUP(X17,Feuil1!$C$1:$BL$10,7,FALSE) -> -35 | AH17: =T17-HLOOKUP(X17,Feuil1!$C$1:$BL$10,8,FALSE) -> -45 | AI17: =T17-HLOOKUP(X17,Feuil1!$C$1:$BL$10,9,FALSE) -> -60 | AJ17: =T17-HLOOKUP(X17,Feuil1!$C$1:$BL$10,10,FALSE) -> -930 | AQ17: REG +
A18: H | B18: CO | C18: CEN | D18: 13 | E18: 378404 | F18: DAUMAS | G18: Niels | H18: 2001 | I18: 44.8 | J18: AAJ Blois | K18: F | L18: 25 | M18: 27 | N18: 29 | O18: 29 | P18: 35 | Q18: 38 | R18: 40 | S18: 40 | T18: 69 | U18: -20.6 | V18: REG + | W18: 9 | X18: =IF(I18="","",IF(A18="H",IF(OR(H18="SEN",H18<1995),VLOOKUP(I18,Feuil1!$A$11:$G$29,6),IF(AND(H18>1994,H18<1998),VLOOKUP(I18,Feuil1!$A$11:$G$29,5),IF(AND(H18>1997,H18<2000),VLOOKUP(I18,Feuil1!$A$11:$G$29,4),IF(AND(H18>1999,H18<2002),VLOOKUP(I18,Feuil1!$A$11:$G$29,3),VLOOKUP(I18,Feuil1!$A$11:$G$29,2))))),IF(OR(H18="SEN",H18<1995),VLOOKUP(I18,Feuil1!$G$11:$L$25,6),IF(AND(H18>1994,H18<1998),VLOOKUP(I18,Feuil1!$G$11:$L$25,5),IF(AND(H18>1997,H18<2000),VLOOKUP(I18,Feuil1!$G$11:$L$25,4),IF(AND(H18>1999,H18<2002),VLOOKUP(I18,Feuil1!$G$11:$L$25,3),VLOOKUP(I18,Feuil1!$G$11:$L$25,2))))))) -> C1 45 | Y18: 130.4969962 | AB18: =T18-HLOOKUP(X18,Feuil1!$C$1:$BL$10,2,FALSE) -> 34 | AC18: =T18-HLOOKUP(X18,Feuil1!$C$1:$BL$10,3,FALSE) -> 19 | AD18: =T18-HLOOKUP(X18,Feuil1!$C$1:$BL$10,4,FALSE) -> 9 | AE18: =T18-HLOOKUP(X18,Feuil1!$C$1:$BL$10,5,FALSE) -> -6 | AF18: =T18-HLOOKUP(X18,Feuil1!$C$1:$BL$10,6,FALSE) -> -21 | AG18: =T18-HLOOKUP(X18,Feuil1!$C$1:$BL$10,7,FALSE) -> -36 | AH18: =T18-HLOOKUP(X18,Feuil1!$C$1:$BL$10,8,FALSE) -> -46 | AI18: =T18-HLOOKUP(X18,Feuil1!$C$1:$BL$10,9,FALSE) -> -61 | AJ18: =T18-HLOOKUP(X18,Feuil1!$C$1:$BL$10,10,FALSE) -> -931 | AQ18: REG +
A19: H | B19: SEST | C19: CAZ | D19: 14 | E19: 334191 | F19: RIS | G19: Esteban | H19: 2001 | I19: 43.9 | J19: ES VILLENEUVE LOUBET | K19: F | L19: 26 | M19: 28 | N19: -30 | O19: 28 | P19: 38 | Q19: 40 | R19: -42 | S19: 40 | T19: 68 | U19: -19.8 | V19: REG + | W19: 8 | X19: =IF(I19="","",IF(A19="H",IF(OR(H19="SEN",H19<1995),VLOOKUP(I19,Feuil1!$A$11:$G$29,6),IF(AND(H19>1994,H19<1998),VLOOKUP(I19,Feuil1!$A$11:$G$29,5),IF(AND(H19>1997,H19<2000),VLOOKUP(I19,Feuil1!$A$11:$G$29,4),IF(AND(H19>1999,H19<2002),VLOOKUP(I19,Feuil1!$A$11:$G$29,3),VLOOKUP(I19,Feuil1!$A$11:$G$29,2))))),IF(OR(H19="SEN",H19<1995),VLOOKUP(I19,Feuil1!$G$11:$L$25,6),IF(AND(H19>1994,H19<1998),VLOOKUP(I19,Feuil1!$G$11:$L$25,5),IF(AND(H19>1997,H19<2000),VLOOKUP(I19,Feuil1!$G$11:$L$25,4),IF(AND(H19>1999,H19<2002),VLOOKUP(I19,Feuil1!$G$11:$L$25,3),VLOOKUP(I19,Feuil1!$G$11:$L$25,2))))))) -> C1 45 | Y19: 131.0952087 | AB19: =T19-HLOOKUP(X19,Feuil1!$C$1:$BL$10,2,FALSE) -> 33 | AC19: =T19-HLOOKUP(X19,Feuil1!$C$1:$BL$10,3,FALSE) -> 18 | AD19: =T19-HLOOKUP(X19,Feuil1!$C$1:$BL$10,4,FALSE) -> 8 | AE19: =T19-HLOOKUP(X19,Feuil1!$C$1:$BL$10,5,FALSE) -> -7 | AF19: =T19-HLOOKUP(X19,Feuil1!$C$1:$BL$10,6,FALSE) -> -22 | AG19: =T19-HLOOKUP(X19,Feuil1!$C$1:$BL$10,7,FALSE) -> -37 | AH19: =T19-HLOOKUP(X19,Feuil1!$C$1:$BL$10,8,FALSE) -> -47 | AI19: =T19-HLOOKUP(X19,Feuil1!$C$1:$BL$10,9,FALSE) -> -62 | AJ19: =T19-HLOOKUP(X19,Feuil1!$C$1:$BL$10,10,FALSE) -> -932 | AQ19: REG +
A20: H | B20: NE | C20: FCO | D20: 15 | E20: 376274 | F20: LECOMTE | G20: Kylian | H20: 2000 | I20: 43.7 | J20: CH Luxeuil | K20: F | L20: 25 | M20: -28 | N20: 28 | O20: 28 | P20: -32 | Q20: 32 | R20: 37 | S20: 37 | T20: 65 | U20: -22.4 | V20: REG + | W20: 5 | X20: =IF(I20="","",IF(A20="H",IF(OR(H20="SEN",H20<1995),VLOOKUP(I20,Feuil1!$A$11:$G$29,6),IF(AND(H20>1994,H20<1998),VLOOKUP(I20,Feuil1!$A$11:$G$29,5),IF(AND(H20>1997,H20<2000),VLOOKUP(I20,Feuil1!$A$11:$G$29,4),IF(AND(H20>1999,H20<2002),VLOOKUP(I20,Feuil1!$A$11:$G$29,3),VLOOKUP(I20,Feuil1!$A$11:$G$29,2))))),IF(OR(H20="SEN",H20<1995),VLOOKUP(I20,Feuil1!$G$11:$L$25,6),IF(AND(H20>1994,H20<1998),VLOOKUP(I20,Feuil1!$G$11:$L$25,5),IF(AND(H20>1997,H20<2000),VLOOKUP(I20,Feuil1!$G$11:$L$25,4),IF(AND(H20>1999,H20<2002),VLOOKUP(I20,Feuil1!$G$11:$L$25,3),VLOOKUP(I20,Feuil1!$G$11:$L$25,2))))))) -> C1 45 | Y20: 125.8582747 | AB20: =T20-HLOOKUP(X20,Feuil1!$C$1:$BL$10,2,FALSE) -> 30 | AC20: =T20-HLOOKUP(X20,Feuil1!$C$1:$BL$10,3,FALSE) -> 15 | AD20: =T20-HLOOKUP(X20,Feuil1!$C$1:$BL$10,4,FALSE) -> 5 | AE20: =T20-HLOOKUP(X20,Feuil1!$C$1:$BL$10,5,FALSE) -> -10 | AF20: =T20-HLOOKUP(X20,Feuil1!$C$1:$BL$10,6,FALSE) -> -25 | AG20: =T20-HLOOKUP(X20,Feuil1!$C$1:$BL$10,7,FALSE) -> -40 | AH20: =T20-HLOOKUP(X20,Feuil1!$C$1:$BL$10,8,FALSE) -> -50 | AI20: =T20-HLOOKUP(X20,Feuil1!$C$1:$BL$10,9,FALSE) -> -65 | AJ20: =T20-HLOOKUP(X20,Feuil1!$C$1:$BL$10,10,FALSE) -> -935 | AQ20: REG +
A21: H | B21: NE | C21: CHA | D21: 16 | E21: 376656 | F21: GUSTIN | G21: Eliséo | H21: 2001 | I21: 44.3 | J21: Reims HM | K21: F | L21: 19 | M21: 22 | N21: 24 | O21: 24 | P21: 32 | Q21: 35 | R21: 38 | S21: 38 | T21: 62 | U21: -26.6 | V21: REG + | W21: 2 | X21: =IF(I21="","",IF(A21="H",IF(OR(H21="SEN",H21<1995),VLOOKUP(I21,Feuil1!$A$11:$G$29,6),IF(AND(H21>1994,H21<1998),VLOOKUP(I21,Feuil1!$A$11:$G$29,5),IF(AND(H21>1997,H21<2000),VLOOKUP(I21,Feuil1!$A$11:$G$29,4),IF(AND(H21>1999,H21<2002),VLOOKUP(I21,Feuil1!$A$11:$G$29,3),VLOOKUP(I21,Feuil1!$A$11:$G$29,2))))),IF(OR(H21="SEN",H21<1995),VLOOKUP(I21,Feuil1!$G$11:$L$25,6),IF(AND(H21>1994,H21<1998),VLOOKUP(I21,Feuil1!$G$11:$L$25,5),IF(AND(H21>1997,H21<2000),VLOOKUP(I21,Feuil1!$G$11:$L$25,4),IF(AND(H21>1999,H21<2002),VLOOKUP(I21,Feuil1!$G$11:$L$25,3),VLOOKUP(I21,Feuil1!$G$11:$L$25,2))))))) -> C1 45 | Y21: 118.5039451 | AB21: =T21-HLOOKUP(X21,Feuil1!$C$1:$BL$10,2,FALSE) -> 27 | AC21: =T21-HLOOKUP(X21,Feuil1!$C$1:$BL$10,3,FALSE) -> 12 | AD21: =T21-HLOOKUP(X21,Feuil1!$C$1:$BL$10,4,FALSE) -> 2 | AE21: =T21-HLOOKUP(X21,Feuil1!$C$1:$BL$10,5,FALSE) -> -13 | AF21: =T21-HLOOKUP(X21,Feuil1!$C$1:$BL$10,6,FALSE) -> -28 | AG21: =T21-HLOOKUP(X21,Feuil1!$C$1:$BL$10,7,FALSE) -> -43 | AH21: =T21-HLOOKUP(X21,Feuil1!$C$1:$BL$10,8,FALSE) -> -53 | AI21: =T21-HLOOKUP(X21,Feuil1!$C$1:$BL$10,9,FALSE) -> -68 | AJ21: =T21-HLOOKUP(X21,Feuil1!$C$1:$BL$10,10,FALSE) -> -938 | AQ21: REG +
A22: H | B22: NE | C22: LOR | D22: 17 | E22: 332322 | F22: SIERADZKI | G22: Lucas | H22: 2001 | I22: 35.9 | J22: A.O.C.Pte-ROSSELLE | K22: F | L22: 22 | M22: 26 | N22: 28 | O22: 28 | P22: 28 | Q22: 33 | R22: -36 | S22: 33 | T22: 61 | U22: -10.8 | V22: REG + | W22: 1 | X22: =IF(I22="","",IF(A22="H",IF(OR(H22="SEN",H22<1995),VLOOKUP(I22,Feuil1!$A$11:$G$29,6),IF(AND(H22>1994,H22<1998),VLOOKUP(I22,Feuil1!$A$11:$G$29,5),IF(AND(H22>1997,H22<2000),VLOOKUP(I22,Feuil1!$A$11:$G$29,4),IF(AND(H22>1999,H22<2002),VLOOKUP(I22,Feuil1!$A$11:$G$29,3),VLOOKUP(I22,Feuil1!$A$11:$G$29,2))))),IF(OR(H22="SEN",H22<1995),VLOOKUP(I22,Feuil1!$G$11:$L$25,6),IF(AND(H22>1994,H22<1998),VLOOKUP(I22,Feuil1!$G$11:$L$25,5),IF(AND(H22>1997,H22<2000),VLOOKUP(I22,Feuil1!$G$11:$L$25,4),IF(AND(H22>1999,H22<2002),VLOOKUP(I22,Feuil1!$G$11:$L$25,3),VLOOKUP(I22,Feuil1!$G$11:$L$25,2))))))) -> C1 45 | Y22: 144.4193552 | AB22: =T22-HLOOKUP(X22,Feuil1!$C$1:$BL$10,2,FALSE) -> 26 | AC22: =T22-HLOOKUP(X22,Feuil1!$C$1:$BL$10,3,FALSE) -> 11 | AD22: =T22-HLOOKUP(X22,Feuil1!$C$1:$BL$10,4,FALSE) -> 1 | AE22: =T22-HLOOKUP(X22,Feuil1!$C$1:$BL$10,5,FALSE) -> -14 | AF22: =T22-HLOOKUP(X22,Feuil1!$C$1:$BL$10,6,FALSE) -> -29 | AG22: =T22-HLOOKUP(X22,Feuil1!$C$1:$BL$10,7,FALSE) -> -44 | AH22: =T22-HLOOKUP(X22,Feuil1!$C$1:$BL$10,8,FALSE) -> -54 | AI22: =T22-HLOOKUP(X22,Feuil1!$C$1:$BL$10,9,FALSE) -> -69 | AJ22: =T22-HLOOKUP(X22,Feuil1!$C$1:$BL$10,10,FALSE) -> -939 | AQ22: REG +
A23: H | B23: CO | C23: PDL | D23: 18 | E23: 390184 | F23: AERTS | G23: Maxence | H23: 2001 | I23: 39.3 | J23: CA EVRON 53 | K23: F | L23: 23 | M23: 25 | N23: 26 | O23: 26 | P23: -31 | Q23: 31 | R23: 34 | S23: 34 | T23: 60 | U23: -18.6 | V23: REG + | W23: 0 | X23: =IF(I23="","",IF(A23="H",IF(OR(H23="SEN",H23<1995),VLOOKUP(I23,Feuil1!$A$11:$G$29,6),IF(AND(H23>1994,H23<1998),VLOOKUP(I23,Feuil1!$A$11:$G$29,5),IF(AND(H23>1997,H23<2000),VLOOKUP(I23,Feuil1!$A$11:$G$29,4),IF(AND(H23>1999,H23<2002),VLOOKUP(I23,Feuil1!$A$11:$G$29,3),VLOOKUP(I23,Feuil1!$A$11:$G$29,2))))),IF(OR(H23="SEN",H23<1995),VLOOKUP(I23,Feuil1!$G$11:$L$25,6),IF(AND(H23>1994,H23<1998),VLOOKUP(I23,Feuil1!$G$11:$L$25,5),IF(AND(H23>1997,H23<2000),VLOOKUP(I23,Feuil1!$G$11:$L$25,4),IF(AND(H23>1999,H23<2002),VLOOKUP(I23,Feuil1!$G$11:$L$25,3),VLOOKUP(I23,Feuil1!$G$11:$L$25,2))))))) -> C1 45 | Y23: 129.0675418 | AB23: =T23-HLOOKUP(X23,Feuil1!$C$1:$BL$10,2,FALSE) -> 25 | AC23: =T23-HLOOKUP(X23,Feuil1!$C$1:$BL$10,3,FALSE) -> 10 | AD23: =T23-HLOOKUP(X23,Feuil1!$C$1:$BL$10,4,FALSE) -> 0 | AE23: =T23-HLOOKUP(X23,Feuil1!$C$1:$BL$10,5,FALSE) -> -15 | AF23: =T23-HLOOKUP(X23,Feuil1!$C$1:$BL$10,6,FALSE) -> -30 | AG23: =T23-HLOOKUP(X23,Feuil1!$C$1:$BL$10,7,FALSE) -> -45 | AH23: =T23-HLOOKUP(X23,Feuil1!$C$1:$BL$10,8,FALSE) -> -55 | AI23: =T23-HLOOKUP(X23,Feuil1!$C$1:$BL$10,9,FALSE) -> -70 | AJ23: =T23-HLOOKUP(X23,Feuil1!$C$1:$BL$10,10,FALSE) -> -940 | AQ23: REG +
A24: H | B24: N | C24: IDF | D24: 19 | E24: 381135 | F24: PEREIRA | G24: STAN | H24: 2001 | I24: 39.9 | J24: FRANCONVILLE | K24: F | L24: 21 | M24: -24 | N24: 24 | O24: 24 | P24: 31 | Q24: -33 | R24: 33 | S24: 33 | T24: 57 | U24: -22.8 | V24: DEP + | W24: 7 | X24: =IF(I24="","",IF(A24="H",IF(OR(H24="SEN",H24<1995),VLOOKUP(I24,Feuil1!$A$11:$G$29,6),IF(AND(H24>1994,H24<1998),VLOOKUP(I24,Feuil1!$A$11:$G$29,5),IF(AND(H24>1997,H24<2000),VLOOKUP(I24,Feuil1!$A$11:$G$29,4),IF(AND(H24>1999,H24<2002),VLOOKUP(I24,Feuil1!$A$11:$G$29,3),VLOOKUP(I24,Feuil1!$A$11:$G$29,2))))),IF(OR(H24="SEN",H24<1995),VLOOKUP(I24,Feuil1!$G$11:$L$25,6),IF(AND(H24>1994,H24<1998),VLOOKUP(I24,Feuil1!$G$11:$L$25,5),IF(AND(H24>1997,H24<2000),VLOOKUP(I24,Feuil1!$G$11:$L$25,4),IF(AND(H24>1999,H24<2002),VLOOKUP(I24,Feuil1!$G$11:$L$25,3),VLOOKUP(I24,Feuil1!$G$11:$L$25,2))))))) -> C1 45 | Y24: 120.7284654 | AB24: =T24-HLOOKUP(X24,Feuil1!$C$1:$BL$10,2,FALSE) -> 22 | AC24: =T24-HLOOKUP(X24,Feuil1!$C$1:$BL$10,3,FALSE) -> 7 | AD24: =T24-HLOOKUP(X24,Feuil1!$C$1:$BL$10,4,FALSE) -> -3 | AE24: =T24-HLOOKUP(X24,Feuil1!$C$1:$BL$10,5,FALSE) -> -18 | AF24: =T24-HLOOKUP(X24,Feuil1!$C$1:$BL$10,6,FALSE) -> -33 | AG24: =T24-HLOOKUP(X24,Feuil1!$C$1:$BL$10,7,FALSE) -> -48 | AH24: =T24-HLOOKUP(X24,Feuil1!$C$1:$BL$10,8,FALSE) -> -58 | AI24: =T24-HLOOKUP(X24,Feuil1!$C$1:$BL$10,9,FALSE) -> -73 | AJ24: =T24-HLOOKUP(X24,Feuil1!$C$1:$BL$10,10,FALSE) -> -943 | AQ24: DEP +
A25: H | B25: NE | C25: ALS | D25: 20 | E25: 376850 | F25: LECLERC | G25: YANN | H25: 2001 | I25: 37.8 | J25: Dorlisheim FH | K25: F | L25: 22 | M25: -25 | N25: 25 | O25: 25 | P25: 28 | Q25: 31 | R25: -34 | S25: 31 | T25: 56 | U25: -19.6 | V25: DEP + | W25: 6 | X25: =IF(I25="","",IF(A25="H",IF(OR(H25="SEN",H25<1995),VLOOKUP(I25,Feuil1!$A$11:$G$29,6),IF(AND(H25>1994,H25<1998),VLOOKUP(I25,Feuil1!$A$11:$G$29,5),IF(AND(H25>1997,H25<2000),VLOOKUP(I25,Feuil1!$A$11:$G$29,4),IF(AND(H25>1999,H25<2002),VLOOKUP(I25,Feuil1!$A$11:$G$29,3),VLOOKUP(I25,Feuil1!$A$11:$G$29,2))))),IF(OR(H25="SEN",H25<1995),VLOOKUP(I25,Feuil1!$G$11:$L$25,6),IF(AND(H25>1994,H25<1998),VLOOKUP(I25,Feuil1!$G$11:$L$25,5),IF(AND(H25>1997,H25<2000),VLOOKUP(I25,Feuil1!$G$11:$L$25,4),IF(AND(H25>1999,H25<2002),VLOOKUP(I25,Feuil1!$G$11:$L$25,3),VLOOKUP(I25,Feuil1!$G$11:$L$25,2))))))) -> C1 45 | Y25: 125.4459513 | AB25: =T25-HLOOKUP(X25,Feuil1!$C$1:$BL$10,2,FALSE) -> 21 | AC25: =T25-HLOOKUP(X25,Feuil1!$C$1:$BL$10,3,FALSE) -> 6 | AD25: =T25-HLOOKUP(X25,Feuil1!$C$1:$BL$10,4,FALSE) -> -4 | AE25: =T25-HLOOKUP(X25,Feuil1!$C$1:$BL$10,5,FALSE) -> -19 | AF25: =T25-HLOOKUP(X25,Feuil1!$C$1:$BL$10,6,FALSE) -> -34 | AG25: =T25-HLOOKUP(X25,Feuil1!$C$1:$BL$10,7,FALSE) -> -49 | AH25: =T25-HLOOKUP(X25,Feuil1!$C$1:$BL$10,8,FALSE) -> -59 | AI25: =T25-HLOOKUP(X25,Feuil1!$C$1:$BL$10,9,FALSE) -> -74 | AJ25: =T25-HLOOKUP(X25,Feuil1!$C$1:$BL$10,10,FALSE) -> -944 | AQ25: DEP +
A26: H | B26: SEST | C26: RAL | D26: 21 | E26: 373867 | F26: PETRIS | G26: Quentin | H26: 2001 | I26: 43.2 | J26: H.C. ST BALDOPH | K26: F | L26: 20 | M26: 22 | N26: 24 | O26: 24 | P26: -29 | Q26: 29 | R26: 30 | S26: 30 | T26: 54 | U26: -32.4 | V26: DEP + | W26: 4 | X26: =IF(I26="","",IF(A26="H",IF(OR(H26="SEN",H26<1995),VLOOKUP(I26,Feuil1!$A$11:$G$29,6),IF(AND(H26>1994,H26<1998),VLOOKUP(I26,Feuil1!$A$11:$G$29,5),IF(AND(H26>1997,H26<2000),VLOOKUP(I26,Feuil1!$A$11:$G$29,4),IF(AND(H26>1999,H26<2002),VLOOKUP(I26,Feuil1!$A$11:$G$29,3),VLOOKUP(I26,Feuil1!$A$11:$G$29,2))))),IF(OR(H26="SEN",H26<1995),VLOOKUP(I26,Feuil1!$G$11:$L$25,6),IF(AND(H26>1994,H26<1998),VLOOKUP(I26,Feuil1!$G$11:$L$25,5),IF(AND(H26>1997,H26<2000),VLOOKUP(I26,Feuil1!$G$11:$L$25,4),IF(AND(H26>1999,H26<2002),VLOOKUP(I26,Feuil1!$G$11:$L$25,3),VLOOKUP(I26,Feuil1!$G$11:$L$25,2))))))) -> C1 45 | Y26: 105.7193009 | AB26: =T26-HLOOKUP(X26,Feuil1!$C$1:$BL$10,2,FALSE) -> 19 | AC26: =T26-HLOOKUP(X26,Feuil1!$C$1:$BL$10,3,FALSE) -> 4 | AD26: =T26-HLOOKUP(X26,Feuil1!$C$1:$BL$10,4,FALSE) -> -6 | AE26: =T26-HLOOKUP(X26,Feuil1!$C$1:$BL$10,5,FALSE) -> -21 | AF26: =T26-HLOOKUP(X26,Feuil1!$C$1:$BL$10,6,FALSE) -> -36 | AG26: =T26-HLOOKUP(X26,Feuil1!$C$1:$BL$10,7,FALSE) -> -51 | AH26: =T26-HLOOKUP(X26,Feuil1!$C$1:$BL$10,8,FALSE) -> -61 | AI26: =T26-HLOOKUP(X26,Feuil1!$C$1:$BL$10,9,FALSE) -> -76 | AJ26: =T26-HLOOKUP(X26,Feuil1!$C$1:$BL$10,10,FALSE) -> -946 | AQ26: DEP +
A27: H | B27: NORD | C27: PIC | D27: 22 | E27: 317387 | F27: FLEURY | G27: Alex | H27: 2001 | I27: 35.7 | J27: Hirson CEHT | K27: F | L27: 19 | M27: -21 | N27: 21 | O27: 21 | P27: 28 | Q27: 30 | R27: 32 | S27: 32 | T27: 53 | U27: -18.4 | V27: DEP + | W27: 3 | X27: =IF(I27="","",IF(A27="H",IF(OR(H27="SEN",H27<1995),VLOOKUP(I27,Feuil1!$A$11:$G$29,6),IF(AND(H27>1994,H27<1998),VLOOKUP(I27,Feuil1!$A$11:$G$29,5),IF(AND(H27>1997,H27<2000),VLOOKUP(I27,Feuil1!$A$11:$G$29,4),IF(AND(H27>1999,H27<2002),VLOOKUP(I27,Feuil1!$A$11:$G$29,3),VLOOKUP(I27,Feuil1!$A$11:$G$29,2))))),IF(OR(H27="SEN",H27<1995),VLOOKUP(I27,Feuil1!$G$11:$L$25,6),IF(AND(H27>1994,H27<1998),VLOOKUP(I27,Feuil1!$G$11:$L$25,5),IF(AND(H27>1997,H27<2000),VLOOKUP(I27,Feuil1!$G$11:$L$25,4),IF(AND(H27>1999,H27<2002),VLOOKUP(I27,Feuil1!$G$11:$L$25,3),VLOOKUP(I27,Feuil1!$G$11:$L$25,2))))))) -> C1 45 | Y27: 126.2472829 | AB27: =T27-HLOOKUP(X27,Feuil1!$C$1:$BL$10,2,FALSE) -> 18 | AC27: =T27-HLOOKUP(X27,Feuil1!$C$1:$BL$10,3,FALSE) -> 3 | AD27: =T27-HLOOKUP(X27,Feuil1!$C$1:$BL$10,4,FALSE) -> -7 | AE27: =T27-HLOOKUP(X27,Feuil1!$C$1:$BL$10,5,FALSE) -> -22 | AF27: =T27-HLOOKUP(X27,Feuil1!$C$1:$BL$10,6,FALSE) -> -37 | AG27: =T27-HLOOKUP(X27,Feuil1!$C$1:$BL$10,7,FALSE) -> -52 | AH27: =T27-HLOOKUP(X27,Feuil1!$C$1:$BL$10,8,FALSE) -> -62 | AI27: =T27-HLOOKUP(X27,Feuil1!$C$1:$BL$10,9,FALSE) -> -77 | AJ27: =T27-HLOOKUP(X27,Feuil1!$C$1:$BL$10,10,FALSE) -> -947 | AQ27: DEP +
A28: H | B28: SO | C28: LIM | D28: 23 | E28: 330948 | F28: DOS SANTOS | G28: HUGO | H28: 2000 | I28: 29.9 | J28: TULLE ASH | K28: F | L28: 20 | M28: -22 | N28: 22 | O28: 22 | P28: 28 | Q28: 30 | R28: -32 | S28: 30 | T28: 52 | U28: -7.8 | V28: DEP + | W28: 2 | X28: =IF(I28="","",IF(A28="H",IF(OR(H28="SEN",H28<1995),VLOOKUP(I28,Feuil1!$A$11:$G$29,6),IF(AND(H28>1994,H28<1998),VLOOKUP(I28,Feuil1!$A$11:$G$29,5),IF(AND(H28>1997,H28<2000),VLOOKUP(I28,Feuil1!$A$11:$G$29,4),IF(AND(H28>1999,H28<2002),VLOOKUP(I28,Feuil1!$A$11:$G$29,3),VLOOKUP(I28,Feuil1!$A$11:$G$29,2))))),IF(OR(H28="SEN",H28<1995),VLOOKUP(I28,Feuil1!$G$11:$L$25,6),IF(AND(H28>1994,H28<1998),VLOOKUP(I28,Feuil1!$G$11:$L$25,5),IF(AND(H28>1997,H28<2000),VLOOKUP(I28,Feuil1!$G$11:$L$25,4),IF(AND(H28>1999,H28<2002),VLOOKUP(I28,Feuil1!$G$11:$L$25,3),VLOOKUP(I28,Feuil1!$G$11:$L$25,2))))))) -> C1 45 | Y28: 152.0284219 | AB28: =T28-HLOOKUP(X28,Feuil1!$C$1:$BL$10,2,FALSE) -> 17 | AC28: =T28-HLOOKUP(X28,Feuil1!$C$1:$BL$10,3,FALSE) -> 2 | AD28: =T28-HLOOKUP(X28,Feuil1!$C$1:$BL$10,4,FALSE) -> -8 | AE28: =T28-HLOOKUP(X28,Feuil1!$C$1:$BL$10,5,FALSE) -> -23 | AF28: =T28-HLOOKUP(X28,Feuil1!$C$1:$BL$10,6,FALSE) -> -38 | AG28: =T28-HLOOKUP(X28,Feuil1!$C$1:$BL$10,7,FALSE) -> -53 | AH28: =T28-HLOOKUP(X28,Feuil1!$C$1:$BL$10,8,FALSE) -> -63 | AI28: =T28-HLOOKUP(X28,Feuil1!$C$1:$BL$10,9,FALSE) -> -78 | AJ28: =T28-HLOOKUP(X28,Feuil1!$C$1:$BL$10,10,FALSE) -> -948 | AQ28: DEP +
A29: H | B29: NORD | C29: NPC | D29: 24 | E29: 390389 | F29: RYCKEBUSCH | G29: Alexis | H29: 2000 | I29: 38.6 | J29: C.A.ROSENDAEL | K29: F | L29: 17 | M29: 20 | N29: 22 | O29: 22 | P29: -26 | Q29: 28 | R29: 30 | S29: 30 | T29: 52 | U29: -25.2 | V29: DEP + | W29: 2 | X29: =IF(I29="","",IF(A29="H",IF(OR(H29="SEN",H29<1995),VLOOKUP(I29,Feuil1!$A$11:$G$29,6),IF(AND(H29>1994,H29<1998),VLOOKUP(I29,Feuil1!$A$11:$G$29,5),IF(AND(H29>1997,H29<2000),VLOOKUP(I29,Feuil1!$A$11:$G$29,4),IF(AND(H29>1999,H29<2002),VLOOKUP(I29,Feuil1!$A$11:$G$29,3),VLOOKUP(I29,Feuil1!$A$11:$G$29,2))))),IF(OR(H29="SEN",H29<1995),VLOOKUP(I29,Feuil1!$G$11:$L$25,6),IF(AND(H29>1994,H29<1998),VLOOKUP(I29,Feuil1!$G$11:$L$25,5),IF(AND(H29>1997,H29<2000),VLOOKUP(I29,Feuil1!$G$11:$L$25,4),IF(AND(H29>1999,H29<2002),VLOOKUP(I29,Feuil1!$G$11:$L$25,3),VLOOKUP(I29,Feuil1!$G$11:$L$25,2))))))) -> C1 45 | Y29: 113.9573197 | AB29: =T29-HLOOKUP(X29,Feuil1!$C$1:$BL$10,2,FALSE) -> 17 | AC29: =T29-HLOOKUP(X29,Feuil1!$C$1:$BL$10,3,FALSE) -> 2 | AD29: =T29-HLOOKUP(X29,Feuil1!$C$1:$BL$10,4,FALSE) -> -8 | AE29: =T29-HLOOKUP(X29,Feuil1!$C$1:$BL$10,5,FALSE) -> -23 | AF29: =T29-HLOOKUP(X29,Feuil1!$C$1:$BL$10,6,FALSE) -> -38 | AG29: =T29-HLOOKUP(X29,Feuil1!$C$1:$BL$10,7,FALSE) -> -53 | AH29: =T29-HLOOKUP(X29,Feuil1!$C$1:$BL$10,8,FALSE) -> -63 | AI29: =T29-HLOOKUP(X29,Feuil1!$C$1:$BL$10,9,FALSE) -> -78 | AJ29: =T29-HLOOKUP(X29,Feuil1!$C$1:$BL$10,10,FALSE) -> -948 | AQ29: DEP +
A30: H | B30: SEST | C30: PRO | D30: 25 | E30: 394565 | F30: MAZZOCHI | G30: LEO | H30: 2001 | I30: 43.5 | J30: HC NOVES | K30: F | L30: 15 | M30: 18 | N30: 21 | O30: 21 | P30: 18 | Q30: 22 | R30: 25 | S30: 25 | T30: 46 | U30: -41 | V30: DEB | W30: 11 | X30: =IF(I30="","",IF(A30="H",IF(OR(H30="SEN",H30<1995),VLOOKUP(I30,Feuil1!$A$11:$G$29,6),IF(AND(H30>1994,H30<1998),VLOOKUP(I30,Feuil1!$A$11:$G$29,5),IF(AND(H30>1997,H30<2000),VLOOKUP(I30,Feuil1!$A$11:$G$29,4),IF(AND(H30>1999,H30<2002),VLOOKUP(I30,Feuil1!$A$11:$G$29,3),VLOOKUP(I30,Feuil1!$A$11:$G$29,2))))),IF(OR(H30="SEN",H30<1995),VLOOKUP(I30,Feuil1!$G$11:$L$25,6),IF(AND(H30>1994,H30<1998),VLOOKUP(I30,Feuil1!$G$11:$L$25,5),IF(AND(H30>1997,H30<2000),VLOOKUP(I30,Feuil1!$G$11:$L$25,4),IF(AND(H30>1999,H30<2002),VLOOKUP(I30,Feuil1!$G$11:$L$25,3),VLOOKUP(I30,Feuil1!$G$11:$L$25,2))))))) -> C1 45 | Y30: 89.46058269 | AB30: =T30-HLOOKUP(X30,Feuil1!$C$1:$BL$10,2,FALSE) -> 11 | AC30: =T30-HLOOKUP(X30,Feuil1!$C$1:$BL$10,3,FALSE) -> -4 | AD30: =T30-HLOOKUP(X30,Feuil1!$C$1:$BL$10,4,FALSE) -> -14 | AE30: =T30-HLOOKUP(X30,Feuil1!$C$1:$BL$10,5,FALSE) -> -29 | AF30: =T30-HLOOKUP(X30,Feuil1!$C$1:$BL$10,6,FALSE) -> -44 | AG30: =T30-HLOOKUP(X30,Feuil1!$C$1:$BL$10,7,FALSE) -> -59 | AH30: =T30-HLOOKUP(X30,Feuil1!$C$1:$BL$10,8,FALSE) -> -69 | AI30: =T30-HLOOKUP(X30,Feuil1!$C$1:$BL$10,9,FALSE) -> -84 | AJ30: =T30-HLOOKUP(X30,Feuil1!$C$1:$BL$10,10,FALSE) -> -954 | AQ30: DEB
A31: H | B31: NORD | C31: PIC | D31: 26 | E31: 378363 | F31: DEGOUY | G31: Maxandre | H31: 2001 | I31: 44.9 | J31: Villers-Bretonneux KC | K31: F | L31: 19 | M31: -22 | N31: 22 | O31: 22 | P31: -23 | Q31: -23 | R31: 23 | S31: 23 | T31: 45 | U31: -44.8 | V31: DEB | W31: 10 | X31: =IF(I31="","",IF(A31="H",IF(OR(H31="SEN",H31<1995),VLOOKUP(I31,Feuil1!$A$11:$G$29,6),IF(AND(H31>1994,H31<1998),VLOOKUP(I31,Feuil1!$A$11:$G$29,5),IF(AND(H31>1997,H31<2000),VLOOKUP(I31,Feuil1!$A$11:$G$29,4),IF(AND(H31>1999,H31<2002),VLOOKUP(I31,Feuil1!$A$11:$G$29,3),VLOOKUP(I31,Feuil1!$A$11:$G$29,2))))),IF(OR(H31="SEN",H31<1995),VLOOKUP(I31,Feuil1!$G$11:$L$25,6),IF(AND(H31>1994,H31<1998),VLOOKUP(I31,Feuil1!$G$11:$L$25,5),IF(AND(H31>1997,H31<2000),VLOOKUP(I31,Feuil1!$G$11:$L$25,4),IF(AND(H31>1999,H31<2002),VLOOKUP(I31,Feuil1!$G$11:$L$25,3),VLOOKUP(I31,Feuil1!$G$11:$L$25,2))))))) -> C1 45 | Y31: 84.92912364 | AB31: =T31-HLOOKUP(X31,Feuil1!$C$1:$BL$10,2,FALSE) -> 10 | AC31: =T31-HLOOKUP(X31,Feuil1!$C$1:$BL$10,3,FALSE) -> -5 | AD31: =T31-HLOOKUP(X31,Feuil1!$C$1:$BL$10,4,FALSE) -> -15 | AE31: =T31-HLOOKUP(X31,Feuil1!$C$1:$BL$10,5,FALSE) -> -30 | AF31: =T31-HLOOKUP(X31,Feuil1!$C$1:$BL$10,6,FALSE) -> -45 | AG31: =T31-HLOOKUP(X31,Feuil1!$C$1:$BL$10,7,FALSE) -> -60 | AH31: =T31-HLOOKUP(X31,Feuil1!$C$1:$BL$10,8,FALSE) -> -70 | AI31: =T31-HLOOKUP(X31,Feuil1!$C$1:$BL$10,9,FALSE) -> -85 | AJ31: =T31-HLOOKUP(X31,Feuil1!$C$1:$BL$10,10,FALSE) -> -955 | AQ31: DEB
A32: H | B32: NORD | C32: PIC | D32: 27 | E32: 329325 | F32: MENESSON | G32: Valentin | H32: 2000 | I32: 35.5 | J32: Hirson CEHT | K32: F | L32: 15 | M32: 17 | N32: -19 | O32: 17 | P32: 24 | Q32: 27 | R32: -29 | S32: 27 | T32: 44 | U32: -27 | V32: DEB | W32: 9 | X32: =IF(I32="","",IF(A32="H",IF(OR(H32="SEN",H32<1995),VLOOKUP(I32,Feuil1!$A$11:$G$29,6),IF(AND(H32>1994,H32<1998),VLOOKUP(I32,Feuil1!$A$11:$G$29,5),IF(AND(H32>1997,H32<2000),VLOOKUP(I32,Feuil1!$A$11:$G$29,4),IF(AND(H32>1999,H32<2002),VLOOKUP(I32,Feuil1!$A$11:$G$29,3),VLOOKUP(I32,Feuil1!$A$11:$G$29,2))))),IF(OR(H32="SEN",H32<1995),VLOOKUP(I32,Feuil1!$G$11:$L$25,6),IF(AND(H32>1994,H32<1998),VLOOKUP(I32,Feuil1!$G$11:$L$25,5),IF(AND(H32>1997,H32<2000),VLOOKUP(I32,Feuil1!$G$11:$L$25,4),IF(AND(H32>1999,H32<2002),VLOOKUP(I32,Feuil1!$G$11:$L$25,3),VLOOKUP(I32,Feuil1!$G$11:$L$25,2))))))) -> C1 45 | Y32: 105.4566017 | AB32: =T32-HLOOKUP(X32,Feuil1!$C$1:$BL$10,2,FALSE) -> 9 | AC32: =T32-HLOOKUP(X32,Feuil1!$C$1:$BL$10,3,FALSE) -> -6 | AD32: =T32-HLOOKUP(X32,Feuil1!$C$1:$BL$10,4,FALSE) -> -16 | AE32: =T32-HLOOKUP(X32,Feuil1!$C$1:$BL$10,5,FALSE) -> -31 | AF32: =T32-HLOOKUP(X32,Feuil1!$C$1:$BL$10,6,FALSE) -> -46 | AG32: =T32-HLOOKUP(X32,Feuil1!$C$1:$BL$10,7,FALSE) -> -61 | AH32: =T32-HLOOKUP(X32,Feuil1!$C$1:$BL$10,8,FALSE) -> -71 | AI32: =T32-HLOOKUP(X32,Feuil1!$C$1:$BL$10,9,FALSE) -> -86 | AJ32: =T32-HLOOKUP(X32,Feuil1!$C$1:$BL$10,10,FALSE) -> -956 | AQ32: DEB
A33: H | B33: NE | C33: ALS | D33: 28 | E33: 381283 | F33: BUCHER | G33: LEO | H33: 2001 | I33: 42.7 | J33: SR Obernai HM | K33: F | L33: 15 | M33: 17 | N33: 20 | O33: 20 | P33: 20 | Q33: 23 | R33: -26 | S33: 23 | T33: 43 | U33: -42.4 | V33: DEB | W33: 8 | X33: =IF(I33="","",IF(A33="H",IF(OR(H33="SEN",H33<1995),VLOOKUP(I33,Feuil1!$A$11:$G$29,6),IF(AND(H33>1994,H33<1998),VLOOKUP(I33,Feuil1!$A$11:$G$29,5),IF(AND(H33>1997,H33<2000),VLOOKUP(I33,Feuil1!$A$11:$G$29,4),IF(AND(H33>1999,H33<2002),VLOOKUP(I33,Feuil1!$A$11:$G$29,3),VLOOKUP(I33,Feuil1!$A$11:$G$29,2))))),IF(OR(H33="SEN",H33<1995),VLOOKUP(I33,Feuil1!$G$11:$L$25,6),IF(AND(H33>1994,H33<1998),VLOOKUP(I33,Feuil1!$G$11:$L$25,5),IF(AND(H33>1997,H33<2000),VLOOKUP(I33,Feuil1!$G$11:$L$25,4),IF(AND(H33>1999,H33<2002),VLOOKUP(I33,Feuil1!$G$11:$L$25,3),VLOOKUP(I33,Feuil1!$G$11:$L$25,2))))))) -> C1 45 | Y33: 85.13678561 | AB33: =T33-HLOOKUP(X33,Feuil1!$C$1:$BL$10,2,FALSE) -> 8 | AC33: =T33-HLOOKUP(X33,Feuil1!$C$1:$BL$10,3,FALSE) -> -7 | AD33: =T33-HLOOKUP(X33,Feuil1!$C$1:$BL$10,4,FALSE) -> -17 | AE33: =T33-HLOOKUP(X33,Feuil1!$C$1:$BL$10,5,FALSE) -> -32 | AF33: =T33-HLOOKUP(X33,Feuil1!$C$1:$BL$10,6,FALSE) -> -47 | AG33: =T33-HLOOKUP(X33,Feuil1!$C$1:$BL$10,7,FALSE) -> -62 | AH33: =T33-HLOOKUP(X33,Feuil1!$C$1:$BL$10,8,FALSE) -> -72 | AI33: =T33-HLOOKUP(X33,Feuil1!$C$1:$BL$10,9,FALSE) -> -87 | AJ33: =T33-HLOOKUP(X33,Feuil1!$C$1:$BL$10,10,FALSE) -> -957 | AQ33: DEB
A34: H | B34: CO | C34: PDL | D34: 29 | E34: 386514 | F34: HERVÉ | G34: MATHEW | H34: 2001 | I34: 35.7 | J34: CJF Laval-Voutré | K34: F | L34: 15 | M34: -18 | N34: 18 | O34: 18 | P34: 20 | Q34: 22 | R34: 24 | S34: 24 | T34: 42 | U34: -29.4 | V34: DEB | W34: 7 | X34: =IF(I34="","",IF(A34="H",IF(OR(H34="SEN",H34<1995),VLOOKUP(I34,Feuil1!$A$11:$G$29,6),IF(AND(H34>1994,H34<1998),VLOOKUP(I34,Feuil1!$A$11:$G$29,5),IF(AND(H34>1997,H34<2000),VLOOKUP(I34,Feuil1!$A$11:$G$29,4),IF(AND(H34>1999,H34<2002),VLOOKUP(I34,Feuil1!$A$11:$G$29,3),VLOOKUP(I34,Feuil1!$A$11:$G$29,2))))),IF(OR(H34="SEN",H34<1995),VLOOKUP(I34,Feuil1!$G$11:$L$25,6),IF(AND(H34>1994,H34<1998),VLOOKUP(I34,Feuil1!$G$11:$L$25,5),IF(AND(H34>1997,H34<2000),VLOOKUP(I34,Feuil1!$G$11:$L$25,4),IF(AND(H34>1999,H34<2002),VLOOKUP(I34,Feuil1!$G$11:$L$25,3),VLOOKUP(I34,Feuil1!$G$11:$L$25,2))))))) -> C1 45 | Y34: 100.0450166 | AB34: =T34-HLOOKUP(X34,Feuil1!$C$1:$BL$10,2,FALSE) -> 7 | AC34: =T34-HLOOKUP(X34,Feuil1!$C$1:$BL$10,3,FALSE) -> -8 | AD34: =T34-HLOOKUP(X34,Feuil1!$C$1:$BL$10,4,FALSE) -> -18 | AE34: =T34-HLOOKUP(X34,Feuil1!$C$1:$BL$10,5,FALSE) -> -33 | AF34: =T34-HLOOKUP(X34,Feuil1!$C$1:$BL$10,6,FALSE) -> -48 | AG34: =T34-HLOOKUP(X34,Feuil1!$C$1:$BL$10,7,FALSE) -> -63 | AH34: =T34-HLOOKUP(X34,Feuil1!$C$1:$BL$10,8,FALSE) -> -73 | AI34: =T34-HLOOKUP(X34,Feuil1!$C$1:$BL$10,9,FALSE) -> -88 | AJ34: =T34-HLOOKUP(X34,Feuil1!$C$1:$BL$10,10,FALSE) -> -958 | AQ34: DEB
A35: H | B35: SEST | C35: RAL | D35: 30 | E35: 380144 | F35: DUFFEZ | G35: Maxime | H35: 2000 | I35: 40.6 | J35: C.H. L'ARBRESLE | K35: F | L35: 15 | M35: 17 | N35: -20 | O35: 17 | P35: 20 | Q35: 23 | R35: 25 | S35: 25 | T35: 42 | U35: -39.2 | V35: DEB | W35: 7 | X35: =IF(I35="","",IF(A35="H",IF(OR(H35="SEN",H35<1995),VLOOKUP(I35,Feuil1!$A$11:$G$29,6),IF(AND(H35>1994,H35<1998),VLOOKUP(I35,Feuil1!$A$11:$G$29,5),IF(AND(H35>1997,H35<2000),VLOOKUP(I35,Feuil1!$A$11:$G$29,4),IF(AND(H35>1999,H35<2002),VLOOKUP(I35,Feuil1!$A$11:$G$29,3),VLOOKUP(I35,Feuil1!$A$11:$G$29,2))))),IF(OR(H35="SEN",H35<1995),VLOOKUP(I35,Feuil1!$G$11:$L$25,6),IF(AND(H35>1994,H35<1998),VLOOKUP(I35,Feuil1!$G$11:$L$25,5),IF(AND(H35>1997,H35<2000),VLOOKUP(I35,Feuil1!$G$11:$L$25,4),IF(AND(H35>1999,H35<2002),VLOOKUP(I35,Feuil1!$G$11:$L$25,3),VLOOKUP(I35,Feuil1!$G$11:$L$25,2))))))) -> C1 45 | Y35: 87.40633125 | AB35: =T35-HLOOKUP(X35,Feuil1!$C$1:$BL$10,2,FALSE) -> 7 | AC35: =T35-HLOOKUP(X35,Feuil1!$C$1:$BL$10,3,FALSE) -> -8 | AD35: =T35-HLOOKUP(X35,Feuil1!$C$1:$BL$10,4,FALSE) -> -18 | AE35: =T35-HLOOKUP(X35,Feuil1!$C$1:$BL$10,5,FALSE) -> -33 | AF35: =T35-HLOOKUP(X35,Feuil1!$C$1:$BL$10,6,FALSE) -> -48 | AG35: =T35-HLOOKUP(X35,Feuil1!$C$1:$BL$10,7,FALSE) -> -63 | AH35: =T35-HLOOKUP(X35,Feuil1!$C$1:$BL$10,8,FALSE) -> -73 | AI35: =T35-HLOOKUP(X35,Feuil1!$C$1:$BL$10,9,FALSE) -> -88 | AJ35: =T35-HLOOKUP(X35,Feuil1!$C$1:$BL$10,10,FALSE) -> -958 | AQ35: DEB
A36: H | B36: NORD | C36: PIC | D36: 31 | E36: 387612 | F36: FOURCROY | G36: David | H36: 2001 | I36: 41.5 | J36: Villers-Bretonneux KC | K36: F | L36: 10 | M36: 15 | N36: 18 | O36: 18 | P36: 15 | Q36: 20 | R36: 23 | S36: 23 | T36: 41 | U36: -42 | V36: DEB | W36: 6 | X36: =IF(I36="","",IF(A36="H",IF(OR(H36="SEN",H36<1995),VLOOKUP(I36,Feuil1!$A$11:$G$29,6),IF(AND(H36>1994,H36<1998),VLOOKUP(I36,Feuil1!$A$11:$G$29,5),IF(AND(H36>1997,H36<2000),VLOOKUP(I36,Feuil1!$A$11:$G$29,4),IF(AND(H36>1999,H36<2002),VLOOKUP(I36,Feuil1!$A$11:$G$29,3),VLOOKUP(I36,Feuil1!$A$11:$G$29,2))))),IF(OR(H36="SEN",H36<1995),VLOOKUP(I36,Feuil1!$G$11:$L$25,6),IF(AND(H36>1994,H36<1998),VLOOKUP(I36,Feuil1!$G$11:$L$25,5),IF(AND(H36>1997,H36<2000),VLOOKUP(I36,Feuil1!$G$11:$L$25,4),IF(AND(H36>1999,H36<2002),VLOOKUP(I36,Feuil1!$G$11:$L$25,3),VLOOKUP(I36,Feuil1!$G$11:$L$25,2))))))) -> C1 45 | Y36: 83.47828214 | AB36: =T36-HLOOKUP(X36,Feuil1!$C$1:$BL$10,2,FALSE) -> 6 | AC36: =T36-HLOOKUP(X36,Feuil1!$C$1:$BL$10,3,FALSE) -> -9 | AD36: =T36-HLOOKUP(X36,Feuil1!$C$1:$BL$10,4,FALSE) -> -19 | AE36: =T36-HLOOKUP(X36,Feuil1!$C$1:$BL$10,5,FALSE) -> -34 | AF36: =T36-HLOOKUP(X36,Feuil1!$C$1:$BL$10,6,FALSE) -> -49 | AG36: =T36-HLOOKUP(X36,Feuil1!$C$1:$BL$10,7,FALSE) -> -64 | AH36: =T36-HLOOKUP(X36,Feuil1!$C$1:$BL$10,8,FALSE) -> -74 | AI36: =T36-HLOOKUP(X36,Feuil1!$C$1:$BL$10,9,FALSE) -> -89 | AJ36: =T36-HLOOKUP(X36,Feuil1!$C$1:$BL$10,10,FALSE) -> -959 | AQ36: DEB
A37: H | B37: SEST | C37: RAL | D37: 32 | E37: 379909 | F37: REBOULET | G37: Bastien | H37: 2001 | I37: 42.9 | J37: HF Péageois | K37: F | L37: 13 | M37: 15 | N37: -17 | O37: 15 | P37: 18 | Q37: -20 | R37: 20 | S37: 20 | T37: 35 | U37: -50.8 | V37: DEB | W37: 0 | X37: =IF(I37="","",IF(A37="H",IF(OR(H37="SEN",H37<1995),VLOOKUP(I37,Feuil1!$A$11:$G$29,6),IF(AND(H37>1994,H37<1998),VLOOKUP(I37,Feuil1!$A$11:$G$29,5),IF(AND(H37>1997,H37<2000),VLOOKUP(I37,Feuil1!$A$11:$G$29,4),IF(AND(H37>1999,H37<2002),VLOOKUP(I37,Feuil1!$A$11:$G$29,3),VLOOKUP(I37,Feuil1!$A$11:$G$29,2))))),IF(OR(H37="SEN",H37<1995),VLOOKUP(I37,Feuil1!$G$11:$L$25,6),IF(AND(H37>1994,H37<1998),VLOOKUP(I37,Feuil1!$G$11:$L$25,5),IF(AND(H37>1997,H37<2000),VLOOKUP(I37,Feuil1!$G$11:$L$25,4),IF(AND(H37>1999,H37<2002),VLOOKUP(I37,Feuil1!$G$11:$L$25,3),VLOOKUP(I37,Feuil1!$G$11:$L$25,2))))))) -> C1 45 | Y37: 68.98422929 | AB37: =T37-HLOOKUP(X37,Feuil1!$C$1:$BL$10,2,FALSE) -> 0 | AC37: =T37-HLOOKUP(X37,Feuil1!$C$1:$BL$10,3,FALSE) -> -15 | AD37: =T37-HLOOKUP(X37,Feuil1!$C$1:$BL$10,4,FALSE) -> -25 | AE37: =T37-HLOOKUP(X37,Feuil1!$C$1:$BL$10,5,FALSE) -> -40 | AF37: =T37-HLOOKUP(X37,Feuil1!$C$1:$BL$10,6,FALSE) -> -55 | AG37: =T37-HLOOKUP(X37,Feuil1!$C$1:$BL$10,7,FALSE) -> -70 | AH37: =T37-HLOOKUP(X37,Feuil1!$C$1:$BL$10,8,FALSE) -> -80 | AI37: =T37-HLOOKUP(X37,Feuil1!$C$1:$BL$10,9,FALSE) -> -95 | AJ37: =T37-HLOOKUP(X37,Feuil1!$C$1:$BL$10,10,FALSE) -> -965 | AQ37: DEB
A38: H | B38: SEST | C38: CAZ | D38: 33 | E38: 391435 | F38: PILONE | G38: Costantin | H38: 2001 | I38: 32 | J38: ES VILLENEUVE LOUBET | K38: F | L38: 7 | M38: 9 | N38: 11 | O38: 11 | P38: 12 | Q38: 14 | R38: 15 | S38: 15 | T38: 26 | U38: -38 | V38: DEB | W38: -9 | X38: =IF(I38="","",IF(A38="H",IF(OR(H38="SEN",H38<1995),VLOOKUP(I38,Feuil1!$A$11:$G$29,6),IF(AND(H38>1994,H38<1998),VLOOKUP(I38,Feuil1!$A$11:$G$29,5),IF(AND(H38>1997,H38<2000),VLOOKUP(I38,Feuil1!$A$11:$G$29,4),IF(AND(H38>1999,H38<2002),VLOOKUP(I38,Feuil1!$A$11:$G$29,3),VLOOKUP(I38,Feuil1!$A$11:$G$29,2))))),IF(OR(H38="SEN",H38<1995),VLOOKUP(I38,Feuil1!$G$11:$L$25,6),IF(AND(H38>1994,H38<1998),VLOOKUP(I38,Feuil1!$G$11:$L$25,5),IF(AND(H38>1997,H38<2000),VLOOKUP(I38,Feuil1!$G$11:$L$25,4),IF(AND(H38>1999,H38<2002),VLOOKUP(I38,Feuil1!$G$11:$L$25,3),VLOOKUP(I38,Feuil1!$G$11:$L$25,2))))))) -> C1 45 | Y38: 70.09988973 | AB38: =T38-HLOOKUP(X38,Feuil1!$C$1:$BL$10,2,FALSE) -> -9 | AC38: =T38-HLOOKUP(X38,Feuil1!$C$1:$BL$10,3,FALSE) -> -24 | AD38: =T38-HLOOKUP(X38,Feuil1!$C$1:$BL$10,4,FALSE) -> -34 | AE38: =T38-HLOOKUP(X38,Feuil1!$C$1:$BL$10,5,FALSE) -> -49 | AF38: =T38-HLOOKUP(X38,Feuil1!$C$1:$BL$10,6,FALSE) -> -64 | AG38: =T38-HLOOKUP(X38,Feuil1!$C$1:$BL$10,7,FALSE) -> -79 | AH38: =T38-HLOOKUP(X38,Feuil1!$C$1:$BL$10,8,FALSE) -> -89 | AI38: =T38-HLOOKUP(X38,Feuil1!$C$1:$BL$10,9,FALSE) -> -104 | AJ38: =T38-HLOOKUP(X38,Feuil1!$C$1:$BL$10,10,FALSE) -> -974 | AQ38: DEB
AB39: =T39-HLOOKUP(X39,[1]Feuil1!$C$1:$BL$10,2,FALSE) ->  | AC39: =T39-HLOOKUP(X39,[1]Feuil1!$C$1:$BL$10,3,FALSE) ->  | AD39: =T39-HLOOKUP(X39,[1]Feuil1!$C$1:$BL$10,4,FALSE) ->  | AE39: =T39-HLOOKUP(X39,[1]Feuil1!$C$1:$BL$10,5,FALSE) ->  | AF39: =T39-HLOOKUP(X39,[1]Feuil1!$C$1:$BL$10,6,FALSE) ->  | AG39: =T39-HLOOKUP(X39,[1]Feuil1!$C$1:$BL$10,7,FALSE) ->  | AH39: =T39-HLOOKUP(X39,[1]Feuil1!$C$1:$BL$10,8,FALSE) ->  | AI39: =T39-HLOOKUP(X39,[1]Feuil1!$C$1:$BL$10,9,FALSE) ->  | AJ39: =T39-HLOOKUP(X39,[1]Feuil1!$C$1:$BL$10,10,FALSE) ->  | AQ39: =IF(AJ39>=0,$AJ$4,IF(AI39>=0,$AI$4,IF(AH39>=0,$AH$4,IF(AG39>=0,$AG$4,IF(AF39>=0,$AF$4,IF(AE39>=0,$AE$4,IF(AD39>=0,$AD$4,IF(AC39>=0,$AC$4,$AB$4)))))))) -> 
A40: H | B40: NORD | C40: NPC | D40: 1 | E40: 279998 | F40: RIQUIER | G40: Jérémy | H40: 2000 | I40: 49.32 | J40: CHCD COMINES | K40: F | L40: 55 | M40: 61 | N40: 64 | O40: =IF(H40="","",IF(MAXA(L40:N40)<=0,0,MAXA(L40:N40))) -> 64 | P40: 74 | Q40: -80 | R40: 80 | S40: =IF(H40="","",IF(MAXA(P40:R40)<=0,0,MAXA(P40:R40))) -> 80 | T40: =IF(H40="","",IF(OR(O40=0,S40=0),0,O40+S40)) -> 144 | U40: =T40-I40*2 -> 45.36 | V40: =IF(H40="","",AQ40) -> INTA + | W40: =IF(AJ40>=0,AJ40,IF(AI40>=0,AI40,IF(AH40>=0,AH40,IF(AG40>=0,AG40,IF(AF40>=0,AF40,IF(AE40>=0,AE40,IF(AD40>=0,AD40,IF(AC40>=0,AC40,AB40)))))))) -> 9 | X40: =IF(I40="","",IF(A40="H",IF(OR(H40="SEN",H40<1995),VLOOKUP(I40,Feuil1!$A$11:$G$29,6),IF(AND(H40>1994,H40<1998),VLOOKUP(I40,Feuil1!$A$11:$G$29,5),IF(AND(H40>1997,H40<2000),VLOOKUP(I40,Feuil1!$A$11:$G$29,4),IF(AND(H40>1999,H40<2002),VLOOKUP(I40,Feuil1!$A$11:$G$29,3),VLOOKUP(I40,Feuil1!$A$11:$G$29,2))))),IF(OR(H40="SEN",H40<1995),VLOOKUP(I40,Feuil1!$G$11:$L$25,6),IF(AND(H40>1994,H40<1998),VLOOKUP(I40,Feuil1!$G$11:$L$25,5),IF(AND(H40>1997,H40<2000),VLOOKUP(I40,Feuil1!$G$11:$L$25,4),IF(AND(H40>1999,H40<2002),VLOOKUP(I40,Feuil1!$G$11:$L$25,3),VLOOKUP(I40,Feuil1!$G$11:$L$25,2))))))) -> C1 50 | Y40: =IF(I40="","",IF(A40="H",10^(0.794358141*LOG(I40/174.393)^2)*T40,IF(A40="F",10^(0.89726074*LOG(I40/148.026)^2)*T40,""))) -> 249.6618233 | AB40: =T40-HLOOKUP(X40,Feuil1!$C$1:$BL$10,2,FALSE) -> 104 | AC40: =T40-HLOOKUP(X40,Feuil1!$C$1:$BL$10,3,FALSE) -> 89 | AD40: =T40-HLOOKUP(X40,Feuil1!$C$1:$BL$10,4,FALSE) -> 79 | AE40: =T40-HLOOKUP(X40,Feuil1!$C$1:$BL$10,5,FALSE) -> 64 | AF40: =T40-HLOOKUP(X40,Feuil1!$C$1:$BL$10,6,FALSE) -> 49 | AG40: =T40-HLOOKUP(X40,Feuil1!$C$1:$BL$10,7,FALSE) -> 34 | AH40: =T40-HLOOKUP(X40,Feuil1!$C$1:$BL$10,8,FALSE) -> 24 | AI40: =T40-HLOOKUP(X40,Feuil1!$C$1:$BL$10,9,FALSE) -> 9 | AJ40: =T40-HLOOKUP(X40,Feuil1!$C$1:$BL$10,10,FALSE) -> -856 | AQ40: =IF(AJ40>=0,$AJ$4,IF(AI40>=0,$AI$4,IF(AH40>=0,$AH$4,IF(AG40>=0,$AG$4,IF(AF40>=0,$AF$4,IF(AE40>=0,$AE$4,IF(AD40>=0,$AD$4,IF(AC40>=0,$AC$4,$AB$4)))))))) -> INTA +
A41: H | B41: NORD | C41: NPC | D41: 2 | E41: 335809 | F41: FOURNIER | G41: Louis | H41: 2000 | I41: 49.3 | J41: C.A.ROSENDAEL | K41: F | L41: 48 | M41: -52 | N41: -52 | O41: 48 | P41: 58 | Q41: 62 | R41: 65 | S41: 65 | T41: 113 | U41: 14.4 | V41: NAT + | W41: 3 | X41: =IF(I41="","",IF(A41="H",IF(OR(H41="SEN",H41<1995),VLOOKUP(I41,Feuil1!$A$11:$G$29,6),IF(AND(H41>1994,H41<1998),VLOOKUP(I41,Feuil1!$A$11:$G$29,5),IF(AND(H41>1997,H41<2000),VLOOKUP(I41,Feuil1!$A$11:$G$29,4),IF(AND(H41>1999,H41<2002),VLOOKUP(I41,Feuil1!$A$11:$G$29,3),VLOOKUP(I41,Feuil1!$A$11:$G$29,2))))),IF(OR(H41="SEN",H41<1995),VLOOKUP(I41,Feuil1!$G$11:$L$25,6),IF(AND(H41>1994,H41<1998),VLOOKUP(I41,Feuil1!$G$11:$L$25,5),IF(AND(H41>1997,H41<2000),VLOOKUP(I41,Feuil1!$G$11:$L$25,4),IF(AND(H41>1999,H41<2002),VLOOKUP(I41,Feuil1!$G$11:$L$25,3),VLOOKUP(I41,Feuil1!$G$11:$L$25,2))))))) -> C1 50 | Y41: 195.9844495 | AB41: =T41-HLOOKUP(X41,Feuil1!$C$1:$BL$10,2,FALSE) -> 73 | AC41: =T41-HLOOKUP(X41,Feuil1!$C$1:$BL$10,3,FALSE) -> 58 | AD41: =T41-HLOOKUP(X41,Feuil1!$C$1:$BL$10,4,FALSE) -> 48 | AE41: =T41-HLOOKUP(X41,Feuil1!$C$1:$BL$10,5,FALSE) -> 33 | AF41: =T41-HLOOKUP(X41,Feuil1!$C$1:$BL$10,6,FALSE) -> 18 | AG41: =T41-HLOOKUP(X41,Feuil1!$C$1:$BL$10,7,FALSE) -> 3 | AH41: =T41-HLOOKUP(X41,Feuil1!$C$1:$BL$10,8,FALSE) -> -7 | AI41: =T41-HLOOKUP(X41,Feuil1!$C$1:$BL$10,9,FALSE) -> -22 | AJ41: =T41-HLOOKUP(X41,Feuil1!$C$1:$BL$10,10,FALSE) -> -887 | AQ41: NAT +
A42: H | B42: DOM | C42: REU | D42: 3 | E42: 275413 | F42: ESSOB | G42: DAVID | H42: 2001 | I42: 45.7 | J42: SCHM SAINT PAUL | K42: F | L42: 43 | M42: 45 | N42: -48 | O42: 45 | P42: 60 | Q42: 63 | R42: 64 | S42: 64 | T42: 109 | U42: 17.6 | V42: FED + | W42: 14 | X42: =IF(I42="","",IF(A42="H",IF(OR(H42="SEN",H42<1995),VLOOKUP(I42,Feuil1!$A$11:$G$29,6),IF(AND(H42>1994,H42<1998),VLOOKUP(I42,Feuil1!$A$11:$G$29,5),IF(AND(H42>1997,H42<2000),VLOOKUP(I42,Feuil1!$A$11:$G$29,4),IF(AND(H42>1999,H42<2002),VLOOKUP(I42,Feuil1!$A$11:$G$29,3),VLOOKUP(I42,Feuil1!$A$11:$G$29,2))))),IF(OR(H42="SEN",H42<1995),VLOOKUP(I42,Feuil1!$G$11:$L$25,6),IF(AND(H42>1994,H42<1998),VLOOKUP(I42,Feuil1!$G$11:$L$25,5),IF(AND(H42>1997,H42<2000),VLOOKUP(I42,Feuil1!$G$11:$L$25,4),IF(AND(H42>1999,H42<2002),VLOOKUP(I42,Feuil1!$G$11:$L$25,3),VLOOKUP(I42,Feuil1!$G$11:$L$25,2))))))) -> C1 50 | Y42: 202.3656569 | AB42: =T42-HLOOKUP(X42,Feuil1!$C$1:$BL$10,2,FALSE) -> 69 | AC42: =T42-HLOOKUP(X42,Feuil1!$C$1:$BL$10,3,FALSE) -> 54 | AD42: =T42-HLOOKUP(X42,Feuil1!$C$1:$BL$10,4,FALSE) -> 44 | AE42: =T42-HLOOKUP(X42,Feuil1!$C$1:$BL$10,5,FALSE) -> 29 | AF42: =T42-HLOOKUP(X42,Feuil1!$C$1:$BL$10,6,FALSE) -> 14 | AG42: =T42-HLOOKUP(X42,Feuil1!$C$1:$BL$10,7,FALSE) -> -1 | AH42: =T42-HLOOKUP(X42,Feuil1!$C$1:$BL$10,8,FALSE) -> -11 | AI42: =T42-HLOOKUP(X42,Feuil1!$C$1:$BL$10,9,FALSE) -> -26 | AJ42: =T42-HLOOKUP(X42,Feuil1!$C$1:$BL$10,10,FALSE) -> -891 | AQ42: FED +
A43: H | B43: NE | C43: BOU | D43: 4 | E43: 326196 | F43: FORMYSIN | G43: Samuel | H43: 2000 | I43: 49.09 | J43: Tournus Haltérophilie | K43: F | L43: 43 | M43: 46 | N43: 48 | O43: 48 | P43: 53 | Q43: 56 | R43: 61 | S43: 61 | T43: 109 | U43: 10.82 | V43: FED + | W43: 14 | X43: =IF(I43="","",IF(A43="H",IF(OR(H43="SEN",H43<1995),VLOOKUP(I43,Feuil1!$A$11:$G$29,6),IF(AND(H43>1994,H43<1998),VLOOKUP(I43,Feuil1!$A$11:$G$29,5),IF(AND(H43>1997,H43<2000),VLOOKUP(I43,Feuil1!$A$11:$G$29,4),IF(AND(H43>1999,H43<2002),VLOOKUP(I43,Feuil1!$A$11:$G$29,3),VLOOKUP(I43,Feuil1!$A$11:$G$29,2))))),IF(OR(H43="SEN",H43<1995),VLOOKUP(I43,Feuil1!$G$11:$L$25,6),IF(AND(H43>1994,H43<1998),VLOOKUP(I43,Feuil1!$G$11:$L$25,5),IF(AND(H43>1997,H43<2000),VLOOKUP(I43,Feuil1!$G$11:$L$25,4),IF(AND(H43>1999,H43<2002),VLOOKUP(I43,Feuil1!$G$11:$L$25,3),VLOOKUP(I43,Feuil1!$G$11:$L$25,2))))))) -> C1 50 | Y43: 189.7529043 | AB43: =T43-HLOOKUP(X43,Feuil1!$C$1:$BL$10,2,FALSE) -> 69 | AC43: =T43-HLOOKUP(X43,Feuil1!$C$1:$BL$10,3,FALSE) -> 54 | AD43: =T43-HLOOKUP(X43,Feuil1!$C$1:$BL$10,4,FALSE) -> 44 | AE43: =T43-HLOOKUP(X43,Feuil1!$C$1:$BL$10,5,FALSE) -> 29 | AF43: =T43-HLOOKUP(X43,Feuil1!$C$1:$BL$10,6,FALSE) -> 14 | AG43: =T43-HLOOKUP(X43,Feuil1!$C$1:$BL$10,7,FALSE) -> -1 | AH43: =T43-HLOOKUP(X43,Feuil1!$C$1:$BL$10,8,FALSE) -> -11 | AI43: =T43-HLOOKUP(X43,Feuil1!$C$1:$BL$10,9,FALSE) -> -26 | AJ43: =T43-HLOOKUP(X43,Feuil1!$C$1:$BL$10,10,FALSE) -> -891 | AQ43: FED +
A44: H | B44: SEST | C44: CAZ | D44: 5 | E44: 376235 | F44: JOLY | G44: Lucas | H44: 2000 | I44: 49.36 | J44: E.S. VILLENEUVE LOUBET | K44: F | L44: 43 | M44: 46 | N44: -48 | O44: 46 | P44: 56 | Q44: 59 | R44: -64 | S44: 59 | T44: 105 | U44: 6.28 | V44: FED + | W44: 10 | X44: =IF(I44="","",IF(A44="H",IF(OR(H44="SEN",H44<1995),VLOOKUP(I44,Feuil1!$A$11:$G$29,6),IF(AND(H44>1994,H44<1998),VLOOKUP(I44,Feuil1!$A$11:$G$29,5),IF(AND(H44>1997,H44<2000),VLOOKUP(I44,Feuil1!$A$11:$G$29,4),IF(AND(H44>1999,H44<2002),VLOOKUP(I44,Feuil1!$A$11:$G$29,3),VLOOKUP(I44,Feuil1!$A$11:$G$29,2))))),IF(OR(H44="SEN",H44<1995),VLOOKUP(I44,Feuil1!$G$11:$L$25,6),IF(AND(H44>1994,H44<1998),VLOOKUP(I44,Feuil1!$G$11:$L$25,5),IF(AND(H44>1997,H44<2000),VLOOKUP(I44,Feuil1!$G$11:$L$25,4),IF(AND(H44>1999,H44<2002),VLOOKUP(I44,Feuil1!$G$11:$L$25,3),VLOOKUP(I44,Feuil1!$G$11:$L$25,2))))))) -> C1 50 | Y44: 181.9165583 | AB44: =T44-HLOOKUP(X44,Feuil1!$C$1:$BL$10,2,FALSE) -> 65 | AC44: =T44-HLOOKUP(X44,Feuil1!$C$1:$BL$10,3,FALSE) -> 50 | AD44: =T44-HLOOKUP(X44,Feuil1!$C$1:$BL$10,4,FALSE) -> 40 | AE44: =T44-HLOOKUP(X44,Feuil1!$C$1:$BL$10,5,FALSE) -> 25 | AF44: =T44-HLOOKUP(X44,Feuil1!$C$1:$BL$10,6,FALSE) -> 10 | AG44: =T44-HLOOKUP(X44,Feuil1!$C$1:$BL$10,7,FALSE) -> -5 | AH44: =T44-HLOOKUP(X44,Feuil1!$C$1:$BL$10,8,FALSE) -> -15 | AI44: =T44-HLOOKUP(X44,Feuil1!$C$1:$BL$10,9,FALSE) -> -30 | AJ44: =T44-HLOOKUP(X44,Feuil1!$C$1:$BL$10,10,FALSE) -> -895 | AQ44: FED +
A45: H | B45: SEST | C45: RAL | D45: 6 | E45: 373866 | F45: PETRIS | G45: Thomas | H45: 2000 | I45: 49.7 | J45: H.C. ST BALDOPH | K45: F | L45: 39 | M45: -43 | N45: 43 | O45: 43 | P45: 53 | Q45: 55 | R45: 59 | S45: 59 | T45: 102 | U45: 2.6 | V45: FED + | W45: 7 | X45: =IF(I45="","",IF(A45="H",IF(OR(H45="SEN",H45<1995),VLOOKUP(I45,Feuil1!$A$11:$G$29,6),IF(AND(H45>1994,H45<1998),VLOOKUP(I45,Feuil1!$A$11:$G$29,5),IF(AND(H45>1997,H45<2000),VLOOKUP(I45,Feuil1!$A$11:$G$29,4),IF(AND(H45>1999,H45<2002),VLOOKUP(I45,Feuil1!$A$11:$G$29,3),VLOOKUP(I45,Feuil1!$A$11:$G$29,2))))),IF(OR(H45="SEN",H45<1995),VLOOKUP(I45,Feuil1!$G$11:$L$25,6),IF(AND(H45>1994,H45<1998),VLOOKUP(I45,Feuil1!$G$11:$L$25,5),IF(AND(H45>1997,H45<2000),VLOOKUP(I45,Feuil1!$G$11:$L$25,4),IF(AND(H45>1999,H45<2002),VLOOKUP(I45,Feuil1!$G$11:$L$25,3),VLOOKUP(I45,Feuil1!$G$11:$L$25,2))))))) -> C1 50 | Y45: 175.6685109 | AB45: =T45-HLOOKUP(X45,Feuil1!$C$1:$BL$10,2,FALSE) -> 62 | AC45: =T45-HLOOKUP(X45,Feuil1!$C$1:$BL$10,3,FALSE) -> 47 | AD45: =T45-HLOOKUP(X45,Feuil1!$C$1:$BL$10,4,FALSE) -> 37 | AE45: =T45-HLOOKUP(X45,Feuil1!$C$1:$BL$10,5,FALSE) -> 22 | AF45: =T45-HLOOKUP(X45,Feuil1!$C$1:$BL$10,6,FALSE) -> 7 | AG45: =T45-HLOOKUP(X45,Feuil1!$C$1:$BL$10,7,FALSE) -> -8 | AH45: =T45-HLOOKUP(X45,Feuil1!$C$1:$BL$10,8,FALSE) -> -18 | AI45: =T45-HLOOKUP(X45,Feuil1!$C$1:$BL$10,9,FALSE) -> -33 | AJ45: =T45-HLOOKUP(X45,Feuil1!$C$1:$BL$10,10,FALSE) -> -898 | AQ45: FED +
A46: H | B46: NORD | C46: NPC | D46: 7 | E46: 351701 | F46: BOUGEARD | G46: Dylan | H46: 2001 | I46: 46.9 | J46: A.O.SALLAUMINES | K46: F | L46: 38 | M46: 41 | N46: 42 | O46: 42 | P46: 49 | Q46: 53 | R46: 55 | S46: 55 | T46: 97 | U46: 3.2 | V46: FED + | W46: 2 | X46: =IF(I46="","",IF(A46="H",IF(OR(H46="SEN",H46<1995),VLOOKUP(I46,Feuil1!$A$11:$G$29,6),IF(AND(H46>1994,H46<1998),VLOOKUP(I46,Feuil1!$A$11:$G$29,5),IF(AND(H46>1997,H46<2000),VLOOKUP(I46,Feuil1!$A$11:$G$29,4),IF(AND(H46>1999,H46<2002),VLOOKUP(I46,Feuil1!$A$11:$G$29,3),VLOOKUP(I46,Feuil1!$A$11:$G$29,2))))),IF(OR(H46="SEN",H46<1995),VLOOKUP(I46,Feuil1!$G$11:$L$25,6),IF(AND(H46>1994,H46<1998),VLOOKUP(I46,Feuil1!$G$11:$L$25,5),IF(AND(H46>1997,H46<2000),VLOOKUP(I46,Feuil1!$G$11:$L$25,4),IF(AND(H46>1999,H46<2002),VLOOKUP(I46,Feuil1!$G$11:$L$25,3),VLOOKUP(I46,Feuil1!$G$11:$L$25,2))))))) -> C1 50 | Y46: 175.8657886 | AB46: =T46-HLOOKUP(X46,Feuil1!$C$1:$BL$10,2,FALSE) -> 57 | AC46: =T46-HLOOKUP(X46,Feuil1!$C$1:$BL$10,3,FALSE) -> 42 | AD46: =T46-HLOOKUP(X46,Feuil1!$C$1:$BL$10,4,FALSE) -> 32 | AE46: =T46-HLOOKUP(X46,Feuil1!$C$1:$BL$10,5,FALSE) -> 17 | AF46: =T46-HLOOKUP(X46,Feuil1!$C$1:$BL$10,6,FALSE) -> 2 | AG46: =T46-HLOOKUP(X46,Feuil1!$C$1:$BL$10,7,FALSE) -> -13 | AH46: =T46-HLOOKUP(X46,Feuil1!$C$1:$BL$10,8,FALSE) -> -23 | AI46: =T46-HLOOKUP(X46,Feuil1!$C$1:$BL$10,9,FALSE) -> -38 | AJ46: =T46-HLOOKUP(X46,Feuil1!$C$1:$BL$10,10,FALSE) -> -903 | AQ46: FED +
A47: H | B47: NORD | C47: NPC | D47: 8 | E47: 359649 | F47: PARANTHOEN | G47: Kévin | H47: 2000 | I47: 48.08 | J47: C.A.ROSENDAEL | K47: F | L47: 37 | M47: 40 | N47: -42 | O47: 40 | P47: 51 | Q47: 55 | R47: 57 | S47: 57 | T47: 97 | U47: 0.84 | V47: FED + | W47: 2 | X47: =IF(I47="","",IF(A47="H",IF(OR(H47="SEN",H47<1995),VLOOKUP(I47,Feuil1!$A$11:$G$29,6),IF(AND(H47>1994,H47<1998),VLOOKUP(I47,Feuil1!$A$11:$G$29,5),IF(AND(H47>1997,H47<2000),VLOOKUP(I47,Feuil1!$A$11:$G$29,4),IF(AND(H47>1999,H47<2002),VLOOKUP(I47,Feuil1!$A$11:$G$29,3),VLOOKUP(I47,Feuil1!$A$11:$G$29,2))))),IF(OR(H47="SEN",H47<1995),VLOOKUP(I47,Feuil1!$G$11:$L$25,6),IF(AND(H47>1994,H47<1998),VLOOKUP(I47,Feuil1!$G$11:$L$25,5),IF(AND(H47>1997,H47<2000),VLOOKUP(I47,Feuil1!$G$11:$L$25,4),IF(AND(H47>1999,H47<2002),VLOOKUP(I47,Feuil1!$G$11:$L$25,3),VLOOKUP(I47,Feuil1!$G$11:$L$25,2))))))) -> C1 50 | Y47: 171.9868418 | AB47: =T47-HLOOKUP(X47,Feuil1!$C$1:$BL$10,2,FALSE) -> 57 | AC47: =T47-HLOOKUP(X47,Feuil1!$C$1:$BL$10,3,FALSE) -> 42 | AD47: =T47-HLOOKUP(X47,Feuil1!$C$1:$BL$10,4,FALSE) -> 32 | AE47: =T47-HLOOKUP(X47,Feuil1!$C$1:$BL$10,5,FALSE) -> 17 | AF47: =T47-HLOOKUP(X47,Feuil1!$C$1:$BL$10,6,FALSE) -> 2 | AG47: =T47-HLOOKUP(X47,Feuil1!$C$1:$BL$10,7,FALSE) -> -13 | AH47: =T47-HLOOKUP(X47,Feuil1!$C$1:$BL$10,8,FALSE) -> -23 | AI47: =T47-HLOOKUP(X47,Feuil1!$C$1:$BL$10,9,FALSE) -> -38 | AJ47: =T47-HLOOKUP(X47,Feuil1!$C$1:$BL$10,10,FALSE) -> -903 | AQ47: FED +
A48: H | B48: N | C48: IDF | D48: 9 | E48: 313237 | F48: TRAN-TRI | G48: HUGO | H48: 2000 | I48: 49.2 | J48: CHAVILLE | K48: F | L48: 35 | M48: 40 | N48: 42 | O48: 42 | P48: 40 | Q48: 45 | R48: 53 | S48: 53 | T48: 95 | U48: -3.4 | V48: FED + | W48: 0 | X48: =IF(I48="","",IF(A48="H",IF(OR(H48="SEN",H48<1995),VLOOKUP(I48,Feuil1!$A$11:$G$29,6),IF(AND(H48>1994,H48<1998),VLOOKUP(I48,Feuil1!$A$11:$G$29,5),IF(AND(H48>1997,H48<2000),VLOOKUP(I48,Feuil1!$A$11:$G$29,4),IF(AND(H48>1999,H48<2002),VLOOKUP(I48,Feuil1!$A$11:$G$29,3),VLOOKUP(I48,Feuil1!$A$11:$G$29,2))))),IF(OR(H48="SEN",H48<1995),VLOOKUP(I48,Feuil1!$G$11:$L$25,6),IF(AND(H48>1994,H48<1998),VLOOKUP(I48,Feuil1!$G$11:$L$25,5),IF(AND(H48>1997,H48<2000),VLOOKUP(I48,Feuil1!$G$11:$L$25,4),IF(AND(H48>1999,H48<2002),VLOOKUP(I48,Feuil1!$G$11:$L$25,3),VLOOKUP(I48,Feuil1!$G$11:$L$25,2))))))) -> C1 50 | Y48: 165.0578077 | AB48: =T48-HLOOKUP(X48,Feuil1!$C$1:$BL$10,2,FALSE) -> 55 | AC48: =T48-HLOOKUP(X48,Feuil1!$C$1:$BL$10,3,FALSE) -> 40 | AD48: =T48-HLOOKUP(X48,Feuil1!$C$1:$BL$10,4,FALSE) -> 30 | AE48: =T48-HLOOKUP(X48,Feuil1!$C$1:$BL$10,5,FALSE) -> 15 | AF48: =T48-HLOOKUP(X48,Feuil1!$C$1:$BL$10,6,FALSE) -> 0 | AG48: =T48-HLOOKUP(X48,Feuil1!$C$1:$BL$10,7,FALSE) -> -15 | AH48: =T48-HLOOKUP(X48,Feuil1!$C$1:$BL$10,8,FALSE) -> -25 | AI48: =T48-HLOOKUP(X48,Feuil1!$C$1:$BL$10,9,FALSE) -> -40 | AJ48: =T48-HLOOKUP(X48,Feuil1!$C$1:$BL$10,10,FALSE) -> -905 | AQ48: FED +
A49: H | B49: CO | C49: PDL | D49: 10 | E49: 263126 | F49: OBER | G49: arthur | H49: 2001 | I49: 49.8 | J49: ALSavenay | K49: F | L49: 38 | M49: 40 | N49: 42 | O49: 42 | P49: 49 | Q49: 51 | R49: 53 | S49: 53 | T49: 95 | U49: -4.6 | V49: FED + | W49: 0 | X49: =IF(I49="","",IF(A49="H",IF(OR(H49="SEN",H49<1995),VLOOKUP(I49,Feuil1!$A$11:$G$29,6),IF(AND(H49>1994,H49<1998),VLOOKUP(I49,Feuil1!$A$11:$G$29,5),IF(AND(H49>1997,H49<2000),VLOOKUP(I49,Feuil1!$A$11:$G$29,4),IF(AND(H49>1999,H49<2002),VLOOKUP(I49,Feuil1!$A$11:$G$29,3),VLOOKUP(I49,Feuil1!$A$11:$G$29,2))))),IF(OR(H49="SEN",H49<1995),VLOOKUP(I49,Feuil1!$G$11:$L$25,6),IF(AND(H49>1994,H49<1998),VLOOKUP(I49,Feuil1!$G$11:$L$25,5),IF(AND(H49>1997,H49<2000),VLOOKUP(I49,Feuil1!$G$11:$L$25,4),IF(AND(H49>1999,H49<2002),VLOOKUP(I49,Feuil1!$G$11:$L$25,3),VLOOKUP(I49,Feuil1!$G$11:$L$25,2))))))) -> C1 50 | Y49: 163.3284617 | AB49: =T49-HLOOKUP(X49,Feuil1!$C$1:$BL$10,2,FALSE) -> 55 | AC49: =T49-HLOOKUP(X49,Feuil1!$C$1:$BL$10,3,FALSE) -> 40 | AD49: =T49-HLOOKUP(X49,Feuil1!$C$1:$BL$10,4,FALSE) -> 30 | AE49: =T49-HLOOKUP(X49,Feuil1!$C$1:$BL$10,5,FALSE) -> 15 | AF49: =T49-HLOOKUP(X49,Feuil1!$C$1:$BL$10,6,FALSE) -> 0 | AG49: =T49-HLOOKUP(X49,Feuil1!$C$1:$BL$10,7,FALSE) -> -15 | AH49: =T49-HLOOKUP(X49,Feuil1!$C$1:$BL$10,8,FALSE) -> -25 | AI49: =T49-HLOOKUP(X49,Feuil1!$C$1:$BL$10,9,FALSE) -> -40 | AJ49: =T49-HLOOKUP(X49,Feuil1!$C$1:$BL$10,10,FALSE) -> -905 | AQ49: FED +
A50: H | B50: SEST | C50: RAL | D50: 11 | E50: 358683 | F50: BALME | G50: Nathan | H50: 2000 | I50: 50 | J50: Pierrelatte | K50: F | L50: 30 | M50: 35 | N50: 40 | O50: 40 | P50: 45 | Q50: -50 | R50: 50 | S50: 50 | T50: 90 | U50: -10 | V50: IRG + | W50: 10 | X50: =IF(I50="","",IF(A50="H",IF(OR(H50="SEN",H50<1995),VLOOKUP(I50,Feuil1!$A$11:$G$29,6),IF(AND(H50>1994,H50<1998),VLOOKUP(I50,Feuil1!$A$11:$G$29,5),IF(AND(H50>1997,H50<2000),VLOOKUP(I50,Feuil1!$A$11:$G$29,4),IF(AND(H50>1999,H50<2002),VLOOKUP(I50,Feuil1!$A$11:$G$29,3),VLOOKUP(I50,Feuil1!$A$11:$G$29,2))))),IF(OR(H50="SEN",H50<1995),VLOOKUP(I50,Feuil1!$G$11:$L$25,6),IF(AND(H50>1994,H50<1998),VLOOKUP(I50,Feuil1!$G$11:$L$25,5),IF(AND(H50>1997,H50<2000),VLOOKUP(I50,Feuil1!$G$11:$L$25,4),IF(AND(H50>1999,H50<2002),VLOOKUP(I50,Feuil1!$G$11:$L$25,3),VLOOKUP(I50,Feuil1!$G$11:$L$25,2))))))) -> C1 50 | Y50: 154.1977252 | AB50: =T50-HLOOKUP(X50,Feuil1!$C$1:$BL$10,2,FALSE) -> 50 | AC50: =T50-HLOOKUP(X50,Feuil1!$C$1:$BL$10,3,FALSE) -> 35 | AD50: =T50-HLOOKUP(X50,Feuil1!$C$1:$BL$10,4,FALSE) -> 25 | AE50: =T50-HLOOKUP(X50,Feuil1!$C$1:$BL$10,5,FALSE) -> 10 | AF50: =T50-HLOOKUP(X50,Feuil1!$C$1:$BL$10,6,FALSE) -> -5 | AG50: =T50-HLOOKUP(X50,Feuil1!$C$1:$BL$10,7,FALSE) -> -20 | AH50: =T50-HLOOKUP(X50,Feuil1!$C$1:$BL$10,8,FALSE) -> -30 | AI50: =T50-HLOOKUP(X50,Feuil1!$C$1:$BL$10,9,FALSE) -> -45 | AJ50: =T50-HLOOKUP(X50,Feuil1!$C$1:$BL$10,10,FALSE) -> -910 | AQ50: IRG +
A51: H | B51: NE | C51: ALS | D51: 12 | E51: 341767 | F51: MELAO | G51: ANTHONY | H51: 2001 | I51: 48.8 | J51: Dorlisheim FH | K51: F | L51: 34 | M51: 37 | N51: -39 | O51: 37 | P51: 45 | Q51: 47 | R51: 49 | S51: 49 | T51: 86 | U51: -11.6 | V51: IRG + | W51: 6 | X51: =IF(I51="","",IF(A51="H",IF(OR(H51="SEN",H51<1995),VLOOKUP(I51,Feuil1!$A$11:$G$29,6),IF(AND(H51>1994,H51<1998),VLOOKUP(I51,Feuil1!$A$11:$G$29,5),IF(AND(H51>1997,H51<2000),VLOOKUP(I51,Feuil1!$A$11:$G$29,4),IF(AND(H51>1999,H51<2002),VLOOKUP(I51,Feuil1!$A$11:$G$29,3),VLOOKUP(I51,Feuil1!$A$11:$G$29,2))))),IF(OR(H51="SEN",H51<1995),VLOOKUP(I51,Feuil1!$G$11:$L$25,6),IF(AND(H51>1994,H51<1998),VLOOKUP(I51,Feuil1!$G$11:$L$25,5),IF(AND(H51>1997,H51<2000),VLOOKUP(I51,Feuil1!$G$11:$L$25,4),IF(AND(H51>1999,H51<2002),VLOOKUP(I51,Feuil1!$G$11:$L$25,3),VLOOKUP(I51,Feuil1!$G$11:$L$25,2))))))) -> C1 50 | Y51: 150.4929972 | AB51: =T51-HLOOKUP(X51,Feuil1!$C$1:$BL$10,2,FALSE) -> 46 | AC51: =T51-HLOOKUP(X51,Feuil1!$C$1:$BL$10,3,FALSE) -> 31 | AD51: =T51-HLOOKUP(X51,Feuil1!$C$1:$BL$10,4,FALSE) -> 21 | AE51: =T51-HLOOKUP(X51,Feuil1!$C$1:$BL$10,5,FALSE) -> 6 | AF51: =T51-HLOOKUP(X51,Feuil1!$C$1:$BL$10,6,FALSE) -> -9 | AG51: =T51-HLOOKUP(X51,Feuil1!$C$1:$BL$10,7,FALSE) -> -24 | AH51: =T51-HLOOKUP(X51,Feuil1!$C$1:$BL$10,8,FALSE) -> -34 | AI51: =T51-HLOOKUP(X51,Feuil1!$C$1:$BL$10,9,FALSE) -> -49 | AJ51: =T51-HLOOKUP(X51,Feuil1!$C$1:$BL$10,10,FALSE) -> -914 | AQ51: IRG +
A52: H | B52: NORD | C52: PIC | D52: 13 | E52: 356996 | F52: DESSON | G52: Rémy | H52: 2000 | I52: 46.9 | J52: Saleux CHM | K52: F | L52: 32 | M52: 35 | N52: -38 | O52: 35 | P52: 45 | Q52: 50 | R52: -52 | S52: 50 | T52: 85 | U52: -8.8 | V52: IRG + | W52: 5 | X52: =IF(I52="","",IF(A52="H",IF(OR(H52="SEN",H52<1995),VLOOKUP(I52,Feuil1!$A$11:$G$29,6),IF(AND(H52>1994,H52<1998),VLOOKUP(I52,Feuil1!$A$11:$G$29,5),IF(AND(H52>1997,H52<2000),VLOOKUP(I52,Feuil1!$A$11:$G$29,4),IF(AND(H52>1999,H52<2002),VLOOKUP(I52,Feuil1!$A$11:$G$29,3),VLOOKUP(I52,Feuil1!$A$11:$G$29,2))))),IF(OR(H52="SEN",H52<1995),VLOOKUP(I52,Feuil1!$G$11:$L$25,6),IF(AND(H52>1994,H52<1998),VLOOKUP(I52,Feuil1!$G$11:$L$25,5),IF(AND(H52>1997,H52<2000),VLOOKUP(I52,Feuil1!$G$11:$L$25,4),IF(AND(H52>1999,H52<2002),VLOOKUP(I52,Feuil1!$G$11:$L$25,3),VLOOKUP(I52,Feuil1!$G$11:$L$25,2))))))) -> C1 50 | Y52: 154.1091962 | AB52: =T52-HLOOKUP(X52,Feuil1!$C$1:$BL$10,2,FALSE) -> 45 | AC52: =T52-HLOOKUP(X52,Feuil1!$C$1:$BL$10,3,FALSE) -> 30 | AD52: =T52-HLOOKUP(X52,Feuil1!$C$1:$BL$10,4,FALSE) -> 20 | AE52: =T52-HLOOKUP(X52,Feuil1!$C$1:$BL$10,5,FALSE) -> 5 | AF52: =T52-HLOOKUP(X52,Feuil1!$C$1:$BL$10,6,FALSE) -> -10 | AG52: =T52-HLOOKUP(X52,Feuil1!$C$1:$BL$10,7,FALSE) -> -25 | AH52: =T52-HLOOKUP(X52,Feuil1!$C$1:$BL$10,8,FALSE) -> -35 | AI52: =T52-HLOOKUP(X52,Feuil1!$C$1:$BL$10,9,FALSE) -> -50 | AJ52: =T52-HLOOKUP(X52,Feuil1!$C$1:$BL$10,10,FALSE) -> -915 | AQ52: IRG +
A53: H | B53: NE | C53: BOU | D53: 14 | E53: 345094 | F53: WITTMAN | G53: Maxime | H53: 2001 | I53: 50 | J53: ASO Mont de Rême | K53: F | L53: 32 | M53: 34 | N53: 36 | O53: 36 | P53: 42 | Q53: 44 | R53: 46 | S53: 46 | T53: 82 | U53: -18 | V53: IRG + | W53: 2 | X53: =IF(I53="","",IF(A53="H",IF(OR(H53="SEN",H53<1995),VLOOKUP(I53,Feuil1!$A$11:$G$29,6),IF(AND(H53>1994,H53<1998),VLOOKUP(I53,Feuil1!$A$11:$G$29,5),IF(AND(H53>1997,H53<2000),VLOOKUP(I53,Feuil1!$A$11:$G$29,4),IF(AND(H53>1999,H53<2002),VLOOKUP(I53,Feuil1!$A$11:$G$29,3),VLOOKUP(I53,Feuil1!$A$11:$G$29,2))))),IF(OR(H53="SEN",H53<1995),VLOOKUP(I53,Feuil1!$G$11:$L$25,6),IF(AND(H53>1994,H53<1998),VLOOKUP(I53,Feuil1!$G$11:$L$25,5),IF(AND(H53>1997,H53<2000),VLOOKUP(I53,Feuil1!$G$11:$L$25,4),IF(AND(H53>1999,H53<2002),VLOOKUP(I53,Feuil1!$G$11:$L$25,3),VLOOKUP(I53,Feuil1!$G$11:$L$25,2))))))) -> C1 50 | Y53: 140.4912608 | AB53: =T53-HLOOKUP(X53,Feuil1!$C$1:$BL$10,2,FALSE) -> 42 | AC53: =T53-HLOOKUP(X53,Feuil1!$C$1:$BL$10,3,FALSE) -> 27 | AD53: =T53-HLOOKUP(X53,Feuil1!$C$1:$BL$10,4,FALSE) -> 17 | AE53: =T53-HLOOKUP(X53,Feuil1!$C$1:$BL$10,5,FALSE) -> 2 | AF53: =T53-HLOOKUP(X53,Feuil1!$C$1:$BL$10,6,FALSE) -> -13 | AG53: =T53-HLOOKUP(X53,Feuil1!$C$1:$BL$10,7,FALSE) -> -28 | AH53: =T53-HLOOKUP(X53,Feuil1!$C$1:$BL$10,8,FALSE) -> -38 | AI53: =T53-HLOOKUP(X53,Feuil1!$C$1:$BL$10,9,FALSE) -> -53 | AJ53: =T53-HLOOKUP(X53,Feuil1!$C$1:$BL$10,10,FALSE) -> -918 | AQ53: IRG +
A54: H | B54: NE | C54: CHA | D54: 15 | E54: 376656 | F54: GUSTIN | G54: Eliséo | H54: 2001 | I54: 47.8 | J54: Reims HM | K54: F | L54: 30 | M54: 33 | N54: -36 | O54: 33 | P54: 40 | Q54: 43 | R54: 46 | S54: 46 | T54: 79 | U54: -16.6 | V54: REG + | W54: 14 | X54: =IF(I54="","",IF(A54="H",IF(OR(H54="SEN",H54<1995),VLOOKUP(I54,Feuil1!$A$11:$G$29,6),IF(AND(H54>1994,H54<1998),VLOOKUP(I54,Feuil1!$A$11:$G$29,5),IF(AND(H54>1997,H54<2000),VLOOKUP(I54,Feuil1!$A$11:$G$29,4),IF(AND(H54>1999,H54<2002),VLOOKUP(I54,Feuil1!$A$11:$G$29,3),VLOOKUP(I54,Feuil1!$A$11:$G$29,2))))),IF(OR(H54="SEN",H54<1995),VLOOKUP(I54,Feuil1!$G$11:$L$25,6),IF(AND(H54>1994,H54<1998),VLOOKUP(I54,Feuil1!$G$11:$L$25,5),IF(AND(H54>1997,H54<2000),VLOOKUP(I54,Feuil1!$G$11:$L$25,4),IF(AND(H54>1999,H54<2002),VLOOKUP(I54,Feuil1!$G$11:$L$25,3),VLOOKUP(I54,Feuil1!$G$11:$L$25,2))))))) -> C1 50 | Y54: 140.8025975 | AB54: =T54-HLOOKUP(X54,Feuil1!$C$1:$BL$10,2,FALSE) -> 39 | AC54: =T54-HLOOKUP(X54,Feuil1!$C$1:$BL$10,3,FALSE) -> 24 | AD54: =T54-HLOOKUP(X54,Feuil1!$C$1:$BL$10,4,FALSE) -> 14 | AE54: =T54-HLOOKUP(X54,Feuil1!$C$1:$BL$10,5,FALSE) -> -1 | AF54: =T54-HLOOKUP(X54,Feuil1!$C$1:$BL$10,6,FALSE) -> -16 | AG54: =T54-HLOOKUP(X54,Feuil1!$C$1:$BL$10,7,FALSE) -> -31 | AH54: =T54-HLOOKUP(X54,Feuil1!$C$1:$BL$10,8,FALSE) -> -41 | AI54: =T54-HLOOKUP(X54,Feuil1!$C$1:$BL$10,9,FALSE) -> -56 | AJ54: =T54-HLOOKUP(X54,Feuil1!$C$1:$BL$10,10,FALSE) -> -921 | AQ54: REG +
A55: H | B55: SO | C55: AQU | D55: 16 | E55: 364793 | F55: VERAC | G55: MATTEO | H55: 2001 | I55: 47.5 | J55: ST MEDARD | K55: F | L55: 28 | M55: 31 | N55: 33 | O55: 33 | P55: 35 | Q55: 40 | R55: 45 | S55: 45 | T55: 78 | U55: -17 | V55: REG + | W55: 13 | X55: =IF(I55="","",IF(A55="H",IF(OR(H55="SEN",H55<1995),VLOOKUP(I55,Feuil1!$A$11:$G$29,6),IF(AND(H55>1994,H55<1998),VLOOKUP(I55,Feuil1!$A$11:$G$29,5),IF(AND(H55>1997,H55<2000),VLOOKUP(I55,Feuil1!$A$11:$G$29,4),IF(AND(H55>1999,H55<2002),VLOOKUP(I55,Feuil1!$A$11:$G$29,3),VLOOKUP(I55,Feuil1!$A$11:$G$29,2))))),IF(OR(H55="SEN",H55<1995),VLOOKUP(I55,Feuil1!$G$11:$L$25,6),IF(AND(H55>1994,H55<1998),VLOOKUP(I55,Feuil1!$G$11:$L$25,5),IF(AND(H55>1997,H55<2000),VLOOKUP(I55,Feuil1!$G$11:$L$25,4),IF(AND(H55>1999,H55<2002),VLOOKUP(I55,Feuil1!$G$11:$L$25,3),VLOOKUP(I55,Feuil1!$G$11:$L$25,2))))))) -> C1 50 | Y55: 139.806025 | AB55: =T55-HLOOKUP(X55,Feuil1!$C$1:$BL$10,2,FALSE) -> 38 | AC55: =T55-HLOOKUP(X55,Feuil1!$C$1:$BL$10,3,FALSE) -> 23 | AD55: =T55-HLOOKUP(X55,Feuil1!$C$1:$BL$10,4,FALSE) -> 13 | AE55: =T55-HLOOKUP(X55,Feuil1!$C$1:$BL$10,5,FALSE) -> -2 | AF55: =T55-HLOOKUP(X55,Feuil1!$C$1:$BL$10,6,FALSE) -> -17 | AG55: =T55-HLOOKUP(X55,Feuil1!$C$1:$BL$10,7,FALSE) -> -32 | AH55: =T55-HLOOKUP(X55,Feuil1!$C$1:$BL$10,8,FALSE) -> -42 | AI55: =T55-HLOOKUP(X55,Feuil1!$C$1:$BL$10,9,FALSE) -> -57 | AJ55: =T55-HLOOKUP(X55,Feuil1!$C$1:$BL$10,10,FALSE) -> -922 | AQ55: REG +
A56: H | B56: CO | C56: CEN | D56: 17 | E56: 378404 | F56: DAUMAS | G56: Niels | H56: 2001 | I56: 45.4 | J56: AAJ Blois | K56: F | L56: -28 | M56: 28 | N56: 30 | O56: 30 | P56: 40 | Q56: 42 | R56: 44 | S56: 44 | T56: 74 | U56: -16.8 | V56: REG + | W56: 9 | X56: =IF(I56="","",IF(A56="H",IF(OR(H56="SEN",H56<1995),VLOOKUP(I56,Feuil1!$A$11:$G$29,6),IF(AND(H56>1994,H56<1998),VLOOKUP(I56,Feuil1!$A$11:$G$29,5),IF(AND(H56>1997,H56<2000),VLOOKUP(I56,Feuil1!$A$11:$G$29,4),IF(AND(H56>1999,H56<2002),VLOOKUP(I56,Feuil1!$A$11:$G$29,3),VLOOKUP(I56,Feuil1!$A$11:$G$29,2))))),IF(OR(H56="SEN",H56<1995),VLOOKUP(I56,Feuil1!$G$11:$L$25,6),IF(AND(H56>1994,H56<1998),VLOOKUP(I56,Feuil1!$G$11:$L$25,5),IF(AND(H56>1997,H56<2000),VLOOKUP(I56,Feuil1!$G$11:$L$25,4),IF(AND(H56>1999,H56<2002),VLOOKUP(I56,Feuil1!$G$11:$L$25,3),VLOOKUP(I56,Feuil1!$G$11:$L$25,2))))))) -> C1 50 | Y56: 138.2265739 | AB56: =T56-HLOOKUP(X56,Feuil1!$C$1:$BL$10,2,FALSE) -> 34 | AC56: =T56-HLOOKUP(X56,Feuil1!$C$1:$BL$10,3,FALSE) -> 19 | AD56: =T56-HLOOKUP(X56,Feuil1!$C$1:$BL$10,4,FALSE) -> 9 | AE56: =T56-HLOOKUP(X56,Feuil1!$C$1:$BL$10,5,FALSE) -> -6 | AF56: =T56-HLOOKUP(X56,Feuil1!$C$1:$BL$10,6,FALSE) -> -21 | AG56: =T56-HLOOKUP(X56,Feuil1!$C$1:$BL$10,7,FALSE) -> -36 | AH56: =T56-HLOOKUP(X56,Feuil1!$C$1:$BL$10,8,FALSE) -> -46 | AI56: =T56-HLOOKUP(X56,Feuil1!$C$1:$BL$10,9,FALSE) -> -61 | AJ56: =T56-HLOOKUP(X56,Feuil1!$C$1:$BL$10,10,FALSE) -> -926 | AQ56: REG +
A57: H | B57: N | C57: IDF | D57: 18 | E57: 390990 | F57: DURANTEL | G57: MATTHIS | H57: 2001 | I57: 47.1 | J57: CHAVILLE | K57: F | L57: 25 | M57: -30 | N57: 30 | O57: 30 | P57: 30 | Q57: 35 | R57: 40 | S57: 40 | T57: 70 | U57: -24.2 | V57: REG + | W57: 5 | X57: =IF(I57="","",IF(A57="H",IF(OR(H57="SEN",H57<1995),VLOOKUP(I57,Feuil1!$A$11:$G$29,6),IF(AND(H57>1994,H57<1998),VLOOKUP(I57,Feuil1!$A$11:$G$29,5),IF(AND(H57>1997,H57<2000),VLOOKUP(I57,Feuil1!$A$11:$G$29,4),IF(AND(H57>1999,H57<2002),VLOOKUP(I57,Feuil1!$A$11:$G$29,3),VLOOKUP(I57,Feuil1!$A$11:$G$29,2))))),IF(OR(H57="SEN",H57<1995),VLOOKUP(I57,Feuil1!$G$11:$L$25,6),IF(AND(H57>1994,H57<1998),VLOOKUP(I57,Feuil1!$G$11:$L$25,5),IF(AND(H57>1997,H57<2000),VLOOKUP(I57,Feuil1!$G$11:$L$25,4),IF(AND(H57>1999,H57<2002),VLOOKUP(I57,Feuil1!$G$11:$L$25,3),VLOOKUP(I57,Feuil1!$G$11:$L$25,2))))))) -> C1 50 | Y57: 126.4258227 | AB57: =T57-HLOOKUP(X57,Feuil1!$C$1:$BL$10,2,FALSE) -> 30 | AC57: =T57-HLOOKUP(X57,Feuil1!$C$1:$BL$10,3,FALSE) -> 15 | AD57: =T57-HLOOKUP(X57,Feuil1!$C$1:$BL$10,4,FALSE) -> 5 | AE57: =T57-HLOOKUP(X57,Feuil1!$C$1:$BL$10,5,FALSE) -> -10 | AF57: =T57-HLOOKUP(X57,Feuil1!$C$1:$BL$10,6,FALSE) -> -25 | AG57: =T57-HLOOKUP(X57,Feuil1!$C$1:$BL$10,7,FALSE) -> -40 | AH57: =T57-HLOOKUP(X57,Feuil1!$C$1:$BL$10,8,FALSE) -> -50 | AI57: =T57-HLOOKUP(X57,Feuil1!$C$1:$BL$10,9,FALSE) -> -65 | AJ57: =T57-HLOOKUP(X57,Feuil1!$C$1:$BL$10,10,FALSE) -> -930 | AQ57: REG +
A58: H | B58: N | C58: IDF | D58: 19 | E58: 360587 | F58: SANTOS FERREIRA | G58: ROMAIN | H58: 2000 | I58: 48.6 | J58: RUEIL | K58: F | L58: 28 | M58: 31 | N58: 33 | O58: 33 | P58: 34 | Q58: 37 | R58: -40 | S58: 37 | T58: 70 | U58: -27.2 | V58: REG + | W58: 5 | X58: =IF(I58="","",IF(A58="H",IF(OR(H58="SEN",H58<1995),VLOOKUP(I58,Feuil1!$A$11:$G$29,6),IF(AND(H58>1994,H58<1998),VLOOKUP(I58,Feuil1!$A$11:$G$29,5),IF(AND(H58>1997,H58<2000),VLOOKUP(I58,Feuil1!$A$11:$G$29,4),IF(AND(H58>1999,H58<2002),VLOOKUP(I58,Feuil1!$A$11:$G$29,3),VLOOKUP(I58,Feuil1!$A$11:$G$29,2))))),IF(OR(H58="SEN",H58<1995),VLOOKUP(I58,Feuil1!$G$11:$L$25,6),IF(AND(H58>1994,H58<1998),VLOOKUP(I58,Feuil1!$G$11:$L$25,5),IF(AND(H58>1997,H58<2000),VLOOKUP(I58,Feuil1!$G$11:$L$25,4),IF(AND(H58>1999,H58<2002),VLOOKUP(I58,Feuil1!$G$11:$L$25,3),VLOOKUP(I58,Feuil1!$G$11:$L$25,2))))))) -> C1 50 | Y58: 122.9378674 | AB58: =T58-HLOOKUP(X58,Feuil1!$C$1:$BL$10,2,FALSE) -> 30 | AC58: =T58-HLOOKUP(X58,Feuil1!$C$1:$BL$10,3,FALSE) -> 15 | AD58: =T58-HLOOKUP(X58,Feuil1!$C$1:$BL$10,4,FALSE) -> 5 | AE58: =T58-HLOOKUP(X58,Feuil1!$C$1:$BL$10,5,FALSE) -> -10 | AF58: =T58-HLOOKUP(X58,Feuil1!$C$1:$BL$10,6,FALSE) -> -25 | AG58: =T58-HLOOKUP(X58,Feuil1!$C$1:$BL$10,7,FALSE) -> -40 | AH58: =T58-HLOOKUP(X58,Feuil1!$C$1:$BL$10,8,FALSE) -> -50 | AI58: =T58-HLOOKUP(X58,Feuil1!$C$1:$BL$10,9,FALSE) -> -65 | AJ58: =T58-HLOOKUP(X58,Feuil1!$C$1:$BL$10,10,FALSE) -> -930 | AQ58: REG +
A59: H | B59: DOM | C59: GUA | D59: 20 | E59: 380895 | F59: HUCHIN | G59: Elliot | H59: 2001 | I59: 49.5 | J59: Body Club Domien | K59: F | L59: 25 | M59: 30 | N59: -32 | O59: 30 | P59: 35 | Q59: 40 | R59: -44 | S59: 40 | T59: 70 | U59: -29 | V59: REG + | W59: 5 | X59: =IF(I59="","",IF(A59="H",IF(OR(H59="SEN",H59<1995),VLOOKUP(I59,Feuil1!$A$11:$G$29,6),IF(AND(H59>1994,H59<1998),VLOOKUP(I59,Feuil1!$A$11:$G$29,5),IF(AND(H59>1997,H59<2000),VLOOKUP(I59,Feuil1!$A$11:$G$29,4),IF(AND(H59>1999,H59<2002),VLOOKUP(I59,Feuil1!$A$11:$G$29,3),VLOOKUP(I59,Feuil1!$A$11:$G$29,2))))),IF(OR(H59="SEN",H59<1995),VLOOKUP(I59,Feuil1!$G$11:$L$25,6),IF(AND(H59>1994,H59<1998),VLOOKUP(I59,Feuil1!$G$11:$L$25,5),IF(AND(H59>1997,H59<2000),VLOOKUP(I59,Feuil1!$G$11:$L$25,4),IF(AND(H59>1999,H59<2002),VLOOKUP(I59,Feuil1!$G$11:$L$25,3),VLOOKUP(I59,Feuil1!$G$11:$L$25,2))))))) -> C1 50 | Y59: 120.9792737 | AB59: =T59-HLOOKUP(X59,Feuil1!$C$1:$BL$10,2,FALSE) -> 30 | AC59: =T59-HLOOKUP(X59,Feuil1!$C$1:$BL$10,3,FALSE) -> 15 | AD59: =T59-HLOOKUP(X59,Feuil1!$C$1:$BL$10,4,FALSE) -> 5 | AE59: =T59-HLOOKUP(X59,Feuil1!$C$1:$BL$10,5,FALSE) -> -10 | AF59: =T59-HLOOKUP(X59,Feuil1!$C$1:$BL$10,6,FALSE) -> -25 | AG59: =T59-HLOOKUP(X59,Feuil1!$C$1:$BL$10,7,FALSE) -> -40 | AH59: =T59-HLOOKUP(X59,Feuil1!$C$1:$BL$10,8,FALSE) -> -50 | AI59: =T59-HLOOKUP(X59,Feuil1!$C$1:$BL$10,9,FALSE) -> -65 | AJ59: =T59-HLOOKUP(X59,Feuil1!$C$1:$BL$10,10,FALSE) -> -930 | AQ59: REG +
A60: H | B60: NORD | C60: NPC | D60: 21 | E60: 366025 | F60: KEHLI | G60: Taslim | H60: 2000 | I60: 49.7 | J60: A.O.SALLAUMINES | K60: F | L60: 25 | M60: 28 | N60: 30 | O60: 30 | P60: 35 | Q60: 38 | R60: 40 | S60: 40 | T60: 70 | U60: -29.4 | V60: REG + | W60: 5 | X60: =IF(I60="","",IF(A60="H",IF(OR(H60="SEN",H60<1995),VLOOKUP(I60,Feuil1!$A$11:$G$29,6),IF(AND(H60>1994,H60<1998),VLOOKUP(I60,Feuil1!$A$11:$G$29,5),IF(AND(H60>1997,H60<2000),VLOOKUP(I60,Feuil1!$A$11:$G$29,4),IF(AND(H60>1999,H60<2002),VLOOKUP(I60,Feuil1!$A$11:$G$29,3),VLOOKUP(I60,Feuil1!$A$11:$G$29,2))))),IF(OR(H60="SEN",H60<1995),VLOOKUP(I60,Feuil1!$G$11:$L$25,6),IF(AND(H60>1994,H60<1998),VLOOKUP(I60,Feuil1!$G$11:$L$25,5),IF(AND(H60>1997,H60<2000),VLOOKUP(I60,Feuil1!$G$11:$L$25,4),IF(AND(H60>1999,H60<2002),VLOOKUP(I60,Feuil1!$G$11:$L$25,3),VLOOKUP(I60,Feuil1!$G$11:$L$25,2))))))) -> C1 50 | Y60: 120.5568212 | AB60: =T60-HLOOKUP(X60,Feuil1!$C$1:$BL$10,2,FALSE) -> 30 | AC60: =T60-HLOOKUP(X60,Feuil1!$C$1:$BL$10,3,FALSE) -> 15 | AD60: =T60-HLOOKUP(X60,Feuil1!$C$1:$BL$10,4,FALSE) -> 5 | AE60: =T60-HLOOKUP(X60,Feuil1!$C$1:$BL$10,5,FALSE) -> -10 | AF60: =T60-HLOOKUP(X60,Feuil1!$C$1:$BL$10,6,FALSE) -> -25 | AG60: =T60-HLOOKUP(X60,Feuil1!$C$1:$BL$10,7,FALSE) -> -40 | AH60: =T60-HLOOKUP(X60,Feuil1!$C$1:$BL$10,8,FALSE) -> -50 | AI60: =T60-HLOOKUP(X60,Feuil1!$C$1:$BL$10,9,FALSE) -> -65 | AJ60: =T60-HLOOKUP(X60,Feuil1!$C$1:$BL$10,10,FALSE) -> -930 | AQ60: REG +
A61: H | B61: NE | C61: ALS | D61: 22 | E61: 380685 | F61: CRIQUI | G61: MATTHIAS | H61: 2001 | I61: 49.9 | J61: Dorlisheim FH | K61: F | L61: 28 | M61: 31 | N61: -35 | O61: 31 | P61: 31 | Q61: 34 | R61: 36 | S61: 36 | T61: 67 | U61: -32.8 | V61: REG + | W61: 2 | X61: =IF(I61="","",IF(A61="H",IF(OR(H61="SEN",H61<1995),VLOOKUP(I61,Feuil1!$A$11:$G$29,6),IF(AND(H61>1994,H61<1998),VLOOKUP(I61,Feuil1!$A$11:$G$29,5),IF(AND(H61>1997,H61<2000),VLOOKUP(I61,Feuil1!$A$11:$G$29,4),IF(AND(H61>1999,H61<2002),VLOOKUP(I61,Feuil1!$A$11:$G$29,3),VLOOKUP(I61,Feuil1!$A$11:$G$29,2))))),IF(OR(H61="SEN",H61<1995),VLOOKUP(I61,Feuil1!$G$11:$L$25,6),IF(AND(H61>1994,H61<1998),VLOOKUP(I61,Feuil1!$G$11:$L$25,5),IF(AND(H61>1997,H61<2000),VLOOKUP(I61,Feuil1!$G$11:$L$25,4),IF(AND(H61>1999,H61<2002),VLOOKUP(I61,Feuil1!$G$11:$L$25,3),VLOOKUP(I61,Feuil1!$G$11:$L$25,2))))))) -> C1 50 | Y61: 114.9900625 | AB61: =T61-HLOOKUP(X61,Feuil1!$C$1:$BL$10,2,FALSE) -> 27 | AC61: =T61-HLOOKUP(X61,Feuil1!$C$1:$BL$10,3,FALSE) -> 12 | AD61: =T61-HLOOKUP(X61,Feuil1!$C$1:$BL$10,4,FALSE) -> 2 | AE61: =T61-HLOOKUP(X61,Feuil1!$C$1:$BL$10,5,FALSE) -> -13 | AF61: =T61-HLOOKUP(X61,Feuil1!$C$1:$BL$10,6,FALSE) -> -28 | AG61: =T61-HLOOKUP(X61,Feuil1!$C$1:$BL$10,7,FALSE) -> -43 | AH61: =T61-HLOOKUP(X61,Feuil1!$C$1:$BL$10,8,FALSE) -> -53 | AI61: =T61-HLOOKUP(X61,Feuil1!$C$1:$BL$10,9,FALSE) -> -68 | AJ61: =T61-HLOOKUP(X61,Feuil1!$C$1:$BL$10,10,FALSE) -> -933 | AQ61: REG +
A62: H | B62: SO | C62: AQU | D62: 23 | E62: 361091 | F62: VALLES | G62: QUENTIN | H62: 2001 | I62: 47 | J62: ST MEDARD | K62: F | L62: 20 | M62: 23 | N62: 26 | O62: 26 | P62: 27 | Q62: 30 | R62: 34 | S62: 34 | T62: 60 | U62: -34 | V62: DEP + | W62: 5 | X62: =IF(I62="","",IF(A62="H",IF(OR(H62="SEN",H62<1995),VLOOKUP(I62,Feuil1!$A$11:$G$29,6),IF(AND(H62>1994,H62<1998),VLOOKUP(I62,Feuil1!$A$11:$G$29,5),IF(AND(H62>1997,H62<2000),VLOOKUP(I62,Feuil1!$A$11:$G$29,4),IF(AND(H62>1999,H62<2002),VLOOKUP(I62,Feuil1!$A$11:$G$29,3),VLOOKUP(I62,Feuil1!$A$11:$G$29,2))))),IF(OR(H62="SEN",H62<1995),VLOOKUP(I62,Feuil1!$G$11:$L$25,6),IF(AND(H62>1994,H62<1998),VLOOKUP(I62,Feuil1!$G$11:$L$25,5),IF(AND(H62>1997,H62<2000),VLOOKUP(I62,Feuil1!$G$11:$L$25,4),IF(AND(H62>1999,H62<2002),VLOOKUP(I62,Feuil1!$G$11:$L$25,3),VLOOKUP(I62,Feuil1!$G$11:$L$25,2))))))) -> C1 50 | Y62: 108.5733834 | AB62: =T62-HLOOKUP(X62,Feuil1!$C$1:$BL$10,2,FALSE) -> 20 | AC62: =T62-HLOOKUP(X62,Feuil1!$C$1:$BL$10,3,FALSE) -> 5 | AD62: =T62-HLOOKUP(X62,Feuil1!$C$1:$BL$10,4,FALSE) -> -5 | AE62: =T62-HLOOKUP(X62,Feuil1!$C$1:$BL$10,5,FALSE) -> -20 | AF62: =T62-HLOOKUP(X62,Feuil1!$C$1:$BL$10,6,FALSE) -> -35 | AG62: =T62-HLOOKUP(X62,Feuil1!$C$1:$BL$10,7,FALSE) -> -50 | AH62: =T62-HLOOKUP(X62,Feuil1!$C$1:$BL$10,8,FALSE) -> -60 | AI62: =T62-HLOOKUP(X62,Feuil1!$C$1:$BL$10,9,FALSE) -> -75 | AJ62: =T62-HLOOKUP(X62,Feuil1!$C$1:$BL$10,10,FALSE) -> -940 | AQ62: DEP +
A63: H | B63: SEST | C63: PRO | D63: 24 | E63: 326189 | F63: POUBLAN | G63: Quentin | H63: 2000 | I63: 46.5 | J63: EEAR MONTEUX | K63: F | L63: 17 | M63: 20 | N63: 22 | O63: 22 | P63: 30 | Q63: 33 | R63: -35 | S63: 33 | T63: 55 | U63: -38 | V63: DEP + | W63: 0 | X63: =IF(I63="","",IF(A63="H",IF(OR(H63="SEN",H63<1995),VLOOKUP(I63,Feuil1!$A$11:$G$29,6),IF(AND(H63>1994,H63<1998),VLOOKUP(I63,Feuil1!$A$11:$G$29,5),IF(AND(H63>1997,H63<2000),VLOOKUP(I63,Feuil1!$A$11:$G$29,4),IF(AND(H63>1999,H63<2002),VLOOKUP(I63,Feuil1!$A$11:$G$29,3),VLOOKUP(I63,Feuil1!$A$11:$G$29,2))))),IF(OR(H63="SEN",H63<1995),VLOOKUP(I63,Feuil1!$G$11:$L$25,6),IF(AND(H63>1994,H63<1998),VLOOKUP(I63,Feuil1!$G$11:$L$25,5),IF(AND(H63>1997,H63<2000),VLOOKUP(I63,Feuil1!$G$11:$L$25,4),IF(AND(H63>1999,H63<2002),VLOOKUP(I63,Feuil1!$G$11:$L$25,3),VLOOKUP(I63,Feuil1!$G$11:$L$25,2))))))) -> C1 50 | Y63: 100.4972159 | AB63: =T63-HLOOKUP(X63,Feuil1!$C$1:$BL$10,2,FALSE) -> 15 | AC63: =T63-HLOOKUP(X63,Feuil1!$C$1:$BL$10,3,FALSE) -> 0 | AD63: =T63-HLOOKUP(X63,Feuil1!$C$1:$BL$10,4,FALSE) -> -10 | AE63: =T63-HLOOKUP(X63,Feuil1!$C$1:$BL$10,5,FALSE) -> -25 | AF63: =T63-HLOOKUP(X63,Feuil1!$C$1:$BL$10,6,FALSE) -> -40 | AG63: =T63-HLOOKUP(X63,Feuil1!$C$1:$BL$10,7,FALSE) -> -55 | AH63: =T63-HLOOKUP(X63,Feuil1!$C$1:$BL$10,8,FALSE) -> -65 | AI63: =T63-HLOOKUP(X63,Feuil1!$C$1:$BL$10,9,FALSE) -> -80 | AJ63: =T63-HLOOKUP(X63,Feuil1!$C$1:$BL$10,10,FALSE) -> -945 | AQ63: DEP +
A64: H | B64: NE | C64: ALS | D64: 25 | E64: 384535 | F64: FABRIANO | G64: ROMAIN | H64: 2001 | I64: 48.9 | J64: SR Obernai HM | K64: F | L64: 20 | M64: 23 | N64: -25 | O64: 23 | P64: 25 | Q64: 28 | R64: 32 | S64: 32 | T64: 55 | U64: -42.8 | V64: DEP + | W64: 0 | X64: =IF(I64="","",IF(A64="H",IF(OR(H64="SEN",H64<1995),VLOOKUP(I64,Feuil1!$A$11:$G$29,6),IF(AND(H64>1994,H64<1998),VLOOKUP(I64,Feuil1!$A$11:$G$29,5),IF(AND(H64>1997,H64<2000),VLOOKUP(I64,Feuil1!$A$11:$G$29,4),IF(AND(H64>1999,H64<2002),VLOOKUP(I64,Feuil1!$A$11:$G$29,3),VLOOKUP(I64,Feuil1!$A$11:$G$29,2))))),IF(OR(H64="SEN",H64<1995),VLOOKUP(I64,Feuil1!$G$11:$L$25,6),IF(AND(H64>1994,H64<1998),VLOOKUP(I64,Feuil1!$G$11:$L$25,5),IF(AND(H64>1997,H64<2000),VLOOKUP(I64,Feuil1!$G$11:$L$25,4),IF(AND(H64>1999,H64<2002),VLOOKUP(I64,Feuil1!$G$11:$L$25,3),VLOOKUP(I64,Feuil1!$G$11:$L$25,2))))))) -> C1 50 | Y64: 96.07268558 | AB64: =T64-HLOOKUP(X64,Feuil1!$C$1:$BL$10,2,FALSE) -> 15 | AC64: =T64-HLOOKUP(X64,Feuil1!$C$1:$BL$10,3,FALSE) -> 0 | AD64: =T64-HLOOKUP(X64,Feuil1!$C$1:$BL$10,4,FALSE) -> -10 | AE64: =T64-HLOOKUP(X64,Feuil1!$C$1:$BL$10,5,FALSE) -> -25 | AF64: =T64-HLOOKUP(X64,Feuil1!$C$1:$BL$10,6,FALSE) -> -40 | AG64: =T64-HLOOKUP(X64,Feuil1!$C$1:$BL$10,7,FALSE) -> -55 | AH64: =T64-HLOOKUP(X64,Feuil1!$C$1:$BL$10,8,FALSE) -> -65 | AI64: =T64-HLOOKUP(X64,Feuil1!$C$1:$BL$10,9,FALSE) -> -80 | AJ64: =T64-HLOOKUP(X64,Feuil1!$C$1:$BL$10,10,FALSE) -> -945 | AQ64: DEP +
A65: H | B65: NORD | C65: NPC | D65: 26 | E65: 338422 | F65: DRIEUX | G65: Rémi | H65: 2001 | I65: 48.2 | J65: C.A.ROSENDAEL | K65: F | L65: 21 | M65: -23 | N65: -23 | O65: 21 | P65: 30 | Q65: 32 | R65: -34 | S65: 32 | T65: 53 | U65: -43.4 | V65: DEB | W65: 13 | X65: =IF(I65="","",IF(A65="H",IF(OR(H65="SEN",H65<1995),VLOOKUP(I65,Feuil1!$A$11:$G$29,6),IF(AND(H65>1994,H65<1998),VLOOKUP(I65,Feuil1!$A$11:$G$29,5),IF(AND(H65>1997,H65<2000),VLOOKUP(I65,Feuil1!$A$11:$G$29,4),IF(AND(H65>1999,H65<2002),VLOOKUP(I65,Feuil1!$A$11:$G$29,3),VLOOKUP(I65,Feuil1!$A$11:$G$29,2))))),IF(OR(H65="SEN",H65<1995),VLOOKUP(I65,Feuil1!$G$11:$L$25,6),IF(AND(H65>1994,H65<1998),VLOOKUP(I65,Feuil1!$G$11:$L$25,5),IF(AND(H65>1997,H65<2000),VLOOKUP(I65,Feuil1!$G$11:$L$25,4),IF(AND(H65>1999,H65<2002),VLOOKUP(I65,Feuil1!$G$11:$L$25,3),VLOOKUP(I65,Feuil1!$G$11:$L$25,2))))))) -> C1 50 | Y65: 93.76438003 | AB65: =T65-HLOOKUP(X65,Feuil1!$C$1:$BL$10,2,FALSE) -> 13 | AC65: =T65-HLOOKUP(X65,Feuil1!$C$1:$BL$10,3,FALSE) -> -2 | AD65: =T65-HLOOKUP(X65,Feuil1!$C$1:$BL$10,4,FALSE) -> -12 | AE65: =T65-HLOOKUP(X65,Feuil1!$C$1:$BL$10,5,FALSE) -> -27 | AF65: =T65-HLOOKUP(X65,Feuil1!$C$1:$BL$10,6,FALSE) -> -42 | AG65: =T65-HLOOKUP(X65,Feuil1!$C$1:$BL$10,7,FALSE) -> -57 | AH65: =T65-HLOOKUP(X65,Feuil1!$C$1:$BL$10,8,FALSE) -> -67 | AI65: =T65-HLOOKUP(X65,Feuil1!$C$1:$BL$10,9,FALSE) -> -82 | AJ65: =T65-HLOOKUP(X65,Feuil1!$C$1:$BL$10,10,FALSE) -> -947 | AQ65: DEB
A66: H | B66: NE | C66: ALS | D66: 27 | E66: 381292 | F66: BOEHUER | G66: JEAN | H66: 2001 | I66: 49.2 | J66: SR Obernai HM | K66: F | L66: 17 | M66: 20 | N66: 23 | O66: 23 | P66: 25 | Q66: 28 | R66: -31 | S66: 28 | T66: 51 | U66: -47.4 | V66: DEB | W66: 11 | X66: =IF(I66="","",IF(A66="H",IF(OR(H66="SEN",H66<1995),VLOOKUP(I66,Feuil1!$A$11:$G$29,6),IF(AND(H66>1994,H66<1998),VLOOKUP(I66,Feuil1!$A$11:$G$29,5),IF(AND(H66>1997,H66<2000),VLOOKUP(I66,Feuil1!$A$11:$G$29,4),IF(AND(H66>1999,H66<2002),VLOOKUP(I66,Feuil1!$A$11:$G$29,3),VLOOKUP(I66,Feuil1!$A$11:$G$29,2))))),IF(OR(H66="SEN",H66<1995),VLOOKUP(I66,Feuil1!$G$11:$L$25,6),IF(AND(H66>1994,H66<1998),VLOOKUP(I66,Feuil1!$G$11:$L$25,5),IF(AND(H66>1997,H66<2000),VLOOKUP(I66,Feuil1!$G$11:$L$25,4),IF(AND(H66>1999,H66<2002),VLOOKUP(I66,Feuil1!$G$11:$L$25,3),VLOOKUP(I66,Feuil1!$G$11:$L$25,2))))))) -> C1 50 | Y66: 88.60998099 | AB66: =T66-HLOOKUP(X66,Feuil1!$C$1:$BL$10,2,FALSE) -> 11 | AC66: =T66-HLOOKUP(X66,Feuil1!$C$1:$BL$10,3,FALSE) -> -4 | AD66: =T66-HLOOKUP(X66,Feuil1!$C$1:$BL$10,4,FALSE) -> -14 | AE66: =T66-HLOOKUP(X66,Feuil1!$C$1:$BL$10,5,FALSE) -> -29 | AF66: =T66-HLOOKUP(X66,Feuil1!$C$1:$BL$10,6,FALSE) -> -44 | AG66: =T66-HLOOKUP(X66,Feuil1!$C$1:$BL$10,7,FALSE) -> -59 | AH66: =T66-HLOOKUP(X66,Feuil1!$C$1:$BL$10,8,FALSE) -> -69 | AI66: =T66-HLOOKUP(X66,Feuil1!$C$1:$BL$10,9,FALSE) -> -84 | AJ66: =T66-HLOOKUP(X66,Feuil1!$C$1:$BL$10,10,FALSE) -> -949 | AQ66: DEB
A67: H | B67: SEST | C67: PRO | D67: 28 | E67: 390196 | F67: ANDRE DEWAAL | G67: MARC | H67: 2001 | I67: 45.9 | J67: ISTRES SPORTS | L67: 15 | M67: 18 | N67: 21 | O67: 21 | P67: 22 | Q67: 25 | R67: 28 | S67: 28 | T67: 49 | U67: -42.8 | V67: DEB | W67: 9 | X67: =IF(I67="","",IF(A67="H",IF(OR(H67="SEN",H67<1995),VLOOKUP(I67,Feuil1!$A$11:$G$29,6),IF(AND(H67>1994,H67<1998),VLOOKUP(I67,Feuil1!$A$11:$G$29,5),IF(AND(H67>1997,H67<2000),VLOOKUP(I67,Feuil1!$A$11:$G$29,4),IF(AND(H67>1999,H67<2002),VLOOKUP(I67,Feuil1!$A$11:$G$29,3),VLOOKUP(I67,Feuil1!$A$11:$G$29,2))))),IF(OR(H67="SEN",H67<1995),VLOOKUP(I67,Feuil1!$G$11:$L$25,6),IF(AND(H67>1994,H67<1998),VLOOKUP(I67,Feuil1!$G$11:$L$25,5),IF(AND(H67>1997,H67<2000),VLOOKUP(I67,Feuil1!$G$11:$L$25,4),IF(AND(H67>1999,H67<2002),VLOOKUP(I67,Feuil1!$G$11:$L$25,3),VLOOKUP(I67,Feuil1!$G$11:$L$25,2))))))) -> C1 50 | Y67: 90.60598037 | AB67: =T67-HLOOKUP(X67,Feuil1!$C$1:$BL$10,2,FALSE) -> 9 | AC67: =T67-HLOOKUP(X67,Feuil1!$C$1:$BL$10,3,FALSE) -> -6 | AD67: =T67-HLOOKUP(X67,Feuil1!$C$1:$BL$10,4,FALSE) -> -16 | AE67: =T67-HLOOKUP(X67,Feuil1!$C$1:$BL$10,5,FALSE) -> -31 | AF67: =T67-HLOOKUP(X67,Feuil1!$C$1:$BL$10,6,FALSE) -> -46 | AG67: =T67-HLOOKUP(X67,Feuil1!$C$1:$BL$10,7,FALSE) -> -61 | AH67: =T67-HLOOKUP(X67,Feuil1!$C$1:$BL$10,8,FALSE) -> -71 | AI67: =T67-HLOOKUP(X67,Feuil1!$C$1:$BL$10,9,FALSE) -> -86 | AJ67: =T67-HLOOKUP(X67,Feuil1!$C$1:$BL$10,10,FALSE) -> -951 | AQ67: DEB
A68: H | B68: NORD | C68: PIC | D68: 29 | E68: 378363 | F68: DEGOUY | G68: Maxandre | H68: 2001 | I68: 46.3 | J68: Villers-Bretonneux KC | K68: F | L68: 20 | M68: -23 | N68: -23 | O68: 20 | P68: 25 | Q68: 28 | R68: -31 | S68: 28 | T68: 48 | U68: -44.6 | V68: DEB | W68: 8 | X68: =IF(I68="","",IF(A68="H",IF(OR(H68="SEN",H68<1995),VLOOKUP(I68,Feuil1!$A$11:$G$29,6),IF(AND(H68>1994,H68<1998),VLOOKUP(I68,Feuil1!$A$11:$G$29,5),IF(AND(H68>1997,H68<2000),VLOOKUP(I68,Feuil1!$A$11:$G$29,4),IF(AND(H68>1999,H68<2002),VLOOKUP(I68,Feuil1!$A$11:$G$29,3),VLOOKUP(I68,Feuil1!$A$11:$G$29,2))))),IF(OR(H68="SEN",H68<1995),VLOOKUP(I68,Feuil1!$G$11:$L$25,6),IF(AND(H68>1994,H68<1998),VLOOKUP(I68,Feuil1!$G$11:$L$25,5),IF(AND(H68>1997,H68<2000),VLOOKUP(I68,Feuil1!$G$11:$L$25,4),IF(AND(H68>1999,H68<2002),VLOOKUP(I68,Feuil1!$G$11:$L$25,3),VLOOKUP(I68,Feuil1!$G$11:$L$25,2))))))) -> C1 50 | Y68: 88.05269923 | AB68: =T68-HLOOKUP(X68,Feuil1!$C$1:$BL$10,2,FALSE) -> 8 | AC68: =T68-HLOOKUP(X68,Feuil1!$C$1:$BL$10,3,FALSE) -> -7 | AD68: =T68-HLOOKUP(X68,Feuil1!$C$1:$BL$10,4,FALSE) -> -17 | AE68: =T68-HLOOKUP(X68,Feuil1!$C$1:$BL$10,5,FALSE) -> -32 | AF68: =T68-HLOOKUP(X68,Feuil1!$C$1:$BL$10,6,FALSE) -> -47 | AG68: =T68-HLOOKUP(X68,Feuil1!$C$1:$BL$10,7,FALSE) -> -62 | AH68: =T68-HLOOKUP(X68,Feuil1!$C$1:$BL$10,8,FALSE) -> -72 | AI68: =T68-HLOOKUP(X68,Feuil1!$C$1:$BL$10,9,FALSE) -> -87 | AJ68: =T68-HLOOKUP(X68,Feuil1!$C$1:$BL$10,10,FALSE) -> -952 | AQ68: DEB
A69: H | B69: NORD | C69: NPC | D69: 30 | E69: 383862 | F69: COUPIGNY | G69: Michel | H69: 2001 | I69: 48.9 | J69: A.O.SALLAUMINES | K69: F | L69: 19 | M69: -21 | N69: 21 | O69: 21 | P69: 22 | Q69: 24 | R69: 26 | S69: 26 | T69: 47 | U69: -50.8 | V69: DEB | W69: 7 | X69: =IF(I69="","",IF(A69="H",IF(OR(H69="SEN",H69<1995),VLOOKUP(I69,Feuil1!$A$11:$G$29,6),IF(AND(H69>1994,H69<1998),VLOOKUP(I69,Feuil1!$A$11:$G$29,5),IF(AND(H69>1997,H69<2000),VLOOKUP(I69,Feuil1!$A$11:$G$29,4),IF(AND(H69>1999,H69<2002),VLOOKUP(I69,Feuil1!$A$11:$G$29,3),VLOOKUP(I69,Feuil1!$A$11:$G$29,2))))),IF(OR(H69="SEN",H69<1995),VLOOKUP(I69,Feuil1!$G$11:$L$25,6),IF(AND(H69>1994,H69<1998),VLOOKUP(I69,Feuil1!$G$11:$L$25,5),IF(AND(H69>1997,H69<2000),VLOOKUP(I69,Feuil1!$G$11:$L$25,4),IF(AND(H69>1999,H69<2002),VLOOKUP(I69,Feuil1!$G$11:$L$25,3),VLOOKUP(I69,Feuil1!$G$11:$L$25,2))))))) -> C1 50 | Y69: 82.09847677 | AB69: =T69-HLOOKUP(X69,Feuil1!$C$1:$BL$10,2,FALSE) -> 7 | AC69: =T69-HLOOKUP(X69,Feuil1!$C$1:$BL$10,3,FALSE) -> -8 | AD69: =T69-HLOOKUP(X69,Feuil1!$C$1:$BL$10,4,FALSE) -> -18 | AE69: =T69-HLOOKUP(X69,Feuil1!$C$1:$BL$10,5,FALSE) -> -33 | AF69: =T69-HLOOKUP(X69,Feuil1!$C$1:$BL$10,6,FALSE) -> -48 | AG69: =T69-HLOOKUP(X69,Feuil1!$C$1:$BL$10,7,FALSE) -> -63 | AH69: =T69-HLOOKUP(X69,Feuil1!$C$1:$BL$10,8,FALSE) -> -73 | AI69: =T69-HLOOKUP(X69,Feuil1!$C$1:$BL$10,9,FALSE) -> -88 | AJ69: =T69-HLOOKUP(X69,Feuil1!$C$1:$BL$10,10,FALSE) -> -953 | AQ69: DEB
A70: H | B70: NE | C70: ALS | D70: 31 | E70: 389913 | F70: CLEMENTZ | G70: EMERIC | H70: 2000 | I70: 49.8 | J70: MJC Ungersheim | K70: F | L70: 17 | M70: 20 | N70: 23 | O70: 23 | P70: 24 | Q70: -27 | R70: -27 | S70: 24 | T70: 47 | U70: -52.6 | V70: DEB | W70: 7 | X70: =IF(I70="","",IF(A70="H",IF(OR(H70="SEN",H70<1995),VLOOKUP(I70,Feuil1!$A$11:$G$29,6),IF(AND(H70>1994,H70<1998),VLOOKUP(I70,Feuil1!$A$11:$G$29,5),IF(AND(H70>1997,H70<2000),VLOOKUP(I70,Feuil1!$A$11:$G$29,4),IF(AND(H70>1999,H70<2002),VLOOKUP(I70,Feuil1!$A$11:$G$29,3),VLOOKUP(I70,Feuil1!$A$11:$G$29,2))))),IF(OR(H70="SEN",H70<1995),VLOOKUP(I70,Feuil1!$G$11:$L$25,6),IF(AND(H70>1994,H70<1998),VLOOKUP(I70,Feuil1!$G$11:$L$25,5),IF(AND(H70>1997,H70<2000),VLOOKUP(I70,Feuil1!$G$11:$L$25,4),IF(AND(H70>1999,H70<2002),VLOOKUP(I70,Feuil1!$G$11:$L$25,3),VLOOKUP(I70,Feuil1!$G$11:$L$25,2))))))) -> C1 50 | Y70: 80.80460739 | AB70: =T70-HLOOKUP(X70,Feuil1!$C$1:$BL$10,2,FALSE) -> 7 | AC70: =T70-HLOOKUP(X70,Feuil1!$C$1:$BL$10,3,FALSE) -> -8 | AD70: =T70-HLOOKUP(X70,Feuil1!$C$1:$BL$10,4,FALSE) -> -18 | AE70: =T70-HLOOKUP(X70,Feuil1!$C$1:$BL$10,5,FALSE) -> -33 | AF70: =T70-HLOOKUP(X70,Feuil1!$C$1:$BL$10,6,FALSE) -> -48 | AG70: =T70-HLOOKUP(X70,Feuil1!$C$1:$BL$10,7,FALSE) -> -63 | AH70: =T70-HLOOKUP(X70,Feuil1!$C$1:$BL$10,8,FALSE) -> -73 | AI70: =T70-HLOOKUP(X70,Feuil1!$C$1:$BL$10,9,FALSE) -> -88 | AJ70: =T70-HLOOKUP(X70,Feuil1!$C$1:$BL$10,10,FALSE) -> -953 | AQ70: DEB
A71: H | B71: NORD | C71: PIC | D71: 32 | E71: 387613 | F71: LOGER | G71: Romain | H71: 2000 | I71: 50 | J71: Villers-Bretonneux KC | K71: F | L71: 18 | M71: 23 | N71: -25 | O71: 23 | P71: -20 | Q71: 20 | R71: 22 | S71: 22 | T71: 45 | U71: -55 | V71: DEB | W71: 5 | X71: =IF(I71="","",IF(A71="H",IF(OR(H71="SEN",H71<1995),VLOOKUP(I71,Feuil1!$A$11:$G$29,6),IF(AND(H71>1994,H71<1998),VLOOKUP(I71,Feuil1!$A$11:$G$29,5),IF(AND(H71>1997,H71<2000),VLOOKUP(I71,Feuil1!$A$11:$G$29,4),IF(AND(H71>1999,H71<2002),VLOOKUP(I71,Feuil1!$A$11:$G$29,3),VLOOKUP(I71,Feuil1!$A$11:$G$29,2))))),IF(OR(H71="SEN",H71<1995),VLOOKUP(I71,Feuil1!$G$11:$L$25,6),IF(AND(H71>1994,H71<1998),VLOOKUP(I71,Feuil1!$G$11:$L$25,5),IF(AND(H71>1997,H71<2000),VLOOKUP(I71,Feuil1!$G$11:$L$25,4),IF(AND(H71>1999,H71<2002),VLOOKUP(I71,Feuil1!$G$11:$L$25,3),VLOOKUP(I71,Feuil1!$G$11:$L$25,2))))))) -> C1 50 | Y71: 77.09886261 | AB71: =T71-HLOOKUP(X71,Feuil1!$C$1:$BL$10,2,FALSE) -> 5 | AC71: =T71-HLOOKUP(X71,Feuil1!$C$1:$BL$10,3,FALSE) -> -10 | AD71: =T71-HLOOKUP(X71,Feuil1!$C$1:$BL$10,4,FALSE) -> -20 | AE71: =T71-HLOOKUP(X71,Feuil1!$C$1:$BL$10,5,FALSE) -> -35 | AF71: =T71-HLOOKUP(X71,Feuil1!$C$1:$BL$10,6,FALSE) -> -50 | AG71: =T71-HLOOKUP(X71,Feuil1!$C$1:$BL$10,7,FALSE) -> -65 | AH71: =T71-HLOOKUP(X71,Feuil1!$C$1:$BL$10,8,FALSE) -> -75 | AI71: =T71-HLOOKUP(X71,Feuil1!$C$1:$BL$10,9,FALSE) -> -90 | AJ71: =T71-HLOOKUP(X71,Feuil1!$C$1:$BL$10,10,FALSE) -> -955 | AQ71: DEB
AB72: =T72-HLOOKUP(X72,[1]Feuil1!$C$1:$BL$10,2,FALSE) ->  | AC72: =T72-HLOOKUP(X72,[1]Feuil1!$C$1:$BL$10,3,FALSE) ->  | AD72: =T72-HLOOKUP(X72,[1]Feuil1!$C$1:$BL$10,4,FALSE) ->  | AE72: =T72-HLOOKUP(X72,[1]Feuil1!$C$1:$BL$10,5,FALSE) ->  | AF72: =T72-HLOOKUP(X72,[1]Feuil1!$C$1:$BL$10,6,FALSE) ->  | AG72: =T72-HLOOKUP(X72,[1]Feuil1!$C$1:$BL$10,7,FALSE) ->  | AH72: =T72-HLOOKUP(X72,[1]Feuil1!$C$1:$BL$10,8,FALSE) ->  | AI72: =T72-HLOOKUP(X72,[1]Feuil1!$C$1:$BL$10,9,FALSE) ->  | AJ72: =T72-HLOOKUP(X72,[1]Feuil1!$C$1:$BL$10,10,FALSE) ->  | AQ72: =IF(AJ72>=0,$AJ$4,IF(AI72>=0,$AI$4,IF(AH72>=0,$AH$4,IF(AG72>=0,$AG$4,IF(AF72>=0,$AF$4,IF(AE72>=0,$AE$4,IF(AD72>=0,$AD$4,IF(AC72>=0,$AC$4,$AB$4)))))))) -> 
A73: H | B73: SEST | C73: LAN | D73: 1 | E73: 312387 | F73: SERGENT | G73: Enzo | H73: 2001 | I73: 54.52 | J73: Clermont Sports | K73: F | L73: 67 | M73: 70 | N73: 73 | O73: =IF(H73="","",IF(MAXA(L73:N73)<=0,0,MAXA(L73:N73))) -> 73 | P73: 92 | Q73: 97 | R73: 102 | S73: =IF(H73="","",IF(MAXA(P73:R73)<=0,0,MAXA(P73:R73))) -> 102 | T73: =IF(H73="","",IF(OR(O73=0,S73=0),0,O73+S73)) -> 175 | U73: =T73-I73*2 -> 65.96 | V73: =IF(H73="","",AQ73) -> INTA + | W73: =IF(AJ73>=0,AJ73,IF(AI73>=0,AI73,IF(AH73>=0,AH73,IF(AG73>=0,AG73,IF(AF73>=0,AF73,IF(AE73>=0,AE73,IF(AD73>=0,AD73,IF(AC73>=0,AC73,AB73)))))))) -> 5 | X73: =IF(I73="","",IF(A73="H",IF(OR(H73="SEN",H73<1995),VLOOKUP(I73,Feuil1!$A$11:$G$29,6),IF(AND(H73>1994,H73<1998),VLOOKUP(I73,Feuil1!$A$11:$G$29,5),IF(AND(H73>1997,H73<2000),VLOOKUP(I73,Feuil1!$A$11:$G$29,4),IF(AND(H73>1999,H73<2002),VLOOKUP(I73,Feuil1!$A$11:$G$29,3),VLOOKUP(I73,Feuil1!$A$11:$G$29,2))))),IF(OR(H73="SEN",H73<1995),VLOOKUP(I73,Feuil1!$G$11:$L$25,6),IF(AND(H73>1994,H73<1998),VLOOKUP(I73,Feuil1!$G$11:$L$25,5),IF(AND(H73>1997,H73<2000),VLOOKUP(I73,Feuil1!$G$11:$L$25,4),IF(AND(H73>1999,H73<2002),VLOOKUP(I73,Feuil1!$G$11:$L$25,3),VLOOKUP(I73,Feuil1!$G$11:$L$25,2))))))) -> C1 56 | Y73: =IF(I73="","",IF(A73="H",10^(0.794358141*LOG(I73/174.393)^2)*T73,IF(A73="F",10^(0.89726074*LOG(I73/148.026)^2)*T73,""))) -> 278.9958438 | AB73: =T73-HLOOKUP(X73,Feuil1!$C$1:$BL$10,2,FALSE) -> 125 | AC73: =T73-HLOOKUP(X73,Feuil1!$C$1:$BL$10,3,FALSE) -> 105 | AD73: =T73-HLOOKUP(X73,Feuil1!$C$1:$BL$10,4,FALSE) -> 90 | AE73: =T73-HLOOKUP(X73,Feuil1!$C$1:$BL$10,5,FALSE) -> 75 | AF73: =T73-HLOOKUP(X73,Feuil1!$C$1:$BL$10,6,FALSE) -> 60 | AG73: =T73-HLOOKUP(X73,Feuil1!$C$1:$BL$10,7,FALSE) -> 45 | AH73: =T73-HLOOKUP(X73,Feuil1!$C$1:$BL$10,8,FALSE) -> 30 | AI73: =T73-HLOOKUP(X73,Feuil1!$C$1:$BL$10,9,FALSE) -> 5 | AJ73: =T73-HLOOKUP(X73,Feuil1!$C$1:$BL$10,10,FALSE) -> -825 | AQ73: =IF(AJ73>=0,$AJ$4,IF(AI73>=0,$AI$4,IF(AH73>=0,$AH$4,IF(AG73>=0,$AG$4,IF(AF73>=0,$AF$4,IF(AE73>=0,$AE$4,IF(AD73>=0,$AD$4,IF(AC73>=0,$AC$4,$AB$4)))))))) -> INTA +
A74: H | B74: NORD | C74: NPC | D74: 2 | E74: 335809 | F74: FOURNIER | G74: Louis | H74: 2000 | I74: 55.8 | J74: C.A.ROSENDAEL | K74: F | L74: 60 | M74: 64 | N74: -66 | O74: 64 | P74: 78 | Q74: 83 | R74: 87 | S74: 87 | T74: 151 | U74: 39.4 | V74: INTB + | W74: 6 | X74: =IF(I74="","",IF(A74="H",IF(OR(H74="SEN",H74<1995),VLOOKUP(I74,Feuil1!$A$11:$G$29,6),IF(AND(H74>1994,H74<1998),VLOOKUP(I74,Feuil1!$A$11:$G$29,5),IF(AND(H74>1997,H74<2000),VLOOKUP(I74,Feuil1!$A$11:$G$29,4),IF(AND(H74>1999,H74<2002),VLOOKUP(I74,Feuil1!$A$11:$G$29,3),VLOOKUP(I74,Feuil1!$A$11:$G$29,2))))),IF(OR(H74="SEN",H74<1995),VLOOKUP(I74,Feuil1!$G$11:$L$25,6),IF(AND(H74>1994,H74<1998),VLOOKUP(I74,Feuil1!$G$11:$L$25,5),IF(AND(H74>1997,H74<2000),VLOOKUP(I74,Feuil1!$G$11:$L$25,4),IF(AND(H74>1999,H74<2002),VLOOKUP(I74,Feuil1!$G$11:$L$25,3),VLOOKUP(I74,Feuil1!$G$11:$L$25,2))))))) -> C1 56 | Y74: 236.3370814 | AB74: =T74-HLOOKUP(X74,Feuil1!$C$1:$BL$10,2,FALSE) -> 101 | AC74: =T74-HLOOKUP(X74,Feuil1!$C$1:$BL$10,3,FALSE) -> 81 | AD74: =T74-HLOOKUP(X74,Feuil1!$C$1:$BL$10,4,FALSE) -> 66 | AE74: =T74-HLOOKUP(X74,Feuil1!$C$1:$BL$10,5,FALSE) -> 51 | AF74: =T74-HLOOKUP(X74,Feuil1!$C$1:$BL$10,6,FALSE) -> 36 | AG74: =T74-HLOOKUP(X74,Feuil1!$C$1:$BL$10,7,FALSE) -> 21 | AH74: =T74-HLOOKUP(X74,Feuil1!$C$1:$BL$10,8,FALSE) -> 6 | AI74: =T74-HLOOKUP(X74,Feuil1!$C$1:$BL$10,9,FALSE) -> -19 | AJ74: =T74-HLOOKUP(X74,Feuil1!$C$1:$BL$10,10,FALSE) -> -849 | AQ74: INTB +
A75: H | B75: NORD | C75: NPC | D75: 3 | E75: 248932 | F75: BUYSSCHAERT | G75: Eliott | H75: 2000 | I75: 55 | J75: CHCD COMINES | K75: F | L75: 65 | M75: 67 | N75: -68 | O75: 67 | P75: 75 | Q75: 78 | R75: 82 | S75: 82 | T75: 149 | U75: 39 | V75: INTB + | W75: 4 | X75: =IF(I75="","",IF(A75="H",IF(OR(H75="SEN",H75<1995),VLOOKUP(I75,Feuil1!$A$11:$G$29,6),IF(AND(H75>1994,H75<1998),VLOOKUP(I75,Feuil1!$A$11:$G$29,5),IF(AND(H75>1997,H75<2000),VLOOKUP(I75,Feuil1!$A$11:$G$29,4),IF(AND(H75>1999,H75<2002),VLOOKUP(I75,Feuil1!$A$11:$G$29,3),VLOOKUP(I75,Feuil1!$A$11:$G$29,2))))),IF(OR(H75="SEN",H75<1995),VLOOKUP(I75,Feuil1!$G$11:$L$25,6),IF(AND(H75>1994,H75<1998),VLOOKUP(I75,Feuil1!$G$11:$L$25,5),IF(AND(H75>1997,H75<2000),VLOOKUP(I75,Feuil1!$G$11:$L$25,4),IF(AND(H75>1999,H75<2002),VLOOKUP(I75,Feuil1!$G$11:$L$25,3),VLOOKUP(I75,Feuil1!$G$11:$L$25,2))))))) -> C1 56 | Y75: 235.8866655 | AB75: =T75-HLOOKUP(X75,Feuil1!$C$1:$BL$10,2,FALSE) -> 99 | AC75: =T75-HLOOKUP(X75,Feuil1!$C$1:$BL$10,3,FALSE) -> 79 | AD75: =T75-HLOOKUP(X75,Feuil1!$C$1:$BL$10,4,FALSE) -> 64 | AE75: =T75-HLOOKUP(X75,Feuil1!$C$1:$BL$10,5,FALSE) -> 49 | AF75: =T75-HLOOKUP(X75,Feuil1!$C$1:$BL$10,6,FALSE) -> 34 | AG75: =T75-HLOOKUP(X75,Feuil1!$C$1:$BL$10,7,FALSE) -> 19 | AH75: =T75-HLOOKUP(X75,Feuil1!$C$1:$BL$10,8,FALSE) -> 4 | AI75: =T75-HLOOKUP(X75,Feuil1!$C$1:$BL$10,9,FALSE) -> -21 | AJ75: =T75-HLOOKUP(X75,Feuil1!$C$1:$BL$10,10,FALSE) -> -851 | AQ75: INTB +
A76: H | B76: CO | C76: BRE | D76: 4 | E76: 324558 | F76: LERUYET | G76: Téo | H76: 2000 | I76: 55.46 | J76: CA Lorient | K76: F | L76: 63 | M76: 66 | N76: 68 | O76: 68 | P76: 73 | Q76: 76 | R76: 79 | S76: 79 | T76: 147 | U76: 36.08 | V76: INTB + | W76: 2 | X76: =IF(I76="","",IF(A76="H",IF(OR(H76="SEN",H76<1995),VLOOKUP(I76,Feuil1!$A$11:$G$29,6),IF(AND(H76>1994,H76<1998),VLOOKUP(I76,Feuil1!$A$11:$G$29,5),IF(AND(H76>1997,H76<2000),VLOOKUP(I76,Feuil1!$A$11:$G$29,4),IF(AND(H76>1999,H76<2002),VLOOKUP(I76,Feuil1!$A$11:$G$29,3),VLOOKUP(I76,Feuil1!$A$11:$G$29,2))))),IF(OR(H76="SEN",H76<1995),VLOOKUP(I76,Feuil1!$G$11:$L$25,6),IF(AND(H76>1994,H76<1998),VLOOKUP(I76,Feuil1!$G$11:$L$25,5),IF(AND(H76>1997,H76<2000),VLOOKUP(I76,Feuil1!$G$11:$L$25,4),IF(AND(H76>1999,H76<2002),VLOOKUP(I76,Feuil1!$G$11:$L$25,3),VLOOKUP(I76,Feuil1!$G$11:$L$25,2))))))) -> C1 56 | Y76: 231.1877484 | AB76: =T76-HLOOKUP(X76,Feuil1!$C$1:$BL$10,2,FALSE) -> 97 | AC76: =T76-HLOOKUP(X76,Feuil1!$C$1:$BL$10,3,FALSE) -> 77 | AD76: =T76-HLOOKUP(X76,Feuil1!$C$1:$BL$10,4,FALSE) -> 62 | AE76: =T76-HLOOKUP(X76,Feuil1!$C$1:$BL$10,5,FALSE) -> 47 | AF76: =T76-HLOOKUP(X76,Feuil1!$C$1:$BL$10,6,FALSE) -> 32 | AG76: =T76-HLOOKUP(X76,Feuil1!$C$1:$BL$10,7,FALSE) -> 17 | AH76: =T76-HLOOKUP(X76,Feuil1!$C$1:$BL$10,8,FALSE) -> 2 | AI76: =T76-HLOOKUP(X76,Feuil1!$C$1:$BL$10,9,FALSE) -> -23 | AJ76: =T76-HLOOKUP(X76,Feuil1!$C$1:$BL$10,10,FALSE) -> -853 | AQ76: INTB +
A77: H | B77: NORD | C77: NPC | D77: 5 | E77: 311192 | F77: JURKOWSKI | G77: Alexis | H77: 2000 | I77: 55.72 | J77: A.O.SALLAUMINES | K77: F | L77: 60 | M77: -63 | N77: -63 | O77: 60 | P77: 79 | Q77: 84 | R77: 86 | S77: 86 | T77: 146 | U77: 34.56 | V77: INTB + | W77: 1 | X77: =IF(I77="","",IF(A77="H",IF(OR(H77="SEN",H77<1995),VLOOKUP(I77,Feuil1!$A$11:$G$29,6),IF(AND(H77>1994,H77<1998),VLOOKUP(I77,Feuil1!$A$11:$G$29,5),IF(AND(H77>1997,H77<2000),VLOOKUP(I77,Feuil1!$A$11:$G$29,4),IF(AND(H77>1999,H77<2002),VLOOKUP(I77,Feuil1!$A$11:$G$29,3),VLOOKUP(I77,Feuil1!$A$11:$G$29,2))))),IF(OR(H77="SEN",H77<1995),VLOOKUP(I77,Feuil1!$G$11:$L$25,6),IF(AND(H77>1994,H77<1998),VLOOKUP(I77,Feuil1!$G$11:$L$25,5),IF(AND(H77>1997,H77<2000),VLOOKUP(I77,Feuil1!$G$11:$L$25,4),IF(AND(H77>1999,H77<2002),VLOOKUP(I77,Feuil1!$G$11:$L$25,3),VLOOKUP(I77,Feuil1!$G$11:$L$25,2))))))) -> C1 56 | Y77: 228.7694293 | AB77: =T77-HLOOKUP(X77,Feuil1!$C$1:$BL$10,2,FALSE) -> 96 | AC77: =T77-HLOOKUP(X77,Feuil1!$C$1:$BL$10,3,FALSE) -> 76 | AD77: =T77-HLOOKUP(X77,Feuil1!$C$1:$BL$10,4,FALSE) -> 61 | AE77: =T77-HLOOKUP(X77,Feuil1!$C$1:$BL$10,5,FALSE) -> 46 | AF77: =T77-HLOOKUP(X77,Feuil1!$C$1:$BL$10,6,FALSE) -> 31 | AG77: =T77-HLOOKUP(X77,Feuil1!$C$1:$BL$10,7,FALSE) -> 16 | AH77: =T77-HLOOKUP(X77,Feuil1!$C$1:$BL$10,8,FALSE) -> 1 | AI77: =T77-HLOOKUP(X77,Feuil1!$C$1:$BL$10,9,FALSE) -> -24 | AJ77: =T77-HLOOKUP(X77,Feuil1!$C$1:$BL$10,10,FALSE) -> -854 | AQ77: INTB +
A78: H | B78: NORD | C78: NPC | D78: 6 | E78: 279998 | F78: RIQUIER | G78: Jérémy | H78: 2000 | I78: 50.23 | J78: CHCD COMINES | K78: F | L78: 55 | M78: -60 | N78: 60 | O78: 60 | P78: 70 | Q78: 75 | R78: 78 | S78: 78 | T78: 138 | U78: 37.54 | V78: NAT + | W78: 8 | X78: =IF(I78="","",IF(A78="H",IF(OR(H78="SEN",H78<1995),VLOOKUP(I78,Feuil1!$A$11:$G$29,6),IF(AND(H78>1994,H78<1998),VLOOKUP(I78,Feuil1!$A$11:$G$29,5),IF(AND(H78>1997,H78<2000),VLOOKUP(I78,Feuil1!$A$11:$G$29,4),IF(AND(H78>1999,H78<2002),VLOOKUP(I78,Feuil1!$A$11:$G$29,3),VLOOKUP(I78,Feuil1!$A$11:$G$29,2))))),IF(OR(H78="SEN",H78<1995),VLOOKUP(I78,Feuil1!$G$11:$L$25,6),IF(AND(H78>1994,H78<1998),VLOOKUP(I78,Feuil1!$G$11:$L$25,5),IF(AND(H78>1997,H78<2000),VLOOKUP(I78,Feuil1!$G$11:$L$25,4),IF(AND(H78>1999,H78<2002),VLOOKUP(I78,Feuil1!$G$11:$L$25,3),VLOOKUP(I78,Feuil1!$G$11:$L$25,2))))))) -> C1 56 | Y78: 235.5047326 | AB78: =T78-HLOOKUP(X78,Feuil1!$C$1:$BL$10,2,FALSE) -> 88 | AC78: =T78-HLOOKUP(X78,Feuil1!$C$1:$BL$10,3,FALSE) -> 68 | AD78: =T78-HLOOKUP(X78,Feuil1!$C$1:$BL$10,4,FALSE) -> 53 | AE78: =T78-HLOOKUP(X78,Feuil1!$C$1:$BL$10,5,FALSE) -> 38 | AF78: =T78-HLOOKUP(X78,Feuil1!$C$1:$BL$10,6,FALSE) -> 23 | AG78: =T78-HLOOKUP(X78,Feuil1!$C$1:$BL$10,7,FALSE) -> 8 | AH78: =T78-HLOOKUP(X78,Feuil1!$C$1:$BL$10,8,FALSE) -> -7 | AI78: =T78-HLOOKUP(X78,Feuil1!$C$1:$BL$10,9,FALSE) -> -32 | AJ78: =T78-HLOOKUP(X78,Feuil1!$C$1:$BL$10,10,FALSE) -> -862 | AQ78: NAT +
A79: H | B79: CO | C79: PDL | D79: 7 | E79: 368728 | F79: MELLIER | G79: Romain | H79: 2000 | I79: 55.5 | J79: CA EVRON 53 | K79: F | L79: 57 | M79: 60 | N79: 62 | O79: 62 | P79: 68 | Q79: 71 | R79: 75 | S79: 75 | T79: 137 | U79: 26 | V79: NAT + | W79: 7 | X79: =IF(I79="","",IF(A79="H",IF(OR(H79="SEN",H79<1995),VLOOKUP(I79,Feuil1!$A$11:$G$29,6),IF(AND(H79>1994,H79<1998),VLOOKUP(I79,Feuil1!$A$11:$G$29,5),IF(AND(H79>1997,H79<2000),VLOOKUP(I79,Feuil1!$A$11:$G$29,4),IF(AND(H79>1999,H79<2002),VLOOKUP(I79,Feuil1!$A$11:$G$29,3),VLOOKUP(I79,Feuil1!$A$11:$G$29,2))))),IF(OR(H79="SEN",H79<1995),VLOOKUP(I79,Feuil1!$G$11:$L$25,6),IF(AND(H79>1994,H79<1998),VLOOKUP(I79,Feuil1!$G$11:$L$25,5),IF(AND(H79>1997,H79<2000),VLOOKUP(I79,Feuil1!$G$11:$L$25,4),IF(AND(H79>1999,H79<2002),VLOOKUP(I79,Feuil1!$G$11:$L$25,3),VLOOKUP(I79,Feuil1!$G$11:$L$25,2))))))) -> C1 56 | Y79: 215.3379712 | AB79: =T79-HLOOKUP(X79,Feuil1!$C$1:$BL$10,2,FALSE) -> 87 | AC79: =T79-HLOOKUP(X79,Feuil1!$C$1:$BL$10,3,FALSE) -> 67 | AD79: =T79-HLOOKUP(X79,Feuil1!$C$1:$BL$10,4,FALSE) -> 52 | AE79: =T79-HLOOKUP(X79,Feuil1!$C$1:$BL$10,5,FALSE) -> 37 | AF79: =T79-HLOOKUP(X79,Feuil1!$C$1:$BL$10,6,FALSE) -> 22 | AG79: =T79-HLOOKUP(X79,Feuil1!$C$1:$BL$10,7,FALSE) -> 7 | AH79: =T79-HLOOKUP(X79,Feuil1!$C$1:$BL$10,8,FALSE) -> -8 | AI79: =T79-HLOOKUP(X79,Feuil1!$C$1:$BL$10,9,FALSE) -> -33 | AJ79: =T79-HLOOKUP(X79,Feuil1!$C$1:$BL$10,10,FALSE) -> -863 | AQ79: NAT +
A80: H | B80: SEST | C80: RAL | D80: 8 | E80: 373868 | F80: MATHUREL | G80: Allan | H80: 2000 | I80: 55.8 | J80: H.C. ST BALDOPH | K80: F | L80: 55 | M80: 57 | N80: 59 | O80: 59 | P80: 72 | Q80: 74 | R80: 76 | S80: 76 | T80: 135 | U80: 23.4 | V80: NAT + | W80: 5 | X80: =IF(I80="","",IF(A80="H",IF(OR(H80="SEN",H80<1995),VLOOKUP(I80,Feuil1!$A$11:$G$29,6),IF(AND(H80>1994,H80<1998),VLOOKUP(I80,Feuil1!$A$11:$G$29,5),IF(AND(H80>1997,H80<2000),VLOOKUP(I80,Feuil1!$A$11:$G$29,4),IF(AND(H80>1999,H80<2002),VLOOKUP(I80,Feuil1!$A$11:$G$29,3),VLOOKUP(I80,Feuil1!$A$11:$G$29,2))))),IF(OR(H80="SEN",H80<1995),VLOOKUP(I80,Feuil1!$G$11:$L$25,6),IF(AND(H80>1994,H80<1998),VLOOKUP(I80,Feuil1!$G$11:$L$25,5),IF(AND(H80>1997,H80<2000),VLOOKUP(I80,Feuil1!$G$11:$L$25,4),IF(AND(H80>1999,H80<2002),VLOOKUP(I80,Feuil1!$G$11:$L$25,3),VLOOKUP(I80,Feuil1!$G$11:$L$25,2))))))) -> C1 56 | Y80: 211.2947416 | AB80: =T80-HLOOKUP(X80,Feuil1!$C$1:$BL$10,2,FALSE) -> 85 | AC80: =T80-HLOOKUP(X80,Feuil1!$C$1:$BL$10,3,FALSE) -> 65 | AD80: =T80-HLOOKUP(X80,Feuil1!$C$1:$BL$10,4,FALSE) -> 50 | AE80: =T80-HLOOKUP(X80,Feuil1!$C$1:$BL$10,5,FALSE) -> 35 | AF80: =T80-HLOOKUP(X80,Feuil1!$C$1:$BL$10,6,FALSE) -> 20 | AG80: =T80-HLOOKUP(X80,Feuil1!$C$1:$BL$10,7,FALSE) -> 5 | AH80: =T80-HLOOKUP(X80,Feuil1!$C$1:$BL$10,8,FALSE) -> -10 | AI80: =T80-HLOOKUP(X80,Feuil1!$C$1:$BL$10,9,FALSE) -> -35 | AJ80: =T80-HLOOKUP(X80,Feuil1!$C$1:$BL$10,10,FALSE) -> -865 | AQ80: NAT +
A81: H | B81: N | C81: IDF | D81: 9 | E81: 368725 | F81: CISSOKO | G81: CHRISTOPHER | H81: 2000 | I81: 55.82 | J81: SAINT-MAUR | K81: F | L81: -59 | M81: -59 | N81: 59 | O81: 59 | P81: 71 | Q81: 76 | R81: -78 | S81: 76 | T81: 135 | U81: 23.36 | V81: NAT + | W81: 5 | X81: =IF(I81="","",IF(A81="H",IF(OR(H81="SEN",H81<1995),VLOOKUP(I81,Feuil1!$A$11:$G$29,6),IF(AND(H81>1994,H81<1998),VLOOKUP(I81,Feuil1!$A$11:$G$29,5),IF(AND(H81>1997,H81<2000),VLOOKUP(I81,Feuil1!$A$11:$G$29,4),IF(AND(H81>1999,H81<2002),VLOOKUP(I81,Feuil1!$A$11:$G$29,3),VLOOKUP(I81,Feuil1!$A$11:$G$29,2))))),IF(OR(H81="SEN",H81<1995),VLOOKUP(I81,Feuil1!$G$11:$L$25,6),IF(AND(H81>1994,H81<1998),VLOOKUP(I81,Feuil1!$G$11:$L$25,5),IF(AND(H81>1997,H81<2000),VLOOKUP(I81,Feuil1!$G$11:$L$25,4),IF(AND(H81>1999,H81<2002),VLOOKUP(I81,Feuil1!$G$11:$L$25,3),VLOOKUP(I81,Feuil1!$G$11:$L$25,2))))))) -> C1 56 | Y81: 211.2352252 | AB81: =T81-HLOOKUP(X81,Feuil1!$C$1:$BL$10,2,FALSE) -> 85 | AC81: =T81-HLOOKUP(X81,Feuil1!$C$1:$BL$10,3,FALSE) -> 65 | AD81: =T81-HLOOKUP(X81,Feuil1!$C$1:$BL$10,4,FALSE) -> 50 | AE81: =T81-HLOOKUP(X81,Feuil1!$C$1:$BL$10,5,FALSE) -> 35 | AF81: =T81-HLOOKUP(X81,Feuil1!$C$1:$BL$10,6,FALSE) -> 20 | AG81: =T81-HLOOKUP(X81,Feuil1!$C$1:$BL$10,7,FALSE) -> 5 | AH81: =T81-HLOOKUP(X81,Feuil1!$C$1:$BL$10,8,FALSE) -> -10 | AI81: =T81-HLOOKUP(X81,Feuil1!$C$1:$BL$10,9,FALSE) -> -35 | AJ81: =T81-HLOOKUP(X81,Feuil1!$C$1:$BL$10,10,FALSE) -> -865 | AQ81: NAT +
A82: H | B82: NE | C82: CHA | D82: 10 | E82: 366016 | F82: MIGEON | G82: Arthur | H82: 2000 | I82: 54.06 | J82: Reims HM | K82: F | L82: 56 | M82: 60 | N82: 63 | O82: 63 | P82: 67 | Q82: -72 | R82: -72 | S82: 67 | T82: 130 | U82: 21.88 | V82: NAT + | W82: 0 | X82: =IF(I82="","",IF(A82="H",IF(OR(H82="SEN",H82<1995),VLOOKUP(I82,Feuil1!$A$11:$G$29,6),IF(AND(H82>1994,H82<1998),VLOOKUP(I82,Feuil1!$A$11:$G$29,5),IF(AND(H82>1997,H82<2000),VLOOKUP(I82,Feuil1!$A$11:$G$29,4),IF(AND(H82>1999,H82<2002),VLOOKUP(I82,Feuil1!$A$11:$G$29,3),VLOOKUP(I82,Feuil1!$A$11:$G$29,2))))),IF(OR(H82="SEN",H82<1995),VLOOKUP(I82,Feuil1!$G$11:$L$25,6),IF(AND(H82>1994,H82<1998),VLOOKUP(I82,Feuil1!$G$11:$L$25,5),IF(AND(H82>1997,H82<2000),VLOOKUP(I82,Feuil1!$G$11:$L$25,4),IF(AND(H82>1999,H82<2002),VLOOKUP(I82,Feuil1!$G$11:$L$25,3),VLOOKUP(I82,Feuil1!$G$11:$L$25,2))))))) -> C1 56 | Y82: 208.6728519 | AB82: =T82-HLOOKUP(X82,Feuil1!$C$1:$BL$10,2,FALSE) -> 80 | AC82: =T82-HLOOKUP(X82,Feuil1!$C$1:$BL$10,3,FALSE) -> 60 | AD82: =T82-HLOOKUP(X82,Feuil1!$C$1:$BL$10,4,FALSE) -> 45 | AE82: =T82-HLOOKUP(X82,Feuil1!$C$1:$BL$10,5,FALSE) -> 30 | AF82: =T82-HLOOKUP(X82,Feuil1!$C$1:$BL$10,6,FALSE) -> 15 | AG82: =T82-HLOOKUP(X82,Feuil1!$C$1:$BL$10,7,FALSE) -> 0 | AH82: =T82-HLOOKUP(X82,Feuil1!$C$1:$BL$10,8,FALSE) -> -15 | AI82: =T82-HLOOKUP(X82,Feuil1!$C$1:$BL$10,9,FALSE) -> -40 | AJ82: =T82-HLOOKUP(X82,Feuil1!$C$1:$BL$10,10,FALSE) -> -870 | AQ82: NAT +
A83: H | B83: NE | C83: ALS | D83: 11 | E83: 351862 | F83: EHRHARDT | G83: GAUTHIER | H83: 2001 | I83: 54.7 | J83: SHC Haguenau | K83: F | L83: 54 | M83: 57 | N83: -59 | O83: 57 | P83: -67 | Q83: 68 | R83: 73 | S83: 73 | T83: 130 | U83: 20.6 | V83: NAT + | W83: 0 | X83: =IF(I83="","",IF(A83="H",IF(OR(H83="SEN",H83<1995),VLOOKUP(I83,Feuil1!$A$11:$G$29,6),IF(AND(H83>1994,H83<1998),VLOOKUP(I83,Feuil1!$A$11:$G$29,5),IF(AND(H83>1997,H83<2000),VLOOKUP(I83,Feuil1!$A$11:$G$29,4),IF(AND(H83>1999,H83<2002),VLOOKUP(I83,Feuil1!$A$11:$G$29,3),VLOOKUP(I83,Feuil1!$A$11:$G$29,2))))),IF(OR(H83="SEN",H83<1995),VLOOKUP(I83,Feuil1!$G$11:$L$25,6),IF(AND(H83>1994,H83<1998),VLOOKUP(I83,Feuil1!$G$11:$L$25,5),IF(AND(H83>1997,H83<2000),VLOOKUP(I83,Feuil1!$G$11:$L$25,4),IF(AND(H83>1999,H83<2002),VLOOKUP(I83,Feuil1!$G$11:$L$25,3),VLOOKUP(I83,Feuil1!$G$11:$L$25,2))))))) -> C1 56 | Y83: 206.7075063 | AB83: =T83-HLOOKUP(X83,Feuil1!$C$1:$BL$10,2,FALSE) -> 80 | AC83: =T83-HLOOKUP(X83,Feuil1!$C$1:$BL$10,3,FALSE) -> 60 | AD83: =T83-HLOOKUP(X83,Feuil1!$C$1:$BL$10,4,FALSE) -> 45 | AE83: =T83-HLOOKUP(X83,Feuil1!$C$1:$BL$10,5,FALSE) -> 30 | AF83: =T83-HLOOKUP(X83,Feuil1!$C$1:$BL$10,6,FALSE) -> 15 | AG83: =T83-HLOOKUP(X83,Feuil1!$C$1:$BL$10,7,FALSE) -> 0 | AH83: =T83-HLOOKUP(X83,Feuil1!$C$1:$BL$10,8,FALSE) -> -15 | AI83: =T83-HLOOKUP(X83,Feuil1!$C$1:$BL$10,9,FALSE) -> -40 | AJ83: =T83-HLOOKUP(X83,Feuil1!$C$1:$BL$10,10,FALSE) -> -870 | AQ83: NAT +
A84: H | B84: SEST | C84: PRO | D84: 12 | E84: 369617 | F84: GIRARD | G84: Maxime | H84: 2001 | I84: 55.6 | J84: ISTRES SPORTS | L84: -50 | M84: 50 | N84: -55 | O84: 50 | P84: 65 | Q84: 70 | R84: -75 | S84: 70 | T84: 120 | U84: 8.8 | V84: FED + | W84: 5 | X84: =IF(I84="","",IF(A84="H",IF(OR(H84="SEN",H84<1995),VLOOKUP(I84,Feuil1!$A$11:$G$29,6),IF(AND(H84>1994,H84<1998),VLOOKUP(I84,Feuil1!$A$11:$G$29,5),IF(AND(H84>1997,H84<2000),VLOOKUP(I84,Feuil1!$A$11:$G$29,4),IF(AND(H84>1999,H84<2002),VLOOKUP(I84,Feuil1!$A$11:$G$29,3),VLOOKUP(I84,Feuil1!$A$11:$G$29,2))))),IF(OR(H84="SEN",H84<1995),VLOOKUP(I84,Feuil1!$G$11:$L$25,6),IF(AND(H84>1994,H84<1998),VLOOKUP(I84,Feuil1!$G$11:$L$25,5),IF(AND(H84>1997,H84<2000),VLOOKUP(I84,Feuil1!$G$11:$L$25,4),IF(AND(H84>1999,H84<2002),VLOOKUP(I84,Feuil1!$G$11:$L$25,3),VLOOKUP(I84,Feuil1!$G$11:$L$25,2))))))) -> C1 56 | Y84: 188.3493729 | AB84: =T84-HLOOKUP(X84,Feuil1!$C$1:$BL$10,2,FALSE) -> 70 | AC84: =T84-HLOOKUP(X84,Feuil1!$C$1:$BL$10,3,FALSE) -> 50 | AD84: =T84-HLOOKUP(X84,Feuil1!$C$1:$BL$10,4,FALSE) -> 35 | AE84: =T84-HLOOKUP(X84,Feuil1!$C$1:$BL$10,5,FALSE) -> 20 | AF84: =T84-HLOOKUP(X84,Feuil1!$C$1:$BL$10,6,FALSE) -> 5 | AG84: =T84-HLOOKUP(X84,Feuil1!$C$1:$BL$10,7,FALSE) -> -10 | AH84: =T84-HLOOKUP(X84,Feuil1!$C$1:$BL$10,8,FALSE) -> -25 | AI84: =T84-HLOOKUP(X84,Feuil1!$C$1:$BL$10,9,FALSE) -> -50 | AJ84: =T84-HLOOKUP(X84,Feuil1!$C$1:$BL$10,10,FALSE) -> -880 | AQ84: FED +
A85: H | B85: NORD | C85: NPC | D85: 13 | E85: 248951 | F85: KEMPENAIRE | G85: Cédric | H85: 2001 | I85: 55.21 | J85: CHCD COMINES | K85: F | L85: 50 | M85: -53 | N85: -53 | O85: 50 | P85: 65 | Q85: 69 | R85: -70 | S85: 69 | T85: 119 | U85: 8.58 | V85: FED + | W85: 4 | X85: =IF(I85="","",IF(A85="H",IF(OR(H85="SEN",H85<1995),VLOOKUP(I85,Feuil1!$A$11:$G$29,6),IF(AND(H85>1994,H85<1998),VLOOKUP(I85,Feuil1!$A$11:$G$29,5),IF(AND(H85>1997,H85<2000),VLOOKUP(I85,Feuil1!$A$11:$G$29,4),IF(AND(H85>1999,H85<2002),VLOOKUP(I85,Feuil1!$A$11:$G$29,3),VLOOKUP(I85,Feuil1!$A$11:$G$29,2))))),IF(OR(H85="SEN",H85<1995),VLOOKUP(I85,Feuil1!$G$11:$L$25,6),IF(AND(H85>1994,H85<1998),VLOOKUP(I85,Feuil1!$G$11:$L$25,5),IF(AND(H85>1997,H85<2000),VLOOKUP(I85,Feuil1!$G$11:$L$25,4),IF(AND(H85>1999,H85<2002),VLOOKUP(I85,Feuil1!$G$11:$L$25,3),VLOOKUP(I85,Feuil1!$G$11:$L$25,2))))))) -> C1 56 | Y85: 187.8228753 | AB85: =T85-HLOOKUP(X85,Feuil1!$C$1:$BL$10,2,FALSE) -> 69 | AC85: =T85-HLOOKUP(X85,Feuil1!$C$1:$BL$10,3,FALSE) -> 49 | AD85: =T85-HLOOKUP(X85,Feuil1!$C$1:$BL$10,4,FALSE) -> 34 | AE85: =T85-HLOOKUP(X85,Feuil1!$C$1:$BL$10,5,FALSE) -> 19 | AF85: =T85-HLOOKUP(X85,Feuil1!$C$1:$BL$10,6,FALSE) -> 4 | AG85: =T85-HLOOKUP(X85,Feuil1!$C$1:$BL$10,7,FALSE) -> -11 | AH85: =T85-HLOOKUP(X85,Feuil1!$C$1:$BL$10,8,FALSE) -> -26 | AI85: =T85-HLOOKUP(X85,Feuil1!$C$1:$BL$10,9,FALSE) -> -51 | AJ85: =T85-HLOOKUP(X85,Feuil1!$C$1:$BL$10,10,FALSE) -> -881 | AQ85: FED +
A86: H | B86: CO | C86: BRE | D86: 14 | E86: 344078 | F86: COQUET | G86: Robin | H86: 2001 | I86: 54.9 | J86: CHM Plouhinec PR | K86: F | L86: 51 | M86: -53 | N86: -53 | O86: 51 | P86: 64 | Q86: 67 | R86: -70 | S86: 67 | T86: 118 | U86: 8.2 | V86: FED + | W86: 3 | X86: =IF(I86="","",IF(A86="H",IF(OR(H86="SEN",H86<1995),VLOOKUP(I86,Feuil1!$A$11:$G$29,6),IF(AND(H86>1994,H86<1998),VLOOKUP(I86,Feuil1!$A$11:$G$29,5),IF(AND(H86>1997,H86<2000),VLOOKUP(I86,Feuil1!$A$11:$G$29,4),IF(AND(H86>1999,H86<2002),VLOOKUP(I86,Feuil1!$A$11:$G$29,3),VLOOKUP(I86,Feuil1!$A$11:$G$29,2))))),IF(OR(H86="SEN",H86<1995),VLOOKUP(I86,Feuil1!$G$11:$L$25,6),IF(AND(H86>1994,H86<1998),VLOOKUP(I86,Feuil1!$G$11:$L$25,5),IF(AND(H86>1997,H86<2000),VLOOKUP(I86,Feuil1!$G$11:$L$25,4),IF(AND(H86>1999,H86<2002),VLOOKUP(I86,Feuil1!$G$11:$L$25,3),VLOOKUP(I86,Feuil1!$G$11:$L$25,2))))))) -> C1 56 | Y86: 187.0806662 | AB86: =T86-HLOOKUP(X86,Feuil1!$C$1:$BL$10,2,FALSE) -> 68 | AC86: =T86-HLOOKUP(X86,Feuil1!$C$1:$BL$10,3,FALSE) -> 48 | AD86: =T86-HLOOKUP(X86,Feuil1!$C$1:$BL$10,4,FALSE) -> 33 | AE86: =T86-HLOOKUP(X86,Feuil1!$C$1:$BL$10,5,FALSE) -> 18 | AF86: =T86-HLOOKUP(X86,Feuil1!$C$1:$BL$10,6,FALSE) -> 3 | AG86: =T86-HLOOKUP(X86,Feuil1!$C$1:$BL$10,7,FALSE) -> -12 | AH86: =T86-HLOOKUP(X86,Feuil1!$C$1:$BL$10,8,FALSE) -> -27 | AI86: =T86-HLOOKUP(X86,Feuil1!$C$1:$BL$10,9,FALSE) -> -52 | AJ86: =T86-HLOOKUP(X86,Feuil1!$C$1:$BL$10,10,FALSE) -> -882 | AQ86: FED +
A87: H | B87: SEST | C87: LAN | D87: 15 | E87: 250549 | F87: PEIGUET | G87: Jérémy | H87: 2001 | I87: 53.1 | J87: Clermont Sports | K87: F | L87: 42 | M87: 46 | N87: 50 | O87: 50 | P87: 55 | Q87: 60 | R87: 65 | S87: 65 | T87: 115 | U87: 8.8 | V87: FED + | W87: 0 | X87: =IF(I87="","",IF(A87="H",IF(OR(H87="SEN",H87<1995),VLOOKUP(I87,Feuil1!$A$11:$G$29,6),IF(AND(H87>1994,H87<1998),VLOOKUP(I87,Feuil1!$A$11:$G$29,5),IF(AND(H87>1997,H87<2000),VLOOKUP(I87,Feuil1!$A$11:$G$29,4),IF(AND(H87>1999,H87<2002),VLOOKUP(I87,Feuil1!$A$11:$G$29,3),VLOOKUP(I87,Feuil1!$A$11:$G$29,2))))),IF(OR(H87="SEN",H87<1995),VLOOKUP(I87,Feuil1!$G$11:$L$25,6),IF(AND(H87>1994,H87<1998),VLOOKUP(I87,Feuil1!$G$11:$L$25,5),IF(AND(H87>1997,H87<2000),VLOOKUP(I87,Feuil1!$G$11:$L$25,4),IF(AND(H87>1999,H87<2002),VLOOKUP(I87,Feuil1!$G$11:$L$25,3),VLOOKUP(I87,Feuil1!$G$11:$L$25,2))))))) -> C1 56 | Y87: 187.308216 | AB87: =T87-HLOOKUP(X87,Feuil1!$C$1:$BL$10,2,FALSE) -> 65 | AC87: =T87-HLOOKUP(X87,Feuil1!$C$1:$BL$10,3,FALSE) -> 45 | AD87: =T87-HLOOKUP(X87,Feuil1!$C$1:$BL$10,4,FALSE) -> 30 | AE87: =T87-HLOOKUP(X87,Feuil1!$C$1:$BL$10,5,FALSE) -> 15 | AF87: =T87-HLOOKUP(X87,Feuil1!$C$1:$BL$10,6,FALSE) -> 0 | AG87: =T87-HLOOKUP(X87,Feuil1!$C$1:$BL$10,7,FALSE) -> -15 | AH87: =T87-HLOOKUP(X87,Feuil1!$C$1:$BL$10,8,FALSE) -> -30 | AI87: =T87-HLOOKUP(X87,Feuil1!$C$1:$BL$10,9,FALSE) -> -55 | AJ87: =T87-HLOOKUP(X87,Feuil1!$C$1:$BL$10,10,FALSE) -> -885 | AQ87: FED +
A88: H | B88: SEST | C88: RAL | D88: 16 | E88: 373866 | F88: PETRIS | G88: Thomas | H88: 2000 | I88: 51.1 | J88: H.C. ST BALDOPH | K88: F | L88: 42 | M88: 45 | N88: 47 | O88: 47 | P88: 57 | Q88: 60 | R88: 62 | S88: 62 | T88: 109 | U88: 6.8 | V88: IRG + | W88: 9 | X88: =IF(I88="","",IF(A88="H",IF(OR(H88="SEN",H88<1995),VLOOKUP(I88,Feuil1!$A$11:$G$29,6),IF(AND(H88>1994,H88<1998),VLOOKUP(I88,Feuil1!$A$11:$G$29,5),IF(AND(H88>1997,H88<2000),VLOOKUP(I88,Feuil1!$A$11:$G$29,4),IF(AND(H88>1999,H88<2002),VLOOKUP(I88,Feuil1!$A$11:$G$29,3),VLOOKUP(I88,Feuil1!$A$11:$G$29,2))))),IF(OR(H88="SEN",H88<1995),VLOOKUP(I88,Feuil1!$G$11:$L$25,6),IF(AND(H88>1994,H88<1998),VLOOKUP(I88,Feuil1!$G$11:$L$25,5),IF(AND(H88>1997,H88<2000),VLOOKUP(I88,Feuil1!$G$11:$L$25,4),IF(AND(H88>1999,H88<2002),VLOOKUP(I88,Feuil1!$G$11:$L$25,3),VLOOKUP(I88,Feuil1!$G$11:$L$25,2))))))) -> C1 56 | Y88: 183.3101428 | AB88: =T88-HLOOKUP(X88,Feuil1!$C$1:$BL$10,2,FALSE) -> 59 | AC88: =T88-HLOOKUP(X88,Feuil1!$C$1:$BL$10,3,FALSE) -> 39 | AD88: =T88-HLOOKUP(X88,Feuil1!$C$1:$BL$10,4,FALSE) -> 24 | AE88: =T88-HLOOKUP(X88,Feuil1!$C$1:$BL$10,5,FALSE) -> 9 | AF88: =T88-HLOOKUP(X88,Feuil1!$C$1:$BL$10,6,FALSE) -> -6 | AG88: =T88-HLOOKUP(X88,Feuil1!$C$1:$BL$10,7,FALSE) -> -21 | AH88: =T88-HLOOKUP(X88,Feuil1!$C$1:$BL$10,8,FALSE) -> -36 | AI88: =T88-HLOOKUP(X88,Feuil1!$C$1:$BL$10,9,FALSE) -> -61 | AJ88: =T88-HLOOKUP(X88,Feuil1!$C$1:$BL$10,10,FALSE) -> -891 | AQ88: IRG +
A89: H | B89: SEST | C89: PRO | D89: 17 | E89: 316262 | F89: BRESSY | G89: BILAL | H89: 2000 | I89: 55.14 | J89: EEAR MONTEUX | L89: 43 | M89: 46 | N89: -50 | O89: 46 | P89: 60 | Q89: 63 | R89: -65 | S89: 63 | T89: 109 | U89: -1.28 | V89: IRG + | W89: 9 | X89: =IF(I89="","",IF(A89="H",IF(OR(H89="SEN",H89<1995),VLOOKUP(I89,Feuil1!$A$11:$G$29,6),IF(AND(H89>1994,H89<1998),VLOOKUP(I89,Feuil1!$A$11:$G$29,5),IF(AND(H89>1997,H89<2000),VLOOKUP(I89,Feuil1!$A$11:$G$29,4),IF(AND(H89>1999,H89<2002),VLOOKUP(I89,Feuil1!$A$11:$G$29,3),VLOOKUP(I89,Feuil1!$A$11:$G$29,2))))),IF(OR(H89="SEN",H89<1995),VLOOKUP(I89,Feuil1!$G$11:$L$25,6),IF(AND(H89>1994,H89<1998),VLOOKUP(I89,Feuil1!$G$11:$L$25,5),IF(AND(H89>1997,H89<2000),VLOOKUP(I89,Feuil1!$G$11:$L$25,4),IF(AND(H89>1999,H89<2002),VLOOKUP(I89,Feuil1!$G$11:$L$25,3),VLOOKUP(I89,Feuil1!$G$11:$L$25,2))))))) -> C1 56 | Y89: 172.2128343 | AB89: =T89-HLOOKUP(X89,Feuil1!$C$1:$BL$10,2,FALSE) -> 59 | AC89: =T89-HLOOKUP(X89,Feuil1!$C$1:$BL$10,3,FALSE) -> 39 | AD89: =T89-HLOOKUP(X89,Feuil1!$C$1:$BL$10,4,FALSE) -> 24 | AE89: =T89-HLOOKUP(X89,Feuil1!$C$1:$BL$10,5,FALSE) -> 9 | AF89: =T89-HLOOKUP(X89,Feuil1!$C$1:$BL$10,6,FALSE) -> -6 | AG89: =T89-HLOOKUP(X89,Feuil1!$C$1:$BL$10,7,FALSE) -> -21 | AH89: =T89-HLOOKUP(X89,Feuil1!$C$1:$BL$10,8,FALSE) -> -36 | AI89: =T89-HLOOKUP(X89,Feuil1!$C$1:$BL$10,9,FALSE) -> -61 | AJ89: =T89-HLOOKUP(X89,Feuil1!$C$1:$BL$10,10,FALSE) -> -891 | AQ89: IRG +
A90: H | B90: NORD | C90: NPC | D90: 18 | E90: 383661 | F90: BOULANGER | G90: Christopher | H90: 2000 | I90: 53.8 | J90: A.O.SALLAUMINES | K90: F | L90: 42 | M90: 45 | N90: 47 | O90: 47 | P90: 55 | Q90: 58 | R90: 61 | S90: 61 | T90: 108 | U90: 0.4 | V90: IRG + | W90: 8 | X90: =IF(I90="","",IF(A90="H",IF(OR(H90="SEN",H90<1995),VLOOKUP(I90,Feuil1!$A$11:$G$29,6),IF(AND(H90>1994,H90<1998),VLOOKUP(I90,Feuil1!$A$11:$G$29,5),IF(AND(H90>1997,H90<2000),VLOOKUP(I90,Feuil1!$A$11:$G$29,4),IF(AND(H90>1999,H90<2002),VLOOKUP(I90,Feuil1!$A$11:$G$29,3),VLOOKUP(I90,Feuil1!$A$11:$G$29,2))))),IF(OR(H90="SEN",H90<1995),VLOOKUP(I90,Feuil1!$G$11:$L$25,6),IF(AND(H90>1994,H90<1998),VLOOKUP(I90,Feuil1!$G$11:$L$25,5),IF(AND(H90>1997,H90<2000),VLOOKUP(I90,Feuil1!$G$11:$L$25,4),IF(AND(H90>1999,H90<2002),VLOOKUP(I90,Feuil1!$G$11:$L$25,3),VLOOKUP(I90,Feuil1!$G$11:$L$25,2))))))) -> C1 56 | Y90: 174.0370929 | AB90: =T90-HLOOKUP(X90,Feuil1!$C$1:$BL$10,2,FALSE) -> 58 | AC90: =T90-HLOOKUP(X90,Feuil1!$C$1:$BL$10,3,FALSE) -> 38 | AD90: =T90-HLOOKUP(X90,Feuil1!$C$1:$BL$10,4,FALSE) -> 23 | AE90: =T90-HLOOKUP(X90,Feuil1!$C$1:$BL$10,5,FALSE) -> 8 | AF90: =T90-HLOOKUP(X90,Feuil1!$C$1:$BL$10,6,FALSE) -> -7 | AG90: =T90-HLOOKUP(X90,Feuil1!$C$1:$BL$10,7,FALSE) -> -22 | AH90: =T90-HLOOKUP(X90,Feuil1!$C$1:$BL$10,8,FALSE) -> -37 | AI90: =T90-HLOOKUP(X90,Feuil1!$C$1:$BL$10,9,FALSE) -> -62 | AJ90: =T90-HLOOKUP(X90,Feuil1!$C$1:$BL$10,10,FALSE) -> -892 | AQ90: IRG +
A91: H | B91: NORD | C91: NPC | D91: 19 | E91: 359649 | F91: PARANTHOEN | G91: Kévin | H91: 2000 | I91: 52.4 | J91: C.A.ROSENDAEL | K91: F | L91: 38 | M91: 41 | N91: 44 | O91: 44 | P91: 55 | Q91: -60 | R91: 60 | S91: 60 | T91: 104 | U91: -0.8 | V91: IRG + | W91: 4 | X91: =IF(I91="","",IF(A91="H",IF(OR(H91="SEN",H91<1995),VLOOKUP(I91,Feuil1!$A$11:$G$29,6),IF(AND(H91>1994,H91<1998),VLOOKUP(I91,Feuil1!$A$11:$G$29,5),IF(AND(H91>1997,H91<2000),VLOOKUP(I91,Feuil1!$A$11:$G$29,4),IF(AND(H91>1999,H91<2002),VLOOKUP(I91,Feuil1!$A$11:$G$29,3),VLOOKUP(I91,Feuil1!$A$11:$G$29,2))))),IF(OR(H91="SEN",H91<1995),VLOOKUP(I91,Feuil1!$G$11:$L$25,6),IF(AND(H91>1994,H91<1998),VLOOKUP(I91,Feuil1!$G$11:$L$25,5),IF(AND(H91>1997,H91<2000),VLOOKUP(I91,Feuil1!$G$11:$L$25,4),IF(AND(H91>1999,H91<2002),VLOOKUP(I91,Feuil1!$G$11:$L$25,3),VLOOKUP(I91,Feuil1!$G$11:$L$25,2))))))) -> C1 56 | Y91: 171.2565772 | AB91: =T91-HLOOKUP(X91,Feuil1!$C$1:$BL$10,2,FALSE) -> 54 | AC91: =T91-HLOOKUP(X91,Feuil1!$C$1:$BL$10,3,FALSE) -> 34 | AD91: =T91-HLOOKUP(X91,Feuil1!$C$1:$BL$10,4,FALSE) -> 19 | AE91: =T91-HLOOKUP(X91,Feuil1!$C$1:$BL$10,5,FALSE) -> 4 | AF91: =T91-HLOOKUP(X91,Feuil1!$C$1:$BL$10,6,FALSE) -> -11 | AG91: =T91-HLOOKUP(X91,Feuil1!$C$1:$BL$10,7,FALSE) -> -26 | AH91: =T91-HLOOKUP(X91,Feuil1!$C$1:$BL$10,8,FALSE) -> -41 | AI91: =T91-HLOOKUP(X91,Feuil1!$C$1:$BL$10,9,FALSE) -> -66 | AJ91: =T91-HLOOKUP(X91,Feuil1!$C$1:$BL$10,10,FALSE) -> -896 | AQ91: IRG +
A92: H | B92: N | C92: IDF | D92: 20 | E92: 313237 | F92: TRAN-TRI | G92: HUGO | H92: 2000 | I92: 53 | J92: CHAVILLE | K92: F | L92: 40 | M92: 45 | N92: 47 | O92: 47 | P92: 50 | Q92: 53 | R92: 57 | S92: 57 | T92: 104 | U92: -2 | V92: IRG + | W92: 4 | X92: =IF(I92="","",IF(A92="H",IF(OR(H92="SEN",H92<1995),VLOOKUP(I92,Feuil1!$A$11:$G$29,6),IF(AND(H92>1994,H92<1998),VLOOKUP(I92,Feuil1!$A$11:$G$29,5),IF(AND(H92>1997,H92<2000),VLOOKUP(I92,Feuil1!$A$11:$G$29,4),IF(AND(H92>1999,H92<2002),VLOOKUP(I92,Feuil1!$A$11:$G$29,3),VLOOKUP(I92,Feuil1!$A$11:$G$29,2))))),IF(OR(H92="SEN",H92<1995),VLOOKUP(I92,Feuil1!$G$11:$L$25,6),IF(AND(H92>1994,H92<1998),VLOOKUP(I92,Feuil1!$G$11:$L$25,5),IF(AND(H92>1997,H92<2000),VLOOKUP(I92,Feuil1!$G$11:$L$25,4),IF(AND(H92>1999,H92<2002),VLOOKUP(I92,Feuil1!$G$11:$L$25,3),VLOOKUP(I92,Feuil1!$G$11:$L$25,2))))))) -> C1 56 | Y92: 169.654169 | AB92: =T92-HLOOKUP(X92,Feuil1!$C$1:$BL$10,2,FALSE) -> 54 | AC92: =T92-HLOOKUP(X92,Feuil1!$C$1:$BL$10,3,FALSE) -> 34 | AD92: =T92-HLOOKUP(X92,Feuil1!$C$1:$BL$10,4,FALSE) -> 19 | AE92: =T92-HLOOKUP(X92,Feuil1!$C$1:$BL$10,5,FALSE) -> 4 | AF92: =T92-HLOOKUP(X92,Feuil1!$C$1:$BL$10,6,FALSE) -> -11 | AG92: =T92-HLOOKUP(X92,Feuil1!$C$1:$BL$10,7,FALSE) -> -26 | AH92: =T92-HLOOKUP(X92,Feuil1!$C$1:$BL$10,8,FALSE) -> -41 | AI92: =T92-HLOOKUP(X92,Feuil1!$C$1:$BL$10,9,FALSE) -> -66 | AJ92: =T92-HLOOKUP(X92,Feuil1!$C$1:$BL$10,10,FALSE) -> -896 | AQ92: IRG +
A93: H | B93: SEST | C93: RAL | D93: 21 | E93: 358683 | F93: BALME | G93: Nathan | H93: 2000 | I93: 51.4 | J93: Pierrelatte | K93: F | L93: -41 | M93: 41 | N93: 44 | O93: 44 | P93: 51 | Q93: -56 | R93: 56 | S93: 56 | T93: 100 | U93: -2.8 | V93: IRG + | W93: 0 | X93: =IF(I93="","",IF(A93="H",IF(OR(H93="SEN",H93<1995),VLOOKUP(I93,Feuil1!$A$11:$G$29,6),IF(AND(H93>1994,H93<1998),VLOOKUP(I93,Feuil1!$A$11:$G$29,5),IF(AND(H93>1997,H93<2000),VLOOKUP(I93,Feuil1!$A$11:$G$29,4),IF(AND(H93>1999,H93<2002),VLOOKUP(I93,Feuil1!$A$11:$G$29,3),VLOOKUP(I93,Feuil1!$A$11:$G$29,2))))),IF(OR(H93="SEN",H93<1995),VLOOKUP(I93,Feuil1!$G$11:$L$25,6),IF(AND(H93>1994,H93<1998),VLOOKUP(I93,Feuil1!$G$11:$L$25,5),IF(AND(H93>1997,H93<2000),VLOOKUP(I93,Feuil1!$G$11:$L$25,4),IF(AND(H93>1999,H93<2002),VLOOKUP(I93,Feuil1!$G$11:$L$25,3),VLOOKUP(I93,Feuil1!$G$11:$L$25,2))))))) -> C1 56 | Y93: 167.3447069 | AB93: =T93-HLOOKUP(X93,Feuil1!$C$1:$BL$10,2,FALSE) -> 50 | AC93: =T93-HLOOKUP(X93,Feuil1!$C$1:$BL$10,3,FALSE) -> 30 | AD93: =T93-HLOOKUP(X93,Feuil1!$C$1:$BL$10,4,FALSE) -> 15 | AE93: =T93-HLOOKUP(X93,Feuil1!$C$1:$BL$10,5,FALSE) -> 0 | AF93: =T93-HLOOKUP(X93,Feuil1!$C$1:$BL$10,6,FALSE) -> -15 | AG93: =T93-HLOOKUP(X93,Feuil1!$C$1:$BL$10,7,FALSE) -> -30 | AH93: =T93-HLOOKUP(X93,Feuil1!$C$1:$BL$10,8,FALSE) -> -45 | AI93: =T93-HLOOKUP(X93,Feuil1!$C$1:$BL$10,9,FALSE) -> -70 | AJ93: =T93-HLOOKUP(X93,Feuil1!$C$1:$BL$10,10,FALSE) -> -900 | AQ93: IRG +
A94: H | B94: SEST | C94: AUV | D94: 22 | E94: 319977 | F94: ALTAYRAC | G94: Thomas | H94: 2000 | I94: 53.1 | J94: CHM AURILLAC | L94: 40 | M94: 43 | N94: 45 | O94: 45 | P94: 50 | Q94: 53 | R94: 55 | S94: 55 | T94: 100 | U94: -6.2 | V94: IRG + | W94: 0 | X94: =IF(I94="","",IF(A94="H",IF(OR(H94="SEN",H94<1995),VLOOKUP(I94,Feuil1!$A$11:$G$29,6),IF(AND(H94>1994,H94<1998),VLOOKUP(I94,Feuil1!$A$11:$G$29,5),IF(AND(H94>1997,H94<2000),VLOOKUP(I94,Feuil1!$A$11:$G$29,4),IF(AND(H94>1999,H94<2002),VLOOKUP(I94,Feuil1!$A$11:$G$29,3),VLOOKUP(I94,Feuil1!$A$11:$G$29,2))))),IF(OR(H94="SEN",H94<1995),VLOOKUP(I94,Feuil1!$G$11:$L$25,6),IF(AND(H94>1994,H94<1998),VLOOKUP(I94,Feuil1!$G$11:$L$25,5),IF(AND(H94>1997,H94<2000),VLOOKUP(I94,Feuil1!$G$11:$L$25,4),IF(AND(H94>1999,H94<2002),VLOOKUP(I94,Feuil1!$G$11:$L$25,3),VLOOKUP(I94,Feuil1!$G$11:$L$25,2))))))) -> C1 56 | Y94: 162.8767096 | AB94: =T94-HLOOKUP(X94,Feuil1!$C$1:$BL$10,2,FALSE) -> 50 | AC94: =T94-HLOOKUP(X94,Feuil1!$C$1:$BL$10,3,FALSE) -> 30 | AD94: =T94-HLOOKUP(X94,Feuil1!$C$1:$BL$10,4,FALSE) -> 15 | AE94: =T94-HLOOKUP(X94,Feuil1!$C$1:$BL$10,5,FALSE) -> 0 | AF94: =T94-HLOOKUP(X94,Feuil1!$C$1:$BL$10,6,FALSE) -> -15 | AG94: =T94-HLOOKUP(X94,Feuil1!$C$1:$BL$10,7,FALSE) -> -30 | AH94: =T94-HLOOKUP(X94,Feuil1!$C$1:$BL$10,8,FALSE) -> -45 | AI94: =T94-HLOOKUP(X94,Feuil1!$C$1:$BL$10,9,FALSE) -> -70 | AJ94: =T94-HLOOKUP(X94,Feuil1!$C$1:$BL$10,10,FALSE) -> -900 | AQ94: IRG +
A95: H | B95: SO | C95: MPY | D95: 23 | E95: 325145 | F95: BEN KHELIFA | G95: Alexandre | H95: 2000 | I95: 55.16 | J95: COLOMIERS US | K95: F | L95: 40 | M95: 43 | N95: -45 | O95: 43 | P95: 50 | Q95: 53 | R95: 57 | S95: 57 | T95: 100 | U95: -10.32 | V95: IRG + | W95: 0 | X95: =IF(I95="","",IF(A95="H",IF(OR(H95="SEN",H95<1995),VLOOKUP(I95,Feuil1!$A$11:$G$29,6),IF(AND(H95>1994,H95<1998),VLOOKUP(I95,Feuil1!$A$11:$G$29,5),IF(AND(H95>1997,H95<2000),VLOOKUP(I95,Feuil1!$A$11:$G$29,4),IF(AND(H95>1999,H95<2002),VLOOKUP(I95,Feuil1!$A$11:$G$29,3),VLOOKUP(I95,Feuil1!$A$11:$G$29,2))))),IF(OR(H95="SEN",H95<1995),VLOOKUP(I95,Feuil1!$G$11:$L$25,6),IF(AND(H95>1994,H95<1998),VLOOKUP(I95,Feuil1!$G$11:$L$25,5),IF(AND(H95>1997,H95<2000),VLOOKUP(I95,Feuil1!$G$11:$L$25,4),IF(AND(H95>1999,H95<2002),VLOOKUP(I95,Feuil1!$G$11:$L$25,3),VLOOKUP(I95,Feuil1!$G$11:$L$25,2))))))) -> C1 56 | Y95: 157.9479205 | AB95: =T95-HLOOKUP(X95,Feuil1!$C$1:$BL$10,2,FALSE) -> 50 | AC95: =T95-HLOOKUP(X95,Feuil1!$C$1:$BL$10,3,FALSE) -> 30 | AD95: =T95-HLOOKUP(X95,Feuil1!$C$1:$BL$10,4,FALSE) -> 15 | AE95: =T95-HLOOKUP(X95,Feuil1!$C$1:$BL$10,5,FALSE) -> 0 | AF95: =T95-HLOOKUP(X95,Feuil1!$C$1:$BL$10,6,FALSE) -> -15 | AG95: =T95-HLOOKUP(X95,Feuil1!$C$1:$BL$10,7,FALSE) -> -30 | AH95: =T95-HLOOKUP(X95,Feuil1!$C$1:$BL$10,8,FALSE) -> -45 | AI95: =T95-HLOOKUP(X95,Feuil1!$C$1:$BL$10,9,FALSE) -> -70 | AJ95: =T95-HLOOKUP(X95,Feuil1!$C$1:$BL$10,10,FALSE) -> -900 | AQ95: IRG +
A96: H | B96: SEST | C96: CAZ | D96: 24 | E96: 360583 | F96: LECOMTE | G96: Cameron | H96: 2000 | I96: 56 | J96: ES VILLENEUVE LOUBET | K96: F | L96: 44 | M96: -47 | N96: -47 | O96: 44 | P96: 52 | Q96: 56 | R96: -58 | S96: 56 | T96: 100 | U96: -12 | V96: IRG + | W96: 0 | X96: =IF(I96="","",IF(A96="H",IF(OR(H96="SEN",H96<1995),VLOOKUP(I96,Feuil1!$A$11:$G$29,6),IF(AND(H96>1994,H96<1998),VLOOKUP(I96,Feuil1!$A$11:$G$29,5),IF(AND(H96>1997,H96<2000),VLOOKUP(I96,Feuil1!$A$11:$G$29,4),IF(AND(H96>1999,H96<2002),VLOOKUP(I96,Feuil1!$A$11:$G$29,3),VLOOKUP(I96,Feuil1!$A$11:$G$29,2))))),IF(OR(H96="SEN",H96<1995),VLOOKUP(I96,Feuil1!$G$11:$L$25,6),IF(AND(H96>1994,H96<1998),VLOOKUP(I96,Feuil1!$G$11:$L$25,5),IF(AND(H96>1997,H96<2000),VLOOKUP(I96,Feuil1!$G$11:$L$25,4),IF(AND(H96>1999,H96<2002),VLOOKUP(I96,Feuil1!$G$11:$L$25,3),VLOOKUP(I96,Feuil1!$G$11:$L$25,2))))))) -> C1 56 | Y96: 156.0756474 | AB96: =T96-HLOOKUP(X96,Feuil1!$C$1:$BL$10,2,FALSE) -> 50 | AC96: =T96-HLOOKUP(X96,Feuil1!$C$1:$BL$10,3,FALSE) -> 30 | AD96: =T96-HLOOKUP(X96,Feuil1!$C$1:$BL$10,4,FALSE) -> 15 | AE96: =T96-HLOOKUP(X96,Feuil1!$C$1:$BL$10,5,FALSE) -> 0 | AF96: =T96-HLOOKUP(X96,Feuil1!$C$1:$BL$10,6,FALSE) -> -15 | AG96: =T96-HLOOKUP(X96,Feuil1!$C$1:$BL$10,7,FALSE) -> -30 | AH96: =T96-HLOOKUP(X96,Feuil1!$C$1:$BL$10,8,FALSE) -> -45 | AI96: =T96-HLOOKUP(X96,Feuil1!$C$1:$BL$10,9,FALSE) -> -70 | AJ96: =T96-HLOOKUP(X96,Feuil1!$C$1:$BL$10,10,FALSE) -> -900 | AQ96: IRG +
A97: H | B97: NE | C97: FCO | D97: 25 | E97: 350181 | F97: BERTHELIN | G97: Simon | H97: 2000 | I97: 54.1 | J97: CH Luxeuil | K97: F | L97: 35 | M97: 40 | N97: -43 | O97: 40 | P97: 47 | Q97: 51 | R97: 55 | S97: 55 | T97: 95 | U97: -13.2 | V97: REG + | W97: 10 | X97: =IF(I97="","",IF(A97="H",IF(OR(H97="SEN",H97<1995),VLOOKUP(I97,Feuil1!$A$11:$G$29,6),IF(AND(H97>1994,H97<1998),VLOOKUP(I97,Feuil1!$A$11:$G$29,5),IF(AND(H97>1997,H97<2000),VLOOKUP(I97,Feuil1!$A$11:$G$29,4),IF(AND(H97>1999,H97<2002),VLOOKUP(I97,Feuil1!$A$11:$G$29,3),VLOOKUP(I97,Feuil1!$A$11:$G$29,2))))),IF(OR(H97="SEN",H97<1995),VLOOKUP(I97,Feuil1!$G$11:$L$25,6),IF(AND(H97>1994,H97<1998),VLOOKUP(I97,Feuil1!$G$11:$L$25,5),IF(AND(H97>1997,H97<2000),VLOOKUP(I97,Feuil1!$G$11:$L$25,4),IF(AND(H97>1999,H97<2002),VLOOKUP(I97,Feuil1!$G$11:$L$25,3),VLOOKUP(I97,Feuil1!$G$11:$L$25,2))))))) -> C1 56 | Y97: 152.4006095 | AB97: =T97-HLOOKUP(X97,Feuil1!$C$1:$BL$10,2,FALSE) -> 45 | AC97: =T97-HLOOKUP(X97,Feuil1!$C$1:$BL$10,3,FALSE) -> 25 | AD97: =T97-HLOOKUP(X97,Feuil1!$C$1:$BL$10,4,FALSE) -> 10 | AE97: =T97-HLOOKUP(X97,Feuil1!$C$1:$BL$10,5,FALSE) -> -5 | AF97: =T97-HLOOKUP(X97,Feuil1!$C$1:$BL$10,6,FALSE) -> -20 | AG97: =T97-HLOOKUP(X97,Feuil1!$C$1:$BL$10,7,FALSE) -> -35 | AH97: =T97-HLOOKUP(X97,Feuil1!$C$1:$BL$10,8,FALSE) -> -50 | AI97: =T97-HLOOKUP(X97,Feuil1!$C$1:$BL$10,9,FALSE) -> -75 | AJ97: =T97-HLOOKUP(X97,Feuil1!$C$1:$BL$10,10,FALSE) -> -905 | AQ97: REG +
A98: H | B98: DOM | C98: GUA | D98: 26 | E98: 379132 | F98: MOLINIER | G98: Hugo | H98: 2001 | I98: 50 | J98: AHCS/Pointois | K98: F | L98: 38 | M98: 40 | N98: -43 | O98: 40 | P98: 45 | Q98: 50 | R98: 52 | S98: 52 | T98: 92 | U98: -8 | V98: IRG + | W98: 12 | X98: =IF(I98="","",IF(A98="H",IF(OR(H98="SEN",H98<1995),VLOOKUP(I98,Feuil1!$A$11:$G$29,6),IF(AND(H98>1994,H98<1998),VLOOKUP(I98,Feuil1!$A$11:$G$29,5),IF(AND(H98>1997,H98<2000),VLOOKUP(I98,Feuil1!$A$11:$G$29,4),IF(AND(H98>1999,H98<2002),VLOOKUP(I98,Feuil1!$A$11:$G$29,3),VLOOKUP(I98,Feuil1!$A$11:$G$29,2))))),IF(OR(H98="SEN",H98<1995),VLOOKUP(I98,Feuil1!$G$11:$L$25,6),IF(AND(H98>1994,H98<1998),VLOOKUP(I98,Feuil1!$G$11:$L$25,5),IF(AND(H98>1997,H98<2000),VLOOKUP(I98,Feuil1!$G$11:$L$25,4),IF(AND(H98>1999,H98<2002),VLOOKUP(I98,Feuil1!$G$11:$L$25,3),VLOOKUP(I98,Feuil1!$G$11:$L$25,2))))))) -> C1 50 | Y98: 157.6243413 | AB98: =T98-HLOOKUP(X98,Feuil1!$C$1:$BL$10,2,FALSE) -> 52 | AC98: =T98-HLOOKUP(X98,Feuil1!$C$1:$BL$10,3,FALSE) -> 37 | AD98: =T98-HLOOKUP(X98,Feuil1!$C$1:$BL$10,4,FALSE) -> 27 | AE98: =T98-HLOOKUP(X98,Feuil1!$C$1:$BL$10,5,FALSE) -> 12 | AF98: =T98-HLOOKUP(X98,Feuil1!$C$1:$BL$10,6,FALSE) -> -3 | AG98: =T98-HLOOKUP(X98,Feuil1!$C$1:$BL$10,7,FALSE) -> -18 | AH98: =T98-HLOOKUP(X98,Feuil1!$C$1:$BL$10,8,FALSE) -> -28 | AI98: =T98-HLOOKUP(X98,Feuil1!$C$1:$BL$10,9,FALSE) -> -43 | AJ98: =T98-HLOOKUP(X98,Feuil1!$C$1:$BL$10,10,FALSE) -> -908 | AQ98: IRG +
A99: H | B99: NE | C99: ALS | D99: 27 | E99: 341767 | F99: MELAO | G99: ANTHONY | H99: 2001 | I99: 50.4 | J99: Dorlisheim FH | K99: F | L99: 35 | M99: 37 | N99: 40 | O99: 40 | P99: 45 | Q99: 48 | R99: 50 | S99: 50 | T99: 90 | U99: -10.8 | V99: REG + | W99: 5 | X99: =IF(I99="","",IF(A99="H",IF(OR(H99="SEN",H99<1995),VLOOKUP(I99,Feuil1!$A$11:$G$29,6),IF(AND(H99>1994,H99<1998),VLOOKUP(I99,Feuil1!$A$11:$G$29,5),IF(AND(H99>1997,H99<2000),VLOOKUP(I99,Feuil1!$A$11:$G$29,4),IF(AND(H99>1999,H99<2002),VLOOKUP(I99,Feuil1!$A$11:$G$29,3),VLOOKUP(I99,Feuil1!$A$11:$G$29,2))))),IF(OR(H99="SEN",H99<1995),VLOOKUP(I99,Feuil1!$G$11:$L$25,6),IF(AND(H99>1994,H99<1998),VLOOKUP(I99,Feuil1!$G$11:$L$25,5),IF(AND(H99>1997,H99<2000),VLOOKUP(I99,Feuil1!$G$11:$L$25,4),IF(AND(H99>1999,H99<2002),VLOOKUP(I99,Feuil1!$G$11:$L$25,3),VLOOKUP(I99,Feuil1!$G$11:$L$25,2))))))) -> C1 56 | Y99: 153.1456257 | AB99: =T99-HLOOKUP(X99,Feuil1!$C$1:$BL$10,2,FALSE) -> 40 | AC99: =T99-HLOOKUP(X99,Feuil1!$C$1:$BL$10,3,FALSE) -> 20 | AD99: =T99-HLOOKUP(X99,Feuil1!$C$1:$BL$10,4,FALSE) -> 5 | AE99: =T99-HLOOKUP(X99,Feuil1!$C$1:$BL$10,5,FALSE) -> -10 | AF99: =T99-HLOOKUP(X99,Feuil1!$C$1:$BL$10,6,FALSE) -> -25 | AG99: =T99-HLOOKUP(X99,Feuil1!$C$1:$BL$10,7,FALSE) -> -40 | AH99: =T99-HLOOKUP(X99,Feuil1!$C$1:$BL$10,8,FALSE) -> -55 | AI99: =T99-HLOOKUP(X99,Feuil1!$C$1:$BL$10,9,FALSE) -> -80 | AJ99: =T99-HLOOKUP(X99,Feuil1!$C$1:$BL$10,10,FALSE) -> -910 | AQ99: REG +
A100: H | B100: NE | C100: BOU | D100: 28 | E100: 345094 | F100: WITTMAN | G100: Maxime | H100: 2001 | I100: 52.3 | J100: ASO Mont de Rême | K100: F | L100: 36 | M100: 38 | N100: -40 | O100: 38 | P100: 46 | Q100: -48 | R100: 48 | S100: 48 | T100: 86 | U100: -18.6 | V100: REG + | W100: 1 | X100: =IF(I100="","",IF(A100="H",IF(OR(H100="SEN",H100<1995),VLOOKUP(I100,Feuil1!$A$11:$G$29,6),IF(AND(H100>1994,H100<1998),VLOOKUP(I100,Feuil1!$A$11:$G$29,5),IF(AND(H100>1997,H100<2000),VLOOKUP(I100,Feuil1!$A$11:$G$29,4),IF(AND(H100>1999,H100<2002),VLOOKUP(I100,Feuil1!$A$11:$G$29,3),VLOOKUP(I100,Feuil1!$A$11:$G$29,2))))),IF(OR(H100="SEN",H100<1995),VLOOKUP(I100,Feuil1!$G$11:$L$25,6),IF(AND(H100>1994,H100<1998),VLOOKUP(I100,Feuil1!$G$11:$L$25,5),IF(AND(H100>1997,H100<2000),VLOOKUP(I100,Feuil1!$G$11:$L$25,4),IF(AND(H100>1999,H100<2002),VLOOKUP(I100,Feuil1!$G$11:$L$25,3),VLOOKUP(I100,Feuil1!$G$11:$L$25,2))))))) -> C1 56 | Y100: 141.8408003 | AB100: =T100-HLOOKUP(X100,Feuil1!$C$1:$BL$10,2,FALSE) -> 36 | AC100: =T100-HLOOKUP(X100,Feuil1!$C$1:$BL$10,3,FALSE) -> 16 | AD100: =T100-HLOOKUP(X100,Feuil1!$C$1:$BL$10,4,FALSE) -> 1 | AE100: =T100-HLOOKUP(X100,Feuil1!$C$1:$BL$10,5,FALSE) -> -14 | AF100: =T100-HLOOKUP(X100,Feuil1!$C$1:$BL$10,6,FALSE) -> -29 | AG100: =T100-HLOOKUP(X100,Feuil1!$C$1:$BL$10,7,FALSE) -> -44 | AH100: =T100-HLOOKUP(X100,Feuil1!$C$1:$BL$10,8,FALSE) -> -59 | AI100: =T100-HLOOKUP(X100,Feuil1!$C$1:$BL$10,9,FALSE) -> -84 | AJ100: =T100-HLOOKUP(X100,Feuil1!$C$1:$BL$10,10,FALSE) -> -914 | AQ100: REG +
A101: H | B101: NORD | C101: NPC | D101: 29 | E101: 375306 | F101: LEURS | G101: Allan | H101: 2000 | I101: 55.2 | J101: C.A.ROSENDAEL | K101: F | L101: 30 | M101: 33 | N101: 35 | O101: 35 | P101: 42 | Q101: 46 | R101: 50 | S101: 50 | T101: 85 | U101: -25.4 | V101: REG + | W101: 0 | X101: =IF(I101="","",IF(A101="H",IF(OR(H101="SEN",H101<1995),VLOOKUP(I101,Feuil1!$A$11:$G$29,6),IF(AND(H101>1994,H101<1998),VLOOKUP(I101,Feuil1!$A$11:$G$29,5),IF(AND(H101>1997,H101<2000),VLOOKUP(I101,Feuil1!$A$11:$G$29,4),IF(AND(H101>1999,H101<2002),VLOOKUP(I101,Feuil1!$A$11:$G$29,3),VLOOKUP(I101,Feuil1!$A$11:$G$29,2))))),IF(OR(H101="SEN",H101<1995),VLOOKUP(I101,Feuil1!$G$11:$L$25,6),IF(AND(H101>1994,H101<1998),VLOOKUP(I101,Feuil1!$G$11:$L$25,5),IF(AND(H101>1997,H101<2000),VLOOKUP(I101,Feuil1!$G$11:$L$25,4),IF(AND(H101>1999,H101<2002),VLOOKUP(I101,Feuil1!$G$11:$L$25,3),VLOOKUP(I101,Feuil1!$G$11:$L$25,2))))))) -> C1 56 | Y101: 134.1784852 | AB101: =T101-HLOOKUP(X101,Feuil1!$C$1:$BL$10,2,FALSE) -> 35 | AC101: =T101-HLOOKUP(X101,Feuil1!$C$1:$BL$10,3,FALSE) -> 15 | AD101: =T101-HLOOKUP(X101,Feuil1!$C$1:$BL$10,4,FALSE) -> 0 | AE101: =T101-HLOOKUP(X101,Feuil1!$C$1:$BL$10,5,FALSE) -> -15 | AF101: =T101-HLOOKUP(X101,Feuil1!$C$1:$BL$10,6,FALSE) -> -30 | AG101: =T101-HLOOKUP(X101,Feuil1!$C$1:$BL$10,7,FALSE) -> -45 | AH101: =T101-HLOOKUP(X101,Feuil1!$C$1:$BL$10,8,FALSE) -> -60 | AI101: =T101-HLOOKUP(X101,Feuil1!$C$1:$BL$10,9,FALSE) -> -85 | AJ101: =T101-HLOOKUP(X101,Feuil1!$C$1:$BL$10,10,FALSE) -> -915 | AQ101: REG +
A102: H | B102: CO | C102: PDL | D102: 30 | E102: 367895 | F102: SONNET | G102: MAXENCE | H102: 2000 | I102: 53.4 | J102: CA EVRON 53 | K102: F | L102: 33 | M102: 36 | N102: 38 | O102: 38 | P102: 43 | Q102: 46 | R102: -48 | S102: 46 | T102: 84 | U102: -22.8 | V102: DEP + | W102: 14 | X102: =IF(I102="","",IF(A102="H",IF(OR(H102="SEN",H102<1995),VLOOKUP(I102,Feuil1!$A$11:$G$29,6),IF(AND(H102>1994,H102<1998),VLOOKUP(I102,Feuil1!$A$11:$G$29,5),IF(AND(H102>1997,H102<2000),VLOOKUP(I102,Feuil1!$A$11:$G$29,4),IF(AND(H102>1999,H102<2002),VLOOKUP(I102,Feuil1!$A$11:$G$29,3),VLOOKUP(I102,Feuil1!$A$11:$G$29,2))))),IF(OR(H102="SEN",H102<1995),VLOOKUP(I102,Feuil1!$G$11:$L$25,6),IF(AND(H102>1994,H102<1998),VLOOKUP(I102,Feuil1!$G$11:$L$25,5),IF(AND(H102>1997,H102<2000),VLOOKUP(I102,Feuil1!$G$11:$L$25,4),IF(AND(H102>1999,H102<2002),VLOOKUP(I102,Feuil1!$G$11:$L$25,3),VLOOKUP(I102,Feuil1!$G$11:$L$25,2))))))) -> C1 56 | Y102: 136.1869709 | AB102: =T102-HLOOKUP(X102,Feuil1!$C$1:$BL$10,2,FALSE) -> 34 | AC102: =T102-HLOOKUP(X102,Feuil1!$C$1:$BL$10,3,FALSE) -> 14 | AD102: =T102-HLOOKUP(X102,Feuil1!$C$1:$BL$10,4,FALSE) -> -1 | AE102: =T102-HLOOKUP(X102,Feuil1!$C$1:$BL$10,5,FALSE) -> -16 | AF102: =T102-HLOOKUP(X102,Feuil1!$C$1:$BL$10,6,FALSE) -> -31 | AG102: =T102-HLOOKUP(X102,Feuil1!$C$1:$BL$10,7,FALSE) -> -46 | AH102: =T102-HLOOKUP(X102,Feuil1!$C$1:$BL$10,8,FALSE) -> -61 | AI102: =T102-HLOOKUP(X102,Feuil1!$C$1:$BL$10,9,FALSE) -> -86 | AJ102: =T102-HLOOKUP(X102,Feuil1!$C$1:$BL$10,10,FALSE) -> -916 | AQ102: DEP +
A103: H | B103: NE | C103: ALS | D103: 31 | E103: 380685 | F103: CRIQUI | G103: MATTHIAS | H103: 2001 | I103: 51.2 | J103: Dorlisheim FH | K103: F | L103: 30 | M103: 33 | N103: -36 | O103: 33 | P103: -40 | Q103: 42 | R103: 44 | S103: 44 | T103: 77 | U103: -25.4 | V103: DEP + | W103: 7 | X103: =IF(I103="","",IF(A103="H",IF(OR(H103="SEN",H103<1995),VLOOKUP(I103,Feuil1!$A$11:$G$29,6),IF(AND(H103>1994,H103<1998),VLOOKUP(I103,Feuil1!$A$11:$G$29,5),IF(AND(H103>1997,H103<2000),VLOOKUP(I103,Feuil1!$A$11:$G$29,4),IF(AND(H103>1999,H103<2002),VLOOKUP(I103,Feuil1!$A$11:$G$29,3),VLOOKUP(I103,Feuil1!$A$11:$G$29,2))))),IF(OR(H103="SEN",H103<1995),VLOOKUP(I103,Feuil1!$G$11:$L$25,6),IF(AND(H103>1994,H103<1998),VLOOKUP(I103,Feuil1!$G$11:$L$25,5),IF(AND(H103>1997,H103<2000),VLOOKUP(I103,Feuil1!$G$11:$L$25,4),IF(AND(H103>1999,H103<2002),VLOOKUP(I103,Feuil1!$G$11:$L$25,3),VLOOKUP(I103,Feuil1!$G$11:$L$25,2))))))) -> C1 56 | Y103: 129.2802482 | AB103: =T103-HLOOKUP(X103,Feuil1!$C$1:$BL$10,2,FALSE) -> 27 | AC103: =T103-HLOOKUP(X103,Feuil1!$C$1:$BL$10,3,FALSE) -> 7 | AD103: =T103-HLOOKUP(X103,Feuil1!$C$1:$BL$10,4,FALSE) -> -8 | AE103: =T103-HLOOKUP(X103,Feuil1!$C$1:$BL$10,5,FALSE) -> -23 | AF103: =T103-HLOOKUP(X103,Feuil1!$C$1:$BL$10,6,FALSE) -> -38 | AG103: =T103-HLOOKUP(X103,Feuil1!$C$1:$BL$10,7,FALSE) -> -53 | AH103: =T103-HLOOKUP(X103,Feuil1!$C$1:$BL$10,8,FALSE) -> -68 | AI103: =T103-HLOOKUP(X103,Feuil1!$C$1:$BL$10,9,FALSE) -> -93 | AJ103: =T103-HLOOKUP(X103,Feuil1!$C$1:$BL$10,10,FALSE) -> -923 | AQ103: DEP +
A104: H | B104: NE | C104: CHA | D104: 32 | E104: 381736 | F104: ELOI | G104: Franck | H104: 2000 | I104: 56 | J104: Reims HM | K104: F | L104: 30 | M104: 33 | N104: 35 | O104: 35 | P104: 36 | Q104: 39 | R104: 42 | S104: 42 | T104: 77 | U104: -35 | V104: DEP + | W104: 7 | X104: =IF(I104="","",IF(A104="H",IF(OR(H104="SEN",H104<1995),VLOOKUP(I104,Feuil1!$A$11:$G$29,6),IF(AND(H104>1994,H104<1998),VLOOKUP(I104,Feuil1!$A$11:$G$29,5),IF(AND(H104>1997,H104<2000),VLOOKUP(I104,Feuil1!$A$11:$G$29,4),IF(AND(H104>1999,H104<2002),VLOOKUP(I104,Feuil1!$A$11:$G$29,3),VLOOKUP(I104,Feuil1!$A$11:$G$29,2))))),IF(OR(H104="SEN",H104<1995),VLOOKUP(I104,Feuil1!$G$11:$L$25,6),IF(AND(H104>1994,H104<1998),VLOOKUP(I104,Feuil1!$G$11:$L$25,5),IF(AND(H104>1997,H104<2000),VLOOKUP(I104,Feuil1!$G$11:$L$25,4),IF(AND(H104>1999,H104<2002),VLOOKUP(I104,Feuil1!$G$11:$L$25,3),VLOOKUP(I104,Feuil1!$G$11:$L$25,2))))))) -> C1 56 | Y104: 120.1782485 | AB104: =T104-HLOOKUP(X104,Feuil1!$C$1:$BL$10,2,FALSE) -> 27 | AC104: =T104-HLOOKUP(X104,Feuil1!$C$1:$BL$10,3,FALSE) -> 7 | AD104: =T104-HLOOKUP(X104,Feuil1!$C$1:$BL$10,4,FALSE) -> -8 | AE104: =T104-HLOOKUP(X104,Feuil1!$C$1:$BL$10,5,FALSE) -> -23 | AF104: =T104-HLOOKUP(X104,Feuil1!$C$1:$BL$10,6,FALSE) -> -38 | AG104: =T104-HLOOKUP(X104,Feuil1!$C$1:$BL$10,7,FALSE) -> -53 | AH104: =T104-HLOOKUP(X104,Feuil1!$C$1:$BL$10,8,FALSE) -> -68 | AI104: =T104-HLOOKUP(X104,Feuil1!$C$1:$BL$10,9,FALSE) -> -93 | AJ104: =T104-HLOOKUP(X104,Feuil1!$C$1:$BL$10,10,FALSE) -> -923 | AQ104: DEP +
A105: H | B105: SEST | C105: RAL | D105: 33 | E105: 381398 | F105: HUGONNIER | G105: Remi | H105: 2001 | I105: 53.3 | J105: C.H. L'ARBRESLE | K105: F | L105: 25 | M105: 30 | N105: 35 | O105: 35 | P105: 30 | Q105: 35 | R105: 40 | S105: 40 | T105: 75 | U105: -31.6 | V105: DEP + | W105: 5 | X105: =IF(I105="","",IF(A105="H",IF(OR(H105="SEN",H105<1995),VLOOKUP(I105,Feuil1!$A$11:$G$29,6),IF(AND(H105>1994,H105<1998),VLOOKUP(I105,Feuil1!$A$11:$G$29,5),IF(AND(H105>1997,H105<2000),VLOOKUP(I105,Feuil1!$A$11:$G$29,4),IF(AND(H105>1999,H105<2002),VLOOKUP(I105,Feuil1!$A$11:$G$29,3),VLOOKUP(I105,Feuil1!$A$11:$G$29,2))))),IF(OR(H105="SEN",H105<1995),VLOOKUP(I105,Feuil1!$G$11:$L$25,6),IF(AND(H105>1994,H105<1998),VLOOKUP(I105,Feuil1!$G$11:$L$25,5),IF(AND(H105>1997,H105<2000),VLOOKUP(I105,Feuil1!$G$11:$L$25,4),IF(AND(H105>1999,H105<2002),VLOOKUP(I105,Feuil1!$G$11:$L$25,3),VLOOKUP(I105,Feuil1!$G$11:$L$25,2))))))) -> C1 56 | Y105: 121.7819153 | AB105: =T105-HLOOKUP(X105,Feuil1!$C$1:$BL$10,2,FALSE) -> 25 | AC105: =T105-HLOOKUP(X105,Feuil1!$C$1:$BL$10,3,FALSE) -> 5 | AD105: =T105-HLOOKUP(X105,Feuil1!$C$1:$BL$10,4,FALSE) -> -10 | AE105: =T105-HLOOKUP(X105,Feuil1!$C$1:$BL$10,5,FALSE) -> -25 | AF105: =T105-HLOOKUP(X105,Feuil1!$C$1:$BL$10,6,FALSE) -> -40 | AG105: =T105-HLOOKUP(X105,Feuil1!$C$1:$BL$10,7,FALSE) -> -55 | AH105: =T105-HLOOKUP(X105,Feuil1!$C$1:$BL$10,8,FALSE) -> -70 | AI105: =T105-HLOOKUP(X105,Feuil1!$C$1:$BL$10,9,FALSE) -> -95 | AJ105: =T105-HLOOKUP(X105,Feuil1!$C$1:$BL$10,10,FALSE) -> -925 | AQ105: DEP +
A106: H | B106: N | C106: IDF | D106: 34 | E106: 352741 | F106: ALDUY | G106: THUREL | H106: 2001 | I106: 55.3 | J106: CHAVILLE | K106: F | L106: 27 | M106: -30 | N106: 30 | O106: 30 | P106: 40 | Q106: 42 | R106: 45 | S106: 45 | T106: 75 | U106: -35.6 | V106: DEP + | W106: 5 | X106: =IF(I106="","",IF(A106="H",IF(OR(H106="SEN",H106<1995),VLOOKUP(I106,Feuil1!$A$11:$G$29,6),IF(AND(H106>1994,H106<1998),VLOOKUP(I106,Feuil1!$A$11:$G$29,5),IF(AND(H106>1997,H106<2000),VLOOKUP(I106,Feuil1!$A$11:$G$29,4),IF(AND(H106>1999,H106<2002),VLOOKUP(I106,Feuil1!$A$11:$G$29,3),VLOOKUP(I106,Feuil1!$A$11:$G$29,2))))),IF(OR(H106="SEN",H106<1995),VLOOKUP(I106,Feuil1!$G$11:$L$25,6),IF(AND(H106>1994,H106<1998),VLOOKUP(I106,Feuil1!$G$11:$L$25,5),IF(AND(H106>1997,H106<2000),VLOOKUP(I106,Feuil1!$G$11:$L$25,4),IF(AND(H106>1999,H106<2002),VLOOKUP(I106,Feuil1!$G$11:$L$25,3),VLOOKUP(I106,Feuil1!$G$11:$L$25,2))))))) -> C1 56 | Y106: 118.2229568 | AB106: =T106-HLOOKUP(X106,Feuil1!$C$1:$BL$10,2,FALSE) -> 25 | AC106: =T106-HLOOKUP(X106,Feuil1!$C$1:$BL$10,3,FALSE) -> 5 | AD106: =T106-HLOOKUP(X106,Feuil1!$C$1:$BL$10,4,FALSE) -> -10 | AE106: =T106-HLOOKUP(X106,Feuil1!$C$1:$BL$10,5,FALSE) -> -25 | AF106: =T106-HLOOKUP(X106,Feuil1!$C$1:$BL$10,6,FALSE) -> -40 | AG106: =T106-HLOOKUP(X106,Feuil1!$C$1:$BL$10,7,FALSE) -> -55 | AH106: =T106-HLOOKUP(X106,Feuil1!$C$1:$BL$10,8,FALSE) -> -70 | AI106: =T106-HLOOKUP(X106,Feuil1!$C$1:$BL$10,9,FALSE) -> -95 | AJ106: =T106-HLOOKUP(X106,Feuil1!$C$1:$BL$10,10,FALSE) -> -925 | AQ106: DEP +
A107: H | B107: NE | C107: ALS | D107: 35 | E107: 381290 | F107: CECERE | G107: THOMAS | H107: 2001 | I107: 53.9 | J107: SR Obernai HM | K107: F | L107: 28 | M107: 30 | N107: 32 | O107: 32 | P107: 32 | Q107: 35 | R107: 38 | S107: 38 | T107: 70 | U107: -37.8 | V107: DEP + | W107: 0 | X107: =IF(I107="","",IF(A107="H",IF(OR(H107="SEN",H107<1995),VLOOKUP(I107,Feuil1!$A$11:$G$29,6),IF(AND(H107>1994,H107<1998),VLOOKUP(I107,Feuil1!$A$11:$G$29,5),IF(AND(H107>1997,H107<2000),VLOOKUP(I107,Feuil1!$A$11:$G$29,4),IF(AND(H107>1999,H107<2002),VLOOKUP(I107,Feuil1!$A$11:$G$29,3),VLOOKUP(I107,Feuil1!$A$11:$G$29,2))))),IF(OR(H107="SEN",H107<1995),VLOOKUP(I107,Feuil1!$G$11:$L$25,6),IF(AND(H107>1994,H107<1998),VLOOKUP(I107,Feuil1!$G$11:$L$25,5),IF(AND(H107>1997,H107<2000),VLOOKUP(I107,Feuil1!$G$11:$L$25,4),IF(AND(H107>1999,H107<2002),VLOOKUP(I107,Feuil1!$G$11:$L$25,3),VLOOKUP(I107,Feuil1!$G$11:$L$25,2))))))) -> C1 56 | Y107: 112.6321075 | AB107: =T107-HLOOKUP(X107,Feuil1!$C$1:$BL$10,2,FALSE) -> 20 | AC107: =T107-HLOOKUP(X107,Feuil1!$C$1:$BL$10,3,FALSE) -> 0 | AD107: =T107-HLOOKUP(X107,Feuil1!$C$1:$BL$10,4,FALSE) -> -15 | AE107: =T107-HLOOKUP(X107,Feuil1!$C$1:$BL$10,5,FALSE) -> -30 | AF107: =T107-HLOOKUP(X107,Feuil1!$C$1:$BL$10,6,FALSE) -> -45 | AG107: =T107-HLOOKUP(X107,Feuil1!$C$1:$BL$10,7,FALSE) -> -60 | AH107: =T107-HLOOKUP(X107,Feuil1!$C$1:$BL$10,8,FALSE) -> -75 | AI107: =T107-HLOOKUP(X107,Feuil1!$C$1:$BL$10,9,FALSE) -> -100 | AJ107: =T107-HLOOKUP(X107,Feuil1!$C$1:$BL$10,10,FALSE) -> -930 | AQ107: DEP +
A108: H | B108: NE | C108: CHA | D108: 36 | E108: 336659 | F108: GALANDON | G108: Mattéo | H108: 2001 | I108: 55 | J108: Reims HM | K108: F | L108: 23 | M108: 26 | N108: 28 | O108: 28 | P108: 33 | Q108: 37 | R108: 40 | S108: 40 | T108: 68 | U108: -42 | V108: DEB | W108: 18 | X108: =IF(I108="","",IF(A108="H",IF(OR(H108="SEN",H108<1995),VLOOKUP(I108,Feuil1!$A$11:$G$29,6),IF(AND(H108>1994,H108<1998),VLOOKUP(I108,Feuil1!$A$11:$G$29,5),IF(AND(H108>1997,H108<2000),VLOOKUP(I108,Feuil1!$A$11:$G$29,4),IF(AND(H108>1999,H108<2002),VLOOKUP(I108,Feuil1!$A$11:$G$29,3),VLOOKUP(I108,Feuil1!$A$11:$G$29,2))))),IF(OR(H108="SEN",H108<1995),VLOOKUP(I108,Feuil1!$G$11:$L$25,6),IF(AND(H108>1994,H108<1998),VLOOKUP(I108,Feuil1!$G$11:$L$25,5),IF(AND(H108>1997,H108<2000),VLOOKUP(I108,Feuil1!$G$11:$L$25,4),IF(AND(H108>1999,H108<2002),VLOOKUP(I108,Feuil1!$G$11:$L$25,3),VLOOKUP(I108,Feuil1!$G$11:$L$25,2))))))) -> C1 56 | Y108: 107.6529749 | AB108: =T108-HLOOKUP(X108,Feuil1!$C$1:$BL$10,2,FALSE) -> 18 | AC108: =T108-HLOOKUP(X108,Feuil1!$C$1:$BL$10,3,FALSE) -> -2 | AD108: =T108-HLOOKUP(X108,Feuil1!$C$1:$BL$10,4,FALSE) -> -17 | AE108: =T108-HLOOKUP(X108,Feuil1!$C$1:$BL$10,5,FALSE) -> -32 | AF108: =T108-HLOOKUP(X108,Feuil1!$C$1:$BL$10,6,FALSE) -> -47 | AG108: =T108-HLOOKUP(X108,Feuil1!$C$1:$BL$10,7,FALSE) -> -62 | AH108: =T108-HLOOKUP(X108,Feuil1!$C$1:$BL$10,8,FALSE) -> -77 | AI108: =T108-HLOOKUP(X108,Feuil1!$C$1:$BL$10,9,FALSE) -> -102 | AJ108: =T108-HLOOKUP(X108,Feuil1!$C$1:$BL$10,10,FALSE) -> -932 | AQ108: DEB
A109: H | B109: NE | C109: CHA | D109: 37 | E109: 387905 | F109: RENDA | G109: Jean | H109: 2001 | I109: 51 | J109: Langres HM | K109: F | L109: 25 | M109: 28 | N109: 30 | O109: 30 | P109: 30 | Q109: 34 | R109: 36 | S109: 36 | T109: 66 | U109: -36 | V109: DEB | W109: 16 | X109: =IF(I109="","",IF(A109="H",IF(OR(H109="SEN",H109<1995),VLOOKUP(I109,Feuil1!$A$11:$G$29,6),IF(AND(H109>1994,H109<1998),VLOOKUP(I109,Feuil1!$A$11:$G$29,5),IF(AND(H109>1997,H109<2000),VLOOKUP(I109,Feuil1!$A$11:$G$29,4),IF(AND(H109>1999,H109<2002),VLOOKUP(I109,Feuil1!$A$11:$G$29,3),VLOOKUP(I109,Feuil1!$A$11:$G$29,2))))),IF(OR(H109="SEN",H109<1995),VLOOKUP(I109,Feuil1!$G$11:$L$25,6),IF(AND(H109>1994,H109<1998),VLOOKUP(I109,Feuil1!$G$11:$L$25,5),IF(AND(H109>1997,H109<2000),VLOOKUP(I109,Feuil1!$G$11:$L$25,4),IF(AND(H109>1999,H109<2002),VLOOKUP(I109,Feuil1!$G$11:$L$25,3),VLOOKUP(I109,Feuil1!$G$11:$L$25,2))))))) -> C1 56 | Y109: 111.1795816 | AB109: =T109-HLOOKUP(X109,Feuil1!$C$1:$BL$10,2,FALSE) -> 16 | AC109: =T109-HLOOKUP(X109,Feuil1!$C$1:$BL$10,3,FALSE) -> -4 | AD109: =T109-HLOOKUP(X109,Feuil1!$C$1:$BL$10,4,FALSE) -> -19 | AE109: =T109-HLOOKUP(X109,Feuil1!$C$1:$BL$10,5,FALSE) -> -34 | AF109: =T109-HLOOKUP(X109,Feuil1!$C$1:$BL$10,6,FALSE) -> -49 | AG109: =T109-HLOOKUP(X109,Feuil1!$C$1:$BL$10,7,FALSE) -> -64 | AH109: =T109-HLOOKUP(X109,Feuil1!$C$1:$BL$10,8,FALSE) -> -79 | AI109: =T109-HLOOKUP(X109,Feuil1!$C$1:$BL$10,9,FALSE) -> -104 | AJ109: =T109-HLOOKUP(X109,Feuil1!$C$1:$BL$10,10,FALSE) -> -934 | AQ109: DEB
A110: H | B110: CO | C110: PDL | D110: 38 | E110: 379614 | F110: PUISSET | G110: GABRIEL | H110: 2001 | I110: 55.8 | J110: BBFC ALLONNES | K110: F | L110: 25 | M110: 26 | N110: 27 | O110: 27 | P110: 30 | Q110: 32 | R110: 35 | S110: 35 | T110: 62 | U110: -49.6 | V110: DEB | W110: 12 | X110: =IF(I110="","",IF(A110="H",IF(OR(H110="SEN",H110<1995),VLOOKUP(I110,Feuil1!$A$11:$G$29,6),IF(AND(H110>1994,H110<1998),VLOOKUP(I110,Feuil1!$A$11:$G$29,5),IF(AND(H110>1997,H110<2000),VLOOKUP(I110,Feuil1!$A$11:$G$29,4),IF(AND(H110>1999,H110<2002),VLOOKUP(I110,Feuil1!$A$11:$G$29,3),VLOOKUP(I110,Feuil1!$A$11:$G$29,2))))),IF(OR(H110="SEN",H110<1995),VLOOKUP(I110,Feuil1!$G$11:$L$25,6),IF(AND(H110>1994,H110<1998),VLOOKUP(I110,Feuil1!$G$11:$L$25,5),IF(AND(H110>1997,H110<2000),VLOOKUP(I110,Feuil1!$G$11:$L$25,4),IF(AND(H110>1999,H110<2002),VLOOKUP(I110,Feuil1!$G$11:$L$25,3),VLOOKUP(I110,Feuil1!$G$11:$L$25,2))))))) -> C1 56 | Y110: 97.03906651 | AB110: =T110-HLOOKUP(X110,Feuil1!$C$1:$BL$10,2,FALSE) -> 12 | AC110: =T110-HLOOKUP(X110,Feuil1!$C$1:$BL$10,3,FALSE) -> -8 | AD110: =T110-HLOOKUP(X110,Feuil1!$C$1:$BL$10,4,FALSE) -> -23 | AE110: =T110-HLOOKUP(X110,Feuil1!$C$1:$BL$10,5,FALSE) -> -38 | AF110: =T110-HLOOKUP(X110,Feuil1!$C$1:$BL$10,6,FALSE) -> -53 | AG110: =T110-HLOOKUP(X110,Feuil1!$C$1:$BL$10,7,FALSE) -> -68 | AH110: =T110-HLOOKUP(X110,Feuil1!$C$1:$BL$10,8,FALSE) -> -83 | AI110: =T110-HLOOKUP(X110,Feuil1!$C$1:$BL$10,9,FALSE) -> -108 | AJ110: =T110-HLOOKUP(X110,Feuil1!$C$1:$BL$10,10,FALSE) -> -938 | AQ110: DEB
A111: H | B111: NE | C111: ALS | D111: 39 | E111: 389913 | F111: CLEMENTZ | G111: EMERIC | H111: 2000 | I111: 50.8 | J111: MJC Ungersheim | K111: F | L111: 25 | M111: -28 | N111: -28 | O111: 25 | P111: 27 | Q111: -29 | R111: 30 | S111: 30 | T111: 55 | U111: -46.6 | V111: DEB | W111: 5 | X111: =IF(I111="","",IF(A111="H",IF(OR(H111="SEN",H111<1995),VLOOKUP(I111,Feuil1!$A$11:$G$29,6),IF(AND(H111>1994,H111<1998),VLOOKUP(I111,Feuil1!$A$11:$G$29,5),IF(AND(H111>1997,H111<2000),VLOOKUP(I111,Feuil1!$A$11:$G$29,4),IF(AND(H111>1999,H111<2002),VLOOKUP(I111,Feuil1!$A$11:$G$29,3),VLOOKUP(I111,Feuil1!$A$11:$G$29,2))))),IF(OR(H111="SEN",H111<1995),VLOOKUP(I111,Feuil1!$G$11:$L$25,6),IF(AND(H111>1994,H111<1998),VLOOKUP(I111,Feuil1!$G$11:$L$25,5),IF(AND(H111>1997,H111<2000),VLOOKUP(I111,Feuil1!$G$11:$L$25,4),IF(AND(H111>1999,H111<2002),VLOOKUP(I111,Feuil1!$G$11:$L$25,3),VLOOKUP(I111,Feuil1!$G$11:$L$25,2))))))) -> C1 56 | Y111: 92.95948553 | AB111: =T111-HLOOKUP(X111,Feuil1!$C$1:$BL$10,2,FALSE) -> 5 | AC111: =T111-HLOOKUP(X111,Feuil1!$C$1:$BL$10,3,FALSE) -> -15 | AD111: =T111-HLOOKUP(X111,Feuil1!$C$1:$BL$10,4,FALSE) -> -30 | AE111: =T111-HLOOKUP(X111,Feuil1!$C$1:$BL$10,5,FALSE) -> -45 | AF111: =T111-HLOOKUP(X111,Feuil1!$C$1:$BL$10,6,FALSE) -> -60 | AG111: =T111-HLOOKUP(X111,Feuil1!$C$1:$BL$10,7,FALSE) -> -75 | AH111: =T111-HLOOKUP(X111,Feuil1!$C$1:$BL$10,8,FALSE) -> -90 | AI111: =T111-HLOOKUP(X111,Feuil1!$C$1:$BL$10,9,FALSE) -> -115 | AJ111: =T111-HLOOKUP(X111,Feuil1!$C$1:$BL$10,10,FALSE) -> -945 | AQ111: DEB
A112: H | B112: CO | C112: CEN | D112: 40 | E112: 385632 | F112: MARIE | G112: Edouard | H112: 2000 | I112: 51 | J112: CM Orléans | K112: F | L112: 25 | M112: -27 | N112: -28 | O112: 25 | P112: 25 | Q112: 30 | R112: -35 | S112: 30 | T112: 55 | U112: -47 | V112: DEB | W112: 5 | X112: =IF(I112="","",IF(A112="H",IF(OR(H112="SEN",H112<1995),VLOOKUP(I112,Feuil1!$A$11:$G$29,6),IF(AND(H112>1994,H112<1998),VLOOKUP(I112,Feuil1!$A$11:$G$29,5),IF(AND(H112>1997,H112<2000),VLOOKUP(I112,Feuil1!$A$11:$G$29,4),IF(AND(H112>1999,H112<2002),VLOOKUP(I112,Feuil1!$A$11:$G$29,3),VLOOKUP(I112,Feuil1!$A$11:$G$29,2))))),IF(OR(H112="SEN",H112<1995),VLOOKUP(I112,Feuil1!$G$11:$L$25,6),IF(AND(H112>1994,H112<1998),VLOOKUP(I112,Feuil1!$G$11:$L$25,5),IF(AND(H112>1997,H112<2000),VLOOKUP(I112,Feuil1!$G$11:$L$25,4),IF(AND(H112>1999,H112<2002),VLOOKUP(I112,Feuil1!$G$11:$L$25,3),VLOOKUP(I112,Feuil1!$G$11:$L$25,2))))))) -> C1 56 | Y112: 92.64965137 | AB112: =T112-HLOOKUP(X112,Feuil1!$C$1:$BL$10,2,FALSE) -> 5 | AC112: =T112-HLOOKUP(X112,Feuil1!$C$1:$BL$10,3,FALSE) -> -15 | AD112: =T112-HLOOKUP(X112,Feuil1!$C$1:$BL$10,4,FALSE) -> -30 | AE112: =T112-HLOOKUP(X112,Feuil1!$C$1:$BL$10,5,FALSE) -> -45 | AF112: =T112-HLOOKUP(X112,Feuil1!$C$1:$BL$10,6,FALSE) -> -60 | AG112: =T112-HLOOKUP(X112,Feuil1!$C$1:$BL$10,7,FALSE) -> -75 | AH112: =T112-HLOOKUP(X112,Feuil1!$C$1:$BL$10,8,FALSE) -> -90 | AI112: =T112-HLOOKUP(X112,Feuil1!$C$1:$BL$10,9,FALSE) -> -115 | AJ112: =T112-HLOOKUP(X112,Feuil1!$C$1:$BL$10,10,FALSE) -> -945 | AQ112: DEB
A113: H | B113: CO | C113: BNO | D113: 41 | E113: 302146 | F113: FAUNY | G113: Gilles | H113: 2001 | I113: 55.95 | J113: Stade St Lois | K113: F | L113: 18 | M113: 20 | N113: 22 | O113: 22 | P113: 28 | Q113: 31 | R113: 33 | S113: 33 | T113: 55 | U113: -56.9 | V113: DEB | W113: 5 | X113: =IF(I113="","",IF(A113="H",IF(OR(H113="SEN",H113<1995),VLOOKUP(I113,Feuil1!$A$11:$G$29,6),IF(AND(H113>1994,H113<1998),VLOOKUP(I113,Feuil1!$A$11:$G$29,5),IF(AND(H113>1997,H113<2000),VLOOKUP(I113,Feuil1!$A$11:$G$29,4),IF(AND(H113>1999,H113<2002),VLOOKUP(I113,Feuil1!$A$11:$G$29,3),VLOOKUP(I113,Feuil1!$A$11:$G$29,2))))),IF(OR(H113="SEN",H113<1995),VLOOKUP(I113,Feuil1!$G$11:$L$25,6),IF(AND(H113>1994,H113<1998),VLOOKUP(I113,Feuil1!$G$11:$L$25,5),IF(AND(H113>1997,H113<2000),VLOOKUP(I113,Feuil1!$G$11:$L$25,4),IF(AND(H113>1999,H113<2002),VLOOKUP(I113,Feuil1!$G$11:$L$25,3),VLOOKUP(I113,Feuil1!$G$11:$L$25,2))))))) -> C1 56 | Y113: 85.90174977 | AB113: =T113-HLOOKUP(X113,Feuil1!$C$1:$BL$10,2,FALSE) -> 5 | AC113: =T113-HLOOKUP(X113,Feuil1!$C$1:$BL$10,3,FALSE) -> -15 | AD113: =T113-HLOOKUP(X113,Feuil1!$C$1:$BL$10,4,FALSE) -> -30 | AE113: =T113-HLOOKUP(X113,Feuil1!$C$1:$BL$10,5,FALSE) -> -45 | AF113: =T113-HLOOKUP(X113,Feuil1!$C$1:$BL$10,6,FALSE) -> -60 | AG113: =T113-HLOOKUP(X113,Feuil1!$C$1:$BL$10,7,FALSE) -> -75 | AH113: =T113-HLOOKUP(X113,Feuil1!$C$1:$BL$10,8,FALSE) -> -90 | AI113: =T113-HLOOKUP(X113,Feuil1!$C$1:$BL$10,9,FALSE) -> -115 | AJ113: =T113-HLOOKUP(X113,Feuil1!$C$1:$BL$10,10,FALSE) -> -945 | AQ113: DEB
A114: H | B114: NORD | C114: PIC | D114: 42 | E114: 387613 | F114: LOGER | G114: Romain | H114: 2000 | I114: 51.4 | J114: Villers-Bretonneux KC | K114: F | L114: 20 | M114: 25 | N114: -30 | O114: 25 | P114: -25 | Q114: 25 | R114: -30 | S114: 25 | T114: 50 | U114: -52.8 | V114: DEB | W114: 0 | X114: =IF(I114="","",IF(A114="H",IF(OR(H114="SEN",H114<1995),VLOOKUP(I114,Feuil1!$A$11:$G$29,6),IF(AND(H114>1994,H114<1998),VLOOKUP(I114,Feuil1!$A$11:$G$29,5),IF(AND(H114>1997,H114<2000),VLOOKUP(I114,Feuil1!$A$11:$G$29,4),IF(AND(H114>1999,H114<2002),VLOOKUP(I114,Feuil1!$A$11:$G$29,3),VLOOKUP(I114,Feuil1!$A$11:$G$29,2))))),IF(OR(H114="SEN",H114<1995),VLOOKUP(I114,Feuil1!$G$11:$L$25,6),IF(AND(H114>1994,H114<1998),VLOOKUP(I114,Feuil1!$G$11:$L$25,5),IF(AND(H114>1997,H114<2000),VLOOKUP(I114,Feuil1!$G$11:$L$25,4),IF(AND(H114>1999,H114<2002),VLOOKUP(I114,Feuil1!$G$11:$L$25,3),VLOOKUP(I114,Feuil1!$G$11:$L$25,2))))))) -> C1 56 | Y114: 83.67235344 | AB114: =T114-HLOOKUP(X114,Feuil1!$C$1:$BL$10,2,FALSE) -> 0 | AC114: =T114-HLOOKUP(X114,Feuil1!$C$1:$BL$10,3,FALSE) -> -20 | AD114: =T114-HLOOKUP(X114,Feuil1!$C$1:$BL$10,4,FALSE) -> -35 | AE114: =T114-HLOOKUP(X114,Feuil1!$C$1:$BL$10,5,FALSE) -> -50 | AF114: =T114-HLOOKUP(X114,Feuil1!$C$1:$BL$10,6,FALSE) -> -65 | AG114: =T114-HLOOKUP(X114,Feuil1!$C$1:$BL$10,7,FALSE) -> -80 | AH114: =T114-HLOOKUP(X114,Feuil1!$C$1:$BL$10,8,FALSE) -> -95 | AI114: =T114-HLOOKUP(X114,Feuil1!$C$1:$BL$10,9,FALSE) -> -120 | AJ114: =T114-HLOOKUP(X114,Feuil1!$C$1:$BL$10,10,FALSE) -> -950 | AQ114: DEB
A115: H | B115: SO | C115: MPY | D115: 43 | E115: 371172 | F115: PINQUIE | G115: Jérémy | H115: 2000 | I115: 51 | J115: FIGEAC HC | K115: F | L115: 15 | M115: 17 | N115: -19 | O115: 17 | P115: 25 | Q115: -29 | R115: 29 | S115: 29 | T115: 46 | U115: -56 | V115: DEB | W115: -4 | X115: =IF(I115="","",IF(A115="H",IF(OR(H115="SEN",H115<1995),VLOOKUP(I115,Feuil1!$A$11:$G$29,6),IF(AND(H115>1994,H115<1998),VLOOKUP(I115,Feuil1!$A$11:$G$29,5),IF(AND(H115>1997,H115<2000),VLOOKUP(I115,Feuil1!$A$11:$G$29,4),IF(AND(H115>1999,H115<2002),VLOOKUP(I115,Feuil1!$A$11:$G$29,3),VLOOKUP(I115,Feuil1!$A$11:$G$29,2))))),IF(OR(H115="SEN",H115<1995),VLOOKUP(I115,Feuil1!$G$11:$L$25,6),IF(AND(H115>1994,H115<1998),VLOOKUP(I115,Feuil1!$G$11:$L$25,5),IF(AND(H115>1997,H115<2000),VLOOKUP(I115,Feuil1!$G$11:$L$25,4),IF(AND(H115>1999,H115<2002),VLOOKUP(I115,Feuil1!$G$11:$L$25,3),VLOOKUP(I115,Feuil1!$G$11:$L$25,2))))))) -> C1 56 | Y115: 77.48879933 | AB115: =T115-HLOOKUP(X115,Feuil1!$C$1:$BL$10,2,FALSE) -> -4 | AC115: =T115-HLOOKUP(X115,Feuil1!$C$1:$BL$10,3,FALSE) -> -24 | AD115: =T115-HLOOKUP(X115,Feuil1!$C$1:$BL$10,4,FALSE) -> -39 | AE115: =T115-HLOOKUP(X115,Feuil1!$C$1:$BL$10,5,FALSE) -> -54 | AF115: =T115-HLOOKUP(X115,Feuil1!$C$1:$BL$10,6,FALSE) -> -69 | AG115: =T115-HLOOKUP(X115,Feuil1!$C$1:$BL$10,7,FALSE) -> -84 | AH115: =T115-HLOOKUP(X115,Feuil1!$C$1:$BL$10,8,FALSE) -> -99 | AI115: =T115-HLOOKUP(X115,Feuil1!$C$1:$BL$10,9,FALSE) -> -124 | AJ115: =T115-HLOOKUP(X115,Feuil1!$C$1:$BL$10,10,FALSE) -> -954 | AQ115: DEB
A116: H | B116: CO | C116: PDL | D116: 44 | E116: 379818 | F116: REGENT | G116: Damien | H116: 2000 | I116: 55.56 | J116: ALSavenay | K116: F | L116: 17 | M116: -20 | N116: 20 | O116: 20 | P116: 24 | Q116: -26 | R116: 26 | S116: 26 | T116: 46 | U116: -65.12 | V116: DEB | W116: -4 | X116: =IF(I116="","",IF(A116="H",IF(OR(H116="SEN",H116<1995),VLOOKUP(I116,Feuil1!$A$11:$G$29,6),IF(AND(H116>1994,H116<1998),VLOOKUP(I116,Feuil1!$A$11:$G$29,5),IF(AND(H116>1997,H116<2000),VLOOKUP(I116,Feuil1!$A$11:$G$29,4),IF(AND(H116>1999,H116<2002),VLOOKUP(I116,Feuil1!$A$11:$G$29,3),VLOOKUP(I116,Feuil1!$A$11:$G$29,2))))),IF(OR(H116="SEN",H116<1995),VLOOKUP(I116,Feuil1!$G$11:$L$25,6),IF(AND(H116>1994,H116<1998),VLOOKUP(I116,Feuil1!$G$11:$L$25,5),IF(AND(H116>1997,H116<2000),VLOOKUP(I116,Feuil1!$G$11:$L$25,4),IF(AND(H116>1999,H116<2002),VLOOKUP(I116,Feuil1!$G$11:$L$25,3),VLOOKUP(I116,Feuil1!$G$11:$L$25,2))))))) -> C1 56 | Y116: 72.24160085 | AB116: =T116-HLOOKUP(X116,Feuil1!$C$1:$BL$10,2,FALSE) -> -4 | AC116: =T116-HLOOKUP(X116,Feuil1!$C$1:$BL$10,3,FALSE) -> -24 | AD116: =T116-HLOOKUP(X116,Feuil1!$C$1:$BL$10,4,FALSE) -> -39 | AE116: =T116-HLOOKUP(X116,Feuil1!$C$1:$BL$10,5,FALSE) -> -54 | AF116: =T116-HLOOKUP(X116,Feuil1!$C$1:$BL$10,6,FALSE) -> -69 | AG116: =T116-HLOOKUP(X116,Feuil1!$C$1:$BL$10,7,FALSE) -> -84 | AH116: =T116-HLOOKUP(X116,Feuil1!$C$1:$BL$10,8,FALSE) -> -99 | AI116: =T116-HLOOKUP(X116,Feuil1!$C$1:$BL$10,9,FALSE) -> -124 | AJ116: =T116-HLOOKUP(X116,Feuil1!$C$1:$BL$10,10,FALSE) -> -954 | AQ116: DEB
A117: H | B117: NE | C117: ALS | D117: 45 | E117: 384535 | F117: FABRIANO | G117: Romain | H117: 2001 | I117: 51.3 | J117: SR Obernai HM | K117: F | L117: 17 | M117: 19 | N117: 21 | O117: 21 | P117: -22 | Q117: 22 | R117: 24 | S117: 24 | T117: 45 | U117: -57.6 | V117: DEB | W117: -5 | X117: =IF(I117="","",IF(A117="H",IF(OR(H117="SEN",H117<1995),VLOOKUP(I117,Feuil1!$A$11:$G$29,6),IF(AND(H117>1994,H117<1998),VLOOKUP(I117,Feuil1!$A$11:$G$29,5),IF(AND(H117>1997,H117<2000),VLOOKUP(I117,Feuil1!$A$11:$G$29,4),IF(AND(H117>1999,H117<2002),VLOOKUP(I117,Feuil1!$A$11:$G$29,3),VLOOKUP(I117,Feuil1!$A$11:$G$29,2))))),IF(OR(H117="SEN",H117<1995),VLOOKUP(I117,Feuil1!$G$11:$L$25,6),IF(AND(H117>1994,H117<1998),VLOOKUP(I117,Feuil1!$G$11:$L$25,5),IF(AND(H117>1997,H117<2000),VLOOKUP(I117,Feuil1!$G$11:$L$25,4),IF(AND(H117>1999,H117<2002),VLOOKUP(I117,Feuil1!$G$11:$L$25,3),VLOOKUP(I117,Feuil1!$G$11:$L$25,2))))))) -> C1 56 | Y117: 75.42893293 | AB117: =T117-HLOOKUP(X117,Feuil1!$C$1:$BL$10,2,FALSE) -> -5 | AC117: =T117-HLOOKUP(X117,Feuil1!$C$1:$BL$10,3,FALSE) -> -25 | AD117: =T117-HLOOKUP(X117,Feuil1!$C$1:$BL$10,4,FALSE) -> -40 | AE117: =T117-HLOOKUP(X117,Feuil1!$C$1:$BL$10,5,FALSE) -> -55 | AF117: =T117-HLOOKUP(X117,Feuil1!$C$1:$BL$10,6,FALSE) -> -70 | AG117: =T117-HLOOKUP(X117,Feuil1!$C$1:$BL$10,7,FALSE) -> -85 | AH117: =T117-HLOOKUP(X117,Feuil1!$C$1:$BL$10,8,FALSE) -> -100 | AI117: =T117-HLOOKUP(X117,Feuil1!$C$1:$BL$10,9,FALSE) -> -125 | AJ117: =T117-HLOOKUP(X117,Feuil1!$C$1:$BL$10,10,FALSE) -> -955 | AQ117: DEB
A118: H | B118: N | C118: IDF | D118: 46 | E118: 395667 | F118: FARIA | G118: MANUEL | H118: 2000 | I118: 56 | J118: CHAVILLE | K118: F | L118: 14 | M118: 17 | N118: 20 | O118: 20 | P118: -22 | Q118: 24 | R118: 25 | S118: 25 | T118: 45 | U118: -67 | V118: DEB | W118: -5 | X118: =IF(I118="","",IF(A118="H",IF(OR(H118="SEN",H118<1995),VLOOKUP(I118,Feuil1!$A$11:$G$29,6),IF(AND(H118>1994,H118<1998),VLOOKUP(I118,Feuil1!$A$11:$G$29,5),IF(AND(H118>1997,H118<2000),VLOOKUP(I118,Feuil1!$A$11:$G$29,4),IF(AND(H118>1999,H118<2002),VLOOKUP(I118,Feuil1!$A$11:$G$29,3),VLOOKUP(I118,Feuil1!$A$11:$G$29,2))))),IF(OR(H118="SEN",H118<1995),VLOOKUP(I118,Feuil1!$G$11:$L$25,6),IF(AND(H118>1994,H118<1998),VLOOKUP(I118,Feuil1!$G$11:$L$25,5),IF(AND(H118>1997,H118<2000),VLOOKUP(I118,Feuil1!$G$11:$L$25,4),IF(AND(H118>1999,H118<2002),VLOOKUP(I118,Feuil1!$G$11:$L$25,3),VLOOKUP(I118,Feuil1!$G$11:$L$25,2))))))) -> C1 56 | Y118: 70.23404133 | AB118: =T118-HLOOKUP(X118,Feuil1!$C$1:$BL$10,2,FALSE) -> -5 | AC118: =T118-HLOOKUP(X118,Feuil1!$C$1:$BL$10,3,FALSE) -> -25 | AD118: =T118-HLOOKUP(X118,Feuil1!$C$1:$BL$10,4,FALSE) -> -40 | AE118: =T118-HLOOKUP(X118,Feuil1!$C$1:$BL$10,5,FALSE) -> -55 | AF118: =T118-HLOOKUP(X118,Feuil1!$C$1:$BL$10,6,FALSE) -> -70 | AG118: =T118-HLOOKUP(X118,Feuil1!$C$1:$BL$10,7,FALSE) -> -85 | AH118: =T118-HLOOKUP(X118,Feuil1!$C$1:$BL$10,8,FALSE) -> -100 | AI118: =T118-HLOOKUP(X118,Feuil1!$C$1:$BL$10,9,FALSE) -> -125 | AJ118: =T118-HLOOKUP(X118,Feuil1!$C$1:$BL$10,10,FALSE) -> -955 | AQ118: DEB
A119: H | B119: NORD | C119: PIC | D119: 47 | E119: 375795 | F119: VERRECHIA | G119: Jimmy | H119: 2000 | I119: 56 | J119: La Ferté Milon CMHM | K119: F | L119: 10 | M119: 13 | N119: 15 | O119: 15 | P119: 17 | Q119: 19 | R119: -21 | S119: 19 | T119: 34 | U119: -78 | V119: DEB | W119: -16 | X119: =IF(I119="","",IF(A119="H",IF(OR(H119="SEN",H119<1995),VLOOKUP(I119,Feuil1!$A$11:$G$29,6),IF(AND(H119>1994,H119<1998),VLOOKUP(I119,Feuil1!$A$11:$G$29,5),IF(AND(H119>1997,H119<2000),VLOOKUP(I119,Feuil1!$A$11:$G$29,4),IF(AND(H119>1999,H119<2002),VLOOKUP(I119,Feuil1!$A$11:$G$29,3),VLOOKUP(I119,Feuil1!$A$11:$G$29,2))))),IF(OR(H119="SEN",H119<1995),VLOOKUP(I119,Feuil1!$G$11:$L$25,6),IF(AND(H119>1994,H119<1998),VLOOKUP(I119,Feuil1!$G$11:$L$25,5),IF(AND(H119>1997,H119<2000),VLOOKUP(I119,Feuil1!$G$11:$L$25,4),IF(AND(H119>1999,H119<2002),VLOOKUP(I119,Feuil1!$G$11:$L$25,3),VLOOKUP(I119,Feuil1!$G$11:$L$25,2))))))) -> C1 56 | Y119: 53.06572011 | AB119: =T119-HLOOKUP(X119,Feuil1!$C$1:$BL$10,2,FALSE) -> -16 | AC119: =T119-HLOOKUP(X119,Feuil1!$C$1:$BL$10,3,FALSE) -> -36 | AD119: =T119-HLOOKUP(X119,Feuil1!$C$1:$BL$10,4,FALSE) -> -51 | AE119: =T119-HLOOKUP(X119,Feuil1!$C$1:$BL$10,5,FALSE) -> -66 | AF119: =T119-HLOOKUP(X119,Feuil1!$C$1:$BL$10,6,FALSE) -> -81 | AG119: =T119-HLOOKUP(X119,Feuil1!$C$1:$BL$10,7,FALSE) -> -96 | AH119: =T119-HLOOKUP(X119,Feuil1!$C$1:$BL$10,8,FALSE) -> -111 | AI119: =T119-HLOOKUP(X119,Feuil1!$C$1:$BL$10,9,FALSE) -> -136 | AJ119: =T119-HLOOKUP(X119,Feuil1!$C$1:$BL$10,10,FALSE) -> -966 | AQ119: DEB
AB120: =T120-HLOOKUP(X120,[1]Feuil1!$C$1:$BL$10,2,FALSE) ->  | AC120: =T120-HLOOKUP(X120,[1]Feuil1!$C$1:$BL$10,3,FALSE) ->  | AD120: =T120-HLOOKUP(X120,[1]Feuil1!$C$1:$BL$10,4,FALSE) ->  | AE120: =T120-HLOOKUP(X120,[1]Feuil1!$C$1:$BL$10,5,FALSE) ->  | AF120: =T120-HLOOKUP(X120,[1]Feuil1!$C$1:$BL$10,6,FALSE) ->  | AG120: =T120-HLOOKUP(X120,[1]Feuil1!$C$1:$BL$10,7,FALSE) ->  | AH120: =T120-HLOOKUP(X120,[1]Feuil1!$C$1:$BL$10,8,FALSE) ->  | AI120: =T120-HLOOKUP(X120,[1]Feuil1!$C$1:$BL$10,9,FALSE) ->  | AJ120: =T120-HLOOKUP(X120,[1]Feuil1!$C$1:$BL$10,10,FALSE) ->  | AQ120: =IF(AJ120>=0,$AJ$4,IF(AI120>=0,$AI$4,IF(AH120>=0,$AH$4,IF(AG120>=0,$AG$4,IF(AF120>=0,$AF$4,IF(AE120>=0,$AE$4,IF(AD120>=0,$AD$4,IF(AC120>=0,$AC$4,$AB$4)))))))) -> 
A121: H | B121: NORD | C121: NPC | D121: 1 | E121: 336176 | F121: FARETIE | G121: Sony | H121: 2000 | I121: 61.23 | J121: C.A.ROSENDAEL | K121: F | L121: -73 | M121: 75 | N121: 80 | O121: =IF(H121="","",IF(MAXA(L121:N121)<=0,0,MAXA(L121:N121))) -> 80 | P121: -95 | Q121: 95 | R121: 100 | S121: =IF(H121="","",IF(MAXA(P121:R121)<=0,0,MAXA(P121:R121))) -> 100 | T121: =IF(H121="","",IF(OR(O121=0,S121=0),0,O121+S121)) -> 180 | U121: =T121-I121*2 -> 57.54 | V121: =IF(H121="","",AQ121) -> INTB + | W121: =IF(AJ121>=0,AJ121,IF(AI121>=0,AI121,IF(AH121>=0,AH121,IF(AG121>=0,AG121,IF(AF121>=0,AF121,IF(AE121>=0,AE121,IF(AD121>=0,AD121,IF(AC121>=0,AC121,AB121)))))))) -> 10 | X121: =IF(I121="","",IF(A121="H",IF(OR(H121="SEN",H121<1995),VLOOKUP(I121,Feuil1!$A$11:$G$29,6),IF(AND(H121>1994,H121<1998),VLOOKUP(I121,Feuil1!$A$11:$G$29,5),IF(AND(H121>1997,H121<2000),VLOOKUP(I121,Feuil1!$A$11:$G$29,4),IF(AND(H121>1999,H121<2002),VLOOKUP(I121,Feuil1!$A$11:$G$29,3),VLOOKUP(I121,Feuil1!$A$11:$G$29,2))))),IF(OR(H121="SEN",H121<1995),VLOOKUP(I121,Feuil1!$G$11:$L$25,6),IF(AND(H121>1994,H121<1998),VLOOKUP(I121,Feuil1!$G$11:$L$25,5),IF(AND(H121>1997,H121<2000),VLOOKUP(I121,Feuil1!$G$11:$L$25,4),IF(AND(H121>1999,H121<2002),VLOOKUP(I121,Feuil1!$G$11:$L$25,3),VLOOKUP(I121,Feuil1!$G$11:$L$25,2))))))) -> C1 62 | Y121: =IF(I121="","",IF(A121="H",10^(0.794358141*LOG(I121/174.393)^2)*T121,IF(A121="F",10^(0.89726074*LOG(I121/148.026)^2)*T121,""))) -> 262.6697439 | AB121: =T121-HLOOKUP(X121,Feuil1!$C$1:$BL$10,2,FALSE) -> 105 | AC121: =T121-HLOOKUP(X121,Feuil1!$C$1:$BL$10,3,FALSE) -> 85 | AD121: =T121-HLOOKUP(X121,Feuil1!$C$1:$BL$10,4,FALSE) -> 75 | AE121: =T121-HLOOKUP(X121,Feuil1!$C$1:$BL$10,5,FALSE) -> 60 | AF121: =T121-HLOOKUP(X121,Feuil1!$C$1:$BL$10,6,FALSE) -> 45 | AG121: =T121-HLOOKUP(X121,Feuil1!$C$1:$BL$10,7,FALSE) -> 30 | AH121: =T121-HLOOKUP(X121,Feuil1!$C$1:$BL$10,8,FALSE) -> 10 | AI121: =T121-HLOOKUP(X121,Feuil1!$C$1:$BL$10,9,FALSE) -> -10 | AJ121: =T121-HLOOKUP(X121,Feuil1!$C$1:$BL$10,10,FALSE) -> -820 | AQ121: =IF(AJ121>=0,$AJ$4,IF(AI121>=0,$AI$4,IF(AH121>=0,$AH$4,IF(AG121>=0,$AG$4,IF(AF121>=0,$AF$4,IF(AE121>=0,$AE$4,IF(AD121>=0,$AD$4,IF(AC121>=0,$AC$4,$AB$4)))))))) -> INTB +
A122: H | B122: SEST | C122: LAN | D122: 2 | E122: 312387 | F122: SERGENT | G122: Enzo | H122: 2001 | I122: 57.8 | J122: Clermont Sports | K122: F | L122: 70 | M122: 73 | N122: 75 | O122: 75 | P122: 95 | Q122: 100 | R122: -104 | S122: 100 | T122: 175 | U122: 59.4 | V122: INTB + | W122: 5 | X122: =IF(I122="","",IF(A122="H",IF(OR(H122="SEN",H122<1995),VLOOKUP(I122,Feuil1!$A$11:$G$29,6),IF(AND(H122>1994,H122<1998),VLOOKUP(I122,Feuil1!$A$11:$G$29,5),IF(AND(H122>1997,H122<2000),VLOOKUP(I122,Feuil1!$A$11:$G$29,4),IF(AND(H122>1999,H122<2002),VLOOKUP(I122,Feuil1!$A$11:$G$29,3),VLOOKUP(I122,Feuil1!$A$11:$G$29,2))))),IF(OR(H122="SEN",H122<1995),VLOOKUP(I122,Feuil1!$G$11:$L$25,6),IF(AND(H122>1994,H122<1998),VLOOKUP(I122,Feuil1!$G$11:$L$25,5),IF(AND(H122>1997,H122<2000),VLOOKUP(I122,Feuil1!$G$11:$L$25,4),IF(AND(H122>1999,H122<2002),VLOOKUP(I122,Feuil1!$G$11:$L$25,3),VLOOKUP(I122,Feuil1!$G$11:$L$25,2))))))) -> C1 62 | Y122: 266.5349593 | AB122: =T122-HLOOKUP(X122,Feuil1!$C$1:$BL$10,2,FALSE) -> 100 | AC122: =T122-HLOOKUP(X122,Feuil1!$C$1:$BL$10,3,FALSE) -> 80 | AD122: =T122-HLOOKUP(X122,Feuil1!$C$1:$BL$10,4,FALSE) -> 70 | AE122: =T122-HLOOKUP(X122,Feuil1!$C$1:$BL$10,5,FALSE) -> 55 | AF122: =T122-HLOOKUP(X122,Feuil1!$C$1:$BL$10,6,FALSE) -> 40 | AG122: =T122-HLOOKUP(X122,Feuil1!$C$1:$BL$10,7,FALSE) -> 25 | AH122: =T122-HLOOKUP(X122,Feuil1!$C$1:$BL$10,8,FALSE) -> 5 | AI122: =T122-HLOOKUP(X122,Feuil1!$C$1:$BL$10,9,FALSE) -> -15 | AJ122: =T122-HLOOKUP(X122,Feuil1!$C$1:$BL$10,10,FALSE) -> -825 | AQ122: INTB +
A123: H | B123: DOM | C123: GUA | D123: 3 | E123: 265989 | F123: BERTILI | G123: Bernard | H123: 2000 | I123: 61 | J123: Body Club Domien | K123: F | L123: 70 | M123: 75 | N123: 80 | O123: 80 | P123: 90 | Q123: 95 | R123: -100 | S123: 95 | T123: 175 | U123: 53 | V123: INTB + | W123: 5 | X123: =IF(I123="","",IF(A123="H",IF(OR(H123="SEN",H123<1995),VLOOKUP(I123,Feuil1!$A$11:$G$29,6),IF(AND(H123>1994,H123<1998),VLOOKUP(I123,Feuil1!$A$11:$G$29,5),IF(AND(H123>1997,H123<2000),VLOOKUP(I123,Feuil1!$A$11:$G$29,4),IF(AND(H123>1999,H123<2002),VLOOKUP(I123,Feuil1!$A$11:$G$29,3),VLOOKUP(I123,Feuil1!$A$11:$G$29,2))))),IF(OR(H123="SEN",H123<1995),VLOOKUP(I123,Feuil1!$G$11:$L$25,6),IF(AND(H123>1994,H123<1998),VLOOKUP(I123,Feuil1!$G$11:$L$25,5),IF(AND(H123>1997,H123<2000),VLOOKUP(I123,Feuil1!$G$11:$L$25,4),IF(AND(H123>1999,H123<2002),VLOOKUP(I123,Feuil1!$G$11:$L$25,3),VLOOKUP(I123,Feuil1!$G$11:$L$25,2))))))) -> C1 62 | Y123: 256.0696194 | AB123: =T123-HLOOKUP(X123,Feuil1!$C$1:$BL$10,2,FALSE) -> 100 | AC123: =T123-HLOOKUP(X123,Feuil1!$C$1:$BL$10,3,FALSE) -> 80 | AD123: =T123-HLOOKUP(X123,Feuil1!$C$1:$BL$10,4,FALSE) -> 70 | AE123: =T123-HLOOKUP(X123,Feuil1!$C$1:$BL$10,5,FALSE) -> 55 | AF123: =T123-HLOOKUP(X123,Feuil1!$C$1:$BL$10,6,FALSE) -> 40 | AG123: =T123-HLOOKUP(X123,Feuil1!$C$1:$BL$10,7,FALSE) -> 25 | AH123: =T123-HLOOKUP(X123,Feuil1!$C$1:$BL$10,8,FALSE) -> 5 | AI123: =T123-HLOOKUP(X123,Feuil1!$C$1:$BL$10,9,FALSE) -> -15 | AJ123: =T123-HLOOKUP(X123,Feuil1!$C$1:$BL$10,10,FALSE) -> -825 | AQ123: INTB +
A124: H | B124: NE | C124: CHA | D124: 4 | E124: 339573 | F124: MKRTCHYAN | G124: Armen | H124: 2000 | I124: 61.82 | J124: Reims HM | K124: Arm | L124: 65 | M124: 69 | N124: 72 | O124: 72 | P124: 88 | Q124: 93 | R124: -97 | S124: 93 | T124: 165 | U124: 41.36 | V124: NAT + | W124: 15 | X124: =IF(I124="","",IF(A124="H",IF(OR(H124="SEN",H124<1995),VLOOKUP(I124,Feuil1!$A$11:$G$29,6),IF(AND(H124>1994,H124<1998),VLOOKUP(I124,Feuil1!$A$11:$G$29,5),IF(AND(H124>1997,H124<2000),VLOOKUP(I124,Feuil1!$A$11:$G$29,4),IF(AND(H124>1999,H124<2002),VLOOKUP(I124,Feuil1!$A$11:$G$29,3),VLOOKUP(I124,Feuil1!$A$11:$G$29,2))))),IF(OR(H124="SEN",H124<1995),VLOOKUP(I124,Feuil1!$G$11:$L$25,6),IF(AND(H124>1994,H124<1998),VLOOKUP(I124,Feuil1!$G$11:$L$25,5),IF(AND(H124>1997,H124<2000),VLOOKUP(I124,Feuil1!$G$11:$L$25,4),IF(AND(H124>1999,H124<2002),VLOOKUP(I124,Feuil1!$G$11:$L$25,3),VLOOKUP(I124,Feuil1!$G$11:$L$25,2))))))) -> C1 62 | Y124: 239.1264399 | AB124: =T124-HLOOKUP(X124,Feuil1!$C$1:$BL$10,2,FALSE) -> 90 | AC124: =T124-HLOOKUP(X124,Feuil1!$C$1:$BL$10,3,FALSE) -> 70 | AD124: =T124-HLOOKUP(X124,Feuil1!$C$1:$BL$10,4,FALSE) -> 60 | AE124: =T124-HLOOKUP(X124,Feuil1!$C$1:$BL$10,5,FALSE) -> 45 | AF124: =T124-HLOOKUP(X124,Feuil1!$C$1:$BL$10,6,FALSE) -> 30 | AG124: =T124-HLOOKUP(X124,Feuil1!$C$1:$BL$10,7,FALSE) -> 15 | AH124: =T124-HLOOKUP(X124,Feuil1!$C$1:$BL$10,8,FALSE) -> -5 | AI124: =T124-HLOOKUP(X124,Feuil1!$C$1:$BL$10,9,FALSE) -> -25 | AJ124: =T124-HLOOKUP(X124,Feuil1!$C$1:$BL$10,10,FALSE) -> -835 | AQ124: NAT +
A125: H | B125: SEST | C125: LAN | D125: 5 | E125: 331084 | F125: GIAMBRONE | G125: Alexandre | H125: 2000 | I125: 61.34 | J125: Clermont Sports | K125: F | L125: 67 | M125: 70 | N125: -72 | O125: 70 | P125: 90 | Q125: -96 | R125: -96 | S125: 90 | T125: 160 | U125: 37.32 | V125: NAT + | W125: 10 | X125: =IF(I125="","",IF(A125="H",IF(OR(H125="SEN",H125<1995),VLOOKUP(I125,Feuil1!$A$11:$G$29,6),IF(AND(H125>1994,H125<1998),VLOOKUP(I125,Feuil1!$A$11:$G$29,5),IF(AND(H125>1997,H125<2000),VLOOKUP(I125,Feuil1!$A$11:$G$29,4),IF(AND(H125>1999,H125<2002),VLOOKUP(I125,Feuil1!$A$11:$G$29,3),VLOOKUP(I125,Feuil1!$A$11:$G$29,2))))),IF(OR(H125="SEN",H125<1995),VLOOKUP(I125,Feuil1!$G$11:$L$25,6),IF(AND(H125>1994,H125<1998),VLOOKUP(I125,Feuil1!$G$11:$L$25,5),IF(AND(H125>1997,H125<2000),VLOOKUP(I125,Feuil1!$G$11:$L$25,4),IF(AND(H125>1999,H125<2002),VLOOKUP(I125,Feuil1!$G$11:$L$25,3),VLOOKUP(I125,Feuil1!$G$11:$L$25,2))))))) -> C1 62 | Y125: 233.1820237 | AB125: =T125-HLOOKUP(X125,Feuil1!$C$1:$BL$10,2,FALSE) -> 85 | AC125: =T125-HLOOKUP(X125,Feuil1!$C$1:$BL$10,3,FALSE) -> 65 | AD125: =T125-HLOOKUP(X125,Feuil1!$C$1:$BL$10,4,FALSE) -> 55 | AE125: =T125-HLOOKUP(X125,Feuil1!$C$1:$BL$10,5,FALSE) -> 40 | AF125: =T125-HLOOKUP(X125,Feuil1!$C$1:$BL$10,6,FALSE) -> 25 | AG125: =T125-HLOOKUP(X125,Feuil1!$C$1:$BL$10,7,FALSE) -> 10 | AH125: =T125-HLOOKUP(X125,Feuil1!$C$1:$BL$10,8,FALSE) -> -10 | AI125: =T125-HLOOKUP(X125,Feuil1!$C$1:$BL$10,9,FALSE) -> -30 | AJ125: =T125-HLOOKUP(X125,Feuil1!$C$1:$BL$10,10,FALSE) -> -840 | AQ125: NAT +
A126: H | B126: CO | C126: BRE | D126: 6 | E126: 324558 | F126: LERUYET | G126: Téo | H126: 2000 | I126: 57.6 | J126: CA Lorient | K126: F | L126: 62 | M126: 65 | N126: 69 | O126: 69 | P126: 73 | Q126: 77 | R126: 80 | S126: 80 | T126: 149 | U126: 33.8 | V126: FED + | W126: 14 | X126: =IF(I126="","",IF(A126="H",IF(OR(H126="SEN",H126<1995),VLOOKUP(I126,Feuil1!$A$11:$G$29,6),IF(AND(H126>1994,H126<1998),VLOOKUP(I126,Feuil1!$A$11:$G$29,5),IF(AND(H126>1997,H126<2000),VLOOKUP(I126,Feuil1!$A$11:$G$29,4),IF(AND(H126>1999,H126<2002),VLOOKUP(I126,Feuil1!$A$11:$G$29,3),VLOOKUP(I126,Feuil1!$A$11:$G$29,2))))),IF(OR(H126="SEN",H126<1995),VLOOKUP(I126,Feuil1!$G$11:$L$25,6),IF(AND(H126>1994,H126<1998),VLOOKUP(I126,Feuil1!$G$11:$L$25,5),IF(AND(H126>1997,H126<2000),VLOOKUP(I126,Feuil1!$G$11:$L$25,4),IF(AND(H126>1999,H126<2002),VLOOKUP(I126,Feuil1!$G$11:$L$25,3),VLOOKUP(I126,Feuil1!$G$11:$L$25,2))))))) -> C1 62 | Y126: 227.5365692 | AB126: =T126-HLOOKUP(X126,Feuil1!$C$1:$BL$10,2,FALSE) -> 74 | AC126: =T126-HLOOKUP(X126,Feuil1!$C$1:$BL$10,3,FALSE) -> 54 | AD126: =T126-HLOOKUP(X126,Feuil1!$C$1:$BL$10,4,FALSE) -> 44 | AE126: =T126-HLOOKUP(X126,Feuil1!$C$1:$BL$10,5,FALSE) -> 29 | AF126: =T126-HLOOKUP(X126,Feuil1!$C$1:$BL$10,6,FALSE) -> 14 | AG126: =T126-HLOOKUP(X126,Feuil1!$C$1:$BL$10,7,FALSE) -> -1 | AH126: =T126-HLOOKUP(X126,Feuil1!$C$1:$BL$10,8,FALSE) -> -21 | AI126: =T126-HLOOKUP(X126,Feuil1!$C$1:$BL$10,9,FALSE) -> -41 | AJ126: =T126-HLOOKUP(X126,Feuil1!$C$1:$BL$10,10,FALSE) -> -851 | AQ126: FED +
A127: H | B127: NORD | C127: NPC | D127: 7 | E127: 304778 | F127: DESMAREST | G127: Dylan | H127: 2000 | I127: 61.2 | J127: CHCD COMINES | K127: F | L127: 58 | M127: 61 | N127: -64 | O127: 61 | P127: 77 | Q127: 80 | R127: 85 | S127: 85 | T127: 146 | U127: 23.6 | V127: FED + | W127: 11 | X127: =IF(I127="","",IF(A127="H",IF(OR(H127="SEN",H127<1995),VLOOKUP(I127,Feuil1!$A$11:$G$29,6),IF(AND(H127>1994,H127<1998),VLOOKUP(I127,Feuil1!$A$11:$G$29,5),IF(AND(H127>1997,H127<2000),VLOOKUP(I127,Feuil1!$A$11:$G$29,4),IF(AND(H127>1999,H127<2002),VLOOKUP(I127,Feuil1!$A$11:$G$29,3),VLOOKUP(I127,Feuil1!$A$11:$G$29,2))))),IF(OR(H127="SEN",H127<1995),VLOOKUP(I127,Feuil1!$G$11:$L$25,6),IF(AND(H127>1994,H127<1998),VLOOKUP(I127,Feuil1!$G$11:$L$25,5),IF(AND(H127>1997,H127<2000),VLOOKUP(I127,Feuil1!$G$11:$L$25,4),IF(AND(H127>1999,H127<2002),VLOOKUP(I127,Feuil1!$G$11:$L$25,3),VLOOKUP(I127,Feuil1!$G$11:$L$25,2))))))) -> C1 62 | Y127: 213.1297831 | AB127: =T127-HLOOKUP(X127,Feuil1!$C$1:$BL$10,2,FALSE) -> 71 | AC127: =T127-HLOOKUP(X127,Feuil1!$C$1:$BL$10,3,FALSE) -> 51 | AD127: =T127-HLOOKUP(X127,Feuil1!$C$1:$BL$10,4,FALSE) -> 41 | AE127: =T127-HLOOKUP(X127,Feuil1!$C$1:$BL$10,5,FALSE) -> 26 | AF127: =T127-HLOOKUP(X127,Feuil1!$C$1:$BL$10,6,FALSE) -> 11 | AG127: =T127-HLOOKUP(X127,Feuil1!$C$1:$BL$10,7,FALSE) -> -4 | AH127: =T127-HLOOKUP(X127,Feuil1!$C$1:$BL$10,8,FALSE) -> -24 | AI127: =T127-HLOOKUP(X127,Feuil1!$C$1:$BL$10,9,FALSE) -> -44 | AJ127: =T127-HLOOKUP(X127,Feuil1!$C$1:$BL$10,10,FALSE) -> -854 | AQ127: FED +
A128: H | B128: CO | C128: PDL | D128: 8 | E128: 368728 | F128: MELLIER | G128: Romain | H128: 2000 | I128: 57.4 | J128: CA EVRON 53 | K128: F | L128: 60 | M128: 65 | N128: -67 | O128: 65 | P128: 72 | Q128: 77 | R128: 80 | S128: 80 | T128: 145 | U128: 30.2 | V128: FED + | W128: 10 | X128: =IF(I128="","",IF(A128="H",IF(OR(H128="SEN",H128<1995),VLOOKUP(I128,Feuil1!$A$11:$G$29,6),IF(AND(H128>1994,H128<1998),VLOOKUP(I128,Feuil1!$A$11:$G$29,5),IF(AND(H128>1997,H128<2000),VLOOKUP(I128,Feuil1!$A$11:$G$29,4),IF(AND(H128>1999,H128<2002),VLOOKUP(I128,Feuil1!$A$11:$G$29,3),VLOOKUP(I128,Feuil1!$A$11:$G$29,2))))),IF(OR(H128="SEN",H128<1995),VLOOKUP(I128,Feuil1!$G$11:$L$25,6),IF(AND(H128>1994,H128<1998),VLOOKUP(I128,Feuil1!$G$11:$L$25,5),IF(AND(H128>1997,H128<2000),VLOOKUP(I128,Feuil1!$G$11:$L$25,4),IF(AND(H128>1999,H128<2002),VLOOKUP(I128,Feuil1!$G$11:$L$25,3),VLOOKUP(I128,Feuil1!$G$11:$L$25,2))))))) -> C1 62 | Y128: 222.0186001 | AB128: =T128-HLOOKUP(X128,Feuil1!$C$1:$BL$10,2,FALSE) -> 70 | AC128: =T128-HLOOKUP(X128,Feuil1!$C$1:$BL$10,3,FALSE) -> 50 | AD128: =T128-HLOOKUP(X128,Feuil1!$C$1:$BL$10,4,FALSE) -> 40 | AE128: =T128-HLOOKUP(X128,Feuil1!$C$1:$BL$10,5,FALSE) -> 25 | AF128: =T128-HLOOKUP(X128,Feuil1!$C$1:$BL$10,6,FALSE) -> 10 | AG128: =T128-HLOOKUP(X128,Feuil1!$C$1:$BL$10,7,FALSE) -> -5 | AH128: =T128-HLOOKUP(X128,Feuil1!$C$1:$BL$10,8,FALSE) -> -25 | AI128: =T128-HLOOKUP(X128,Feuil1!$C$1:$BL$10,9,FALSE) -> -45 | AJ128: =T128-HLOOKUP(X128,Feuil1!$C$1:$BL$10,10,FALSE) -> -855 | AQ128: FED +
A129: H | B129: N | C129: IDF | D129: 9 | E129: 368739 | F129: CISSOKO | G129: CHRISTOPHER | H129: 2000 | I129: 56.4 | J129: SAINT-MAUR | K129: F | L129: 55 | M129: -60 | N129: 60 | O129: 60 | P129: 75 | Q129: 80 | R129: -83 | S129: 80 | T129: 140 | U129: 27.2 | V129: FED + | W129: 5 | X129: =IF(I129="","",IF(A129="H",IF(OR(H129="SEN",H129<1995),VLOOKUP(I129,Feuil1!$A$11:$G$29,6),IF(AND(H129>1994,H129<1998),VLOOKUP(I129,Feuil1!$A$11:$G$29,5),IF(AND(H129>1997,H129<2000),VLOOKUP(I129,Feuil1!$A$11:$G$29,4),IF(AND(H129>1999,H129<2002),VLOOKUP(I129,Feuil1!$A$11:$G$29,3),VLOOKUP(I129,Feuil1!$A$11:$G$29,2))))),IF(OR(H129="SEN",H129<1995),VLOOKUP(I129,Feuil1!$G$11:$L$25,6),IF(AND(H129>1994,H129<1998),VLOOKUP(I129,Feuil1!$G$11:$L$25,5),IF(AND(H129>1997,H129<2000),VLOOKUP(I129,Feuil1!$G$11:$L$25,4),IF(AND(H129>1999,H129<2002),VLOOKUP(I129,Feuil1!$G$11:$L$25,3),VLOOKUP(I129,Feuil1!$G$11:$L$25,2))))))) -> C1 62 | Y129: 217.2941576 | AB129: =T129-HLOOKUP(X129,Feuil1!$C$1:$BL$10,2,FALSE) -> 65 | AC129: =T129-HLOOKUP(X129,Feuil1!$C$1:$BL$10,3,FALSE) -> 45 | AD129: =T129-HLOOKUP(X129,Feuil1!$C$1:$BL$10,4,FALSE) -> 35 | AE129: =T129-HLOOKUP(X129,Feuil1!$C$1:$BL$10,5,FALSE) -> 20 | AF129: =T129-HLOOKUP(X129,Feuil1!$C$1:$BL$10,6,FALSE) -> 5 | AG129: =T129-HLOOKUP(X129,Feuil1!$C$1:$BL$10,7,FALSE) -> -10 | AH129: =T129-HLOOKUP(X129,Feuil1!$C$1:$BL$10,8,FALSE) -> -30 | AI129: =T129-HLOOKUP(X129,Feuil1!$C$1:$BL$10,9,FALSE) -> -50 | AJ129: =T129-HLOOKUP(X129,Feuil1!$C$1:$BL$10,10,FALSE) -> -860 | AQ129: FED +
A130: H | B130: NORD | C130: NPC | D130: 10 | E130: 311932 | F130: MAES | G130: Calvin | H130: 2000 | I130: 61.5 | J130: C.A.ROSENDAEL | K130: F | L130: 50 | M130: 55 | N130: 58 | O130: 58 | P130: 70 | Q130: 75 | R130: -78 | S130: 75 | T130: 133 | U130: 10 | V130: IRG + | W130: 13 | X130: =IF(I130="","",IF(A130="H",IF(OR(H130="SEN",H130<1995),VLOOKUP(I130,Feuil1!$A$11:$G$29,6),IF(AND(H130>1994,H130<1998),VLOOKUP(I130,Feuil1!$A$11:$G$29,5),IF(AND(H130>1997,H130<2000),VLOOKUP(I130,Feuil1!$A$11:$G$29,4),IF(AND(H130>1999,H130<2002),VLOOKUP(I130,Feuil1!$A$11:$G$29,3),VLOOKUP(I130,Feuil1!$A$11:$G$29,2))))),IF(OR(H130="SEN",H130<1995),VLOOKUP(I130,Feuil1!$G$11:$L$25,6),IF(AND(H130>1994,H130<1998),VLOOKUP(I130,Feuil1!$G$11:$L$25,5),IF(AND(H130>1997,H130<2000),VLOOKUP(I130,Feuil1!$G$11:$L$25,4),IF(AND(H130>1999,H130<2002),VLOOKUP(I130,Feuil1!$G$11:$L$25,3),VLOOKUP(I130,Feuil1!$G$11:$L$25,2))))))) -> C1 62 | Y130: 193.4693245 | AB130: =T130-HLOOKUP(X130,Feuil1!$C$1:$BL$10,2,FALSE) -> 58 | AC130: =T130-HLOOKUP(X130,Feuil1!$C$1:$BL$10,3,FALSE) -> 38 | AD130: =T130-HLOOKUP(X130,Feuil1!$C$1:$BL$10,4,FALSE) -> 28 | AE130: =T130-HLOOKUP(X130,Feuil1!$C$1:$BL$10,5,FALSE) -> 13 | AF130: =T130-HLOOKUP(X130,Feuil1!$C$1:$BL$10,6,FALSE) -> -2 | AG130: =T130-HLOOKUP(X130,Feuil1!$C$1:$BL$10,7,FALSE) -> -17 | AH130: =T130-HLOOKUP(X130,Feuil1!$C$1:$BL$10,8,FALSE) -> -37 | AI130: =T130-HLOOKUP(X130,Feuil1!$C$1:$BL$10,9,FALSE) -> -57 | AJ130: =T130-HLOOKUP(X130,Feuil1!$C$1:$BL$10,10,FALSE) -> -867 | AQ130: IRG +
A131: H | B131: NORD | C131: NPC | D131: 11 | E131: 355670 | F131: LESSCHAVE | G131: Théo | H131: 2000 | I131: 59.25 | J131: ASPTT LILLE | K131: F | L131: 57 | M131: -61 | N131: -61 | O131: 57 | P131: 70 | Q131: -74 | R131: -78 | S131: 70 | T131: 127 | U131: 8.5 | V131: IRG + | W131: 7 | X131: =IF(I131="","",IF(A131="H",IF(OR(H131="SEN",H131<1995),VLOOKUP(I131,Feuil1!$A$11:$G$29,6),IF(AND(H131>1994,H131<1998),VLOOKUP(I131,Feuil1!$A$11:$G$29,5),IF(AND(H131>1997,H131<2000),VLOOKUP(I131,Feuil1!$A$11:$G$29,4),IF(AND(H131>1999,H131<2002),VLOOKUP(I131,Feuil1!$A$11:$G$29,3),VLOOKUP(I131,Feuil1!$A$11:$G$29,2))))),IF(OR(H131="SEN",H131<1995),VLOOKUP(I131,Feuil1!$G$11:$L$25,6),IF(AND(H131>1994,H131<1998),VLOOKUP(I131,Feuil1!$G$11:$L$25,5),IF(AND(H131>1997,H131<2000),VLOOKUP(I131,Feuil1!$G$11:$L$25,4),IF(AND(H131>1999,H131<2002),VLOOKUP(I131,Feuil1!$G$11:$L$25,3),VLOOKUP(I131,Feuil1!$G$11:$L$25,2))))))) -> C1 62 | Y131: 189.8509838 | AB131: =T131-HLOOKUP(X131,Feuil1!$C$1:$BL$10,2,FALSE) -> 52 | AC131: =T131-HLOOKUP(X131,Feuil1!$C$1:$BL$10,3,FALSE) -> 32 | AD131: =T131-HLOOKUP(X131,Feuil1!$C$1:$BL$10,4,FALSE) -> 22 | AE131: =T131-HLOOKUP(X131,Feuil1!$C$1:$BL$10,5,FALSE) -> 7 | AF131: =T131-HLOOKUP(X131,Feuil1!$C$1:$BL$10,6,FALSE) -> -8 | AG131: =T131-HLOOKUP(X131,Feuil1!$C$1:$BL$10,7,FALSE) -> -23 | AH131: =T131-HLOOKUP(X131,Feuil1!$C$1:$BL$10,8,FALSE) -> -43 | AI131: =T131-HLOOKUP(X131,Feuil1!$C$1:$BL$10,9,FALSE) -> -63 | AJ131: =T131-HLOOKUP(X131,Feuil1!$C$1:$BL$10,10,FALSE) -> -873 | AQ131: IRG +
A132: H | B132: SEST | C132: RAL | D132: 12 | E132: 304551 | F132: DOMINGUEZ | G132: Gaetan | H132: 2001 | I132: 59.9 | J132: Gauloise de Vaise | K132: F | L132: -55 | M132: 55 | N132: -62 | O132: 55 | P132: 65 | Q132: 72 | R132: -80 | S132: 72 | T132: 127 | U132: 7.2 | V132: IRG + | W132: 7 | X132: =IF(I132="","",IF(A132="H",IF(OR(H132="SEN",H132<1995),VLOOKUP(I132,Feuil1!$A$11:$G$29,6),IF(AND(H132>1994,H132<1998),VLOOKUP(I132,Feuil1!$A$11:$G$29,5),IF(AND(H132>1997,H132<2000),VLOOKUP(I132,Feuil1!$A$11:$G$29,4),IF(AND(H132>1999,H132<2002),VLOOKUP(I132,Feuil1!$A$11:$G$29,3),VLOOKUP(I132,Feuil1!$A$11:$G$29,2))))),IF(OR(H132="SEN",H132<1995),VLOOKUP(I132,Feuil1!$G$11:$L$25,6),IF(AND(H132>1994,H132<1998),VLOOKUP(I132,Feuil1!$G$11:$L$25,5),IF(AND(H132>1997,H132<2000),VLOOKUP(I132,Feuil1!$G$11:$L$25,4),IF(AND(H132>1999,H132<2002),VLOOKUP(I132,Feuil1!$G$11:$L$25,3),VLOOKUP(I132,Feuil1!$G$11:$L$25,2))))))) -> C1 62 | Y132: 188.3220691 | AB132: =T132-HLOOKUP(X132,Feuil1!$C$1:$BL$10,2,FALSE) -> 52 | AC132: =T132-HLOOKUP(X132,Feuil1!$C$1:$BL$10,3,FALSE) -> 32 | AD132: =T132-HLOOKUP(X132,Feuil1!$C$1:$BL$10,4,FALSE) -> 22 | AE132: =T132-HLOOKUP(X132,Feuil1!$C$1:$BL$10,5,FALSE) -> 7 | AF132: =T132-HLOOKUP(X132,Feuil1!$C$1:$BL$10,6,FALSE) -> -8 | AG132: =T132-HLOOKUP(X132,Feuil1!$C$1:$BL$10,7,FALSE) -> -23 | AH132: =T132-HLOOKUP(X132,Feuil1!$C$1:$BL$10,8,FALSE) -> -43 | AI132: =T132-HLOOKUP(X132,Feuil1!$C$1:$BL$10,9,FALSE) -> -63 | AJ132: =T132-HLOOKUP(X132,Feuil1!$C$1:$BL$10,10,FALSE) -> -873 | AQ132: IRG +
A133: H | B133: SEST | C133: PRO | D133: 13 | E133: 369617 | F133: GIRARD | G133: Maxime | H133: 2001 | I133: 57 | J133: ISTRES SPORTS | L133: 47 | M133: 51 | N133: -55 | O133: 51 | P133: 67 | Q133: 71 | R133: 75 | S133: 75 | T133: 126 | U133: 12 | V133: IRG + | W133: 6 | X133: =IF(I133="","",IF(A133="H",IF(OR(H133="SEN",H133<1995),VLOOKUP(I133,Feuil1!$A$11:$G$29,6),IF(AND(H133>1994,H133<1998),VLOOKUP(I133,Feuil1!$A$11:$G$29,5),IF(AND(H133>1997,H133<2000),VLOOKUP(I133,Feuil1!$A$11:$G$29,4),IF(AND(H133>1999,H133<2002),VLOOKUP(I133,Feuil1!$A$11:$G$29,3),VLOOKUP(I133,Feuil1!$A$11:$G$29,2))))),IF(OR(H133="SEN",H133<1995),VLOOKUP(I133,Feuil1!$G$11:$L$25,6),IF(AND(H133>1994,H133<1998),VLOOKUP(I133,Feuil1!$G$11:$L$25,5),IF(AND(H133>1997,H133<2000),VLOOKUP(I133,Feuil1!$G$11:$L$25,4),IF(AND(H133>1999,H133<2002),VLOOKUP(I133,Feuil1!$G$11:$L$25,3),VLOOKUP(I133,Feuil1!$G$11:$L$25,2))))))) -> C1 62 | Y133: 193.9670016 | AB133: =T133-HLOOKUP(X133,Feuil1!$C$1:$BL$10,2,FALSE) -> 51 | AC133: =T133-HLOOKUP(X133,Feuil1!$C$1:$BL$10,3,FALSE) -> 31 | AD133: =T133-HLOOKUP(X133,Feuil1!$C$1:$BL$10,4,FALSE) -> 21 | AE133: =T133-HLOOKUP(X133,Feuil1!$C$1:$BL$10,5,FALSE) -> 6 | AF133: =T133-HLOOKUP(X133,Feuil1!$C$1:$BL$10,6,FALSE) -> -9 | AG133: =T133-HLOOKUP(X133,Feuil1!$C$1:$BL$10,7,FALSE) -> -24 | AH133: =T133-HLOOKUP(X133,Feuil1!$C$1:$BL$10,8,FALSE) -> -44 | AI133: =T133-HLOOKUP(X133,Feuil1!$C$1:$BL$10,9,FALSE) -> -64 | AJ133: =T133-HLOOKUP(X133,Feuil1!$C$1:$BL$10,10,FALSE) -> -874 | AQ133: IRG +
A134: H | B134: N | C134: IDF | D134: 14 | E134: 383017 | F134: THAN | G134: YVES-OLIVIER | H134: 2000 | I134: 60.6 | J134: SAINT-MAUR | K134: F | L134: 45 | M134: 50 | N134: -55 | O134: 50 | P134: 65 | Q134: 70 | R134: 75 | S134: 75 | T134: 125 | U134: 3.8 | V134: IRG + | W134: 5 | X134: =IF(I134="","",IF(A134="H",IF(OR(H134="SEN",H134<1995),VLOOKUP(I134,Feuil1!$A$11:$G$29,6),IF(AND(H134>1994,H134<1998),VLOOKUP(I134,Feuil1!$A$11:$G$29,5),IF(AND(H134>1997,H134<2000),VLOOKUP(I134,Feuil1!$A$11:$G$29,4),IF(AND(H134>1999,H134<2002),VLOOKUP(I134,Feuil1!$A$11:$G$29,3),VLOOKUP(I134,Feuil1!$A$11:$G$29,2))))),IF(OR(H134="SEN",H134<1995),VLOOKUP(I134,Feuil1!$G$11:$L$25,6),IF(AND(H134>1994,H134<1998),VLOOKUP(I134,Feuil1!$G$11:$L$25,5),IF(AND(H134>1997,H134<2000),VLOOKUP(I134,Feuil1!$G$11:$L$25,4),IF(AND(H134>1999,H134<2002),VLOOKUP(I134,Feuil1!$G$11:$L$25,3),VLOOKUP(I134,Feuil1!$G$11:$L$25,2))))))) -> C1 62 | Y134: 183.7838432 | AB134: =T134-HLOOKUP(X134,Feuil1!$C$1:$BL$10,2,FALSE) -> 50 | AC134: =T134-HLOOKUP(X134,Feuil1!$C$1:$BL$10,3,FALSE) -> 30 | AD134: =T134-HLOOKUP(X134,Feuil1!$C$1:$BL$10,4,FALSE) -> 20 | AE134: =T134-HLOOKUP(X134,Feuil1!$C$1:$BL$10,5,FALSE) -> 5 | AF134: =T134-HLOOKUP(X134,Feuil1!$C$1:$BL$10,6,FALSE) -> -10 | AG134: =T134-HLOOKUP(X134,Feuil1!$C$1:$BL$10,7,FALSE) -> -25 | AH134: =T134-HLOOKUP(X134,Feuil1!$C$1:$BL$10,8,FALSE) -> -45 | AI134: =T134-HLOOKUP(X134,Feuil1!$C$1:$BL$10,9,FALSE) -> -65 | AJ134: =T134-HLOOKUP(X134,Feuil1!$C$1:$BL$10,10,FALSE) -> -875 | AQ134: IRG +
A135: H | B135: SEST | C135: PRO | D135: 15 | E135: 354303 | F135: GUERIN | G135: Hugo | H135: 2001 | I135: 61.2 | J135: EEAR MONTEUX | L135: 48 | M135: 52 | N135: 54 | O135: 54 | P135: 61 | Q135: 66 | R135: 68 | S135: 68 | T135: 122 | U135: -0.4 | V135: IRG + | W135: 2 | X135: =IF(I135="","",IF(A135="H",IF(OR(H135="SEN",H135<1995),VLOOKUP(I135,Feuil1!$A$11:$G$29,6),IF(AND(H135>1994,H135<1998),VLOOKUP(I135,Feuil1!$A$11:$G$29,5),IF(AND(H135>1997,H135<2000),VLOOKUP(I135,Feuil1!$A$11:$G$29,4),IF(AND(H135>1999,H135<2002),VLOOKUP(I135,Feuil1!$A$11:$G$29,3),VLOOKUP(I135,Feuil1!$A$11:$G$29,2))))),IF(OR(H135="SEN",H135<1995),VLOOKUP(I135,Feuil1!$G$11:$L$25,6),IF(AND(H135>1994,H135<1998),VLOOKUP(I135,Feuil1!$G$11:$L$25,5),IF(AND(H135>1997,H135<2000),VLOOKUP(I135,Feuil1!$G$11:$L$25,4),IF(AND(H135>1999,H135<2002),VLOOKUP(I135,Feuil1!$G$11:$L$25,3),VLOOKUP(I135,Feuil1!$G$11:$L$25,2))))))) -> C1 62 | Y135: 178.0947503 | AB135: =T135-HLOOKUP(X135,Feuil1!$C$1:$BL$10,2,FALSE) -> 47 | AC135: =T135-HLOOKUP(X135,Feuil1!$C$1:$BL$10,3,FALSE) -> 27 | AD135: =T135-HLOOKUP(X135,Feuil1!$C$1:$BL$10,4,FALSE) -> 17 | AE135: =T135-HLOOKUP(X135,Feuil1!$C$1:$BL$10,5,FALSE) -> 2 | AF135: =T135-HLOOKUP(X135,Feuil1!$C$1:$BL$10,6,FALSE) -> -13 | AG135: =T135-HLOOKUP(X135,Feuil1!$C$1:$BL$10,7,FALSE) -> -28 | AH135: =T135-HLOOKUP(X135,Feuil1!$C$1:$BL$10,8,FALSE) -> -48 | AI135: =T135-HLOOKUP(X135,Feuil1!$C$1:$BL$10,9,FALSE) -> -68 | AJ135: =T135-HLOOKUP(X135,Feuil1!$C$1:$BL$10,10,FALSE) -> -878 | AQ135: IRG +
A136: H | B136: NORD | C136: NPC | D136: 16 | E136: 248951 | F136: KEMPENAIRE | G136: Cédric | H136: 2001 | I136: 57.1 | J136: CHCD COMINES | K136: F | L136: 50 | M136: 53 | N136: -55 | O136: 53 | P136: 65 | Q136: -68 | R136: 68 | S136: 68 | T136: 121 | U136: 6.8 | V136: IRG + | W136: 1 | X136: =IF(I136="","",IF(A136="H",IF(OR(H136="SEN",H136<1995),VLOOKUP(I136,Feuil1!$A$11:$G$29,6),IF(AND(H136>1994,H136<1998),VLOOKUP(I136,Feuil1!$A$11:$G$29,5),IF(AND(H136>1997,H136<2000),VLOOKUP(I136,Feuil1!$A$11:$G$29,4),IF(AND(H136>1999,H136<2002),VLOOKUP(I136,Feuil1!$A$11:$G$29,3),VLOOKUP(I136,Feuil1!$A$11:$G$29,2))))),IF(OR(H136="SEN",H136<1995),VLOOKUP(I136,Feuil1!$G$11:$L$25,6),IF(AND(H136>1994,H136<1998),VLOOKUP(I136,Feuil1!$G$11:$L$25,5),IF(AND(H136>1997,H136<2000),VLOOKUP(I136,Feuil1!$G$11:$L$25,4),IF(AND(H136>1999,H136<2002),VLOOKUP(I136,Feuil1!$G$11:$L$25,3),VLOOKUP(I136,Feuil1!$G$11:$L$25,2))))))) -> C1 62 | Y136: 186.018347 | AB136: =T136-HLOOKUP(X136,Feuil1!$C$1:$BL$10,2,FALSE) -> 46 | AC136: =T136-HLOOKUP(X136,Feuil1!$C$1:$BL$10,3,FALSE) -> 26 | AD136: =T136-HLOOKUP(X136,Feuil1!$C$1:$BL$10,4,FALSE) -> 16 | AE136: =T136-HLOOKUP(X136,Feuil1!$C$1:$BL$10,5,FALSE) -> 1 | AF136: =T136-HLOOKUP(X136,Feuil1!$C$1:$BL$10,6,FALSE) -> -14 | AG136: =T136-HLOOKUP(X136,Feuil1!$C$1:$BL$10,7,FALSE) -> -29 | AH136: =T136-HLOOKUP(X136,Feuil1!$C$1:$BL$10,8,FALSE) -> -49 | AI136: =T136-HLOOKUP(X136,Feuil1!$C$1:$BL$10,9,FALSE) -> -69 | AJ136: =T136-HLOOKUP(X136,Feuil1!$C$1:$BL$10,10,FALSE) -> -879 | AQ136: IRG +
A137: H | B137: NE | C137: FCO | D137: 17 | E137: 350181 | F137: BERTHELIN | G137: Simon | H137: 2000 | I137: 58.7 | J137: CH Luxeuil | K137: F | L137: 45 | M137: 48 | N137: 51 | O137: 51 | P137: 60 | Q137: 65 | R137: 69 | S137: 69 | T137: 120 | U137: 2.6 | V137: IRG + | W137: 0 | X137: =IF(I137="","",IF(A137="H",IF(OR(H137="SEN",H137<1995),VLOOKUP(I137,Feuil1!$A$11:$G$29,6),IF(AND(H137>1994,H137<1998),VLOOKUP(I137,Feuil1!$A$11:$G$29,5),IF(AND(H137>1997,H137<2000),VLOOKUP(I137,Feuil1!$A$11:$G$29,4),IF(AND(H137>1999,H137<2002),VLOOKUP(I137,Feuil1!$A$11:$G$29,3),VLOOKUP(I137,Feuil1!$A$11:$G$29,2))))),IF(OR(H137="SEN",H137<1995),VLOOKUP(I137,Feuil1!$G$11:$L$25,6),IF(AND(H137>1994,H137<1998),VLOOKUP(I137,Feuil1!$G$11:$L$25,5),IF(AND(H137>1997,H137<2000),VLOOKUP(I137,Feuil1!$G$11:$L$25,4),IF(AND(H137>1999,H137<2002),VLOOKUP(I137,Feuil1!$G$11:$L$25,3),VLOOKUP(I137,Feuil1!$G$11:$L$25,2))))))) -> C1 62 | Y137: 180.6426348 | AB137: =T137-HLOOKUP(X137,Feuil1!$C$1:$BL$10,2,FALSE) -> 45 | AC137: =T137-HLOOKUP(X137,Feuil1!$C$1:$BL$10,3,FALSE) -> 25 | AD137: =T137-HLOOKUP(X137,Feuil1!$C$1:$BL$10,4,FALSE) -> 15 | AE137: =T137-HLOOKUP(X137,Feuil1!$C$1:$BL$10,5,FALSE) -> 0 | AF137: =T137-HLOOKUP(X137,Feuil1!$C$1:$BL$10,6,FALSE) -> -15 | AG137: =T137-HLOOKUP(X137,Feuil1!$C$1:$BL$10,7,FALSE) -> -30 | AH137: =T137-HLOOKUP(X137,Feuil1!$C$1:$BL$10,8,FALSE) -> -50 | AI137: =T137-HLOOKUP(X137,Feuil1!$C$1:$BL$10,9,FALSE) -> -70 | AJ137: =T137-HLOOKUP(X137,Feuil1!$C$1:$BL$10,10,FALSE) -> -880 | AQ137: IRG +
A138: H | B138: N | C138: IDF | D138: 18 | E138: 366087 | F138: SACOTTE | G138: ARTHUR | H138: 2000 | I138: 59.9 | J138: MELUN | K138: F | L138: 50 | M138: 55 | N138: -58 | O138: 55 | P138: 60 | Q138: 65 | R138: -70 | S138: 65 | T138: 120 | U138: 0.2 | V138: IRG + | W138: 0 | X138: =IF(I138="","",IF(A138="H",IF(OR(H138="SEN",H138<1995),VLOOKUP(I138,Feuil1!$A$11:$G$29,6),IF(AND(H138>1994,H138<1998),VLOOKUP(I138,Feuil1!$A$11:$G$29,5),IF(AND(H138>1997,H138<2000),VLOOKUP(I138,Feuil1!$A$11:$G$29,4),IF(AND(H138>1999,H138<2002),VLOOKUP(I138,Feuil1!$A$11:$G$29,3),VLOOKUP(I138,Feuil1!$A$11:$G$29,2))))),IF(OR(H138="SEN",H138<1995),VLOOKUP(I138,Feuil1!$G$11:$L$25,6),IF(AND(H138>1994,H138<1998),VLOOKUP(I138,Feuil1!$G$11:$L$25,5),IF(AND(H138>1997,H138<2000),VLOOKUP(I138,Feuil1!$G$11:$L$25,4),IF(AND(H138>1999,H138<2002),VLOOKUP(I138,Feuil1!$G$11:$L$25,3),VLOOKUP(I138,Feuil1!$G$11:$L$25,2))))))) -> C1 62 | Y138: 177.9421126 | AB138: =T138-HLOOKUP(X138,Feuil1!$C$1:$BL$10,2,FALSE) -> 45 | AC138: =T138-HLOOKUP(X138,Feuil1!$C$1:$BL$10,3,FALSE) -> 25 | AD138: =T138-HLOOKUP(X138,Feuil1!$C$1:$BL$10,4,FALSE) -> 15 | AE138: =T138-HLOOKUP(X138,Feuil1!$C$1:$BL$10,5,FALSE) -> 0 | AF138: =T138-HLOOKUP(X138,Feuil1!$C$1:$BL$10,6,FALSE) -> -15 | AG138: =T138-HLOOKUP(X138,Feuil1!$C$1:$BL$10,7,FALSE) -> -30 | AH138: =T138-HLOOKUP(X138,Feuil1!$C$1:$BL$10,8,FALSE) -> -50 | AI138: =T138-HLOOKUP(X138,Feuil1!$C$1:$BL$10,9,FALSE) -> -70 | AJ138: =T138-HLOOKUP(X138,Feuil1!$C$1:$BL$10,10,FALSE) -> -880 | AQ138: IRG +
A139: H | B139: CO | C139: BNO | D139: 19 | E139: 327978 | F139: PANNIER | G139: Quentin | H139: 2000 | I139: 61.9 | J139: Caen CHM | K139: F | L139: 45 | M139: 50 | N139: -54 | O139: 50 | P139: 65 | Q139: -70 | R139: 70 | S139: 70 | T139: 120 | U139: -3.8 | V139: IRG + | W139: 0 | X139: =IF(I139="","",IF(A139="H",IF(OR(H139="SEN",H139<1995),VLOOKUP(I139,Feuil1!$A$11:$G$29,6),IF(AND(H139>1994,H139<1998),VLOOKUP(I139,Feuil1!$A$11:$G$29,5),IF(AND(H139>1997,H139<2000),VLOOKUP(I139,Feuil1!$A$11:$G$29,4),IF(AND(H139>1999,H139<2002),VLOOKUP(I139,Feuil1!$A$11:$G$29,3),VLOOKUP(I139,Feuil1!$A$11:$G$29,2))))),IF(OR(H139="SEN",H139<1995),VLOOKUP(I139,Feuil1!$G$11:$L$25,6),IF(AND(H139>1994,H139<1998),VLOOKUP(I139,Feuil1!$G$11:$L$25,5),IF(AND(H139>1997,H139<2000),VLOOKUP(I139,Feuil1!$G$11:$L$25,4),IF(AND(H139>1999,H139<2002),VLOOKUP(I139,Feuil1!$G$11:$L$25,3),VLOOKUP(I139,Feuil1!$G$11:$L$25,2))))))) -> C1 62 | Y139: 173.749378 | AB139: =T139-HLOOKUP(X139,Feuil1!$C$1:$BL$10,2,FALSE) -> 45 | AC139: =T139-HLOOKUP(X139,Feuil1!$C$1:$BL$10,3,FALSE) -> 25 | AD139: =T139-HLOOKUP(X139,Feuil1!$C$1:$BL$10,4,FALSE) -> 15 | AE139: =T139-HLOOKUP(X139,Feuil1!$C$1:$BL$10,5,FALSE) -> 0 | AF139: =T139-HLOOKUP(X139,Feuil1!$C$1:$BL$10,6,FALSE) -> -15 | AG139: =T139-HLOOKUP(X139,Feuil1!$C$1:$BL$10,7,FALSE) -> -30 | AH139: =T139-HLOOKUP(X139,Feuil1!$C$1:$BL$10,8,FALSE) -> -50 | AI139: =T139-HLOOKUP(X139,Feuil1!$C$1:$BL$10,9,FALSE) -> -70 | AJ139: =T139-HLOOKUP(X139,Feuil1!$C$1:$BL$10,10,FALSE) -> -880 | AQ139: IRG +
A140: H | B140: DOM | C140: GUA | D140: 20 | E140: 382074 | F140: LUERRE | G140: Joé | H140: 2000 | I140: 61 | J140: ASCPG/Rémire Montjoly | K140: F | L140: 45 | M140: 50 | N140: -53 | O140: 50 | P140: 60 | Q140: 65 | R140: -70 | S140: 65 | T140: 115 | U140: -7 | V140: REG + | W140: 10 | X140: =IF(I140="","",IF(A140="H",IF(OR(H140="SEN",H140<1995),VLOOKUP(I140,Feuil1!$A$11:$G$29,6),IF(AND(H140>1994,H140<1998),VLOOKUP(I140,Feuil1!$A$11:$G$29,5),IF(AND(H140>1997,H140<2000),VLOOKUP(I140,Feuil1!$A$11:$G$29,4),IF(AND(H140>1999,H140<2002),VLOOKUP(I140,Feuil1!$A$11:$G$29,3),VLOOKUP(I140,Feuil1!$A$11:$G$29,2))))),IF(OR(H140="SEN",H140<1995),VLOOKUP(I140,Feuil1!$G$11:$L$25,6),IF(AND(H140>1994,H140<1998),VLOOKUP(I140,Feuil1!$G$11:$L$25,5),IF(AND(H140>1997,H140<2000),VLOOKUP(I140,Feuil1!$G$11:$L$25,4),IF(AND(H140>1999,H140<2002),VLOOKUP(I140,Feuil1!$G$11:$L$25,3),VLOOKUP(I140,Feuil1!$G$11:$L$25,2))))))) -> C1 62 | Y140: 168.2743213 | AB140: =T140-HLOOKUP(X140,Feuil1!$C$1:$BL$10,2,FALSE) -> 40 | AC140: =T140-HLOOKUP(X140,Feuil1!$C$1:$BL$10,3,FALSE) -> 20 | AD140: =T140-HLOOKUP(X140,Feuil1!$C$1:$BL$10,4,FALSE) -> 10 | AE140: =T140-HLOOKUP(X140,Feuil1!$C$1:$BL$10,5,FALSE) -> -5 | AF140: =T140-HLOOKUP(X140,Feuil1!$C$1:$BL$10,6,FALSE) -> -20 | AG140: =T140-HLOOKUP(X140,Feuil1!$C$1:$BL$10,7,FALSE) -> -35 | AH140: =T140-HLOOKUP(X140,Feuil1!$C$1:$BL$10,8,FALSE) -> -55 | AI140: =T140-HLOOKUP(X140,Feuil1!$C$1:$BL$10,9,FALSE) -> -75 | AJ140: =T140-HLOOKUP(X140,Feuil1!$C$1:$BL$10,10,FALSE) -> -885 | AQ140: REG +
A141: H | B141: SEST | C141: PRO | D141: 21 | E141: 344412 | F141: MATS | G141: Arthur | H141: 2001 | I141: 58.3 | J141: EEAR MONTEUX | L141: 44 | M141: 48 | N141: 51 | O141: 51 | P141: 55 | Q141: 59 | R141: 62 | S141: 62 | T141: 113 | U141: -3.6 | V141: REG + | W141: 8 | X141: =IF(I141="","",IF(A141="H",IF(OR(H141="SEN",H141<1995),VLOOKUP(I141,Feuil1!$A$11:$G$29,6),IF(AND(H141>1994,H141<1998),VLOOKUP(I141,Feuil1!$A$11:$G$29,5),IF(AND(H141>1997,H141<2000),VLOOKUP(I141,Feuil1!$A$11:$G$29,4),IF(AND(H141>1999,H141<2002),VLOOKUP(I141,Feuil1!$A$11:$G$29,3),VLOOKUP(I141,Feuil1!$A$11:$G$29,2))))),IF(OR(H141="SEN",H141<1995),VLOOKUP(I141,Feuil1!$G$11:$L$25,6),IF(AND(H141>1994,H141<1998),VLOOKUP(I141,Feuil1!$G$11:$L$25,5),IF(AND(H141>1997,H141<2000),VLOOKUP(I141,Feuil1!$G$11:$L$25,4),IF(AND(H141>1999,H141<2002),VLOOKUP(I141,Feuil1!$G$11:$L$25,3),VLOOKUP(I141,Feuil1!$G$11:$L$25,2))))))) -> C1 62 | Y141: 170.9839913 | AB141: =T141-HLOOKUP(X141,Feuil1!$C$1:$BL$10,2,FALSE) -> 38 | AC141: =T141-HLOOKUP(X141,Feuil1!$C$1:$BL$10,3,FALSE) -> 18 | AD141: =T141-HLOOKUP(X141,Feuil1!$C$1:$BL$10,4,FALSE) -> 8 | AE141: =T141-HLOOKUP(X141,Feuil1!$C$1:$BL$10,5,FALSE) -> -7 | AF141: =T141-HLOOKUP(X141,Feuil1!$C$1:$BL$10,6,FALSE) -> -22 | AG141: =T141-HLOOKUP(X141,Feuil1!$C$1:$BL$10,7,FALSE) -> -37 | AH141: =T141-HLOOKUP(X141,Feuil1!$C$1:$BL$10,8,FALSE) -> -57 | AI141: =T141-HLOOKUP(X141,Feuil1!$C$1:$BL$10,9,FALSE) -> -77 | AJ141: =T141-HLOOKUP(X141,Feuil1!$C$1:$BL$10,10,FALSE) -> -887 | AQ141: REG +
A142: H | B142: SEST | C142: PRO | D142: 22 | E142: 389955 | F142: BERNARD | G142: QUENTIN | H142: 2000 | I142: 61.68 | J142: CHC MONDRAGON | L142: 42 | M142: 45 | N142: -48 | O142: 45 | P142: 60 | Q142: -65 | R142: 65 | S142: 65 | T142: 110 | U142: -13.36 | V142: REG + | W142: 5 | X142: =IF(I142="","",IF(A142="H",IF(OR(H142="SEN",H142<1995),VLOOKUP(I142,Feuil1!$A$11:$G$29,6),IF(AND(H142>1994,H142<1998),VLOOKUP(I142,Feuil1!$A$11:$G$29,5),IF(AND(H142>1997,H142<2000),VLOOKUP(I142,Feuil1!$A$11:$G$29,4),IF(AND(H142>1999,H142<2002),VLOOKUP(I142,Feuil1!$A$11:$G$29,3),VLOOKUP(I142,Feuil1!$A$11:$G$29,2))))),IF(OR(H142="SEN",H142<1995),VLOOKUP(I142,Feuil1!$G$11:$L$25,6),IF(AND(H142>1994,H142<1998),VLOOKUP(I142,Feuil1!$G$11:$L$25,5),IF(AND(H142>1997,H142<2000),VLOOKUP(I142,Feuil1!$G$11:$L$25,4),IF(AND(H142>1999,H142<2002),VLOOKUP(I142,Feuil1!$G$11:$L$25,3),VLOOKUP(I142,Feuil1!$G$11:$L$25,2))))))) -> C1 62 | Y142: 159.6767458 | AB142: =T142-HLOOKUP(X142,Feuil1!$C$1:$BL$10,2,FALSE) -> 35 | AC142: =T142-HLOOKUP(X142,Feuil1!$C$1:$BL$10,3,FALSE) -> 15 | AD142: =T142-HLOOKUP(X142,Feuil1!$C$1:$BL$10,4,FALSE) -> 5 | AE142: =T142-HLOOKUP(X142,Feuil1!$C$1:$BL$10,5,FALSE) -> -10 | AF142: =T142-HLOOKUP(X142,Feuil1!$C$1:$BL$10,6,FALSE) -> -25 | AG142: =T142-HLOOKUP(X142,Feuil1!$C$1:$BL$10,7,FALSE) -> -40 | AH142: =T142-HLOOKUP(X142,Feuil1!$C$1:$BL$10,8,FALSE) -> -60 | AI142: =T142-HLOOKUP(X142,Feuil1!$C$1:$BL$10,9,FALSE) -> -80 | AJ142: =T142-HLOOKUP(X142,Feuil1!$C$1:$BL$10,10,FALSE) -> -890 | AQ142: REG +
A143: H | B143: SEST | C143: CAZ | D143: 23 | E143: 360583 | F143: LECOMTE | G143: Cameron | H143: 2000 | I143: 57 | J143: ES VILLENEUVE LOUBET | K143: F | L143: 46 | M143: 48 | N143: 50 | O143: 50 | P143: 55 | Q143: 57 | R143: -60 | S143: 57 | T143: 107 | U143: -7 | V143: REG + | W143: 2 | X143: =IF(I143="","",IF(A143="H",IF(OR(H143="SEN",H143<1995),VLOOKUP(I143,Feuil1!$A$11:$G$29,6),IF(AND(H143>1994,H143<1998),VLOOKUP(I143,Feuil1!$A$11:$G$29,5),IF(AND(H143>1997,H143<2000),VLOOKUP(I143,Feuil1!$A$11:$G$29,4),IF(AND(H143>1999,H143<2002),VLOOKUP(I143,Feuil1!$A$11:$G$29,3),VLOOKUP(I143,Feuil1!$A$11:$G$29,2))))),IF(OR(H143="SEN",H143<1995),VLOOKUP(I143,Feuil1!$G$11:$L$25,6),IF(AND(H143>1994,H143<1998),VLOOKUP(I143,Feuil1!$G$11:$L$25,5),IF(AND(H143>1997,H143<2000),VLOOKUP(I143,Feuil1!$G$11:$L$25,4),IF(AND(H143>1999,H143<2002),VLOOKUP(I143,Feuil1!$G$11:$L$25,3),VLOOKUP(I143,Feuil1!$G$11:$L$25,2))))))) -> C1 62 | Y143: 164.7180093 | AB143: =T143-HLOOKUP(X143,Feuil1!$C$1:$BL$10,2,FALSE) -> 32 | AC143: =T143-HLOOKUP(X143,Feuil1!$C$1:$BL$10,3,FALSE) -> 12 | AD143: =T143-HLOOKUP(X143,Feuil1!$C$1:$BL$10,4,FALSE) -> 2 | AE143: =T143-HLOOKUP(X143,Feuil1!$C$1:$BL$10,5,FALSE) -> -13 | AF143: =T143-HLOOKUP(X143,Feuil1!$C$1:$BL$10,6,FALSE) -> -28 | AG143: =T143-HLOOKUP(X143,Feuil1!$C$1:$BL$10,7,FALSE) -> -43 | AH143: =T143-HLOOKUP(X143,Feuil1!$C$1:$BL$10,8,FALSE) -> -63 | AI143: =T143-HLOOKUP(X143,Feuil1!$C$1:$BL$10,9,FALSE) -> -83 | AJ143: =T143-HLOOKUP(X143,Feuil1!$C$1:$BL$10,10,FALSE) -> -893 | AQ143: REG +
A144: H | B144: DOM | C144: REU | D144: 24 | E144: 323500 | F144: ROCROU | G144: GILLES | H144: 2000 | I144: 56.9 | J144: SCHM St Paul | K144: F | L144: 40 | M144: 45 | N144: -50 | O144: 45 | P144: 50 | Q144: 55 | R144: 60 | S144: 60 | T144: 105 | U144: -8.8 | V144: REG + | W144: 0 | X144: =IF(I144="","",IF(A144="H",IF(OR(H144="SEN",H144<1995),VLOOKUP(I144,Feuil1!$A$11:$G$29,6),IF(AND(H144>1994,H144<1998),VLOOKUP(I144,Feuil1!$A$11:$G$29,5),IF(AND(H144>1997,H144<2000),VLOOKUP(I144,Feuil1!$A$11:$G$29,4),IF(AND(H144>1999,H144<2002),VLOOKUP(I144,Feuil1!$A$11:$G$29,3),VLOOKUP(I144,Feuil1!$A$11:$G$29,2))))),IF(OR(H144="SEN",H144<1995),VLOOKUP(I144,Feuil1!$G$11:$L$25,6),IF(AND(H144>1994,H144<1998),VLOOKUP(I144,Feuil1!$G$11:$L$25,5),IF(AND(H144>1997,H144<2000),VLOOKUP(I144,Feuil1!$G$11:$L$25,4),IF(AND(H144>1999,H144<2002),VLOOKUP(I144,Feuil1!$G$11:$L$25,3),VLOOKUP(I144,Feuil1!$G$11:$L$25,2))))))) -> C1 62 | Y144: 161.8584797 | AB144: =T144-HLOOKUP(X144,Feuil1!$C$1:$BL$10,2,FALSE) -> 30 | AC144: =T144-HLOOKUP(X144,Feuil1!$C$1:$BL$10,3,FALSE) -> 10 | AD144: =T144-HLOOKUP(X144,Feuil1!$C$1:$BL$10,4,FALSE) -> 0 | AE144: =T144-HLOOKUP(X144,Feuil1!$C$1:$BL$10,5,FALSE) -> -15 | AF144: =T144-HLOOKUP(X144,Feuil1!$C$1:$BL$10,6,FALSE) -> -30 | AG144: =T144-HLOOKUP(X144,Feuil1!$C$1:$BL$10,7,FALSE) -> -45 | AH144: =T144-HLOOKUP(X144,Feuil1!$C$1:$BL$10,8,FALSE) -> -65 | AI144: =T144-HLOOKUP(X144,Feuil1!$C$1:$BL$10,9,FALSE) -> -85 | AJ144: =T144-HLOOKUP(X144,Feuil1!$C$1:$BL$10,10,FALSE) -> -895 | AQ144: REG +
A145: H | B145: NE | C145: BOU | D145: 25 | E145: 380052 | F145: DUCREUX | G145: Bastien | H145: 2000 | I145: 58.8 | J145: Tournus Haltérophilie | K145: F | L145: 39 | M145: 42 | N145: 45 | O145: 45 | P145: 48 | Q145: 51 | R145: 55 | S145: 55 | T145: 100 | U145: -17.6 | V145: DEP + | W145: 5 | X145: =IF(I145="","",IF(A145="H",IF(OR(H145="SEN",H145<1995),VLOOKUP(I145,Feuil1!$A$11:$G$29,6),IF(AND(H145>1994,H145<1998),VLOOKUP(I145,Feuil1!$A$11:$G$29,5),IF(AND(H145>1997,H145<2000),VLOOKUP(I145,Feuil1!$A$11:$G$29,4),IF(AND(H145>1999,H145<2002),VLOOKUP(I145,Feuil1!$A$11:$G$29,3),VLOOKUP(I145,Feuil1!$A$11:$G$29,2))))),IF(OR(H145="SEN",H145<1995),VLOOKUP(I145,Feuil1!$G$11:$L$25,6),IF(AND(H145>1994,H145<1998),VLOOKUP(I145,Feuil1!$G$11:$L$25,5),IF(AND(H145>1997,H145<2000),VLOOKUP(I145,Feuil1!$G$11:$L$25,4),IF(AND(H145>1999,H145<2002),VLOOKUP(I145,Feuil1!$G$11:$L$25,3),VLOOKUP(I145,Feuil1!$G$11:$L$25,2))))))) -> C1 62 | Y145: 150.3432988 | AB145: =T145-HLOOKUP(X145,Feuil1!$C$1:$BL$10,2,FALSE) -> 25 | AC145: =T145-HLOOKUP(X145,Feuil1!$C$1:$BL$10,3,FALSE) -> 5 | AD145: =T145-HLOOKUP(X145,Feuil1!$C$1:$BL$10,4,FALSE) -> -5 | AE145: =T145-HLOOKUP(X145,Feuil1!$C$1:$BL$10,5,FALSE) -> -20 | AF145: =T145-HLOOKUP(X145,Feuil1!$C$1:$BL$10,6,FALSE) -> -35 | AG145: =T145-HLOOKUP(X145,Feuil1!$C$1:$BL$10,7,FALSE) -> -50 | AH145: =T145-HLOOKUP(X145,Feuil1!$C$1:$BL$10,8,FALSE) -> -70 | AI145: =T145-HLOOKUP(X145,Feuil1!$C$1:$BL$10,9,FALSE) -> -90 | AJ145: =T145-HLOOKUP(X145,Feuil1!$C$1:$BL$10,10,FALSE) -> -900 | AQ145: DEP +
A146: H | B146: CO | C146: PDL | D146: 26 | E146: 324248 | F146: CHALVIN | G146: Maxime | H146: 2000 | I146: 62 | J146: Saint Herblain | K146: F | L146: -40 | M146: 40 | N146: 42 | O146: 42 | P146: 55 | Q146: -57 | R146: 57 | S146: 57 | T146: 99 | U146: -25 | V146: DEP + | W146: 4 | X146: =IF(I146="","",IF(A146="H",IF(OR(H146="SEN",H146<1995),VLOOKUP(I146,Feuil1!$A$11:$G$29,6),IF(AND(H146>1994,H146<1998),VLOOKUP(I146,Feuil1!$A$11:$G$29,5),IF(AND(H146>1997,H146<2000),VLOOKUP(I146,Feuil1!$A$11:$G$29,4),IF(AND(H146>1999,H146<2002),VLOOKUP(I146,Feuil1!$A$11:$G$29,3),VLOOKUP(I146,Feuil1!$A$11:$G$29,2))))),IF(OR(H146="SEN",H146<1995),VLOOKUP(I146,Feuil1!$G$11:$L$25,6),IF(AND(H146>1994,H146<1998),VLOOKUP(I146,Feuil1!$G$11:$L$25,5),IF(AND(H146>1997,H146<2000),VLOOKUP(I146,Feuil1!$G$11:$L$25,4),IF(AND(H146>1999,H146<2002),VLOOKUP(I146,Feuil1!$G$11:$L$25,3),VLOOKUP(I146,Feuil1!$G$11:$L$25,2))))))) -> C1 62 | Y146: 143.1780977 | AB146: =T146-HLOOKUP(X146,Feuil1!$C$1:$BL$10,2,FALSE) -> 24 | AC146: =T146-HLOOKUP(X146,Feuil1!$C$1:$BL$10,3,FALSE) -> 4 | AD146: =T146-HLOOKUP(X146,Feuil1!$C$1:$BL$10,4,FALSE) -> -6 | AE146: =T146-HLOOKUP(X146,Feuil1!$C$1:$BL$10,5,FALSE) -> -21 | AF146: =T146-HLOOKUP(X146,Feuil1!$C$1:$BL$10,6,FALSE) -> -36 | AG146: =T146-HLOOKUP(X146,Feuil1!$C$1:$BL$10,7,FALSE) -> -51 | AH146: =T146-HLOOKUP(X146,Feuil1!$C$1:$BL$10,8,FALSE) -> -71 | AI146: =T146-HLOOKUP(X146,Feuil1!$C$1:$BL$10,9,FALSE) -> -91 | AJ146: =T146-HLOOKUP(X146,Feuil1!$C$1:$BL$10,10,FALSE) -> -901 | AQ146: DEP +
A147: H | B147: CO | C147: BRE | D147: 27 | E147: 356013 | F147: MEINSER | G147: Malone | H147: 2001 | I147: 58.6 | J147: HC Pleurtuit | K147: F | L147: 37 | M147: 40 | N147: -43 | O147: 40 | P147: 47 | Q147: 50 | R147: 55 | S147: 55 | T147: 95 | U147: -22.2 | V147: DEP + | W147: 0 | X147: =IF(I147="","",IF(A147="H",IF(OR(H147="SEN",H147<1995),VLOOKUP(I147,Feuil1!$A$11:$G$29,6),IF(AND(H147>1994,H147<1998),VLOOKUP(I147,Feuil1!$A$11:$G$29,5),IF(AND(H147>1997,H147<2000),VLOOKUP(I147,Feuil1!$A$11:$G$29,4),IF(AND(H147>1999,H147<2002),VLOOKUP(I147,Feuil1!$A$11:$G$29,3),VLOOKUP(I147,Feuil1!$A$11:$G$29,2))))),IF(OR(H147="SEN",H147<1995),VLOOKUP(I147,Feuil1!$G$11:$L$25,6),IF(AND(H147>1994,H147<1998),VLOOKUP(I147,Feuil1!$G$11:$L$25,5),IF(AND(H147>1997,H147<2000),VLOOKUP(I147,Feuil1!$G$11:$L$25,4),IF(AND(H147>1999,H147<2002),VLOOKUP(I147,Feuil1!$G$11:$L$25,3),VLOOKUP(I147,Feuil1!$G$11:$L$25,2))))))) -> C1 62 | Y147: 143.1922037 | AB147: =T147-HLOOKUP(X147,Feuil1!$C$1:$BL$10,2,FALSE) -> 20 | AC147: =T147-HLOOKUP(X147,Feuil1!$C$1:$BL$10,3,FALSE) -> 0 | AD147: =T147-HLOOKUP(X147,Feuil1!$C$1:$BL$10,4,FALSE) -> -10 | AE147: =T147-HLOOKUP(X147,Feuil1!$C$1:$BL$10,5,FALSE) -> -25 | AF147: =T147-HLOOKUP(X147,Feuil1!$C$1:$BL$10,6,FALSE) -> -40 | AG147: =T147-HLOOKUP(X147,Feuil1!$C$1:$BL$10,7,FALSE) -> -55 | AH147: =T147-HLOOKUP(X147,Feuil1!$C$1:$BL$10,8,FALSE) -> -75 | AI147: =T147-HLOOKUP(X147,Feuil1!$C$1:$BL$10,9,FALSE) -> -95 | AJ147: =T147-HLOOKUP(X147,Feuil1!$C$1:$BL$10,10,FALSE) -> -905 | AQ147: DEP +
A148: H | B148: SO | C148: MPY | D148: 28 | E148: 357551 | F148: MEUNIER | G148: Julien | H148: 2001 | I148: 57.9 | J148: MONTAUBAN HC | K148: F | L148: 34 | M148: 37 | N148: 40 | O148: 40 | P148: 41 | Q148: 45 | R148: 50 | S148: 50 | T148: 90 | U148: -25.8 | V148: DEB | W148: 15 | X148: =IF(I148="","",IF(A148="H",IF(OR(H148="SEN",H148<1995),VLOOKUP(I148,Feuil1!$A$11:$G$29,6),IF(AND(H148>1994,H148<1998),VLOOKUP(I148,Feuil1!$A$11:$G$29,5),IF(AND(H148>1997,H148<2000),VLOOKUP(I148,Feuil1!$A$11:$G$29,4),IF(AND(H148>1999,H148<2002),VLOOKUP(I148,Feuil1!$A$11:$G$29,3),VLOOKUP(I148,Feuil1!$A$11:$G$29,2))))),IF(OR(H148="SEN",H148<1995),VLOOKUP(I148,Feuil1!$G$11:$L$25,6),IF(AND(H148>1994,H148<1998),VLOOKUP(I148,Feuil1!$G$11:$L$25,5),IF(AND(H148>1997,H148<2000),VLOOKUP(I148,Feuil1!$G$11:$L$25,4),IF(AND(H148>1999,H148<2002),VLOOKUP(I148,Feuil1!$G$11:$L$25,3),VLOOKUP(I148,Feuil1!$G$11:$L$25,2))))))) -> C1 62 | Y148: 136.8948383 | AB148: =T148-HLOOKUP(X148,Feuil1!$C$1:$BL$10,2,FALSE) -> 15 | AC148: =T148-HLOOKUP(X148,Feuil1!$C$1:$BL$10,3,FALSE) -> -5 | AD148: =T148-HLOOKUP(X148,Feuil1!$C$1:$BL$10,4,FALSE) -> -15 | AE148: =T148-HLOOKUP(X148,Feuil1!$C$1:$BL$10,5,FALSE) -> -30 | AF148: =T148-HLOOKUP(X148,Feuil1!$C$1:$BL$10,6,FALSE) -> -45 | AG148: =T148-HLOOKUP(X148,Feuil1!$C$1:$BL$10,7,FALSE) -> -60 | AH148: =T148-HLOOKUP(X148,Feuil1!$C$1:$BL$10,8,FALSE) -> -80 | AI148: =T148-HLOOKUP(X148,Feuil1!$C$1:$BL$10,9,FALSE) -> -100 | AJ148: =T148-HLOOKUP(X148,Feuil1!$C$1:$BL$10,10,FALSE) -> -910 | AQ148: DEB
A149: H | B149: DOM | C149: GUA | D149: 29 | E149: 387920 | F149: MOLINIER | G149: Théo | H149: 2000 | I149: 58 | J149: AHCS/Pointois | K149: F | L149: 35 | M149: 40 | N149: -43 | O149: 40 | P149: 40 | Q149: 45 | R149: 50 | S149: 50 | T149: 90 | U149: -26 | V149: DEB | W149: 15 | X149: =IF(I149="","",IF(A149="H",IF(OR(H149="SEN",H149<1995),VLOOKUP(I149,Feuil1!$A$11:$G$29,6),IF(AND(H149>1994,H149<1998),VLOOKUP(I149,Feuil1!$A$11:$G$29,5),IF(AND(H149>1997,H149<2000),VLOOKUP(I149,Feuil1!$A$11:$G$29,4),IF(AND(H149>1999,H149<2002),VLOOKUP(I149,Feuil1!$A$11:$G$29,3),VLOOKUP(I149,Feuil1!$A$11:$G$29,2))))),IF(OR(H149="SEN",H149<1995),VLOOKUP(I149,Feuil1!$G$11:$L$25,6),IF(AND(H149>1994,H149<1998),VLOOKUP(I149,Feuil1!$G$11:$L$25,5),IF(AND(H149>1997,H149<2000),VLOOKUP(I149,Feuil1!$G$11:$L$25,4),IF(AND(H149>1999,H149<2002),VLOOKUP(I149,Feuil1!$G$11:$L$25,3),VLOOKUP(I149,Feuil1!$G$11:$L$25,2))))))) -> C1 62 | Y149: 136.7153835 | AB149: =T149-HLOOKUP(X149,Feuil1!$C$1:$BL$10,2,FALSE) -> 15 | AC149: =T149-HLOOKUP(X149,Feuil1!$C$1:$BL$10,3,FALSE) -> -5 | AD149: =T149-HLOOKUP(X149,Feuil1!$C$1:$BL$10,4,FALSE) -> -15 | AE149: =T149-HLOOKUP(X149,Feuil1!$C$1:$BL$10,5,FALSE) -> -30 | AF149: =T149-HLOOKUP(X149,Feuil1!$C$1:$BL$10,6,FALSE) -> -45 | AG149: =T149-HLOOKUP(X149,Feuil1!$C$1:$BL$10,7,FALSE) -> -60 | AH149: =T149-HLOOKUP(X149,Feuil1!$C$1:$BL$10,8,FALSE) -> -80 | AI149: =T149-HLOOKUP(X149,Feuil1!$C$1:$BL$10,9,FALSE) -> -100 | AJ149: =T149-HLOOKUP(X149,Feuil1!$C$1:$BL$10,10,FALSE) -> -910 | AQ149: DEB
A150: H | B150: NORD | C150: NPC | D150: 30 | E150: 366505 | F150: DELRUE | G150: Baptiste | H150: 2001 | I150: 58 | J150: CHCD COMINES | K150: F | L150: 35 | M150: 38 | N150: -40 | O150: 38 | P150: 45 | Q150: 48 | R150: -52 | S150: 48 | T150: 86 | U150: -30 | V150: DEB | W150: 11 | X150: =IF(I150="","",IF(A150="H",IF(OR(H150="SEN",H150<1995),VLOOKUP(I150,Feuil1!$A$11:$G$29,6),IF(AND(H150>1994,H150<1998),VLOOKUP(I150,Feuil1!$A$11:$G$29,5),IF(AND(H150>1997,H150<2000),VLOOKUP(I150,Feuil1!$A$11:$G$29,4),IF(AND(H150>1999,H150<2002),VLOOKUP(I150,Feuil1!$A$11:$G$29,3),VLOOKUP(I150,Feuil1!$A$11:$G$29,2))))),IF(OR(H150="SEN",H150<1995),VLOOKUP(I150,Feuil1!$G$11:$L$25,6),IF(AND(H150>1994,H150<1998),VLOOKUP(I150,Feuil1!$G$11:$L$25,5),IF(AND(H150>1997,H150<2000),VLOOKUP(I150,Feuil1!$G$11:$L$25,4),IF(AND(H150>1999,H150<2002),VLOOKUP(I150,Feuil1!$G$11:$L$25,3),VLOOKUP(I150,Feuil1!$G$11:$L$25,2))))))) -> C1 62 | Y150: 130.6391442 | AB150: =T150-HLOOKUP(X150,Feuil1!$C$1:$BL$10,2,FALSE) -> 11 | AC150: =T150-HLOOKUP(X150,Feuil1!$C$1:$BL$10,3,FALSE) -> -9 | AD150: =T150-HLOOKUP(X150,Feuil1!$C$1:$BL$10,4,FALSE) -> -19 | AE150: =T150-HLOOKUP(X150,Feuil1!$C$1:$BL$10,5,FALSE) -> -34 | AF150: =T150-HLOOKUP(X150,Feuil1!$C$1:$BL$10,6,FALSE) -> -49 | AG150: =T150-HLOOKUP(X150,Feuil1!$C$1:$BL$10,7,FALSE) -> -64 | AH150: =T150-HLOOKUP(X150,Feuil1!$C$1:$BL$10,8,FALSE) -> -84 | AI150: =T150-HLOOKUP(X150,Feuil1!$C$1:$BL$10,9,FALSE) -> -104 | AJ150: =T150-HLOOKUP(X150,Feuil1!$C$1:$BL$10,10,FALSE) -> -914 | AQ150: DEB
A151: H | B151: SEST | C151: RAL | D151: 31 | E151: 383848 | F151: MATHEY | G151: LoÏc | H151: 2000 | I151: 58.5 | J151: Entente VIRIAT | K151: F | L151: 35 | M151: 38 | N151: 40 | O151: 40 | P151: 42 | Q151: 46 | R151: -50 | S151: 46 | T151: 86 | U151: -31 | V151: DEB | W151: 11 | X151: =IF(I151="","",IF(A151="H",IF(OR(H151="SEN",H151<1995),VLOOKUP(I151,Feuil1!$A$11:$G$29,6),IF(AND(H151>1994,H151<1998),VLOOKUP(I151,Feuil1!$A$11:$G$29,5),IF(AND(H151>1997,H151<2000),VLOOKUP(I151,Feuil1!$A$11:$G$29,4),IF(AND(H151>1999,H151<2002),VLOOKUP(I151,Feuil1!$A$11:$G$29,3),VLOOKUP(I151,Feuil1!$A$11:$G$29,2))))),IF(OR(H151="SEN",H151<1995),VLOOKUP(I151,Feuil1!$G$11:$L$25,6),IF(AND(H151>1994,H151<1998),VLOOKUP(I151,Feuil1!$G$11:$L$25,5),IF(AND(H151>1997,H151<2000),VLOOKUP(I151,Feuil1!$G$11:$L$25,4),IF(AND(H151>1999,H151<2002),VLOOKUP(I151,Feuil1!$G$11:$L$25,3),VLOOKUP(I151,Feuil1!$G$11:$L$25,2))))))) -> C1 62 | Y151: 129.7934562 | AB151: =T151-HLOOKUP(X151,Feuil1!$C$1:$BL$10,2,FALSE) -> 11 | AC151: =T151-HLOOKUP(X151,Feuil1!$C$1:$BL$10,3,FALSE) -> -9 | AD151: =T151-HLOOKUP(X151,Feuil1!$C$1:$BL$10,4,FALSE) -> -19 | AE151: =T151-HLOOKUP(X151,Feuil1!$C$1:$BL$10,5,FALSE) -> -34 | AF151: =T151-HLOOKUP(X151,Feuil1!$C$1:$BL$10,6,FALSE) -> -49 | AG151: =T151-HLOOKUP(X151,Feuil1!$C$1:$BL$10,7,FALSE) -> -64 | AH151: =T151-HLOOKUP(X151,Feuil1!$C$1:$BL$10,8,FALSE) -> -84 | AI151: =T151-HLOOKUP(X151,Feuil1!$C$1:$BL$10,9,FALSE) -> -104 | AJ151: =T151-HLOOKUP(X151,Feuil1!$C$1:$BL$10,10,FALSE) -> -914 | AQ151: DEB
A152: H | B152: SEST | C152: RAL | D152: 32 | E152: 396974 | F152: CASTILLO | G152: Antoine | H152: 2000 | I152: 57.5 | J152: Vaulx-en-Velin | K152: F | L152: 32 | M152: 35 | N152: -38 | O152: 35 | P152: 45 | Q152: 50 | R152: -55 | S152: 50 | T152: 85 | U152: -30 | V152: DEB | W152: 10 | X152: =IF(I152="","",IF(A152="H",IF(OR(H152="SEN",H152<1995),VLOOKUP(I152,Feuil1!$A$11:$G$29,6),IF(AND(H152>1994,H152<1998),VLOOKUP(I152,Feuil1!$A$11:$G$29,5),IF(AND(H152>1997,H152<2000),VLOOKUP(I152,Feuil1!$A$11:$G$29,4),IF(AND(H152>1999,H152<2002),VLOOKUP(I152,Feuil1!$A$11:$G$29,3),VLOOKUP(I152,Feuil1!$A$11:$G$29,2))))),IF(OR(H152="SEN",H152<1995),VLOOKUP(I152,Feuil1!$G$11:$L$25,6),IF(AND(H152>1994,H152<1998),VLOOKUP(I152,Feuil1!$G$11:$L$25,5),IF(AND(H152>1997,H152<2000),VLOOKUP(I152,Feuil1!$G$11:$L$25,4),IF(AND(H152>1999,H152<2002),VLOOKUP(I152,Feuil1!$G$11:$L$25,3),VLOOKUP(I152,Feuil1!$G$11:$L$25,2))))))) -> C1 62 | Y152: 129.9753864 | AB152: =T152-HLOOKUP(X152,Feuil1!$C$1:$BL$10,2,FALSE) -> 10 | AC152: =T152-HLOOKUP(X152,Feuil1!$C$1:$BL$10,3,FALSE) -> -10 | AD152: =T152-HLOOKUP(X152,Feuil1!$C$1:$BL$10,4,FALSE) -> -20 | AE152: =T152-HLOOKUP(X152,Feuil1!$C$1:$BL$10,5,FALSE) -> -35 | AF152: =T152-HLOOKUP(X152,Feuil1!$C$1:$BL$10,6,FALSE) -> -50 | AG152: =T152-HLOOKUP(X152,Feuil1!$C$1:$BL$10,7,FALSE) -> -65 | AH152: =T152-HLOOKUP(X152,Feuil1!$C$1:$BL$10,8,FALSE) -> -85 | AI152: =T152-HLOOKUP(X152,Feuil1!$C$1:$BL$10,9,FALSE) -> -105 | AJ152: =T152-HLOOKUP(X152,Feuil1!$C$1:$BL$10,10,FALSE) -> -915 | AQ152: DEB
A153: H | B153: NE | C153: BOU | D153: 33 | E153: 383618 | F153: SCHNEIDER | G153: Quentin | H153: 2001 | I153: 60.95 | J153: varennes vauzelles | K153: F | L153: 33 | M153: 36 | N153: -39 | O153: =IF(H153="","",IF(MAXA(L153:N153)<=0,0,MAXA(L153:N153))) -> 36 | P153: 40 | Q153: 43 | R153: 47 | S153: =IF(H153="","",IF(MAXA(P153:R153)<=0,0,MAXA(P153:R153))) -> 47 | T153: =IF(H153="","",IF(OR(O153=0,S153=0),0,O153+S153)) -> 83 | U153: =T153-I153*2 -> -38.9 | V153: =IF(H153="","",AQ153) -> DEB | W153: =IF(AJ153>=0,AJ153,IF(AI153>=0,AI153,IF(AH153>=0,AH153,IF(AG153>=0,AG153,IF(AF153>=0,AF153,IF(AE153>=0,AE153,IF(AD153>=0,AD153,IF(AC153>=0,AC153,AB153)))))))) -> 8 | X153: =IF(I153="","",IF(A153="H",IF(OR(H153="SEN",H153<1995),VLOOKUP(I153,Feuil1!$A$11:$G$29,6),IF(AND(H153>1994,H153<1998),VLOOKUP(I153,Feuil1!$A$11:$G$29,5),IF(AND(H153>1997,H153<2000),VLOOKUP(I153,Feuil1!$A$11:$G$29,4),IF(AND(H153>1999,H153<2002),VLOOKUP(I153,Feuil1!$A$11:$G$29,3),VLOOKUP(I153,Feuil1!$A$11:$G$29,2))))),IF(OR(H153="SEN",H153<1995),VLOOKUP(I153,Feuil1!$G$11:$L$25,6),IF(AND(H153>1994,H153<1998),VLOOKUP(I153,Feuil1!$G$11:$L$25,5),IF(AND(H153>1997,H153<2000),VLOOKUP(I153,Feuil1!$G$11:$L$25,4),IF(AND(H153>1999,H153<2002),VLOOKUP(I153,Feuil1!$G$11:$L$25,3),VLOOKUP(I153,Feuil1!$G$11:$L$25,2))))))) -> C1 62 | Y153: =IF(I153="","",IF(A153="H",10^(0.794358141*LOG(I153/174.393)^2)*T153,IF(A153="F",10^(0.89726074*LOG(I153/148.026)^2)*T153,""))) -> 121.522392 | AB153: =T153-HLOOKUP(X153,Feuil1!$C$1:$BL$10,2,FALSE) -> 8 | AC153: =T153-HLOOKUP(X153,Feuil1!$C$1:$BL$10,3,FALSE) -> -12 | AD153: =T153-HLOOKUP(X153,Feuil1!$C$1:$BL$10,4,FALSE) -> -22 | AE153: =T153-HLOOKUP(X153,Feuil1!$C$1:$BL$10,5,FALSE) -> -37 | AF153: =T153-HLOOKUP(X153,Feuil1!$C$1:$BL$10,6,FALSE) -> -52 | AG153: =T153-HLOOKUP(X153,Feuil1!$C$1:$BL$10,7,FALSE) -> -67 | AH153: =T153-HLOOKUP(X153,Feuil1!$C$1:$BL$10,8,FALSE) -> -87 | AI153: =T153-HLOOKUP(X153,Feuil1!$C$1:$BL$10,9,FALSE) -> -107 | AJ153: =T153-HLOOKUP(X153,Feuil1!$C$1:$BL$10,10,FALSE) -> -917 | AQ153: =IF(AJ153>=0,$AJ$4,IF(AI153>=0,$AI$4,IF(AH153>=0,$AH$4,IF(AG153>=0,$AG$4,IF(AF153>=0,$AF$4,IF(AE153>=0,$AE$4,IF(AD153>=0,$AD$4,IF(AC153>=0,$AC$4,$AB$4)))))))) -> DEB
A154: H | B154: NE | C154: FCO | D154: 34 | E154: 390774 | F154: KHOURI | G154: Martin | H154: 2000 | I154: 56.5 | J154: LF Besançon | K154: F | L154: 33 | M154: 36 | N154: -37 | O154: 36 | P154: 38 | Q154: 42 | R154: 45 | S154: 45 | T154: 81 | U154: -32 | V154: DEB | W154: 6 | X154: =IF(I154="","",IF(A154="H",IF(OR(H154="SEN",H154<1995),VLOOKUP(I154,Feuil1!$A$11:$G$29,6),IF(AND(H154>1994,H154<1998),VLOOKUP(I154,Feuil1!$A$11:$G$29,5),IF(AND(H154>1997,H154<2000),VLOOKUP(I154,Feuil1!$A$11:$G$29,4),IF(AND(H154>1999,H154<2002),VLOOKUP(I154,Feuil1!$A$11:$G$29,3),VLOOKUP(I154,Feuil1!$A$11:$G$29,2))))),IF(OR(H154="SEN",H154<1995),VLOOKUP(I154,Feuil1!$G$11:$L$25,6),IF(AND(H154>1994,H154<1998),VLOOKUP(I154,Feuil1!$G$11:$L$25,5),IF(AND(H154>1997,H154<2000),VLOOKUP(I154,Feuil1!$G$11:$L$25,4),IF(AND(H154>1999,H154<2002),VLOOKUP(I154,Feuil1!$G$11:$L$25,3),VLOOKUP(I154,Feuil1!$G$11:$L$25,2))))))) -> C1 62 | Y154: 125.5469844 | AB154: =T154-HLOOKUP(X154,Feuil1!$C$1:$BL$10,2,FALSE) -> 6 | AC154: =T154-HLOOKUP(X154,Feuil1!$C$1:$BL$10,3,FALSE) -> -14 | AD154: =T154-HLOOKUP(X154,Feuil1!$C$1:$BL$10,4,FALSE) -> -24 | AE154: =T154-HLOOKUP(X154,Feuil1!$C$1:$BL$10,5,FALSE) -> -39 | AF154: =T154-HLOOKUP(X154,Feuil1!$C$1:$BL$10,6,FALSE) -> -54 | AG154: =T154-HLOOKUP(X154,Feuil1!$C$1:$BL$10,7,FALSE) -> -69 | AH154: =T154-HLOOKUP(X154,Feuil1!$C$1:$BL$10,8,FALSE) -> -89 | AI154: =T154-HLOOKUP(X154,Feuil1!$C$1:$BL$10,9,FALSE) -> -109 | AJ154: =T154-HLOOKUP(X154,Feuil1!$C$1:$BL$10,10,FALSE) -> -919 | AQ154: DEB
A155: H | B155: NORD | C155: PIC | D155: 35 | E155: 351882 | F155: LELY | G155: Valentin | H155: 2001 | I155: 61.9 | J155: La Ferté Milon CMHM | K155: F | L155: 27 | M155: 32 | N155: -35 | O155: 32 | P155: 40 | Q155: 45 | R155: 48 | S155: 48 | T155: 80 | U155: -43.8 | V155: DEB | W155: 5 | X155: =IF(I155="","",IF(A155="H",IF(OR(H155="SEN",H155<1995),VLOOKUP(I155,Feuil1!$A$11:$G$29,6),IF(AND(H155>1994,H155<1998),VLOOKUP(I155,Feuil1!$A$11:$G$29,5),IF(AND(H155>1997,H155<2000),VLOOKUP(I155,Feuil1!$A$11:$G$29,4),IF(AND(H155>1999,H155<2002),VLOOKUP(I155,Feuil1!$A$11:$G$29,3),VLOOKUP(I155,Feuil1!$A$11:$G$29,2))))),IF(OR(H155="SEN",H155<1995),VLOOKUP(I155,Feuil1!$G$11:$L$25,6),IF(AND(H155>1994,H155<1998),VLOOKUP(I155,Feuil1!$G$11:$L$25,5),IF(AND(H155>1997,H155<2000),VLOOKUP(I155,Feuil1!$G$11:$L$25,4),IF(AND(H155>1999,H155<2002),VLOOKUP(I155,Feuil1!$G$11:$L$25,3),VLOOKUP(I155,Feuil1!$G$11:$L$25,2))))))) -> C1 62 | Y155: 115.8329187 | AB155: =T155-HLOOKUP(X155,Feuil1!$C$1:$BL$10,2,FALSE) -> 5 | AC155: =T155-HLOOKUP(X155,Feuil1!$C$1:$BL$10,3,FALSE) -> -15 | AD155: =T155-HLOOKUP(X155,Feuil1!$C$1:$BL$10,4,FALSE) -> -25 | AE155: =T155-HLOOKUP(X155,Feuil1!$C$1:$BL$10,5,FALSE) -> -40 | AF155: =T155-HLOOKUP(X155,Feuil1!$C$1:$BL$10,6,FALSE) -> -55 | AG155: =T155-HLOOKUP(X155,Feuil1!$C$1:$BL$10,7,FALSE) -> -70 | AH155: =T155-HLOOKUP(X155,Feuil1!$C$1:$BL$10,8,FALSE) -> -90 | AI155: =T155-HLOOKUP(X155,Feuil1!$C$1:$BL$10,9,FALSE) -> -110 | AJ155: =T155-HLOOKUP(X155,Feuil1!$C$1:$BL$10,10,FALSE) -> -920 | AQ155: DEB
A156: H | B156: NE | C156: CHA | D156: 36 | E156: 381736 | F156: ELOI | G156: Franck | H156: 2000 | I156: 58 | J156: Reims HM | K156: F | L156: 30 | M156: -34 | N156: 34 | O156: 34 | P156: 35 | Q156: 40 | R156: 45 | S156: 45 | T156: 79 | U156: -37 | V156: DEB | W156: 4 | X156: =IF(I156="","",IF(A156="H",IF(OR(H156="SEN",H156<1995),VLOOKUP(I156,Feuil1!$A$11:$G$29,6),IF(AND(H156>1994,H156<1998),VLOOKUP(I156,Feuil1!$A$11:$G$29,5),IF(AND(H156>1997,H156<2000),VLOOKUP(I156,Feuil1!$A$11:$G$29,4),IF(AND(H156>1999,H156<2002),VLOOKUP(I156,Feuil1!$A$11:$G$29,3),VLOOKUP(I156,Feuil1!$A$11:$G$29,2))))),IF(OR(H156="SEN",H156<1995),VLOOKUP(I156,Feuil1!$G$11:$L$25,6),IF(AND(H156>1994,H156<1998),VLOOKUP(I156,Feuil1!$G$11:$L$25,5),IF(AND(H156>1997,H156<2000),VLOOKUP(I156,Feuil1!$G$11:$L$25,4),IF(AND(H156>1999,H156<2002),VLOOKUP(I156,Feuil1!$G$11:$L$25,3),VLOOKUP(I156,Feuil1!$G$11:$L$25,2))))))) -> C1 62 | Y156: 120.0057255 | AB156: =T156-HLOOKUP(X156,Feuil1!$C$1:$BL$10,2,FALSE) -> 4 | AC156: =T156-HLOOKUP(X156,Feuil1!$C$1:$BL$10,3,FALSE) -> -16 | AD156: =T156-HLOOKUP(X156,Feuil1!$C$1:$BL$10,4,FALSE) -> -26 | AE156: =T156-HLOOKUP(X156,Feuil1!$C$1:$BL$10,5,FALSE) -> -41 | AF156: =T156-HLOOKUP(X156,Feuil1!$C$1:$BL$10,6,FALSE) -> -56 | AG156: =T156-HLOOKUP(X156,Feuil1!$C$1:$BL$10,7,FALSE) -> -71 | AH156: =T156-HLOOKUP(X156,Feuil1!$C$1:$BL$10,8,FALSE) -> -91 | AI156: =T156-HLOOKUP(X156,Feuil1!$C$1:$BL$10,9,FALSE) -> -111 | AJ156: =T156-HLOOKUP(X156,Feuil1!$C$1:$BL$10,10,FALSE) -> -921 | AQ156: DEB
A157: H | B157: NE | C157: ALS | D157: 37 | E157: 327578 | F157: HOFFMANN | G157: HUGO | H157: 2001 | I157: 56.9 | J157: CHM Andlau | K157: F | L157: 35 | M157: -40 | N157: -40 | O157: 35 | P157: 35 | Q157: 40 | R157: 43 | S157: 43 | T157: 78 | U157: -35.8 | V157: DEB | W157: 3 | X157: =IF(I157="","",IF(A157="H",IF(OR(H157="SEN",H157<1995),VLOOKUP(I157,Feuil1!$A$11:$G$29,6),IF(AND(H157>1994,H157<1998),VLOOKUP(I157,Feuil1!$A$11:$G$29,5),IF(AND(H157>1997,H157<2000),VLOOKUP(I157,Feuil1!$A$11:$G$29,4),IF(AND(H157>1999,H157<2002),VLOOKUP(I157,Feuil1!$A$11:$G$29,3),VLOOKUP(I157,Feuil1!$A$11:$G$29,2))))),IF(OR(H157="SEN",H157<1995),VLOOKUP(I157,Feuil1!$G$11:$L$25,6),IF(AND(H157>1994,H157<1998),VLOOKUP(I157,Feuil1!$G$11:$L$25,5),IF(AND(H157>1997,H157<2000),VLOOKUP(I157,Feuil1!$G$11:$L$25,4),IF(AND(H157>1999,H157<2002),VLOOKUP(I157,Feuil1!$G$11:$L$25,3),VLOOKUP(I157,Feuil1!$G$11:$L$25,2))))))) -> C1 62 | Y157: 120.2377278 | AB157: =T157-HLOOKUP(X157,Feuil1!$C$1:$BL$10,2,FALSE) -> 3 | AC157: =T157-HLOOKUP(X157,Feuil1!$C$1:$BL$10,3,FALSE) -> -17 | AD157: =T157-HLOOKUP(X157,Feuil1!$C$1:$BL$10,4,FALSE) -> -27 | AE157: =T157-HLOOKUP(X157,Feuil1!$C$1:$BL$10,5,FALSE) -> -42 | AF157: =T157-HLOOKUP(X157,Feuil1!$C$1:$BL$10,6,FALSE) -> -57 | AG157: =T157-HLOOKUP(X157,Feuil1!$C$1:$BL$10,7,FALSE) -> -72 | AH157: =T157-HLOOKUP(X157,Feuil1!$C$1:$BL$10,8,FALSE) -> -92 | AI157: =T157-HLOOKUP(X157,Feuil1!$C$1:$BL$10,9,FALSE) -> -112 | AJ157: =T157-HLOOKUP(X157,Feuil1!$C$1:$BL$10,10,FALSE) -> -922 | AQ157: DEB
A158: H | B158: NE | C158: ALS | D158: 38 | E158: 381289 | F158: L'HOMMELET | G158: LUCAS | H158: 2001 | I158: 58.7 | J158: SR Obernai HM | K158: F | L158: 28 | M158: 31 | N158: 34 | O158: 34 | P158: 36 | Q158: 39 | R158: 42 | S158: 42 | T158: 76 | U158: -41.4 | V158: DEB | W158: 1 | X158: =IF(I158="","",IF(A158="H",IF(OR(H158="SEN",H158<1995),VLOOKUP(I158,Feuil1!$A$11:$G$29,6),IF(AND(H158>1994,H158<1998),VLOOKUP(I158,Feuil1!$A$11:$G$29,5),IF(AND(H158>1997,H158<2000),VLOOKUP(I158,Feuil1!$A$11:$G$29,4),IF(AND(H158>1999,H158<2002),VLOOKUP(I158,Feuil1!$A$11:$G$29,3),VLOOKUP(I158,Feuil1!$A$11:$G$29,2))))),IF(OR(H158="SEN",H158<1995),VLOOKUP(I158,Feuil1!$G$11:$L$25,6),IF(AND(H158>1994,H158<1998),VLOOKUP(I158,Feuil1!$G$11:$L$25,5),IF(AND(H158>1997,H158<2000),VLOOKUP(I158,Feuil1!$G$11:$L$25,4),IF(AND(H158>1999,H158<2002),VLOOKUP(I158,Feuil1!$G$11:$L$25,3),VLOOKUP(I158,Feuil1!$G$11:$L$25,2))))))) -> C1 62 | Y158: 114.407002 | AB158: =T158-HLOOKUP(X158,Feuil1!$C$1:$BL$10,2,FALSE) -> 1 | AC158: =T158-HLOOKUP(X158,Feuil1!$C$1:$BL$10,3,FALSE) -> -19 | AD158: =T158-HLOOKUP(X158,Feuil1!$C$1:$BL$10,4,FALSE) -> -29 | AE158: =T158-HLOOKUP(X158,Feuil1!$C$1:$BL$10,5,FALSE) -> -44 | AF158: =T158-HLOOKUP(X158,Feuil1!$C$1:$BL$10,6,FALSE) -> -59 | AG158: =T158-HLOOKUP(X158,Feuil1!$C$1:$BL$10,7,FALSE) -> -74 | AH158: =T158-HLOOKUP(X158,Feuil1!$C$1:$BL$10,8,FALSE) -> -94 | AI158: =T158-HLOOKUP(X158,Feuil1!$C$1:$BL$10,9,FALSE) -> -114 | AJ158: =T158-HLOOKUP(X158,Feuil1!$C$1:$BL$10,10,FALSE) -> -924 | AQ158: DEB
A159: H | B159: SEST | C159: CAZ | D159: 39 | E159: 387212 | F159: BELHADJASSINE | G159: Mohamed | H159: 2001 | I159: 58.4 | J159: ASLDD TOULON | K159: F | L159: 25 | M159: 28 | N159: 31 | O159: 31 | P159: 30 | Q159: 35 | R159: 40 | S159: 40 | T159: 71 | U159: -45.8 | V159: DEB | W159: -4 | X159: =IF(I159="","",IF(A159="H",IF(OR(H159="SEN",H159<1995),VLOOKUP(I159,Feuil1!$A$11:$G$29,6),IF(AND(H159>1994,H159<1998),VLOOKUP(I159,Feuil1!$A$11:$G$29,5),IF(AND(H159>1997,H159<2000),VLOOKUP(I159,Feuil1!$A$11:$G$29,4),IF(AND(H159>1999,H159<2002),VLOOKUP(I159,Feuil1!$A$11:$G$29,3),VLOOKUP(I159,Feuil1!$A$11:$G$29,2))))),IF(OR(H159="SEN",H159<1995),VLOOKUP(I159,Feuil1!$G$11:$L$25,6),IF(AND(H159>1994,H159<1998),VLOOKUP(I159,Feuil1!$G$11:$L$25,5),IF(AND(H159>1997,H159<2000),VLOOKUP(I159,Feuil1!$G$11:$L$25,4),IF(AND(H159>1999,H159<2002),VLOOKUP(I159,Feuil1!$G$11:$L$25,3),VLOOKUP(I159,Feuil1!$G$11:$L$25,2))))))) -> C1 62 | Y159: 107.2934241 | AB159: =T159-HLOOKUP(X159,Feuil1!$C$1:$BL$10,2,FALSE) -> -4 | AC159: =T159-HLOOKUP(X159,Feuil1!$C$1:$BL$10,3,FALSE) -> -24 | AD159: =T159-HLOOKUP(X159,Feuil1!$C$1:$BL$10,4,FALSE) -> -34 | AE159: =T159-HLOOKUP(X159,Feuil1!$C$1:$BL$10,5,FALSE) -> -49 | AF159: =T159-HLOOKUP(X159,Feuil1!$C$1:$BL$10,6,FALSE) -> -64 | AG159: =T159-HLOOKUP(X159,Feuil1!$C$1:$BL$10,7,FALSE) -> -79 | AH159: =T159-HLOOKUP(X159,Feuil1!$C$1:$BL$10,8,FALSE) -> -99 | AI159: =T159-HLOOKUP(X159,Feuil1!$C$1:$BL$10,9,FALSE) -> -119 | AJ159: =T159-HLOOKUP(X159,Feuil1!$C$1:$BL$10,10,FALSE) -> -929 | AQ159: DEB
A160: H | B160: NE | C160: ALS | D160: 40 | E160: 384537 | F160: LAMY | G160: KEVIN | H160: 2001 | I160: 60.8 | J160: SR Obernai HM | K160: F | L160: 27 | M160: 29 | N160: 32 | O160: 32 | P160: 35 | Q160: -38 | R160: 38 | S160: 38 | T160: 70 | U160: -51.6 | V160: DEB | W160: -5 | X160: =IF(I160="","",IF(A160="H",IF(OR(H160="SEN",H160<1995),VLOOKUP(I160,Feuil1!$A$11:$G$29,6),IF(AND(H160>1994,H160<1998),VLOOKUP(I160,Feuil1!$A$11:$G$29,5),IF(AND(H160>1997,H160<2000),VLOOKUP(I160,Feuil1!$A$11:$G$29,4),IF(AND(H160>1999,H160<2002),VLOOKUP(I160,Feuil1!$A$11:$G$29,3),VLOOKUP(I160,Feuil1!$A$11:$G$29,2))))),IF(OR(H160="SEN",H160<1995),VLOOKUP(I160,Feuil1!$G$11:$L$25,6),IF(AND(H160>1994,H160<1998),VLOOKUP(I160,Feuil1!$G$11:$L$25,5),IF(AND(H160>1997,H160<2000),VLOOKUP(I160,Feuil1!$G$11:$L$25,4),IF(AND(H160>1999,H160<2002),VLOOKUP(I160,Feuil1!$G$11:$L$25,3),VLOOKUP(I160,Feuil1!$G$11:$L$25,2))))))) -> C1 62 | Y160: 102.6723192 | AB160: =T160-HLOOKUP(X160,Feuil1!$C$1:$BL$10,2,FALSE) -> -5 | AC160: =T160-HLOOKUP(X160,Feuil1!$C$1:$BL$10,3,FALSE) -> -25 | AD160: =T160-HLOOKUP(X160,Feuil1!$C$1:$BL$10,4,FALSE) -> -35 | AE160: =T160-HLOOKUP(X160,Feuil1!$C$1:$BL$10,5,FALSE) -> -50 | AF160: =T160-HLOOKUP(X160,Feuil1!$C$1:$BL$10,6,FALSE) -> -65 | AG160: =T160-HLOOKUP(X160,Feuil1!$C$1:$BL$10,7,FALSE) -> -80 | AH160: =T160-HLOOKUP(X160,Feuil1!$C$1:$BL$10,8,FALSE) -> -100 | AI160: =T160-HLOOKUP(X160,Feuil1!$C$1:$BL$10,9,FALSE) -> -120 | AJ160: =T160-HLOOKUP(X160,Feuil1!$C$1:$BL$10,10,FALSE) -> -930 | AQ160: DEB
A161: H | B161: CO | C161: BNO | D161: 41 | E161: 362011 | F161: ACHOURI | G161: Teddy | H161: 2001 | I161: 60.3 | J161: Blainville | K161: F | L161: 25 | M161: 28 | N161: 30 | O161: 30 | P161: 33 | Q161: 38 | R161: -40 | S161: 38 | T161: 68 | U161: -52.6 | V161: DEB | W161: -7 | X161: =IF(I161="","",IF(A161="H",IF(OR(H161="SEN",H161<1995),VLOOKUP(I161,Feuil1!$A$11:$G$29,6),IF(AND(H161>1994,H161<1998),VLOOKUP(I161,Feuil1!$A$11:$G$29,5),IF(AND(H161>1997,H161<2000),VLOOKUP(I161,Feuil1!$A$11:$G$29,4),IF(AND(H161>1999,H161<2002),VLOOKUP(I161,Feuil1!$A$11:$G$29,3),VLOOKUP(I161,Feuil1!$A$11:$G$29,2))))),IF(OR(H161="SEN",H161<1995),VLOOKUP(I161,Feuil1!$G$11:$L$25,6),IF(AND(H161>1994,H161<1998),VLOOKUP(I161,Feuil1!$G$11:$L$25,5),IF(AND(H161>1997,H161<2000),VLOOKUP(I161,Feuil1!$G$11:$L$25,4),IF(AND(H161>1999,H161<2002),VLOOKUP(I161,Feuil1!$G$11:$L$25,3),VLOOKUP(I161,Feuil1!$G$11:$L$25,2))))))) -> C1 62 | Y161: 100.3417822 | AB161: =T161-HLOOKUP(X161,Feuil1!$C$1:$BL$10,2,FALSE) -> -7 | AC161: =T161-HLOOKUP(X161,Feuil1!$C$1:$BL$10,3,FALSE) -> -27 | AD161: =T161-HLOOKUP(X161,Feuil1!$C$1:$BL$10,4,FALSE) -> -37 | AE161: =T161-HLOOKUP(X161,Feuil1!$C$1:$BL$10,5,FALSE) -> -52 | AF161: =T161-HLOOKUP(X161,Feuil1!$C$1:$BL$10,6,FALSE) -> -67 | AG161: =T161-HLOOKUP(X161,Feuil1!$C$1:$BL$10,7,FALSE) -> -82 | AH161: =T161-HLOOKUP(X161,Feuil1!$C$1:$BL$10,8,FALSE) -> -102 | AI161: =T161-HLOOKUP(X161,Feuil1!$C$1:$BL$10,9,FALSE) -> -122 | AJ161: =T161-HLOOKUP(X161,Feuil1!$C$1:$BL$10,10,FALSE) -> -932 | AQ161: DEB
A162: H | B162: CO | C162: PDL | D162: 42 | E162: 300298 | F162: RIGOT | G162: Fabien | H162: 2001 | I162: 56.48 | J162: ALSavenay | K162: F | L162: 28 | M162: -30 | N162: -30 | O162: 28 | P162: 36 | Q162: -38 | R162: 38 | S162: 38 | T162: 66 | U162: -46.96 | V162: DEB | W162: -9 | X162: =IF(I162="","",IF(A162="H",IF(OR(H162="SEN",H162<1995),VLOOKUP(I162,Feuil1!$A$11:$G$29,6),IF(AND(H162>1994,H162<1998),VLOOKUP(I162,Feuil1!$A$11:$G$29,5),IF(AND(H162>1997,H162<2000),VLOOKUP(I162,Feuil1!$A$11:$G$29,4),IF(AND(H162>1999,H162<2002),VLOOKUP(I162,Feuil1!$A$11:$G$29,3),VLOOKUP(I162,Feuil1!$A$11:$G$29,2))))),IF(OR(H162="SEN",H162<1995),VLOOKUP(I162,Feuil1!$G$11:$L$25,6),IF(AND(H162>1994,H162<1998),VLOOKUP(I162,Feuil1!$G$11:$L$25,5),IF(AND(H162>1997,H162<2000),VLOOKUP(I162,Feuil1!$G$11:$L$25,4),IF(AND(H162>1999,H162<2002),VLOOKUP(I162,Feuil1!$G$11:$L$25,3),VLOOKUP(I162,Feuil1!$G$11:$L$25,2))))))) -> C1 62 | Y162: 102.3257159 | AB162: =T162-HLOOKUP(X162,Feuil1!$C$1:$BL$10,2,FALSE) -> -9 | AC162: =T162-HLOOKUP(X162,Feuil1!$C$1:$BL$10,3,FALSE) -> -29 | AD162: =T162-HLOOKUP(X162,Feuil1!$C$1:$BL$10,4,FALSE) -> -39 | AE162: =T162-HLOOKUP(X162,Feuil1!$C$1:$BL$10,5,FALSE) -> -54 | AF162: =T162-HLOOKUP(X162,Feuil1!$C$1:$BL$10,6,FALSE) -> -69 | AG162: =T162-HLOOKUP(X162,Feuil1!$C$1:$BL$10,7,FALSE) -> -84 | AH162: =T162-HLOOKUP(X162,Feuil1!$C$1:$BL$10,8,FALSE) -> -104 | AI162: =T162-HLOOKUP(X162,Feuil1!$C$1:$BL$10,9,FALSE) -> -124 | AJ162: =T162-HLOOKUP(X162,Feuil1!$C$1:$BL$10,10,FALSE) -> -934 | AQ162: DEB
A163: H | B163: NE | C163: CHA | D163: 43 | E163: 336659 | F163: GALANDON | G163: Mattéo | H163: 2001 | I163: 57.1 | J163: Reims HM | K163: F | L163: 23 | M163: 26 | N163: 28 | O163: 28 | P163: 33 | Q163: 37 | R163: -40 | S163: 37 | T163: 65 | U163: -49.2 | V163: DEB | W163: -10 | X163: =IF(I163="","",IF(A163="H",IF(OR(H163="SEN",H163<1995),VLOOKUP(I163,Feuil1!$A$11:$G$29,6),IF(AND(H163>1994,H163<1998),VLOOKUP(I163,Feuil1!$A$11:$G$29,5),IF(AND(H163>1997,H163<2000),VLOOKUP(I163,Feuil1!$A$11:$G$29,4),IF(AND(H163>1999,H163<2002),VLOOKUP(I163,Feuil1!$A$11:$G$29,3),VLOOKUP(I163,Feuil1!$A$11:$G$29,2))))),IF(OR(H163="SEN",H163<1995),VLOOKUP(I163,Feuil1!$G$11:$L$25,6),IF(AND(H163>1994,H163<1998),VLOOKUP(I163,Feuil1!$G$11:$L$25,5),IF(AND(H163>1997,H163<2000),VLOOKUP(I163,Feuil1!$G$11:$L$25,4),IF(AND(H163>1999,H163<2002),VLOOKUP(I163,Feuil1!$G$11:$L$25,3),VLOOKUP(I163,Feuil1!$G$11:$L$25,2))))))) -> C1 62 | Y163: 99.9272112 | AB163: =T163-HLOOKUP(X163,Feuil1!$C$1:$BL$10,2,FALSE) -> -10 | AC163: =T163-HLOOKUP(X163,Feuil1!$C$1:$BL$10,3,FALSE) -> -30 | AD163: =T163-HLOOKUP(X163,Feuil1!$C$1:$BL$10,4,FALSE) -> -40 | AE163: =T163-HLOOKUP(X163,Feuil1!$C$1:$BL$10,5,FALSE) -> -55 | AF163: =T163-HLOOKUP(X163,Feuil1!$C$1:$BL$10,6,FALSE) -> -70 | AG163: =T163-HLOOKUP(X163,Feuil1!$C$1:$BL$10,7,FALSE) -> -85 | AH163: =T163-HLOOKUP(X163,Feuil1!$C$1:$BL$10,8,FALSE) -> -105 | AI163: =T163-HLOOKUP(X163,Feuil1!$C$1:$BL$10,9,FALSE) -> -125 | AJ163: =T163-HLOOKUP(X163,Feuil1!$C$1:$BL$10,10,FALSE) -> -935 | AQ163: DEB
A164: H | B164: NORD | C164: PIC | D164: 44 | E164: 357878 | F164: ELOY | G164: Martin | H164: 2001 | I164: 61.8 | J164: Villers-Bretonneux KC | K164: F | L164: 22 | M164: 25 | N164: -30 | O164: 25 | P164: 32 | Q164: 36 | R164: 40 | S164: 40 | T164: 65 | U164: -58.6 | V164: DEB | W164: -10 | X164: =IF(I164="","",IF(A164="H",IF(OR(H164="SEN",H164<1995),VLOOKUP(I164,Feuil1!$A$11:$G$29,6),IF(AND(H164>1994,H164<1998),VLOOKUP(I164,Feuil1!$A$11:$G$29,5),IF(AND(H164>1997,H164<2000),VLOOKUP(I164,Feuil1!$A$11:$G$29,4),IF(AND(H164>1999,H164<2002),VLOOKUP(I164,Feuil1!$A$11:$G$29,3),VLOOKUP(I164,Feuil1!$A$11:$G$29,2))))),IF(OR(H164="SEN",H164<1995),VLOOKUP(I164,Feuil1!$G$11:$L$25,6),IF(AND(H164>1994,H164<1998),VLOOKUP(I164,Feuil1!$G$11:$L$25,5),IF(AND(H164>1997,H164<2000),VLOOKUP(I164,Feuil1!$G$11:$L$25,4),IF(AND(H164>1999,H164<2002),VLOOKUP(I164,Feuil1!$G$11:$L$25,3),VLOOKUP(I164,Feuil1!$G$11:$L$25,2))))))) -> C1 62 | Y164: 94.2231416 | AB164: =T164-HLOOKUP(X164,Feuil1!$C$1:$BL$10,2,FALSE) -> -10 | AC164: =T164-HLOOKUP(X164,Feuil1!$C$1:$BL$10,3,FALSE) -> -30 | AD164: =T164-HLOOKUP(X164,Feuil1!$C$1:$BL$10,4,FALSE) -> -40 | AE164: =T164-HLOOKUP(X164,Feuil1!$C$1:$BL$10,5,FALSE) -> -55 | AF164: =T164-HLOOKUP(X164,Feuil1!$C$1:$BL$10,6,FALSE) -> -70 | AG164: =T164-HLOOKUP(X164,Feuil1!$C$1:$BL$10,7,FALSE) -> -85 | AH164: =T164-HLOOKUP(X164,Feuil1!$C$1:$BL$10,8,FALSE) -> -105 | AI164: =T164-HLOOKUP(X164,Feuil1!$C$1:$BL$10,9,FALSE) -> -125 | AJ164: =T164-HLOOKUP(X164,Feuil1!$C$1:$BL$10,10,FALSE) -> -935 | AQ164: DEB
A165: H | B165: CO | C165: CEN | D165: 45 | E165: 385777 | F165: TILKI | G165: Ali | H165: 2000 | I165: 60.5 | J165: CM Orléans | K165: F | L165: -27 | M165: 27 | N165: -28 | O165: 27 | P165: 35 | Q165: -40 | R165: -40 | S165: 35 | T165: 62 | U165: -59 | V165: DEB | W165: -13 | X165: =IF(I165="","",IF(A165="H",IF(OR(H165="SEN",H165<1995),VLOOKUP(I165,Feuil1!$A$11:$G$29,6),IF(AND(H165>1994,H165<1998),VLOOKUP(I165,Feuil1!$A$11:$G$29,5),IF(AND(H165>1997,H165<2000),VLOOKUP(I165,Feuil1!$A$11:$G$29,4),IF(AND(H165>1999,H165<2002),VLOOKUP(I165,Feuil1!$A$11:$G$29,3),VLOOKUP(I165,Feuil1!$A$11:$G$29,2))))),IF(OR(H165="SEN",H165<1995),VLOOKUP(I165,Feuil1!$G$11:$L$25,6),IF(AND(H165>1994,H165<1998),VLOOKUP(I165,Feuil1!$G$11:$L$25,5),IF(AND(H165>1997,H165<2000),VLOOKUP(I165,Feuil1!$G$11:$L$25,4),IF(AND(H165>1999,H165<2002),VLOOKUP(I165,Feuil1!$G$11:$L$25,3),VLOOKUP(I165,Feuil1!$G$11:$L$25,2))))))) -> C1 62 | Y165: 91.26673446 | AB165: =T165-HLOOKUP(X165,Feuil1!$C$1:$BL$10,2,FALSE) -> -13 | AC165: =T165-HLOOKUP(X165,Feuil1!$C$1:$BL$10,3,FALSE) -> -33 | AD165: =T165-HLOOKUP(X165,Feuil1!$C$1:$BL$10,4,FALSE) -> -43 | AE165: =T165-HLOOKUP(X165,Feuil1!$C$1:$BL$10,5,FALSE) -> -58 | AF165: =T165-HLOOKUP(X165,Feuil1!$C$1:$BL$10,6,FALSE) -> -73 | AG165: =T165-HLOOKUP(X165,Feuil1!$C$1:$BL$10,7,FALSE) -> -88 | AH165: =T165-HLOOKUP(X165,Feuil1!$C$1:$BL$10,8,FALSE) -> -108 | AI165: =T165-HLOOKUP(X165,Feuil1!$C$1:$BL$10,9,FALSE) -> -128 | AJ165: =T165-HLOOKUP(X165,Feuil1!$C$1:$BL$10,10,FALSE) -> -938 | AQ165: DEB
A166: H | B166: CO | C166: PDL | D166: 46 | E166: 379818 | F166: REGENT | G166: Damien | H166: 2000 | I166: 59.8 | J166: ALSavenay | K166: F | L166: 22 | M166: 25 | N166: 27 | O166: 27 | P166: 27 | Q166: 30 | R166: 33 | S166: 33 | T166: 60 | U166: -59.6 | V166: DEB | W166: -15 | X166: =IF(I166="","",IF(A166="H",IF(OR(H166="SEN",H166<1995),VLOOKUP(I166,Feuil1!$A$11:$G$29,6),IF(AND(H166>1994,H166<1998),VLOOKUP(I166,Feuil1!$A$11:$G$29,5),IF(AND(H166>1997,H166<2000),VLOOKUP(I166,Feuil1!$A$11:$G$29,4),IF(AND(H166>1999,H166<2002),VLOOKUP(I166,Feuil1!$A$11:$G$29,3),VLOOKUP(I166,Feuil1!$A$11:$G$29,2))))),IF(OR(H166="SEN",H166<1995),VLOOKUP(I166,Feuil1!$G$11:$L$25,6),IF(AND(H166>1994,H166<1998),VLOOKUP(I166,Feuil1!$G$11:$L$25,5),IF(AND(H166>1997,H166<2000),VLOOKUP(I166,Feuil1!$G$11:$L$25,4),IF(AND(H166>1999,H166<2002),VLOOKUP(I166,Feuil1!$G$11:$L$25,3),VLOOKUP(I166,Feuil1!$G$11:$L$25,2))))))) -> C1 62 | Y166: 89.08081823 | AB166: =T166-HLOOKUP(X166,Feuil1!$C$1:$BL$10,2,FALSE) -> -15 | AC166: =T166-HLOOKUP(X166,Feuil1!$C$1:$BL$10,3,FALSE) -> -35 | AD166: =T166-HLOOKUP(X166,Feuil1!$C$1:$BL$10,4,FALSE) -> -45 | AE166: =T166-HLOOKUP(X166,Feuil1!$C$1:$BL$10,5,FALSE) -> -60 | AF166: =T166-HLOOKUP(X166,Feuil1!$C$1:$BL$10,6,FALSE) -> -75 | AG166: =T166-HLOOKUP(X166,Feuil1!$C$1:$BL$10,7,FALSE) -> -90 | AH166: =T166-HLOOKUP(X166,Feuil1!$C$1:$BL$10,8,FALSE) -> -110 | AI166: =T166-HLOOKUP(X166,Feuil1!$C$1:$BL$10,9,FALSE) -> -130 | AJ166: =T166-HLOOKUP(X166,Feuil1!$C$1:$BL$10,10,FALSE) -> -940 | AQ166: DEB
A167: H | B167: SEST | C167: PRO | D167: 47 | E167: 361674 | F167: LE COZ | G167: KILLIAN | H167: 2001 | I167: 59.7 | J167: ISTRES SPORTS | L167: -20 | M167: 20 | N167: 23 | O167: 23 | P167: 28 | Q167: 31 | R167: 33 | S167: 33 | T167: 56 | U167: -63.4 | V167: DEB | W167: -19 | X167: =IF(I167="","",IF(A167="H",IF(OR(H167="SEN",H167<1995),VLOOKUP(I167,Feuil1!$A$11:$G$29,6),IF(AND(H167>1994,H167<1998),VLOOKUP(I167,Feuil1!$A$11:$G$29,5),IF(AND(H167>1997,H167<2000),VLOOKUP(I167,Feuil1!$A$11:$G$29,4),IF(AND(H167>1999,H167<2002),VLOOKUP(I167,Feuil1!$A$11:$G$29,3),VLOOKUP(I167,Feuil1!$A$11:$G$29,2))))),IF(OR(H167="SEN",H167<1995),VLOOKUP(I167,Feuil1!$G$11:$L$25,6),IF(AND(H167>1994,H167<1998),VLOOKUP(I167,Feuil1!$G$11:$L$25,5),IF(AND(H167>1997,H167<2000),VLOOKUP(I167,Feuil1!$G$11:$L$25,4),IF(AND(H167>1999,H167<2002),VLOOKUP(I167,Feuil1!$G$11:$L$25,3),VLOOKUP(I167,Feuil1!$G$11:$L$25,2))))))) -> C1 62 | Y167: 83.24500041 | AB167: =T167-HLOOKUP(X167,Feuil1!$C$1:$BL$10,2,FALSE) -> -19 | AC167: =T167-HLOOKUP(X167,Feuil1!$C$1:$BL$10,3,FALSE) -> -39 | AD167: =T167-HLOOKUP(X167,Feuil1!$C$1:$BL$10,4,FALSE) -> -49 | AE167: =T167-HLOOKUP(X167,Feuil1!$C$1:$BL$10,5,FALSE) -> -64 | AF167: =T167-HLOOKUP(X167,Feuil1!$C$1:$BL$10,6,FALSE) -> -79 | AG167: =T167-HLOOKUP(X167,Feuil1!$C$1:$BL$10,7,FALSE) -> -94 | AH167: =T167-HLOOKUP(X167,Feuil1!$C$1:$BL$10,8,FALSE) -> -114 | AI167: =T167-HLOOKUP(X167,Feuil1!$C$1:$BL$10,9,FALSE) -> -134 | AJ167: =T167-HLOOKUP(X167,Feuil1!$C$1:$BL$10,10,FALSE) -> -944 | AQ167: DEB
A168: H | B168: CO | C168: BRE | D168: 48 | E168: 377668 | F168: SAM | G168: Rithy | H168: 2001 | I168: 56.6 | J168: ES Saint Avé | K168: F | L168: 20 | M168: 23 | N168: 25 | O168: 25 | P168: -26 | Q168: 26 | R168: 30 | S168: 30 | T168: 55 | U168: -58.2 | V168: DEB | W168: -20 | X168: =IF(I168="","",IF(A168="H",IF(OR(H168="SEN",H168<1995),VLOOKUP(I168,Feuil1!$A$11:$G$29,6),IF(AND(H168>1994,H168<1998),VLOOKUP(I168,Feuil1!$A$11:$G$29,5),IF(AND(H168>1997,H168<2000),VLOOKUP(I168,Feuil1!$A$11:$G$29,4),IF(AND(H168>1999,H168<2002),VLOOKUP(I168,Feuil1!$A$11:$G$29,3),VLOOKUP(I168,Feuil1!$A$11:$G$29,2))))),IF(OR(H168="SEN",H168<1995),VLOOKUP(I168,Feuil1!$G$11:$L$25,6),IF(AND(H168>1994,H168<1998),VLOOKUP(I168,Feuil1!$G$11:$L$25,5),IF(AND(H168>1997,H168<2000),VLOOKUP(I168,Feuil1!$G$11:$L$25,4),IF(AND(H168>1999,H168<2002),VLOOKUP(I168,Feuil1!$G$11:$L$25,3),VLOOKUP(I168,Feuil1!$G$11:$L$25,2))))))) -> C1 62 | Y168: 85.13089628 | AB168: =T168-HLOOKUP(X168,Feuil1!$C$1:$BL$10,2,FALSE) -> -20 | AC168: =T168-HLOOKUP(X168,Feuil1!$C$1:$BL$10,3,FALSE) -> -40 | AD168: =T168-HLOOKUP(X168,Feuil1!$C$1:$BL$10,4,FALSE) -> -50 | AE168: =T168-HLOOKUP(X168,Feuil1!$C$1:$BL$10,5,FALSE) -> -65 | AF168: =T168-HLOOKUP(X168,Feuil1!$C$1:$BL$10,6,FALSE) -> -80 | AG168: =T168-HLOOKUP(X168,Feuil1!$C$1:$BL$10,7,FALSE) -> -95 | AH168: =T168-HLOOKUP(X168,Feuil1!$C$1:$BL$10,8,FALSE) -> -115 | AI168: =T168-HLOOKUP(X168,Feuil1!$C$1:$BL$10,9,FALSE) -> -135 | AJ168: =T168-HLOOKUP(X168,Feuil1!$C$1:$BL$10,10,FALSE) -> -945 | AQ168: DEB
A169: H | B169: NE | C169: BOU | D169: 49 | E169: 351819 | F169: HENOCQ | G169: Thomas | H169: 2000 | I169: 61.5 | J169: HC Avallon | K169: F | L169: 20 | M169: 23 | N169: -26 | O169: 23 | P169: 28 | Q169: -31 | R169: -31 | S169: 28 | T169: 51 | U169: -72 | V169: DEB | W169: -24 | X169: =IF(I169="","",IF(A169="H",IF(OR(H169="SEN",H169<1995),VLOOKUP(I169,Feuil1!$A$11:$G$29,6),IF(AND(H169>1994,H169<1998),VLOOKUP(I169,Feuil1!$A$11:$G$29,5),IF(AND(H169>1997,H169<2000),VLOOKUP(I169,Feuil1!$A$11:$G$29,4),IF(AND(H169>1999,H169<2002),VLOOKUP(I169,Feuil1!$A$11:$G$29,3),VLOOKUP(I169,Feuil1!$A$11:$G$29,2))))),IF(OR(H169="SEN",H169<1995),VLOOKUP(I169,Feuil1!$G$11:$L$25,6),IF(AND(H169>1994,H169<1998),VLOOKUP(I169,Feuil1!$G$11:$L$25,5),IF(AND(H169>1997,H169<2000),VLOOKUP(I169,Feuil1!$G$11:$L$25,4),IF(AND(H169>1999,H169<2002),VLOOKUP(I169,Feuil1!$G$11:$L$25,3),VLOOKUP(I169,Feuil1!$G$11:$L$25,2))))))) -> C1 62 | Y169: 74.18748534 | AB169: =T169-HLOOKUP(X169,Feuil1!$C$1:$BL$10,2,FALSE) -> -24 | AC169: =T169-HLOOKUP(X169,Feuil1!$C$1:$BL$10,3,FALSE) -> -44 | AD169: =T169-HLOOKUP(X169,Feuil1!$C$1:$BL$10,4,FALSE) -> -54 | AE169: =T169-HLOOKUP(X169,Feuil1!$C$1:$BL$10,5,FALSE) -> -69 | AF169: =T169-HLOOKUP(X169,Feuil1!$C$1:$BL$10,6,FALSE) -> -84 | AG169: =T169-HLOOKUP(X169,Feuil1!$C$1:$BL$10,7,FALSE) -> -99 | AH169: =T169-HLOOKUP(X169,Feuil1!$C$1:$BL$10,8,FALSE) -> -119 | AI169: =T169-HLOOKUP(X169,Feuil1!$C$1:$BL$10,9,FALSE) -> -139 | AJ169: =T169-HLOOKUP(X169,Feuil1!$C$1:$BL$10,10,FALSE) -> -949 | AQ169: DEB
A170: H | B170: NE | C170: CHA | D170: 50 | E170: 323375 | F170: MARCHAND | G170: Christopher | H170: 2001 | I170: 58.4 | J170: Reims HM | K170: F | L170: 12 | M170: 15 | N170: 18 | O170: 18 | P170: 25 | Q170: 28 | R170: 30 | S170: 30 | T170: 48 | U170: -68.8 | V170: DEB | W170: -27 | X170: =IF(I170="","",IF(A170="H",IF(OR(H170="SEN",H170<1995),VLOOKUP(I170,Feuil1!$A$11:$G$29,6),IF(AND(H170>1994,H170<1998),VLOOKUP(I170,Feuil1!$A$11:$G$29,5),IF(AND(H170>1997,H170<2000),VLOOKUP(I170,Feuil1!$A$11:$G$29,4),IF(AND(H170>1999,H170<2002),VLOOKUP(I170,Feuil1!$A$11:$G$29,3),VLOOKUP(I170,Feuil1!$A$11:$G$29,2))))),IF(OR(H170="SEN",H170<1995),VLOOKUP(I170,Feuil1!$G$11:$L$25,6),IF(AND(H170>1994,H170<1998),VLOOKUP(I170,Feuil1!$G$11:$L$25,5),IF(AND(H170>1997,H170<2000),VLOOKUP(I170,Feuil1!$G$11:$L$25,4),IF(AND(H170>1999,H170<2002),VLOOKUP(I170,Feuil1!$G$11:$L$25,3),VLOOKUP(I170,Feuil1!$G$11:$L$25,2))))))) -> C1 62 | Y170: 72.5363994 | AB170: =T170-HLOOKUP(X170,Feuil1!$C$1:$BL$10,2,FALSE) -> -27 | AC170: =T170-HLOOKUP(X170,Feuil1!$C$1:$BL$10,3,FALSE) -> -47 | AD170: =T170-HLOOKUP(X170,Feuil1!$C$1:$BL$10,4,FALSE) -> -57 | AE170: =T170-HLOOKUP(X170,Feuil1!$C$1:$BL$10,5,FALSE) -> -72 | AF170: =T170-HLOOKUP(X170,Feuil1!$C$1:$BL$10,6,FALSE) -> -87 | AG170: =T170-HLOOKUP(X170,Feuil1!$C$1:$BL$10,7,FALSE) -> -102 | AH170: =T170-HLOOKUP(X170,Feuil1!$C$1:$BL$10,8,FALSE) -> -122 | AI170: =T170-HLOOKUP(X170,Feuil1!$C$1:$BL$10,9,FALSE) -> -142 | AJ170: =T170-HLOOKUP(X170,Feuil1!$C$1:$BL$10,10,FALSE) -> -952 | AQ170: DEB
A171: H | B171: SEST | C171: RAL | D171: 51 | E171: 388825 | F171: VAVRE | G171: CORENTIN | H171: 2001 | I171: 56.85 | J171: Vaulx-en-Velin | K171: F | L171: 14 | M171: 18 | N171: 20 | O171: 20 | P171: 20 | Q171: 24 | R171: -27_ | S171: 24 | T171: 44 | U171: -69.7 | V171: DEB | W171: -31 | X171: =IF(I171="","",IF(A171="H",IF(OR(H171="SEN",H171<1995),VLOOKUP(I171,Feuil1!$A$11:$G$29,6),IF(AND(H171>1994,H171<1998),VLOOKUP(I171,Feuil1!$A$11:$G$29,5),IF(AND(H171>1997,H171<2000),VLOOKUP(I171,Feuil1!$A$11:$G$29,4),IF(AND(H171>1999,H171<2002),VLOOKUP(I171,Feuil1!$A$11:$G$29,3),VLOOKUP(I171,Feuil1!$A$11:$G$29,2))))),IF(OR(H171="SEN",H171<1995),VLOOKUP(I171,Feuil1!$G$11:$L$25,6),IF(AND(H171>1994,H171<1998),VLOOKUP(I171,Feuil1!$G$11:$L$25,5),IF(AND(H171>1997,H171<2000),VLOOKUP(I171,Feuil1!$G$11:$L$25,4),IF(AND(H171>1999,H171<2002),VLOOKUP(I171,Feuil1!$G$11:$L$25,3),VLOOKUP(I171,Feuil1!$G$11:$L$25,2))))))) -> C1 62 | Y171: 67.87252322 | AB171: =T171-HLOOKUP(X171,Feuil1!$C$1:$BL$10,2,FALSE) -> -31 | AC171: =T171-HLOOKUP(X171,Feuil1!$C$1:$BL$10,3,FALSE) -> -51 | AD171: =T171-HLOOKUP(X171,Feuil1!$C$1:$BL$10,4,FALSE) -> -61 | AE171: =T171-HLOOKUP(X171,Feuil1!$C$1:$BL$10,5,FALSE) -> -76 | AF171: =T171-HLOOKUP(X171,Feuil1!$C$1:$BL$10,6,FALSE) -> -91 | AG171: =T171-HLOOKUP(X171,Feuil1!$C$1:$BL$10,7,FALSE) -> -106 | AH171: =T171-HLOOKUP(X171,Feuil1!$C$1:$BL$10,8,FALSE) -> -126 | AI171: =T171-HLOOKUP(X171,Feuil1!$C$1:$BL$10,9,FALSE) -> -146 | AJ171: =T171-HLOOKUP(X171,Feuil1!$C$1:$BL$10,10,FALSE) -> -956 | AQ171: DEB
A172: H | B172: SEST | C172: RAL | D172: 52 | E172: 377759 | F172: BEYODDI | G172: Charf-Eddine | H172: 2000 | I172: 62 | J172: C.H. L'ARBRESLE | K172: F | L172: 15 | M172: 18 | N172: -22 | O172: 18 | P172: 20 | Q172: 23 | R172: -26 | S172: 23 | T172: 41 | U172: -83 | V172: DEB | W172: -34 | X172: =IF(I172="","",IF(A172="H",IF(OR(H172="SEN",H172<1995),VLOOKUP(I172,Feuil1!$A$11:$G$29,6),IF(AND(H172>1994,H172<1998),VLOOKUP(I172,Feuil1!$A$11:$G$29,5),IF(AND(H172>1997,H172<2000),VLOOKUP(I172,Feuil1!$A$11:$G$29,4),IF(AND(H172>1999,H172<2002),VLOOKUP(I172,Feuil1!$A$11:$G$29,3),VLOOKUP(I172,Feuil1!$A$11:$G$29,2))))),IF(OR(H172="SEN",H172<1995),VLOOKUP(I172,Feuil1!$G$11:$L$25,6),IF(AND(H172>1994,H172<1998),VLOOKUP(I172,Feuil1!$G$11:$L$25,5),IF(AND(H172>1997,H172<2000),VLOOKUP(I172,Feuil1!$G$11:$L$25,4),IF(AND(H172>1999,H172<2002),VLOOKUP(I172,Feuil1!$G$11:$L$25,3),VLOOKUP(I172,Feuil1!$G$11:$L$25,2))))))) -> C1 62 | Y172: 59.29597987 | AB172: =T172-HLOOKUP(X172,Feuil1!$C$1:$BL$10,2,FALSE) -> -34 | AC172: =T172-HLOOKUP(X172,Feuil1!$C$1:$BL$10,3,FALSE) -> -54 | AD172: =T172-HLOOKUP(X172,Feuil1!$C$1:$BL$10,4,FALSE) -> -64 | AE172: =T172-HLOOKUP(X172,Feuil1!$C$1:$BL$10,5,FALSE) -> -79 | AF172: =T172-HLOOKUP(X172,Feuil1!$C$1:$BL$10,6,FALSE) -> -94 | AG172: =T172-HLOOKUP(X172,Feuil1!$C$1:$BL$10,7,FALSE) -> -109 | AH172: =T172-HLOOKUP(X172,Feuil1!$C$1:$BL$10,8,FALSE) -> -129 | AI172: =T172-HLOOKUP(X172,Feuil1!$C$1:$BL$10,9,FALSE) -> -149 | AJ172: =T172-HLOOKUP(X172,Feuil1!$C$1:$BL$10,10,FALSE) -> -959 | AQ172: DEB
A173: H | B173: CO | C173: BNO | D173: 53 | E173: 378973 | F173: Malhere | G173: Axel | H173: 2001 | I173: 61.8 | J173: Giberville | K173: F | L173: 13 | M173: 15 | N173: 17 | O173: 17 | P173: 17 | Q173: 19 | R173: -21 | S173: 19 | T173: 36 | U173: -87.6 | V173: DEB | W173: -39 | X173: =IF(I173="","",IF(A173="H",IF(OR(H173="SEN",H173<1995),VLOOKUP(I173,Feuil1!$A$11:$G$29,6),IF(AND(H173>1994,H173<1998),VLOOKUP(I173,Feuil1!$A$11:$G$29,5),IF(AND(H173>1997,H173<2000),VLOOKUP(I173,Feuil1!$A$11:$G$29,4),IF(AND(H173>1999,H173<2002),VLOOKUP(I173,Feuil1!$A$11:$G$29,3),VLOOKUP(I173,Feuil1!$A$11:$G$29,2))))),IF(OR(H173="SEN",H173<1995),VLOOKUP(I173,Feuil1!$G$11:$L$25,6),IF(AND(H173>1994,H173<1998),VLOOKUP(I173,Feuil1!$G$11:$L$25,5),IF(AND(H173>1997,H173<2000),VLOOKUP(I173,Feuil1!$G$11:$L$25,4),IF(AND(H173>1999,H173<2002),VLOOKUP(I173,Feuil1!$G$11:$L$25,3),VLOOKUP(I173,Feuil1!$G$11:$L$25,2))))))) -> C1 62 | Y173: 52.18512458 | AB173: =T173-HLOOKUP(X173,Feuil1!$C$1:$BL$10,2,FALSE) -> -39 | AC173: =T173-HLOOKUP(X173,Feuil1!$C$1:$BL$10,3,FALSE) -> -59 | AD173: =T173-HLOOKUP(X173,Feuil1!$C$1:$BL$10,4,FALSE) -> -69 | AE173: =T173-HLOOKUP(X173,Feuil1!$C$1:$BL$10,5,FALSE) -> -84 | AF173: =T173-HLOOKUP(X173,Feuil1!$C$1:$BL$10,6,FALSE) -> -99 | AG173: =T173-HLOOKUP(X173,Feuil1!$C$1:$BL$10,7,FALSE) -> -114 | AH173: =T173-HLOOKUP(X173,Feuil1!$C$1:$BL$10,8,FALSE) -> -134 | AI173: =T173-HLOOKUP(X173,Feuil1!$C$1:$BL$10,9,FALSE) -> -154 | AJ173: =T173-HLOOKUP(X173,Feuil1!$C$1:$BL$10,10,FALSE) -> -964 | AQ173: DEB
AB174: =T174-HLOOKUP(X174,[1]Feuil1!$C$1:$BL$10,2,FALSE) ->  | AC174: =T174-HLOOKUP(X174,[1]Feuil1!$C$1:$BL$10,3,FALSE) ->  | AD174: =T174-HLOOKUP(X174,[1]Feuil1!$C$1:$BL$10,4,FALSE) ->  | AE174: =T174-HLOOKUP(X174,[1]Feuil1!$C$1:$BL$10,5,FALSE) ->  | AF174: =T174-HLOOKUP(X174,[1]Feuil1!$C$1:$BL$10,6,FALSE) ->  | AG174: =T174-HLOOKUP(X174,[1]Feuil1!$C$1:$BL$10,7,FALSE) ->  | AH174: =T174-HLOOKUP(X174,[1]Feuil1!$C$1:$BL$10,8,FALSE) ->  | AI174: =T174-HLOOKUP(X174,[1]Feuil1!$C$1:$BL$10,9,FALSE) ->  | AJ174: =T174-HLOOKUP(X174,[1]Feuil1!$C$1:$BL$10,10,FALSE) ->  | AQ174: =IF(AJ174>=0,$AJ$4,IF(AI174>=0,$AI$4,IF(AH174>=0,$AH$4,IF(AG174>=0,$AG$4,IF(AF174>=0,$AF$4,IF(AE174>=0,$AE$4,IF(AD174>=0,$AD$4,IF(AC174>=0,$AC$4,$AB$4)))))))) -> 
A175: H | B175: NORD | C175: NPC | D175: 1 | E175: 336176 | F175: FARETIE | G175: Sony | H175: 2000 | I175: 67.12 | J175: C.A.ROSENDAEL | K175: F | L175: 88 | M175: 92 | N175: -95 | O175: =IF(H175="","",IF(MAXA(L175:N175)<=0,0,MAXA(L175:N175))) -> 92 | P175: 106 | Q175: 111 | R175: 115 | S175: =IF(H175="","",IF(MAXA(P175:R175)<=0,0,MAXA(P175:R175))) -> 115 | T175: =IF(H175="","",IF(OR(O175=0,S175=0),0,O175+S175)) -> 207 | U175: =T175-I175*2 -> 72.76 | V175: =IF(H175="","",AQ175) -> INTB + | W175: =IF(AJ175>=0,AJ175,IF(AI175>=0,AI175,IF(AH175>=0,AH175,IF(AG175>=0,AG175,IF(AF175>=0,AF175,IF(AE175>=0,AE175,IF(AD175>=0,AD175,IF(AC175>=0,AC175,AB175)))))))) -> 17 | X175: =IF(I175="","",IF(A175="H",IF(OR(H175="SEN",H175<1995),VLOOKUP(I175,Feuil1!$A$11:$G$29,6),IF(AND(H175>1994,H175<1998),VLOOKUP(I175,Feuil1!$A$11:$G$29,5),IF(AND(H175>1997,H175<2000),VLOOKUP(I175,Feuil1!$A$11:$G$29,4),IF(AND(H175>1999,H175<2002),VLOOKUP(I175,Feuil1!$A$11:$G$29,3),VLOOKUP(I175,Feuil1!$A$11:$G$29,2))))),IF(OR(H175="SEN",H175<1995),VLOOKUP(I175,Feuil1!$G$11:$L$25,6),IF(AND(H175>1994,H175<1998),VLOOKUP(I175,Feuil1!$G$11:$L$25,5),IF(AND(H175>1997,H175<2000),VLOOKUP(I175,Feuil1!$G$11:$L$25,4),IF(AND(H175>1999,H175<2002),VLOOKUP(I175,Feuil1!$G$11:$L$25,3),VLOOKUP(I175,Feuil1!$G$11:$L$25,2))))))) -> C1 69 | Y175: =IF(I175="","",IF(A175="H",10^(0.794358141*LOG(I175/174.393)^2)*T175,IF(A175="F",10^(0.89726074*LOG(I175/148.026)^2)*T175,""))) -> 283.5083577 | AB175: =T175-HLOOKUP(X175,Feuil1!$C$1:$BL$10,2,FALSE) -> 122 | AC175: =T175-HLOOKUP(X175,Feuil1!$C$1:$BL$10,3,FALSE) -> 102 | AD175: =T175-HLOOKUP(X175,Feuil1!$C$1:$BL$10,4,FALSE) -> 92 | AE175: =T175-HLOOKUP(X175,Feuil1!$C$1:$BL$10,5,FALSE) -> 77 | AF175: =T175-HLOOKUP(X175,Feuil1!$C$1:$BL$10,6,FALSE) -> 57 | AG175: =T175-HLOOKUP(X175,Feuil1!$C$1:$BL$10,7,FALSE) -> 37 | AH175: =T175-HLOOKUP(X175,Feuil1!$C$1:$BL$10,8,FALSE) -> 17 | AI175: =T175-HLOOKUP(X175,Feuil1!$C$1:$BL$10,9,FALSE) -> -3 | AJ175: =T175-HLOOKUP(X175,Feuil1!$C$1:$BL$10,10,FALSE) -> -793 | AQ175: =IF(AJ175>=0,$AJ$4,IF(AI175>=0,$AI$4,IF(AH175>=0,$AH$4,IF(AG175>=0,$AG$4,IF(AF175>=0,$AF$4,IF(AE175>=0,$AE$4,IF(AD175>=0,$AD$4,IF(AC175>=0,$AC$4,$AB$4)))))))) -> INTB +
A176: H | B176: SEST | C176: PRO | D176: 2 | E176: 342507 | F176: ALFONSI | G176: Luc | H176: 2000 | I176: 65.84 | J176: EEAR MONTEUX | K176: F | L176: 80 | M176: 83 | N176: 85 | O176: 85 | P176: 105 | Q176: 112 | R176: 116 | S176: 116 | T176: 201 | U176: 69.32 | V176: INTB + | W176: 11 | X176: =IF(I176="","",IF(A176="H",IF(OR(H176="SEN",H176<1995),VLOOKUP(I176,Feuil1!$A$11:$G$29,6),IF(AND(H176>1994,H176<1998),VLOOKUP(I176,Feuil1!$A$11:$G$29,5),IF(AND(H176>1997,H176<2000),VLOOKUP(I176,Feuil1!$A$11:$G$29,4),IF(AND(H176>1999,H176<2002),VLOOKUP(I176,Feuil1!$A$11:$G$29,3),VLOOKUP(I176,Feuil1!$A$11:$G$29,2))))),IF(OR(H176="SEN",H176<1995),VLOOKUP(I176,Feuil1!$G$11:$L$25,6),IF(AND(H176>1994,H176<1998),VLOOKUP(I176,Feuil1!$G$11:$L$25,5),IF(AND(H176>1997,H176<2000),VLOOKUP(I176,Feuil1!$G$11:$L$25,4),IF(AND(H176>1999,H176<2002),VLOOKUP(I176,Feuil1!$G$11:$L$25,3),VLOOKUP(I176,Feuil1!$G$11:$L$25,2))))))) -> C1 69 | Y176: 278.8406765 | AB176: =T176-HLOOKUP(X176,Feuil1!$C$1:$BL$10,2,FALSE) -> 116 | AC176: =T176-HLOOKUP(X176,Feuil1!$C$1:$BL$10,3,FALSE) -> 96 | AD176: =T176-HLOOKUP(X176,Feuil1!$C$1:$BL$10,4,FALSE) -> 86 | AE176: =T176-HLOOKUP(X176,Feuil1!$C$1:$BL$10,5,FALSE) -> 71 | AF176: =T176-HLOOKUP(X176,Feuil1!$C$1:$BL$10,6,FALSE) -> 51 | AG176: =T176-HLOOKUP(X176,Feuil1!$C$1:$BL$10,7,FALSE) -> 31 | AH176: =T176-HLOOKUP(X176,Feuil1!$C$1:$BL$10,8,FALSE) -> 11 | AI176: =T176-HLOOKUP(X176,Feuil1!$C$1:$BL$10,9,FALSE) -> -9 | AJ176: =T176-HLOOKUP(X176,Feuil1!$C$1:$BL$10,10,FALSE) -> -799 | AQ176: INTB +
A177: H | B177: NE | C177: CHA | D177: 3 | E177: 339573 | F177: MKRTCHYAN | G177: Armen | H177: 2000 | I177: 63.3 | J177: Reims HM | K177: Arm | L177: 67 | M177: 71 | N177: 74 | O177: 74 | P177: 90 | Q177: 94 | R177: 96 | S177: 96 | T177: 170 | U177: 43.4 | V177: NAT + | W177: 0 | X177: =IF(I177="","",IF(A177="H",IF(OR(H177="SEN",H177<1995),VLOOKUP(I177,Feuil1!$A$11:$G$29,6),IF(AND(H177>1994,H177<1998),VLOOKUP(I177,Feuil1!$A$11:$G$29,5),IF(AND(H177>1997,H177<2000),VLOOKUP(I177,Feuil1!$A$11:$G$29,4),IF(AND(H177>1999,H177<2002),VLOOKUP(I177,Feuil1!$A$11:$G$29,3),VLOOKUP(I177,Feuil1!$A$11:$G$29,2))))),IF(OR(H177="SEN",H177<1995),VLOOKUP(I177,Feuil1!$G$11:$L$25,6),IF(AND(H177>1994,H177<1998),VLOOKUP(I177,Feuil1!$G$11:$L$25,5),IF(AND(H177>1997,H177<2000),VLOOKUP(I177,Feuil1!$G$11:$L$25,4),IF(AND(H177>1999,H177<2002),VLOOKUP(I177,Feuil1!$G$11:$L$25,3),VLOOKUP(I177,Feuil1!$G$11:$L$25,2))))))) -> C1 69 | Y177: 242.2837495 | AB177: =T177-HLOOKUP(X177,Feuil1!$C$1:$BL$10,2,FALSE) -> 85 | AC177: =T177-HLOOKUP(X177,Feuil1!$C$1:$BL$10,3,FALSE) -> 65 | AD177: =T177-HLOOKUP(X177,Feuil1!$C$1:$BL$10,4,FALSE) -> 55 | AE177: =T177-HLOOKUP(X177,Feuil1!$C$1:$BL$10,5,FALSE) -> 40 | AF177: =T177-HLOOKUP(X177,Feuil1!$C$1:$BL$10,6,FALSE) -> 20 | AG177: =T177-HLOOKUP(X177,Feuil1!$C$1:$BL$10,7,FALSE) -> 0 | AH177: =T177-HLOOKUP(X177,Feuil1!$C$1:$BL$10,8,FALSE) -> -20 | AI177: =T177-HLOOKUP(X177,Feuil1!$C$1:$BL$10,9,FALSE) -> -40 | AJ177: =T177-HLOOKUP(X177,Feuil1!$C$1:$BL$10,10,FALSE) -> -830 | AQ177: NAT +
A178: H | B178: SEST | C178: LAN | D178: 4 | E178: 331084 | F178: GIAMBRONE | G178: Alexandre | H178: 2000 | I178: 62.6 | J178: Clermont Sports | K178: F | L178: 62 | M178: -70 | N178: 70 | O178: 70 | P178: 90 | Q178: 95 | R178: -97 | S178: 95 | T178: 165 | U178: 39.8 | V178: FED + | W178: 15 | X178: =IF(I178="","",IF(A178="H",IF(OR(H178="SEN",H178<1995),VLOOKUP(I178,Feuil1!$A$11:$G$29,6),IF(AND(H178>1994,H178<1998),VLOOKUP(I178,Feuil1!$A$11:$G$29,5),IF(AND(H178>1997,H178<2000),VLOOKUP(I178,Feuil1!$A$11:$G$29,4),IF(AND(H178>1999,H178<2002),VLOOKUP(I178,Feuil1!$A$11:$G$29,3),VLOOKUP(I178,Feuil1!$A$11:$G$29,2))))),IF(OR(H178="SEN",H178<1995),VLOOKUP(I178,Feuil1!$G$11:$L$25,6),IF(AND(H178>1994,H178<1998),VLOOKUP(I178,Feuil1!$G$11:$L$25,5),IF(AND(H178>1997,H178<2000),VLOOKUP(I178,Feuil1!$G$11:$L$25,4),IF(AND(H178>1999,H178<2002),VLOOKUP(I178,Feuil1!$G$11:$L$25,3),VLOOKUP(I178,Feuil1!$G$11:$L$25,2))))))) -> C1 69 | Y178: 237.0034683 | AB178: =T178-HLOOKUP(X178,Feuil1!$C$1:$BL$10,2,FALSE) -> 80 | AC178: =T178-HLOOKUP(X178,Feuil1!$C$1:$BL$10,3,FALSE) -> 60 | AD178: =T178-HLOOKUP(X178,Feuil1!$C$1:$BL$10,4,FALSE) -> 50 | AE178: =T178-HLOOKUP(X178,Feuil1!$C$1:$BL$10,5,FALSE) -> 35 | AF178: =T178-HLOOKUP(X178,Feuil1!$C$1:$BL$10,6,FALSE) -> 15 | AG178: =T178-HLOOKUP(X178,Feuil1!$C$1:$BL$10,7,FALSE) -> -5 | AH178: =T178-HLOOKUP(X178,Feuil1!$C$1:$BL$10,8,FALSE) -> -25 | AI178: =T178-HLOOKUP(X178,Feuil1!$C$1:$BL$10,9,FALSE) -> -45 | AJ178: =T178-HLOOKUP(X178,Feuil1!$C$1:$BL$10,10,FALSE) -> -835 | AQ178: FED +
A179: H | B179: SEST | C179: LAN | D179: 5 | E179: 327347 | F179: CHOTARD | G179: Jean Marc | H179: 2000 | I179: 67.8 | J179: Frontignan AC | K179: F | L179: 60 | M179: -65 | N179: 65 | O179: 65 | P179: 82 | Q179: 87 | R179: -92 | S179: 87 | T179: 152 | U179: 16.4 | V179: FED + | W179: 2 | X179: =IF(I179="","",IF(A179="H",IF(OR(H179="SEN",H179<1995),VLOOKUP(I179,Feuil1!$A$11:$G$29,6),IF(AND(H179>1994,H179<1998),VLOOKUP(I179,Feuil1!$A$11:$G$29,5),IF(AND(H179>1997,H179<2000),VLOOKUP(I179,Feuil1!$A$11:$G$29,4),IF(AND(H179>1999,H179<2002),VLOOKUP(I179,Feuil1!$A$11:$G$29,3),VLOOKUP(I179,Feuil1!$A$11:$G$29,2))))),IF(OR(H179="SEN",H179<1995),VLOOKUP(I179,Feuil1!$G$11:$L$25,6),IF(AND(H179>1994,H179<1998),VLOOKUP(I179,Feuil1!$G$11:$L$25,5),IF(AND(H179>1997,H179<2000),VLOOKUP(I179,Feuil1!$G$11:$L$25,4),IF(AND(H179>1999,H179<2002),VLOOKUP(I179,Feuil1!$G$11:$L$25,3),VLOOKUP(I179,Feuil1!$G$11:$L$25,2))))))) -> C1 69 | Y179: 206.8093904 | AB179: =T179-HLOOKUP(X179,Feuil1!$C$1:$BL$10,2,FALSE) -> 67 | AC179: =T179-HLOOKUP(X179,Feuil1!$C$1:$BL$10,3,FALSE) -> 47 | AD179: =T179-HLOOKUP(X179,Feuil1!$C$1:$BL$10,4,FALSE) -> 37 | AE179: =T179-HLOOKUP(X179,Feuil1!$C$1:$BL$10,5,FALSE) -> 22 | AF179: =T179-HLOOKUP(X179,Feuil1!$C$1:$BL$10,6,FALSE) -> 2 | AG179: =T179-HLOOKUP(X179,Feuil1!$C$1:$BL$10,7,FALSE) -> -18 | AH179: =T179-HLOOKUP(X179,Feuil1!$C$1:$BL$10,8,FALSE) -> -38 | AI179: =T179-HLOOKUP(X179,Feuil1!$C$1:$BL$10,9,FALSE) -> -58 | AJ179: =T179-HLOOKUP(X179,Feuil1!$C$1:$BL$10,10,FALSE) -> -848 | AQ179: FED +
A180: H | B180: NORD | C180: NPC | D180: 6 | E180: 311932 | F180: MAES | G180: Calvin | H180: 2000 | I180: 64.5 | J180: C.A.ROSENDAEL | K180: F | L180: 55 | M180: 60 | N180: 65 | O180: 65 | P180: 75 | Q180: 80 | R180: 85 | S180: 85 | T180: 150 | U180: 21 | V180: FED + | W180: 0 | X180: =IF(I180="","",IF(A180="H",IF(OR(H180="SEN",H180<1995),VLOOKUP(I180,Feuil1!$A$11:$G$29,6),IF(AND(H180>1994,H180<1998),VLOOKUP(I180,Feuil1!$A$11:$G$29,5),IF(AND(H180>1997,H180<2000),VLOOKUP(I180,Feuil1!$A$11:$G$29,4),IF(AND(H180>1999,H180<2002),VLOOKUP(I180,Feuil1!$A$11:$G$29,3),VLOOKUP(I180,Feuil1!$A$11:$G$29,2))))),IF(OR(H180="SEN",H180<1995),VLOOKUP(I180,Feuil1!$G$11:$L$25,6),IF(AND(H180>1994,H180<1998),VLOOKUP(I180,Feuil1!$G$11:$L$25,5),IF(AND(H180>1997,H180<2000),VLOOKUP(I180,Feuil1!$G$11:$L$25,4),IF(AND(H180>1999,H180<2002),VLOOKUP(I180,Feuil1!$G$11:$L$25,3),VLOOKUP(I180,Feuil1!$G$11:$L$25,2))))))) -> C1 69 | Y180: 211.0165444 | AB180: =T180-HLOOKUP(X180,Feuil1!$C$1:$BL$10,2,FALSE) -> 65 | AC180: =T180-HLOOKUP(X180,Feuil1!$C$1:$BL$10,3,FALSE) -> 45 | AD180: =T180-HLOOKUP(X180,Feuil1!$C$1:$BL$10,4,FALSE) -> 35 | AE180: =T180-HLOOKUP(X180,Feuil1!$C$1:$BL$10,5,FALSE) -> 20 | AF180: =T180-HLOOKUP(X180,Feuil1!$C$1:$BL$10,6,FALSE) -> 0 | AG180: =T180-HLOOKUP(X180,Feuil1!$C$1:$BL$10,7,FALSE) -> -20 | AH180: =T180-HLOOKUP(X180,Feuil1!$C$1:$BL$10,8,FALSE) -> -40 | AI180: =T180-HLOOKUP(X180,Feuil1!$C$1:$BL$10,9,FALSE) -> -60 | AJ180: =T180-HLOOKUP(X180,Feuil1!$C$1:$BL$10,10,FALSE) -> -850 | AQ180: FED +
A181: H | B181: SEST | C181: PRO | D181: 7 | E181: 304532 | F181: GUERIN | G181: Hugo | H181: 2001 | I181: 67.7 | J181: EEAR MONTEUX | L181: 55 | M181: 59 | N181: 61 | O181: 61 | P181: 65 | Q181: 70 | R181: -75 | S181: 70 | T181: 131 | U181: -4.4 | V181: IRG + | W181: 1 | X181: =IF(I181="","",IF(A181="H",IF(OR(H181="SEN",H181<1995),VLOOKUP(I181,Feuil1!$A$11:$G$29,6),IF(AND(H181>1994,H181<1998),VLOOKUP(I181,Feuil1!$A$11:$G$29,5),IF(AND(H181>1997,H181<2000),VLOOKUP(I181,Feuil1!$A$11:$G$29,4),IF(AND(H181>1999,H181<2002),VLOOKUP(I181,Feuil1!$A$11:$G$29,3),VLOOKUP(I181,Feuil1!$A$11:$G$29,2))))),IF(OR(H181="SEN",H181<1995),VLOOKUP(I181,Feuil1!$G$11:$L$25,6),IF(AND(H181>1994,H181<1998),VLOOKUP(I181,Feuil1!$G$11:$L$25,5),IF(AND(H181>1997,H181<2000),VLOOKUP(I181,Feuil1!$G$11:$L$25,4),IF(AND(H181>1999,H181<2002),VLOOKUP(I181,Feuil1!$G$11:$L$25,3),VLOOKUP(I181,Feuil1!$G$11:$L$25,2))))))) -> C1 69 | Y181: 178.4087459 | AB181: =T181-HLOOKUP(X181,Feuil1!$C$1:$BL$10,2,FALSE) -> 46 | AC181: =T181-HLOOKUP(X181,Feuil1!$C$1:$BL$10,3,FALSE) -> 26 | AD181: =T181-HLOOKUP(X181,Feuil1!$C$1:$BL$10,4,FALSE) -> 16 | AE181: =T181-HLOOKUP(X181,Feuil1!$C$1:$BL$10,5,FALSE) -> 1 | AF181: =T181-HLOOKUP(X181,Feuil1!$C$1:$BL$10,6,FALSE) -> -19 | AG181: =T181-HLOOKUP(X181,Feuil1!$C$1:$BL$10,7,FALSE) -> -39 | AH181: =T181-HLOOKUP(X181,Feuil1!$C$1:$BL$10,8,FALSE) -> -59 | AI181: =T181-HLOOKUP(X181,Feuil1!$C$1:$BL$10,9,FALSE) -> -79 | AJ181: =T181-HLOOKUP(X181,Feuil1!$C$1:$BL$10,10,FALSE) -> -869 | AQ181: IRG +
A182: H | B182: CO | C182: PDL | D182: 8 | E182: 324248 | F182: CHALVIN | G182: Maxime | H182: 2000 | I182: 66.15 | J182: Saint Herblain | K182: F | L182: 55 | M182: 60 | N182: -63 | O182: 60 | P182: 65 | Q182: -70 | R182: 70 | S182: 70 | T182: 130 | U182: -2.3 | V182: IRG + | W182: 0 | X182: =IF(I182="","",IF(A182="H",IF(OR(H182="SEN",H182<1995),VLOOKUP(I182,Feuil1!$A$11:$G$29,6),IF(AND(H182>1994,H182<1998),VLOOKUP(I182,Feuil1!$A$11:$G$29,5),IF(AND(H182>1997,H182<2000),VLOOKUP(I182,Feuil1!$A$11:$G$29,4),IF(AND(H182>1999,H182<2002),VLOOKUP(I182,Feuil1!$A$11:$G$29,3),VLOOKUP(I182,Feuil1!$A$11:$G$29,2))))),IF(OR(H182="SEN",H182<1995),VLOOKUP(I182,Feuil1!$G$11:$L$25,6),IF(AND(H182>1994,H182<1998),VLOOKUP(I182,Feuil1!$G$11:$L$25,5),IF(AND(H182>1997,H182<2000),VLOOKUP(I182,Feuil1!$G$11:$L$25,4),IF(AND(H182>1999,H182<2002),VLOOKUP(I182,Feuil1!$G$11:$L$25,3),VLOOKUP(I182,Feuil1!$G$11:$L$25,2))))))) -> C1 69 | Y182: 179.7776291 | AB182: =T182-HLOOKUP(X182,Feuil1!$C$1:$BL$10,2,FALSE) -> 45 | AC182: =T182-HLOOKUP(X182,Feuil1!$C$1:$BL$10,3,FALSE) -> 25 | AD182: =T182-HLOOKUP(X182,Feuil1!$C$1:$BL$10,4,FALSE) -> 15 | AE182: =T182-HLOOKUP(X182,Feuil1!$C$1:$BL$10,5,FALSE) -> 0 | AF182: =T182-HLOOKUP(X182,Feuil1!$C$1:$BL$10,6,FALSE) -> -20 | AG182: =T182-HLOOKUP(X182,Feuil1!$C$1:$BL$10,7,FALSE) -> -40 | AH182: =T182-HLOOKUP(X182,Feuil1!$C$1:$BL$10,8,FALSE) -> -60 | AI182: =T182-HLOOKUP(X182,Feuil1!$C$1:$BL$10,9,FALSE) -> -80 | AJ182: =T182-HLOOKUP(X182,Feuil1!$C$1:$BL$10,10,FALSE) -> -870 | AQ182: IRG +
A183: H | B183: SEST | C183: RAL | D183: 9 | E183: 304551 | F183: DOMINGUEZ | G183: Gaetan | H183: 2001 | I183: 62.5 | J183: Gauloise de Vaise | K183: F | L183: -55 | M183: -55 | N183: 55 | O183: 55 | P183: 67 | Q183: 70 | R183: 73 | S183: 73 | T183: 128 | U183: 3 | V183: REG + | W183: 13 | X183: =IF(I183="","",IF(A183="H",IF(OR(H183="SEN",H183<1995),VLOOKUP(I183,Feuil1!$A$11:$G$29,6),IF(AND(H183>1994,H183<1998),VLOOKUP(I183,Feuil1!$A$11:$G$29,5),IF(AND(H183>1997,H183<2000),VLOOKUP(I183,Feuil1!$A$11:$G$29,4),IF(AND(H183>1999,H183<2002),VLOOKUP(I183,Feuil1!$A$11:$G$29,3),VLOOKUP(I183,Feuil1!$A$11:$G$29,2))))),IF(OR(H183="SEN",H183<1995),VLOOKUP(I183,Feuil1!$G$11:$L$25,6),IF(AND(H183>1994,H183<1998),VLOOKUP(I183,Feuil1!$G$11:$L$25,5),IF(AND(H183>1997,H183<2000),VLOOKUP(I183,Feuil1!$G$11:$L$25,4),IF(AND(H183>1999,H183<2002),VLOOKUP(I183,Feuil1!$G$11:$L$25,3),VLOOKUP(I183,Feuil1!$G$11:$L$25,2))))))) -> C1 69 | Y183: 184.0653015 | AB183: =T183-HLOOKUP(X183,Feuil1!$C$1:$BL$10,2,FALSE) -> 43 | AC183: =T183-HLOOKUP(X183,Feuil1!$C$1:$BL$10,3,FALSE) -> 23 | AD183: =T183-HLOOKUP(X183,Feuil1!$C$1:$BL$10,4,FALSE) -> 13 | AE183: =T183-HLOOKUP(X183,Feuil1!$C$1:$BL$10,5,FALSE) -> -2 | AF183: =T183-HLOOKUP(X183,Feuil1!$C$1:$BL$10,6,FALSE) -> -22 | AG183: =T183-HLOOKUP(X183,Feuil1!$C$1:$BL$10,7,FALSE) -> -42 | AH183: =T183-HLOOKUP(X183,Feuil1!$C$1:$BL$10,8,FALSE) -> -62 | AI183: =T183-HLOOKUP(X183,Feuil1!$C$1:$BL$10,9,FALSE) -> -82 | AJ183: =T183-HLOOKUP(X183,Feuil1!$C$1:$BL$10,10,FALSE) -> -872 | AQ183: REG +
A184: H | B184: CO | C184: BNO | D184: 10 | E184: 327978 | F184: PANNIER | G184: Quentin | H184: 2000 | I184: 63.7 | J184: Caen CHM | K184: F | L184: 50 | M184: 54 | N184: -57 | O184: 54 | P184: 68 | Q184: 72 | R184: -75 | S184: 72 | T184: 126 | U184: -1.4 | V184: REG + | W184: 11 | X184: =IF(I184="","",IF(A184="H",IF(OR(H184="SEN",H184<1995),VLOOKUP(I184,Feuil1!$A$11:$G$29,6),IF(AND(H184>1994,H184<1998),VLOOKUP(I184,Feuil1!$A$11:$G$29,5),IF(AND(H184>1997,H184<2000),VLOOKUP(I184,Feuil1!$A$11:$G$29,4),IF(AND(H184>1999,H184<2002),VLOOKUP(I184,Feuil1!$A$11:$G$29,3),VLOOKUP(I184,Feuil1!$A$11:$G$29,2))))),IF(OR(H184="SEN",H184<1995),VLOOKUP(I184,Feuil1!$G$11:$L$25,6),IF(AND(H184>1994,H184<1998),VLOOKUP(I184,Feuil1!$G$11:$L$25,5),IF(AND(H184>1997,H184<2000),VLOOKUP(I184,Feuil1!$G$11:$L$25,4),IF(AND(H184>1999,H184<2002),VLOOKUP(I184,Feuil1!$G$11:$L$25,3),VLOOKUP(I184,Feuil1!$G$11:$L$25,2))))))) -> C1 69 | Y184: 178.7882379 | AB184: =T184-HLOOKUP(X184,Feuil1!$C$1:$BL$10,2,FALSE) -> 41 | AC184: =T184-HLOOKUP(X184,Feuil1!$C$1:$BL$10,3,FALSE) -> 21 | AD184: =T184-HLOOKUP(X184,Feuil1!$C$1:$BL$10,4,FALSE) -> 11 | AE184: =T184-HLOOKUP(X184,Feuil1!$C$1:$BL$10,5,FALSE) -> -4 | AF184: =T184-HLOOKUP(X184,Feuil1!$C$1:$BL$10,6,FALSE) -> -24 | AG184: =T184-HLOOKUP(X184,Feuil1!$C$1:$BL$10,7,FALSE) -> -44 | AH184: =T184-HLOOKUP(X184,Feuil1!$C$1:$BL$10,8,FALSE) -> -64 | AI184: =T184-HLOOKUP(X184,Feuil1!$C$1:$BL$10,9,FALSE) -> -84 | AJ184: =T184-HLOOKUP(X184,Feuil1!$C$1:$BL$10,10,FALSE) -> -874 | AQ184: REG +
A185: H | B185: N | C185: IDF | D185: 11 | E185: 383017 | F185: THAN | G185: YVES-OLIVIER | H185: 2000 | I185: 64.2 | J185: SAINT-MAUR | K185: F | L185: 45 | M185: 50 | N185: -55 | O185: 50 | P185: 65 | Q185: 70 | R185: 75 | S185: 75 | T185: 125 | U185: -3.4 | V185: REG + | W185: 10 | X185: =IF(I185="","",IF(A185="H",IF(OR(H185="SEN",H185<1995),VLOOKUP(I185,Feuil1!$A$11:$G$29,6),IF(AND(H185>1994,H185<1998),VLOOKUP(I185,Feuil1!$A$11:$G$29,5),IF(AND(H185>1997,H185<2000),VLOOKUP(I185,Feuil1!$A$11:$G$29,4),IF(AND(H185>1999,H185<2002),VLOOKUP(I185,Feuil1!$A$11:$G$29,3),VLOOKUP(I185,Feuil1!$A$11:$G$29,2))))),IF(OR(H185="SEN",H185<1995),VLOOKUP(I185,Feuil1!$G$11:$L$25,6),IF(AND(H185>1994,H185<1998),VLOOKUP(I185,Feuil1!$G$11:$L$25,5),IF(AND(H185>1997,H185<2000),VLOOKUP(I185,Feuil1!$G$11:$L$25,4),IF(AND(H185>1999,H185<2002),VLOOKUP(I185,Feuil1!$G$11:$L$25,3),VLOOKUP(I185,Feuil1!$G$11:$L$25,2))))))) -> C1 69 | Y185: 176.4119548 | AB185: =T185-HLOOKUP(X185,Feuil1!$C$1:$BL$10,2,FALSE) -> 40 | AC185: =T185-HLOOKUP(X185,Feuil1!$C$1:$BL$10,3,FALSE) -> 20 | AD185: =T185-HLOOKUP(X185,Feuil1!$C$1:$BL$10,4,FALSE) -> 10 | AE185: =T185-HLOOKUP(X185,Feuil1!$C$1:$BL$10,5,FALSE) -> -5 | AF185: =T185-HLOOKUP(X185,Feuil1!$C$1:$BL$10,6,FALSE) -> -25 | AG185: =T185-HLOOKUP(X185,Feuil1!$C$1:$BL$10,7,FALSE) -> -45 | AH185: =T185-HLOOKUP(X185,Feuil1!$C$1:$BL$10,8,FALSE) -> -65 | AI185: =T185-HLOOKUP(X185,Feuil1!$C$1:$BL$10,9,FALSE) -> -85 | AJ185: =T185-HLOOKUP(X185,Feuil1!$C$1:$BL$10,10,FALSE) -> -875 | AQ185: REG +
A186: H | B186: NE | C186: LOR | D186: 12 | E186: 304107 | F186: BÉNÉ | G186: Dylan | H186: 2000 | I186: 64.8 | J186: A.O.C.Pte-ROSSELLE | K186: F | L186: 45 | M186: 50 | N186: -54 | O186: 50 | P186: 60 | Q186: 65 | R186: 70 | S186: 70 | T186: 120 | U186: -9.6 | V186: REG + | W186: 5 | X186: =IF(I186="","",IF(A186="H",IF(OR(H186="SEN",H186<1995),VLOOKUP(I186,Feuil1!$A$11:$G$29,6),IF(AND(H186>1994,H186<1998),VLOOKUP(I186,Feuil1!$A$11:$G$29,5),IF(AND(H186>1997,H186<2000),VLOOKUP(I186,Feuil1!$A$11:$G$29,4),IF(AND(H186>1999,H186<2002),VLOOKUP(I186,Feuil1!$A$11:$G$29,3),VLOOKUP(I186,Feuil1!$A$11:$G$29,2))))),IF(OR(H186="SEN",H186<1995),VLOOKUP(I186,Feuil1!$G$11:$L$25,6),IF(AND(H186>1994,H186<1998),VLOOKUP(I186,Feuil1!$G$11:$L$25,5),IF(AND(H186>1997,H186<2000),VLOOKUP(I186,Feuil1!$G$11:$L$25,4),IF(AND(H186>1999,H186<2002),VLOOKUP(I186,Feuil1!$G$11:$L$25,3),VLOOKUP(I186,Feuil1!$G$11:$L$25,2))))))) -> C1 69 | Y186: 168.2777407 | AB186: =T186-HLOOKUP(X186,Feuil1!$C$1:$BL$10,2,FALSE) -> 35 | AC186: =T186-HLOOKUP(X186,Feuil1!$C$1:$BL$10,3,FALSE) -> 15 | AD186: =T186-HLOOKUP(X186,Feuil1!$C$1:$BL$10,4,FALSE) -> 5 | AE186: =T186-HLOOKUP(X186,Feuil1!$C$1:$BL$10,5,FALSE) -> -10 | AF186: =T186-HLOOKUP(X186,Feuil1!$C$1:$BL$10,6,FALSE) -> -30 | AG186: =T186-HLOOKUP(X186,Feuil1!$C$1:$BL$10,7,FALSE) -> -50 | AH186: =T186-HLOOKUP(X186,Feuil1!$C$1:$BL$10,8,FALSE) -> -70 | AI186: =T186-HLOOKUP(X186,Feuil1!$C$1:$BL$10,9,FALSE) -> -90 | AJ186: =T186-HLOOKUP(X186,Feuil1!$C$1:$BL$10,10,FALSE) -> -880 | AQ186: REG +
A187: H | B187: CO | C187: CEN | D187: 13 | E187: 357592 | F187: BEZARD | G187: Antonin | H187: 2000 | I187: 66.1 | J187: US Tours | K187: F | L187: 45 | M187: -50 | N187: 50 | O187: 50 | P187: 60 | Q187: 65 | R187: 68 | S187: 68 | T187: 118 | U187: -14.2 | V187: REG + | W187: 3 | X187: =IF(I187="","",IF(A187="H",IF(OR(H187="SEN",H187<1995),VLOOKUP(I187,Feuil1!$A$11:$G$29,6),IF(AND(H187>1994,H187<1998),VLOOKUP(I187,Feuil1!$A$11:$G$29,5),IF(AND(H187>1997,H187<2000),VLOOKUP(I187,Feuil1!$A$11:$G$29,4),IF(AND(H187>1999,H187<2002),VLOOKUP(I187,Feuil1!$A$11:$G$29,3),VLOOKUP(I187,Feuil1!$A$11:$G$29,2))))),IF(OR(H187="SEN",H187<1995),VLOOKUP(I187,Feuil1!$G$11:$L$25,6),IF(AND(H187>1994,H187<1998),VLOOKUP(I187,Feuil1!$G$11:$L$25,5),IF(AND(H187>1997,H187<2000),VLOOKUP(I187,Feuil1!$G$11:$L$25,4),IF(AND(H187>1999,H187<2002),VLOOKUP(I187,Feuil1!$G$11:$L$25,3),VLOOKUP(I187,Feuil1!$G$11:$L$25,2))))))) -> C1 69 | Y187: 163.265353 | AB187: =T187-HLOOKUP(X187,Feuil1!$C$1:$BL$10,2,FALSE) -> 33 | AC187: =T187-HLOOKUP(X187,Feuil1!$C$1:$BL$10,3,FALSE) -> 13 | AD187: =T187-HLOOKUP(X187,Feuil1!$C$1:$BL$10,4,FALSE) -> 3 | AE187: =T187-HLOOKUP(X187,Feuil1!$C$1:$BL$10,5,FALSE) -> -12 | AF187: =T187-HLOOKUP(X187,Feuil1!$C$1:$BL$10,6,FALSE) -> -32 | AG187: =T187-HLOOKUP(X187,Feuil1!$C$1:$BL$10,7,FALSE) -> -52 | AH187: =T187-HLOOKUP(X187,Feuil1!$C$1:$BL$10,8,FALSE) -> -72 | AI187: =T187-HLOOKUP(X187,Feuil1!$C$1:$BL$10,9,FALSE) -> -92 | AJ187: =T187-HLOOKUP(X187,Feuil1!$C$1:$BL$10,10,FALSE) -> -882 | AQ187: REG +
A188: H | B188: NORD | C188: NPC | D188: 14 | E188: 351699 | F188: LAMBLIN | G188: Logan | H188: 2001 | I188: 66.7 | J188: A.O.SALLAUMINES | K188: F | L188: 43 | M188: 46 | N188: 49 | O188: 49 | P188: 63 | Q188: 66 | R188: 68 | S188: 68 | T188: 117 | U188: -16.4 | V188: REG + | W188: 2 | X188: =IF(I188="","",IF(A188="H",IF(OR(H188="SEN",H188<1995),VLOOKUP(I188,Feuil1!$A$11:$G$29,6),IF(AND(H188>1994,H188<1998),VLOOKUP(I188,Feuil1!$A$11:$G$29,5),IF(AND(H188>1997,H188<2000),VLOOKUP(I188,Feuil1!$A$11:$G$29,4),IF(AND(H188>1999,H188<2002),VLOOKUP(I188,Feuil1!$A$11:$G$29,3),VLOOKUP(I188,Feuil1!$A$11:$G$29,2))))),IF(OR(H188="SEN",H188<1995),VLOOKUP(I188,Feuil1!$G$11:$L$25,6),IF(AND(H188>1994,H188<1998),VLOOKUP(I188,Feuil1!$G$11:$L$25,5),IF(AND(H188>1997,H188<2000),VLOOKUP(I188,Feuil1!$G$11:$L$25,4),IF(AND(H188>1999,H188<2002),VLOOKUP(I188,Feuil1!$G$11:$L$25,3),VLOOKUP(I188,Feuil1!$G$11:$L$25,2))))))) -> C1 69 | Y188: 160.9100839 | AB188: =T188-HLOOKUP(X188,Feuil1!$C$1:$BL$10,2,FALSE) -> 32 | AC188: =T188-HLOOKUP(X188,Feuil1!$C$1:$BL$10,3,FALSE) -> 12 | AD188: =T188-HLOOKUP(X188,Feuil1!$C$1:$BL$10,4,FALSE) -> 2 | AE188: =T188-HLOOKUP(X188,Feuil1!$C$1:$BL$10,5,FALSE) -> -13 | AF188: =T188-HLOOKUP(X188,Feuil1!$C$1:$BL$10,6,FALSE) -> -33 | AG188: =T188-HLOOKUP(X188,Feuil1!$C$1:$BL$10,7,FALSE) -> -53 | AH188: =T188-HLOOKUP(X188,Feuil1!$C$1:$BL$10,8,FALSE) -> -73 | AI188: =T188-HLOOKUP(X188,Feuil1!$C$1:$BL$10,9,FALSE) -> -93 | AJ188: =T188-HLOOKUP(X188,Feuil1!$C$1:$BL$10,10,FALSE) -> -883 | AQ188: REG +
A189: H | B189: DOM | C189: GUA | D189: 15 | E189: 387844 | F189: ALQUIER | G189: Martin | H189: 2001 | I189: 63 | J189: EGAFC/Baie Mahault | K189: F | L189: 45 | M189: 50 | N189: -53 | O189: 50 | P189: 55 | Q189: 60 | R189: -65 | S189: 60 | T189: 110 | U189: -16 | V189: DEP + | W189: 5 | X189: =IF(I189="","",IF(A189="H",IF(OR(H189="SEN",H189<1995),VLOOKUP(I189,Feuil1!$A$11:$G$29,6),IF(AND(H189>1994,H189<1998),VLOOKUP(I189,Feuil1!$A$11:$G$29,5),IF(AND(H189>1997,H189<2000),VLOOKUP(I189,Feuil1!$A$11:$G$29,4),IF(AND(H189>1999,H189<2002),VLOOKUP(I189,Feuil1!$A$11:$G$29,3),VLOOKUP(I189,Feuil1!$A$11:$G$29,2))))),IF(OR(H189="SEN",H189<1995),VLOOKUP(I189,Feuil1!$G$11:$L$25,6),IF(AND(H189>1994,H189<1998),VLOOKUP(I189,Feuil1!$G$11:$L$25,5),IF(AND(H189>1997,H189<2000),VLOOKUP(I189,Feuil1!$G$11:$L$25,4),IF(AND(H189>1999,H189<2002),VLOOKUP(I189,Feuil1!$G$11:$L$25,3),VLOOKUP(I189,Feuil1!$G$11:$L$25,2))))))) -> C1 69 | Y189: 157.2946907 | AB189: =T189-HLOOKUP(X189,Feuil1!$C$1:$BL$10,2,FALSE) -> 25 | AC189: =T189-HLOOKUP(X189,Feuil1!$C$1:$BL$10,3,FALSE) -> 5 | AD189: =T189-HLOOKUP(X189,Feuil1!$C$1:$BL$10,4,FALSE) -> -5 | AE189: =T189-HLOOKUP(X189,Feuil1!$C$1:$BL$10,5,FALSE) -> -20 | AF189: =T189-HLOOKUP(X189,Feuil1!$C$1:$BL$10,6,FALSE) -> -40 | AG189: =T189-HLOOKUP(X189,Feuil1!$C$1:$BL$10,7,FALSE) -> -60 | AH189: =T189-HLOOKUP(X189,Feuil1!$C$1:$BL$10,8,FALSE) -> -80 | AI189: =T189-HLOOKUP(X189,Feuil1!$C$1:$BL$10,9,FALSE) -> -100 | AJ189: =T189-HLOOKUP(X189,Feuil1!$C$1:$BL$10,10,FALSE) -> -890 | AQ189: DEP +
A190: H | B190: DOM | C190: GUY | D190: 16 | E190: 382076 | F190: GUEGUENIAT | G190: Kavan | H190: 2000 | I190: 68 | J190: ASCPG/Rémire Montjoly | K190: F | L190: 40 | M190: 45 | N190: 47 | O190: 47 | P190: 52 | Q190: 56 | R190: -60 | S190: 56 | T190: 103 | U190: -33 | V190: DEB | W190: 18 | X190: =IF(I190="","",IF(A190="H",IF(OR(H190="SEN",H190<1995),VLOOKUP(I190,Feuil1!$A$11:$G$29,6),IF(AND(H190>1994,H190<1998),VLOOKUP(I190,Feuil1!$A$11:$G$29,5),IF(AND(H190>1997,H190<2000),VLOOKUP(I190,Feuil1!$A$11:$G$29,4),IF(AND(H190>1999,H190<2002),VLOOKUP(I190,Feuil1!$A$11:$G$29,3),VLOOKUP(I190,Feuil1!$A$11:$G$29,2))))),IF(OR(H190="SEN",H190<1995),VLOOKUP(I190,Feuil1!$G$11:$L$25,6),IF(AND(H190>1994,H190<1998),VLOOKUP(I190,Feuil1!$G$11:$L$25,5),IF(AND(H190>1997,H190<2000),VLOOKUP(I190,Feuil1!$G$11:$L$25,4),IF(AND(H190>1999,H190<2002),VLOOKUP(I190,Feuil1!$G$11:$L$25,3),VLOOKUP(I190,Feuil1!$G$11:$L$25,2))))))) -> C1 69 | Y190: 139.8721766 | AB190: =T190-HLOOKUP(X190,Feuil1!$C$1:$BL$10,2,FALSE) -> 18 | AC190: =T190-HLOOKUP(X190,Feuil1!$C$1:$BL$10,3,FALSE) -> -2 | AD190: =T190-HLOOKUP(X190,Feuil1!$C$1:$BL$10,4,FALSE) -> -12 | AE190: =T190-HLOOKUP(X190,Feuil1!$C$1:$BL$10,5,FALSE) -> -27 | AF190: =T190-HLOOKUP(X190,Feuil1!$C$1:$BL$10,6,FALSE) -> -47 | AG190: =T190-HLOOKUP(X190,Feuil1!$C$1:$BL$10,7,FALSE) -> -67 | AH190: =T190-HLOOKUP(X190,Feuil1!$C$1:$BL$10,8,FALSE) -> -87 | AI190: =T190-HLOOKUP(X190,Feuil1!$C$1:$BL$10,9,FALSE) -> -107 | AJ190: =T190-HLOOKUP(X190,Feuil1!$C$1:$BL$10,10,FALSE) -> -897 | AQ190: DEB
A191: H | B191: NORD | C191: NPC | D191: 17 | E191: 312409 | F191: PEREZ | G191: Endy | H191: 2000 | I191: 68.8 | J191: CHCD COMINES | K191: F | L191: 38 | M191: 42 | N191: 45 | O191: 45 | P191: 55 | Q191: 58 | R191: - | S191: 58 | T191: 103 | U191: -34.6 | V191: DEB | W191: 18 | X191: =IF(I191="","",IF(A191="H",IF(OR(H191="SEN",H191<1995),VLOOKUP(I191,Feuil1!$A$11:$G$29,6),IF(AND(H191>1994,H191<1998),VLOOKUP(I191,Feuil1!$A$11:$G$29,5),IF(AND(H191>1997,H191<2000),VLOOKUP(I191,Feuil1!$A$11:$G$29,4),IF(AND(H191>1999,H191<2002),VLOOKUP(I191,Feuil1!$A$11:$G$29,3),VLOOKUP(I191,Feuil1!$A$11:$G$29,2))))),IF(OR(H191="SEN",H191<1995),VLOOKUP(I191,Feuil1!$G$11:$L$25,6),IF(AND(H191>1994,H191<1998),VLOOKUP(I191,Feuil1!$G$11:$L$25,5),IF(AND(H191>1997,H191<2000),VLOOKUP(I191,Feuil1!$G$11:$L$25,4),IF(AND(H191>1999,H191<2002),VLOOKUP(I191,Feuil1!$G$11:$L$25,3),VLOOKUP(I191,Feuil1!$G$11:$L$25,2))))))) -> C1 69 | Y191: 138.819689 | AB191: =T191-HLOOKUP(X191,Feuil1!$C$1:$BL$10,2,FALSE) -> 18 | AC191: =T191-HLOOKUP(X191,Feuil1!$C$1:$BL$10,3,FALSE) -> -2 | AD191: =T191-HLOOKUP(X191,Feuil1!$C$1:$BL$10,4,FALSE) -> -12 | AE191: =T191-HLOOKUP(X191,Feuil1!$C$1:$BL$10,5,FALSE) -> -27 | AF191: =T191-HLOOKUP(X191,Feuil1!$C$1:$BL$10,6,FALSE) -> -47 | AG191: =T191-HLOOKUP(X191,Feuil1!$C$1:$BL$10,7,FALSE) -> -67 | AH191: =T191-HLOOKUP(X191,Feuil1!$C$1:$BL$10,8,FALSE) -> -87 | AI191: =T191-HLOOKUP(X191,Feuil1!$C$1:$BL$10,9,FALSE) -> -107 | AJ191: =T191-HLOOKUP(X191,Feuil1!$C$1:$BL$10,10,FALSE) -> -897 | AQ191: DEB
A192: H | B192: NE | C192: ALS | D192: 18 | E192: 381284 | F192: MARTELLI | G192: ALESSANDRO | H192: 2000 | I192: 67.4 | J192: SR Obernai HM | K192: F | L192: 35 | M192: 40 | N192: 45 | O192: 45 | P192: 48 | Q192: 52 | R192: 56 | S192: 56 | T192: 101 | U192: -33.8 | V192: DEB | W192: 16 | X192: =IF(I192="","",IF(A192="H",IF(OR(H192="SEN",H192<1995),VLOOKUP(I192,Feuil1!$A$11:$G$29,6),IF(AND(H192>1994,H192<1998),VLOOKUP(I192,Feuil1!$A$11:$G$29,5),IF(AND(H192>1997,H192<2000),VLOOKUP(I192,Feuil1!$A$11:$G$29,4),IF(AND(H192>1999,H192<2002),VLOOKUP(I192,Feuil1!$A$11:$G$29,3),VLOOKUP(I192,Feuil1!$A$11:$G$29,2))))),IF(OR(H192="SEN",H192<1995),VLOOKUP(I192,Feuil1!$G$11:$L$25,6),IF(AND(H192>1994,H192<1998),VLOOKUP(I192,Feuil1!$G$11:$L$25,5),IF(AND(H192>1997,H192<2000),VLOOKUP(I192,Feuil1!$G$11:$L$25,4),IF(AND(H192>1999,H192<2002),VLOOKUP(I192,Feuil1!$G$11:$L$25,3),VLOOKUP(I192,Feuil1!$G$11:$L$25,2))))))) -> C1 69 | Y192: 137.9521288 | AB192: =T192-HLOOKUP(X192,Feuil1!$C$1:$BL$10,2,FALSE) -> 16 | AC192: =T192-HLOOKUP(X192,Feuil1!$C$1:$BL$10,3,FALSE) -> -4 | AD192: =T192-HLOOKUP(X192,Feuil1!$C$1:$BL$10,4,FALSE) -> -14 | AE192: =T192-HLOOKUP(X192,Feuil1!$C$1:$BL$10,5,FALSE) -> -29 | AF192: =T192-HLOOKUP(X192,Feuil1!$C$1:$BL$10,6,FALSE) -> -49 | AG192: =T192-HLOOKUP(X192,Feuil1!$C$1:$BL$10,7,FALSE) -> -69 | AH192: =T192-HLOOKUP(X192,Feuil1!$C$1:$BL$10,8,FALSE) -> -89 | AI192: =T192-HLOOKUP(X192,Feuil1!$C$1:$BL$10,9,FALSE) -> -109 | AJ192: =T192-HLOOKUP(X192,Feuil1!$C$1:$BL$10,10,FALSE) -> -899 | AQ192: DEB
A193: H | B193: DOM | C193: GUA | D193: 19 | E193: 366040 | F193: GALVANI | G193: Grégory | H193: 2001 | I193: 66 | J193: Body Club Domien | K193: F | L193: 40 | M193: 45 | N193: -48 | O193: 45 | P193: 50 | Q193: 55 | R193: -58 | S193: 55 | T193: 100 | U193: -32 | V193: DEB | W193: 15 | X193: =IF(I193="","",IF(A193="H",IF(OR(H193="SEN",H193<1995),VLOOKUP(I193,Feuil1!$A$11:$G$29,6),IF(AND(H193>1994,H193<1998),VLOOKUP(I193,Feuil1!$A$11:$G$29,5),IF(AND(H193>1997,H193<2000),VLOOKUP(I193,Feuil1!$A$11:$G$29,4),IF(AND(H193>1999,H193<2002),VLOOKUP(I193,Feuil1!$A$11:$G$29,3),VLOOKUP(I193,Feuil1!$A$11:$G$29,2))))),IF(OR(H193="SEN",H193<1995),VLOOKUP(I193,Feuil1!$G$11:$L$25,6),IF(AND(H193>1994,H193<1998),VLOOKUP(I193,Feuil1!$G$11:$L$25,5),IF(AND(H193>1997,H193<2000),VLOOKUP(I193,Feuil1!$G$11:$L$25,4),IF(AND(H193>1999,H193<2002),VLOOKUP(I193,Feuil1!$G$11:$L$25,3),VLOOKUP(I193,Feuil1!$G$11:$L$25,2))))))) -> C1 69 | Y193: 138.5008678 | AB193: =T193-HLOOKUP(X193,Feuil1!$C$1:$BL$10,2,FALSE) -> 15 | AC193: =T193-HLOOKUP(X193,Feuil1!$C$1:$BL$10,3,FALSE) -> -5 | AD193: =T193-HLOOKUP(X193,Feuil1!$C$1:$BL$10,4,FALSE) -> -15 | AE193: =T193-HLOOKUP(X193,Feuil1!$C$1:$BL$10,5,FALSE) -> -30 | AF193: =T193-HLOOKUP(X193,Feuil1!$C$1:$BL$10,6,FALSE) -> -50 | AG193: =T193-HLOOKUP(X193,Feuil1!$C$1:$BL$10,7,FALSE) -> -70 | AH193: =T193-HLOOKUP(X193,Feuil1!$C$1:$BL$10,8,FALSE) -> -90 | AI193: =T193-HLOOKUP(X193,Feuil1!$C$1:$BL$10,9,FALSE) -> -110 | AJ193: =T193-HLOOKUP(X193,Feuil1!$C$1:$BL$10,10,FALSE) -> -900 | AQ193: DEB
A194: H | B194: DOM | C194: GUA | D194: 20 | E194: 387627 | F194: DOMON | G194: Pablo | H194: 2000 | I194: 67.5 | J194: Budokan/Guadeloupe | K194: F | L194: 40 | M194: 45 | N194: -50 | O194: 45 | P194: 50 | Q194: 55 | R194: -60 | S194: 55 | T194: 100 | U194: -35 | V194: DEB | W194: 15 | X194: =IF(I194="","",IF(A194="H",IF(OR(H194="SEN",H194<1995),VLOOKUP(I194,Feuil1!$A$11:$G$29,6),IF(AND(H194>1994,H194<1998),VLOOKUP(I194,Feuil1!$A$11:$G$29,5),IF(AND(H194>1997,H194<2000),VLOOKUP(I194,Feuil1!$A$11:$G$29,4),IF(AND(H194>1999,H194<2002),VLOOKUP(I194,Feuil1!$A$11:$G$29,3),VLOOKUP(I194,Feuil1!$A$11:$G$29,2))))),IF(OR(H194="SEN",H194<1995),VLOOKUP(I194,Feuil1!$G$11:$L$25,6),IF(AND(H194>1994,H194<1998),VLOOKUP(I194,Feuil1!$G$11:$L$25,5),IF(AND(H194>1997,H194<2000),VLOOKUP(I194,Feuil1!$G$11:$L$25,4),IF(AND(H194>1999,H194<2002),VLOOKUP(I194,Feuil1!$G$11:$L$25,3),VLOOKUP(I194,Feuil1!$G$11:$L$25,2))))))) -> C1 69 | Y194: 136.4536079 | AB194: =T194-HLOOKUP(X194,Feuil1!$C$1:$BL$10,2,FALSE) -> 15 | AC194: =T194-HLOOKUP(X194,Feuil1!$C$1:$BL$10,3,FALSE) -> -5 | AD194: =T194-HLOOKUP(X194,Feuil1!$C$1:$BL$10,4,FALSE) -> -15 | AE194: =T194-HLOOKUP(X194,Feuil1!$C$1:$BL$10,5,FALSE) -> -30 | AF194: =T194-HLOOKUP(X194,Feuil1!$C$1:$BL$10,6,FALSE) -> -50 | AG194: =T194-HLOOKUP(X194,Feuil1!$C$1:$BL$10,7,FALSE) -> -70 | AH194: =T194-HLOOKUP(X194,Feuil1!$C$1:$BL$10,8,FALSE) -> -90 | AI194: =T194-HLOOKUP(X194,Feuil1!$C$1:$BL$10,9,FALSE) -> -110 | AJ194: =T194-HLOOKUP(X194,Feuil1!$C$1:$BL$10,10,FALSE) -> -900 | AQ194: DEB
A195: H | B195: NE | C195: ALS | D195: 21 | E195: 339324 | F195: CERDAN | G195: TOM | H195: 2000 | I195: 69 | J195: US Wittenheim | K195: F | L195: 37 | M195: -40 | N195: 40 | O195: 40 | P195: 52 | Q195: 56 | R195: 60 | S195: 60 | T195: 100 | U195: -38 | V195: DEB | W195: 15 | X195: =IF(I195="","",IF(A195="H",IF(OR(H195="SEN",H195<1995),VLOOKUP(I195,Feuil1!$A$11:$G$29,6),IF(AND(H195>1994,H195<1998),VLOOKUP(I195,Feuil1!$A$11:$G$29,5),IF(AND(H195>1997,H195<2000),VLOOKUP(I195,Feuil1!$A$11:$G$29,4),IF(AND(H195>1999,H195<2002),VLOOKUP(I195,Feuil1!$A$11:$G$29,3),VLOOKUP(I195,Feuil1!$A$11:$G$29,2))))),IF(OR(H195="SEN",H195<1995),VLOOKUP(I195,Feuil1!$G$11:$L$25,6),IF(AND(H195>1994,H195<1998),VLOOKUP(I195,Feuil1!$G$11:$L$25,5),IF(AND(H195>1997,H195<2000),VLOOKUP(I195,Feuil1!$G$11:$L$25,4),IF(AND(H195>1999,H195<2002),VLOOKUP(I195,Feuil1!$G$11:$L$25,3),VLOOKUP(I195,Feuil1!$G$11:$L$25,2))))))) -> C1 69 | Y195: 134.5259554 | AB195: =T195-HLOOKUP(X195,Feuil1!$C$1:$BL$10,2,FALSE) -> 15 | AC195: =T195-HLOOKUP(X195,Feuil1!$C$1:$BL$10,3,FALSE) -> -5 | AD195: =T195-HLOOKUP(X195,Feuil1!$C$1:$BL$10,4,FALSE) -> -15 | AE195: =T195-HLOOKUP(X195,Feuil1!$C$1:$BL$10,5,FALSE) -> -30 | AF195: =T195-HLOOKUP(X195,Feuil1!$C$1:$BL$10,6,FALSE) -> -50 | AG195: =T195-HLOOKUP(X195,Feuil1!$C$1:$BL$10,7,FALSE) -> -70 | AH195: =T195-HLOOKUP(X195,Feuil1!$C$1:$BL$10,8,FALSE) -> -90 | AI195: =T195-HLOOKUP(X195,Feuil1!$C$1:$BL$10,9,FALSE) -> -110 | AJ195: =T195-HLOOKUP(X195,Feuil1!$C$1:$BL$10,10,FALSE) -> -900 | AQ195: DEB
A196: H | B196: NE | C196: ALS | D196: 22 | E196: 343986 | F196: BASTOS | G196: ANTHONY | H196: 2000 | I196: 67.8 | J196: US Wittenheim | K196: F | L196: 41 | M196: 45 | N196: -48 | O196: 45 | P196: 50 | Q196: 53 | R196: -56 | S196: 53 | T196: 98 | U196: -37.6 | V196: DEB | W196: 13 | X196: =IF(I196="","",IF(A196="H",IF(OR(H196="SEN",H196<1995),VLOOKUP(I196,Feuil1!$A$11:$G$29,6),IF(AND(H196>1994,H196<1998),VLOOKUP(I196,Feuil1!$A$11:$G$29,5),IF(AND(H196>1997,H196<2000),VLOOKUP(I196,Feuil1!$A$11:$G$29,4),IF(AND(H196>1999,H196<2002),VLOOKUP(I196,Feuil1!$A$11:$G$29,3),VLOOKUP(I196,Feuil1!$A$11:$G$29,2))))),IF(OR(H196="SEN",H196<1995),VLOOKUP(I196,Feuil1!$G$11:$L$25,6),IF(AND(H196>1994,H196<1998),VLOOKUP(I196,Feuil1!$G$11:$L$25,5),IF(AND(H196>1997,H196<2000),VLOOKUP(I196,Feuil1!$G$11:$L$25,4),IF(AND(H196>1999,H196<2002),VLOOKUP(I196,Feuil1!$G$11:$L$25,3),VLOOKUP(I196,Feuil1!$G$11:$L$25,2))))))) -> C1 69 | Y196: 133.3376333 | AB196: =T196-HLOOKUP(X196,Feuil1!$C$1:$BL$10,2,FALSE) -> 13 | AC196: =T196-HLOOKUP(X196,Feuil1!$C$1:$BL$10,3,FALSE) -> -7 | AD196: =T196-HLOOKUP(X196,Feuil1!$C$1:$BL$10,4,FALSE) -> -17 | AE196: =T196-HLOOKUP(X196,Feuil1!$C$1:$BL$10,5,FALSE) -> -32 | AF196: =T196-HLOOKUP(X196,Feuil1!$C$1:$BL$10,6,FALSE) -> -52 | AG196: =T196-HLOOKUP(X196,Feuil1!$C$1:$BL$10,7,FALSE) -> -72 | AH196: =T196-HLOOKUP(X196,Feuil1!$C$1:$BL$10,8,FALSE) -> -92 | AI196: =T196-HLOOKUP(X196,Feuil1!$C$1:$BL$10,9,FALSE) -> -112 | AJ196: =T196-HLOOKUP(X196,Feuil1!$C$1:$BL$10,10,FALSE) -> -902 | AQ196: DEB
A197: H | B197: SEST | C197: LAN | D197: 23 | E197: 371666 | F197: CHORON RISO | G197: Victor | H197: 2000 | I197: 67.5 | J197: Frontignan AC | K197: F | L197: 35 | M197: 39 | N197: 42 | O197: 42 | P197: 50 | Q197: 55 | R197: -60 | S197: 55 | T197: 97 | U197: -38 | V197: DEB | W197: 12 | X197: =IF(I197="","",IF(A197="H",IF(OR(H197="SEN",H197<1995),VLOOKUP(I197,Feuil1!$A$11:$G$29,6),IF(AND(H197>1994,H197<1998),VLOOKUP(I197,Feuil1!$A$11:$G$29,5),IF(AND(H197>1997,H197<2000),VLOOKUP(I197,Feuil1!$A$11:$G$29,4),IF(AND(H197>1999,H197<2002),VLOOKUP(I197,Feuil1!$A$11:$G$29,3),VLOOKUP(I197,Feuil1!$A$11:$G$29,2))))),IF(OR(H197="SEN",H197<1995),VLOOKUP(I197,Feuil1!$G$11:$L$25,6),IF(AND(H197>1994,H197<1998),VLOOKUP(I197,Feuil1!$G$11:$L$25,5),IF(AND(H197>1997,H197<2000),VLOOKUP(I197,Feuil1!$G$11:$L$25,4),IF(AND(H197>1999,H197<2002),VLOOKUP(I197,Feuil1!$G$11:$L$25,3),VLOOKUP(I197,Feuil1!$G$11:$L$25,2))))))) -> C1 69 | Y197: 132.3599997 | AB197: =T197-HLOOKUP(X197,Feuil1!$C$1:$BL$10,2,FALSE) -> 12 | AC197: =T197-HLOOKUP(X197,Feuil1!$C$1:$BL$10,3,FALSE) -> -8 | AD197: =T197-HLOOKUP(X197,Feuil1!$C$1:$BL$10,4,FALSE) -> -18 | AE197: =T197-HLOOKUP(X197,Feuil1!$C$1:$BL$10,5,FALSE) -> -33 | AF197: =T197-HLOOKUP(X197,Feuil1!$C$1:$BL$10,6,FALSE) -> -53 | AG197: =T197-HLOOKUP(X197,Feuil1!$C$1:$BL$10,7,FALSE) -> -73 | AH197: =T197-HLOOKUP(X197,Feuil1!$C$1:$BL$10,8,FALSE) -> -93 | AI197: =T197-HLOOKUP(X197,Feuil1!$C$1:$BL$10,9,FALSE) -> -113 | AJ197: =T197-HLOOKUP(X197,Feuil1!$C$1:$BL$10,10,FALSE) -> -903 | AQ197: DEB
A198: H | B198: SEST | C198: PRO | D198: 24 | E198: 284821 | F198: SZYSZKA | G198: ROMAIN | H198: 2000 | I198: 64.6 | J198: EEAR MONTEUX | L198: 30 | M198: 35 | N198: 40 | O198: 40 | P198: 40 | Q198: 47 | R198: 52 | S198: 52 | T198: 92 | U198: -37.2 | V198: DEB | W198: 7 | X198: =IF(I198="","",IF(A198="H",IF(OR(H198="SEN",H198<1995),VLOOKUP(I198,Feuil1!$A$11:$G$29,6),IF(AND(H198>1994,H198<1998),VLOOKUP(I198,Feuil1!$A$11:$G$29,5),IF(AND(H198>1997,H198<2000),VLOOKUP(I198,Feuil1!$A$11:$G$29,4),IF(AND(H198>1999,H198<2002),VLOOKUP(I198,Feuil1!$A$11:$G$29,3),VLOOKUP(I198,Feuil1!$A$11:$G$29,2))))),IF(OR(H198="SEN",H198<1995),VLOOKUP(I198,Feuil1!$G$11:$L$25,6),IF(AND(H198>1994,H198<1998),VLOOKUP(I198,Feuil1!$G$11:$L$25,5),IF(AND(H198>1997,H198<2000),VLOOKUP(I198,Feuil1!$G$11:$L$25,4),IF(AND(H198>1999,H198<2002),VLOOKUP(I198,Feuil1!$G$11:$L$25,3),VLOOKUP(I198,Feuil1!$G$11:$L$25,2))))))) -> C1 69 | Y198: 129.2860614 | AB198: =T198-HLOOKUP(X198,Feuil1!$C$1:$BL$10,2,FALSE) -> 7 | AC198: =T198-HLOOKUP(X198,Feuil1!$C$1:$BL$10,3,FALSE) -> -13 | AD198: =T198-HLOOKUP(X198,Feuil1!$C$1:$BL$10,4,FALSE) -> -23 | AE198: =T198-HLOOKUP(X198,Feuil1!$C$1:$BL$10,5,FALSE) -> -38 | AF198: =T198-HLOOKUP(X198,Feuil1!$C$1:$BL$10,6,FALSE) -> -58 | AG198: =T198-HLOOKUP(X198,Feuil1!$C$1:$BL$10,7,FALSE) -> -78 | AH198: =T198-HLOOKUP(X198,Feuil1!$C$1:$BL$10,8,FALSE) -> -98 | AI198: =T198-HLOOKUP(X198,Feuil1!$C$1:$BL$10,9,FALSE) -> -118 | AJ198: =T198-HLOOKUP(X198,Feuil1!$C$1:$BL$10,10,FALSE) -> -908 | AQ198: DEB
A199: H | B199: NORD | C199: NPC | D199: 25 | E199: 357287 | F199: MEHAY | G199: Bryan | H199: 2000 | I199: 65.9 | J199: LILLE U.C. | K199: F | L199: 36 | M199: 38 | N199: 40 | O199: 40 | P199: 46 | Q199: 48 | R199: 50 | S199: 50 | T199: 90 | U199: -41.8 | V199: DEB | W199: 5 | X199: =IF(I199="","",IF(A199="H",IF(OR(H199="SEN",H199<1995),VLOOKUP(I199,Feuil1!$A$11:$G$29,6),IF(AND(H199>1994,H199<1998),VLOOKUP(I199,Feuil1!$A$11:$G$29,5),IF(AND(H199>1997,H199<2000),VLOOKUP(I199,Feuil1!$A$11:$G$29,4),IF(AND(H199>1999,H199<2002),VLOOKUP(I199,Feuil1!$A$11:$G$29,3),VLOOKUP(I199,Feuil1!$A$11:$G$29,2))))),IF(OR(H199="SEN",H199<1995),VLOOKUP(I199,Feuil1!$G$11:$L$25,6),IF(AND(H199>1994,H199<1998),VLOOKUP(I199,Feuil1!$G$11:$L$25,5),IF(AND(H199>1997,H199<2000),VLOOKUP(I199,Feuil1!$G$11:$L$25,4),IF(AND(H199>1999,H199<2002),VLOOKUP(I199,Feuil1!$G$11:$L$25,3),VLOOKUP(I199,Feuil1!$G$11:$L$25,2))))))) -> C1 69 | Y199: 124.7776582 | AB199: =T199-HLOOKUP(X199,Feuil1!$C$1:$BL$10,2,FALSE) -> 5 | AC199: =T199-HLOOKUP(X199,Feuil1!$C$1:$BL$10,3,FALSE) -> -15 | AD199: =T199-HLOOKUP(X199,Feuil1!$C$1:$BL$10,4,FALSE) -> -25 | AE199: =T199-HLOOKUP(X199,Feuil1!$C$1:$BL$10,5,FALSE) -> -40 | AF199: =T199-HLOOKUP(X199,Feuil1!$C$1:$BL$10,6,FALSE) -> -60 | AG199: =T199-HLOOKUP(X199,Feuil1!$C$1:$BL$10,7,FALSE) -> -80 | AH199: =T199-HLOOKUP(X199,Feuil1!$C$1:$BL$10,8,FALSE) -> -100 | AI199: =T199-HLOOKUP(X199,Feuil1!$C$1:$BL$10,9,FALSE) -> -120 | AJ199: =T199-HLOOKUP(X199,Feuil1!$C$1:$BL$10,10,FALSE) -> -910 | AQ199: DEB
A200: H | B200: SEST | C200: RAL | D200: 26 | E200: 390094 | F200: CHANAL | G200: Aubin | H200: 2000 | I200: 65.8 | J200: H.C. ST BALDOPH | K200: F | L200: -40 | M200: 40 | N200: -42 | O200: 40 | P200: 45 | Q200: -47 | R200: 47 | S200: 47 | T200: 87 | U200: -44.6 | V200: DEB | W200: 2 | X200: =IF(I200="","",IF(A200="H",IF(OR(H200="SEN",H200<1995),VLOOKUP(I200,Feuil1!$A$11:$G$29,6),IF(AND(H200>1994,H200<1998),VLOOKUP(I200,Feuil1!$A$11:$G$29,5),IF(AND(H200>1997,H200<2000),VLOOKUP(I200,Feuil1!$A$11:$G$29,4),IF(AND(H200>1999,H200<2002),VLOOKUP(I200,Feuil1!$A$11:$G$29,3),VLOOKUP(I200,Feuil1!$A$11:$G$29,2))))),IF(OR(H200="SEN",H200<1995),VLOOKUP(I200,Feuil1!$G$11:$L$25,6),IF(AND(H200>1994,H200<1998),VLOOKUP(I200,Feuil1!$G$11:$L$25,5),IF(AND(H200>1997,H200<2000),VLOOKUP(I200,Feuil1!$G$11:$L$25,4),IF(AND(H200>1999,H200<2002),VLOOKUP(I200,Feuil1!$G$11:$L$25,3),VLOOKUP(I200,Feuil1!$G$11:$L$25,2))))))) -> C1 69 | Y200: 120.7415542 | AB200: =T200-HLOOKUP(X200,Feuil1!$C$1:$BL$10,2,FALSE) -> 2 | AC200: =T200-HLOOKUP(X200,Feuil1!$C$1:$BL$10,3,FALSE) -> -18 | AD200: =T200-HLOOKUP(X200,Feuil1!$C$1:$BL$10,4,FALSE) -> -28 | AE200: =T200-HLOOKUP(X200,Feuil1!$C$1:$BL$10,5,FALSE) -> -43 | AF200: =T200-HLOOKUP(X200,Feuil1!$C$1:$BL$10,6,FALSE) -> -63 | AG200: =T200-HLOOKUP(X200,Feuil1!$C$1:$BL$10,7,FALSE) -> -83 | AH200: =T200-HLOOKUP(X200,Feuil1!$C$1:$BL$10,8,FALSE) -> -103 | AI200: =T200-HLOOKUP(X200,Feuil1!$C$1:$BL$10,9,FALSE) -> -123 | AJ200: =T200-HLOOKUP(X200,Feuil1!$C$1:$BL$10,10,FALSE) -> -913 | AQ200: DEB
A201: H | B201: SEST | C201: PRO | D201: 27 | E201: 322017 | F201: TONNAIRE | G201: PIERRE | H201: 2000 | I201: 67.7 | J201: EEAR MONTEUX | L201: 35 | M201: 37 | N201: 39 | O201: 39 | P201: 40 | Q201: 45 | R201: 48 | S201: 48 | T201: 87 | U201: -48.4 | V201: DEB | W201: 2 | X201: =IF(I201="","",IF(A201="H",IF(OR(H201="SEN",H201<1995),VLOOKUP(I201,Feuil1!$A$11:$G$29,6),IF(AND(H201>1994,H201<1998),VLOOKUP(I201,Feuil1!$A$11:$G$29,5),IF(AND(H201>1997,H201<2000),VLOOKUP(I201,Feuil1!$A$11:$G$29,4),IF(AND(H201>1999,H201<2002),VLOOKUP(I201,Feuil1!$A$11:$G$29,3),VLOOKUP(I201,Feuil1!$A$11:$G$29,2))))),IF(OR(H201="SEN",H201<1995),VLOOKUP(I201,Feuil1!$G$11:$L$25,6),IF(AND(H201>1994,H201<1998),VLOOKUP(I201,Feuil1!$G$11:$L$25,5),IF(AND(H201>1997,H201<2000),VLOOKUP(I201,Feuil1!$G$11:$L$25,4),IF(AND(H201>1999,H201<2002),VLOOKUP(I201,Feuil1!$G$11:$L$25,3),VLOOKUP(I201,Feuil1!$G$11:$L$25,2))))))) -> C1 69 | Y201: 118.4851977 | AB201: =T201-HLOOKUP(X201,Feuil1!$C$1:$BL$10,2,FALSE) -> 2 | AC201: =T201-HLOOKUP(X201,Feuil1!$C$1:$BL$10,3,FALSE) -> -18 | AD201: =T201-HLOOKUP(X201,Feuil1!$C$1:$BL$10,4,FALSE) -> -28 | AE201: =T201-HLOOKUP(X201,Feuil1!$C$1:$BL$10,5,FALSE) -> -43 | AF201: =T201-HLOOKUP(X201,Feuil1!$C$1:$BL$10,6,FALSE) -> -63 | AG201: =T201-HLOOKUP(X201,Feuil1!$C$1:$BL$10,7,FALSE) -> -83 | AH201: =T201-HLOOKUP(X201,Feuil1!$C$1:$BL$10,8,FALSE) -> -103 | AI201: =T201-HLOOKUP(X201,Feuil1!$C$1:$BL$10,9,FALSE) -> -123 | AJ201: =T201-HLOOKUP(X201,Feuil1!$C$1:$BL$10,10,FALSE) -> -913 | AQ201: DEB
... 96 more rows

Sheet CADETS 2
F1: LISTING NATIONAL | H1: MASCULINS | Q1: DATE : | S1: 2015-06-30
G2: 2014-2015 | L2: 3° TRIMESTRE
A4: SEXE | B4: ZONE | C4: REG. | D4: CL. | E4: LICENCE | F4: NOMS | G4: Prénoms | H4: AN | I4: POIDS | J4: CLUB | K4: NAT | L4: 1 | M4: 2 | N4: 3 | O4: ARR | P4: 1 | Q4: 2 | R4: 3 | S4: EP-J | T4: Total | U4: KP-2PC | V4: SERIE | X4: Catég | Y4: IWF | AB4: DEB | AC4: DEP + | AD4: REG + | AE4: IRG + | AF4: FED + | AG4: NAT + | AH4: INTB + | AI4: INTA + | AJ4: OLY +
